Workbook

Sheet PI vs gap
A1: Measurement | B1: Hall
A2: Type | B2: Gap dependence
A4: PS type | B4: SXR
A5: PS serial no | B5: 16341
A7: Measurement date | B7: ='DF raw data'!B2 -> 27. mar 2017
C11: Nominal gap [mm] | D11: Encoder [counts] | E11: Encoder [mm] | F11: PI [T^2mm^3] | H11: Encoder offset
C12: 10 | D12: =' 10 mm'!B3 -> 392596 | E12: =(D12-$H$12)*0.00005+10 -> 9.99955 | F12: =' 10 mm'!Q3 -> 4540.251278 | H12: 392605
C13: 12 | D13: =' 12 mm'!B3 -> 432923 | E13: =(D13-$H$12)*0.00005+10 -> 12.0159 | F13: =' 12 mm'!Q3 -> 3772.35255
C14: 15 | D14: =' 15 mm'!B3 -> 493304 | E14: 15.03495 | F14: =' 15 mm'!Q3 -> 2876.278465
C15: 20 | D15: =' 20 mm'!B3 -> 593694 | E15: 20.05445 | F15: =' 20 mm'!Q3 -> 1860.536887
C16: 30 | D16: =' 30 mm'!B3 -> 793997 | E16: 30.0696 | F16: =' 30 mm'!Q3 -> 816.6065601
C17: 100 | D17: =' 100 mm'!B3 -> 2194103 | E17: 100.0749 | F17: =' 100 mm'!Q3 -> 8.698001887
A41: Measuring series at 10 mm gap:
A42: Reference magnet
A43: Tref | B43: 21.23 | C43: degC
A44: Hall ref field | B44: 0.50515 | C44: T
A45: NMR ref field | B45: 0.50634 | C45: T
A47: Measuring series at larger gaps:
A48: Reference magnet
A49: Tref | B49: 21.09 | C49: degC
A50: Hall ref field | B50: 0.50518 | C50: T
A51: NMR ref field | B51: 0.50641 | C51: T
A53: Offset from Faro | B53: 0.012

Sheet 10 mm
A1: dz | B1: ='DF raw data'!B7 -> 0.50014 | C1: mm | F1: T_coeff | G1: -0.0008 | H1: /degC | L1: Hallref | M1: ='PI vs gap'!B44 -> 0.50515 | N1: T | P1: IBy total | Q1: =P1203*1000 -> -16.57673769 | R1: muTm
A2: Tref | B2: ='DF raw data'!B8 -> 21.24 | C2: degC | F2: Tcorr | G2: 20 | H2: degC | L2: NMRref | M2: ='PI vs gap'!B45 -> 0.50634 | N2: T | P2: JBy total | Q2: =Q1203 -> -11.02157412 | R2: muTm^2
A3: Encoder | B3: ='DF raw data'!B9 -> 392596 | P3: PI total | Q3: =R1203 -> 4540.251278 | R3: T^2mm^3
J4: SXR-rotation
A5: z [mm] | B5: Bx | C5: By | D5: Bz | F5: Bx_corr | G5: By_corr | H5: Bz_corr | J5: Bx_rot | K5: By_rot | L5: Bz_rot | N5: Ix | O5: Jx | P5: Iy | Q5: Jy | R5: PI
A6: ='PI vs gap'!B53 -> 0.012 | B6: ='DF raw data'!A11 -> 4.2235101e-06 | C6: ='DF raw data'!B11 -> 2.1146166e-06 | D6: ='DF raw data'!C11 -> 3.086644e-06 | F6: =(1-$G$1*($B$2-$G$2))*B6 -> 4.227699822e-06 | G6: =(1-$G$1*($B$2-$G$2))*C6*$M$2/$M$1 -> 2.12170072e-06 | H6: =(1-$G$1*($B$2-$G$2))*D6 -> 3.089705951e-06 | J6: =-CELL("contents", INDEX($F$6:$F$1203,1204-CELL("row",F6))) -> -8.977026185e-06 | K6: =CELL("contents", INDEX($G$6:$G$1203,1204-CELL("row",G6))) -> 1.258450123e-05 | L6: =-CELL("contents", INDEX($H$6:$H$1203,1204-CELL("row",H6))) -> -1.002100398e-06 | N6: =J6*$B$1 -> -4.489769876e-06 | O6: =N6*$B$1 -> -2.245513506e-06 | P6: =K6*$B$1 -> 6.294012446e-06 | Q6: =P6*$B$1 -> 3.147887385e-06 | R6: =(N6^2+P6^2)*$B$1 -> 2.989468127e-11
A7: =A6+$B$1 -> 0.51214 | B7: ='DF raw data'!A12 -> 3.7710802e-06 | C7: ='DF raw data'!B12 -> 1.5037307e-05 | D7: ='DF raw data'!C12 -> 7.2168559e-06 | F7: =(1-$G$1*($B$2-$G$2))*B7 -> 3.774821112e-06 | G7: =(1-$G$1*($B$2-$G$2))*C7*$M$2/$M$1 -> 1.508768307e-05 | H7: =(1-$G$1*($B$2-$G$2))*D7 -> 7.224015021e-06 | J7: =-CELL("contents", INDEX($F$6:$F$1203,1204-CELL("row",F7))) -> -1.010026253e-05 | K7: =CELL("contents", INDEX($G$6:$G$1203,1204-CELL("row",G7))) -> 4.480029313e-06 | L7: =-CELL("contents", INDEX($H$6:$H$1203,1204-CELL("row",H7))) -> -1.798209756e-06 | N7: =J7*$B$1+N6 -> -9.541315178e-06 | O7: =N7*$B$1+O6 -> -7.017506879e-06 | P7: =K7*$B$1+P6 -> 8.534654306e-06 | Q7: =P7*$B$1+Q6 -> 7.416409389e-06 | R7: =(N7^2+P7^2)*$B$1+R6 -> 1.118561338e-10
A8: =A7+$B$1 -> 1.01228 | B8: ='DF raw data'!A13 -> 4.140808e-06 | C8: ='DF raw data'!B13 -> 4.7854278e-06 | D8: ='DF raw data'!C13 -> 7.186708e-06 | F8: 4.144915682e-06 | G8: 4.801459332e-06 | H8: 7.193837214e-06 | J8: -1.215451133e-05 | K8: -1.004491685e-05 | L8: -3.403752877e-06 | N8: =J8*$B$1+N7 -> -1.562027247e-05 | O8: =N8*$B$1+O7 -> -1.482982995e-05 | P8: =K8*$B$1+P7 -> 3.510789595e-06 | Q8: =P8*$B$1+Q7 -> 9.172295698e-06 | R8: =(N8^2+P8^2)*$B$1+R7 -> 2.400512962e-10
A9: 1.51242 | B9: ='DF raw data'!A14 -> 4.3424575e-06 | C9: ='DF raw data'!B14 -> -4.3170658e-07 | D9: ='DF raw data'!C14 -> 8.792992e-06 | F9: 4.346765218e-06 | G9: -4.331528285e-07 | H9: 8.801714648e-06 | J9: -8.77510748e-06 | K9: 7.456721653e-06 | L9: -3.945974327e-06 | N9: -2.000905473e-05 | O9: -2.483715859e-05 | P9: 7.240194363e-06 | Q9: 1.279340651e-05 | R9: 4.665060286e-10
A10: 2.01256 | B10: ='DF raw data'!A15 -> 4.5497168e-06 | C10: ='DF raw data'!B15 -> -5.9131621e-06 | D10: ='DF raw data'!C15 -> 9.1293559e-06 | F10: 4.554230119e-06 | G10: -5.932971624e-06 | H10: 9.138412221e-06 | J10: -7.83060336e-06 | K10: 2.940878261e-06 | L10: -3.450121228e-06 | N10: -2.392545269e-05 | O10: -3.68032345e-05 | P10: 8.711045217e-06 | Q10: 1.715014866e-05 | R10: 7.907515896e-10
A11: 2.5127 | B11: ='DF raw data'!A16 -> 4.0554355e-06 | C11: ='DF raw data'!B16 -> 7.858258e-06 | D11: ='DF raw data'!C16 -> 1.0759931e-05 | F11: =(1-$G$1*($B$2-$G$2))*B11 -> 4.059458492e-06 | G11: 7.884583736e-06 | H11: =(1-$G$1*($B$2-$G$2))*D11 -> 1.077060485e-05 | J11: -1.654971004e-05 | K11: -4.007592901e-06 | L11: -3.554113987e-06 | N11: -3.220262467e-05 | O11: -5.29090552e-05 | P11: 6.706687703e-06 | Q11: 2.050443145e-05 | R11: 1.331897416e-09
A12: 3.01284 | B12: ='DF raw data'!A17 -> 4.1080334e-06 | C12: ='DF raw data'!B17 -> 5.8201563e-06 | D12: ='DF raw data'!C17 -> 7.4778809e-06 | F12: 4.112108569e-06 | G12: 5.839654247e-06 | H12: 7.485298958e-06 | J12: -1.652899752e-05 | K12: -6.283186853e-06 | L12: -4.390928985e-06 | N12: -4.046943749e-05 | O12: -7.314943967e-05 | P12: 3.56421463e-06 | Q12: 2.228703775e-05 | R12: 2.157367981e-09
A13: 3.51298 | B13: ='DF raw data'!A18 -> 4.5567235e-06 | C13: ='DF raw data'!B18 -> -7.5982157e-06 | D13: ='DF raw data'!C18 -> 4.0411859e-07 | F13: 4.56124377e-06 | G13: -7.623670276e-06 | H13: 4.045194756e-07 | J13: -5.259001159e-06 | K13: 8.484605341e-06 | L13: -4.445425392e-06 | N13: -4.309967433e-05 | O13: -9.470531079e-05 | P13: 7.807705146e-06 | Q13: 2.619198341e-05 | R13: 3.116907671e-09
A14: 4.01312 | B14: ='DF raw data'!A19 -> 3.8792846e-06 | C14: ='DF raw data'!B19 -> 1.0295038e-05 | D14: ='DF raw data'!C19 -> -2.9896755e-06 | F14: 3.88313285e-06 | G14: 1.032952713e-05 | H14: -2.992641258e-06 | J14: -3.631641118e-06 | K14: 7.707779005e-07 | L14: -3.967758316e-06 | N14: -4.491600332e-05 | O14: -0.0001171696007 | P14: 8.193202005e-06 | Q14: 3.028973146e-05 | R14: 4.159487468e-09
A15: 4.51326 | B15: ='DF raw data'!A20 -> 4.3018758e-06 | C15: ='DF raw data'!B20 -> 4.860027e-07 | D15: ='DF raw data'!C20 -> 7.7937484e-06 | F15: 4.306143261e-06 | G15: 4.876308444e-07 | H15: 7.801479798e-06 | J15: -3.433393151e-06 | K15: 3.018524613e-06 | L15: -3.868761708e-06 | N15: -4.663318057e-05 | O15: -0.0001404927196 | P15: 9.702886905e-06 | Q15: 3.514253331e-05 | R15: 5.294204872e-09
A16: 5.0134 | B16: ='DF raw data'!A21 -> 4.556658e-06 | C16: ='DF raw data'!B21 -> -5.8120263e-06 | D16: ='DF raw data'!C21 -> 1.177295e-05 | F16: 4.561178205e-06 | G16: -5.831497011e-06 | H16: 1.178462877e-05 | J16: -4.943563155e-06 | K16: 7.199055334e-07 | L16: -4.05296786e-06 | N16: -4.910565425e-05 | O16: -0.0001650524215 | P16: 1.006294046e-05 | Q16: 4.017541235e-05 | R16: 6.550870665e-09
A17: 5.51354 | B17: ='DF raw data'!A22 -> 4.6107912e-06 | C17: ='DF raw data'!B22 -> -8.5644951e-06 | D17: ='DF raw data'!C22 -> 3.7847321e-06 | F17: 4.615365105e-06 | G17: -8.593186782e-06 | H17: 3.788486554e-06 | J17: -6.640146097e-06 | K17: 6.457751504e-06 | L17: -3.705010528e-06 | N17: -5.242665691e-05 | O17: -0.0001912730897 | P17: 1.32927203e-05 | Q17: 4.682363348e-05 | R17: 8.013905584e-09
A18: 6.01368 | B18: ='DF raw data'!A23 -> 4.46481e-06 | C18: ='DF raw data'!B23 -> -5.6205558e-06 | D18: ='DF raw data'!C23 -> -2.6195657e-06 | F18: 4.469239092e-06 | G18: -5.639385071e-06 | H18: -2.622164309e-06 | J18: -9.770058393e-06 | K18: 4.583109988e-06 | L18: -3.233672524e-06 | N18: -5.731305392e-05 | O18: -0.0002199376405 | P18: 1.558491693e-05 | Q18: 5.461827383e-05 | R18: 9.778237351e-09
A19: 6.51382 | B19: ='DF raw data'!A24 -> 4.5898983e-06 | C19: ='DF raw data'!B24 -> -8.8469587e-06 | D19: ='DF raw data'!C24 -> -1.4945389e-06 | F19: 4.594451479e-06 | G19: -8.876596656e-06 | H19: -1.496021483e-06 | J19: -1.13628778e-05 | K19: -4.53251596e-06 | L19: -3.56317797e-06 | N19: -6.299608362e-05 | O19: -0.0002514445018 | P19: 1.331802439e-05 | Q19: 6.127915055e-05 | R19: 1.185175594e-08
A20: 7.01396 | B20: ='DF raw data'!A25 -> 4.60198e-06 | C20: ='DF raw data'!B25 -> -9.7455904e-06 | D20: ='DF raw data'!C25 -> -4.9588116e-06 | F20: 4.606545164e-06 | G20: -9.778238837e-06 | H20: -4.963730741e-06 | J20: -1.228446511e-05 | K20: -2.783967253e-07 | L20: -4.360751178e-06 | N20: -6.914003601e-05 | O20: -0.0002860241994 | P20: 1.317878705e-05 | Q20: 6.787038911e-05 | R20: 1.4329462e-08
A21: 7.5141 | B21: ='DF raw data'!A26 -> 4.6263435e-06 | C21: ='DF raw data'!B26 -> -1.0115318e-05 | D21: ='DF raw data'!C26 -> -3.328968e-06 | F21: 4.630932833e-06 | G21: -1.014920505e-05 | H21: -3.332270336e-06 | J21: -1.629888547e-05 | K21: 3.308227398e-06 | L21: -4.651014834e-06 | N21: -7.729176059e-05 | O21: -0.0003246809005 | P21: 1.483336391e-05 | Q21: 7.528914774e-05 | R21: 1.742735164e-08
A22: 8.01424 | B22: ='DF raw data'!A27 -> 6.4747519e-07 | C22: ='DF raw data'!B27 -> -8.2363968e-06 | D22: ='DF raw data'!C27 -> -3.3513306e-06 | F22: 6.481174854e-07 | G22: -8.263989329e-06 | H22: -3.35465512e-06 | J22: -1.560487169e-05 | K22: 7.103290687e-06 | L22: -4.226977406e-06 | N22: -8.509638111e-05 | O22: -0.0003672410046 | P22: 1.838600371e-05 | Q22: 8.448472363e-05 | R22: 2.121813237e-08
A23: 8.51438 | B23: ='DF raw data'!A28 -> -6.4169558e-06 | C23: ='DF raw data'!B28 -> -1.0639686e-05 | D23: ='DF raw data'!C28 -> -4.7943531e-06 | F23: -6.42332142e-06 | G23: -1.067532972e-05 | H23: -4.799109098e-06 | J23: -1.160441717e-05 | K23: 6.204864343e-06 | L23: 4.147632674e-06 | N23: -9.090021432e-05 | O23: -0.0004127038378 | P23: 2.148930456e-05 | Q23: 9.523238441e-05 | R23: 2.55816734e-08
A24: 9.01452 | B24: ='DF raw data'!A29 -> -9.4075267e-06 | C24: ='DF raw data'!B29 -> -5.8497849e-06 | D24: ='DF raw data'!C29 -> -4.0502809e-06 | F24: -9.416858966e-06 | G24: -5.869382105e-06 | H24: -4.054298779e-06 | J24: -1.080523417e-05 | K24: 3.350532852e-06 | L24: -8.735232263e-07 | N24: -9.630434414e-05 | O24: -0.0004608694924 | P24: 2.316504006e-05 | Q24: 0.0001068181476 | R24: 3.048861985e-08
A25: 9.51466 | B25: ='DF raw data'!A30 -> -1.2266076e-05 | C25: ='DF raw data'!B30 -> -4.182612e-06 | D25: ='DF raw data'!C30 -> -2.7309134e-06 | F25: -1.227824395e-05 | G25: -4.196624055e-06 | H25: -2.733622466e-06 | J25: -9.02613295e-06 | K25: 5.273498818e-06 | L25: -5.73419058e-06 | N25: -0.0001008186743 | O25: -0.0005112929442 | P25: 2.580252776e-05 | Q25: 0.0001197230238 | R25: 3.590522384e-08
A26: 10.0148 | B26: ='DF raw data'!A31 -> -1.0131157e-05 | C26: ='DF raw data'!B31 -> 4.2796069e-06 | D26: ='DF raw data'!C31 -> -9.7885049e-06 | F26: -1.014120711e-05 | G26: 4.293943895e-06 | H26: -9.798215097e-06 | J26: -7.019457501e-06 | K26: 6.463106283e-06 | L26: -1.109371206e-05 | N26: -0.0001043293857 | O26: -0.0005634722432 | P26: 2.903498574e-05 | Q26: 0.0001342445816 | R26: 4.177069127e-08
A27: 10.51494 | B27: ='DF raw data'!A32 -> -6.0539001e-06 | C27: ='DF raw data'!B32 -> -2.6385752e-07 | D27: ='DF raw data'!C32 -> -8.8891602e-06 | F27: -6.059905569e-06 | G27: -2.647414619e-07 | H27: -8.897978247e-06 | J27: -9.552174867e-06 | K27: -5.098266236e-06 | L27: -1.065215246e-05 | N27: -0.0001091068105 | O27: -0.0006180409234 | P27: 2.648513886e-05 | Q27: 0.0001474908589 | R27: 4.807533542e-08
A28: 11.01508 | B28: ='DF raw data'!A33 -> -6.6815619e-07 | C28: ='DF raw data'!B33 -> -6.891451e-06 | D28: ='DF raw data'!C33 -> -5.6157651e-06 | F28: -6.688190009e-07 | G28: -6.914537863e-06 | H28: -5.621335939e-06 | J28: -7.316720294e-06 | K28: -8.596783792e-07 | L28: -9.533335196e-06 | N28: -0.000112766195 | O28: -0.0006744398081 | P28: 2.605517932e-05 | Q28: 0.0001605220963 | R28: 5.477475428e-08
A29: 11.51522 | B29: ='DF raw data'!A34 -> 1.069197e-06 | C29: ='DF raw data'!B34 -> -3.8845378e-06 | D29: ='DF raw data'!C34 -> -9.6383417e-07 | F29: 1.070257643e-06 | G29: -3.897551284e-06 | H29: -9.647902935e-07 | J29: -3.724712853e-06 | K29: 3.803292164e-06 | L29: 2.754273832e-06 | N29: -0.0001146290729 | O29: -0.0007317703926 | P29: 2.795735786e-05 | Q29: 0.0001745046892 | R29: 6.173742238e-08
A30: 12.01536 | B30: ='DF raw data'!A35 -> 4.0050011e-07 | C30: ='DF raw data'!B35 -> -1.4785403e-05 | D30: ='DF raw data'!C35 -> -1.0126335e-05 | F30: 4.008974061e-07 | G30: -1.483493518e-05 | H30: -1.013638032e-05 | J30: -5.564413828e-06 | K30: 5.094107752e-06 | L30: -6.122393095e-07 | N30: -0.0001174120588 | O30: -0.0007904928597 | P30: 3.050512491e-05 | Q30: 0.0001897615224 | R30: 6.909755974e-08
A31: 12.5155 | B31: ='DF raw data'!A36 -> -2.4025771e-06 | C31: ='DF raw data'!B36 -> -9.1056736e-06 | D31: ='DF raw data'!C36 -> 5.9359547e-07 | F31: -2.404960456e-06 | G31: -9.13617827e-06 | H31: 5.941843167e-07 | J31: -8.614815628e-06 | K31: 1.380841173e-06 | L31: -6.5446914e-06 | N31: -0.0001217206727 | O31: -0.0008513702369 | P31: 3.119573882e-05 | Q31: 0.0002053637592 | R31: 7.699431835e-08
A32: 13.01564 | B32: ='DF raw data'!A37 -> -2.9991766e-06 | C32: ='DF raw data'!B37 -> -1.4591797e-05 | D32: ='DF raw data'!C37 -> -1.4335736e-06 | F32: -3.002151783e-06 | G32: -1.464068058e-05 | H32: -1.434995705e-06 | J32: -1.283182155e-05 | K32: 1.154925165e-05 | L32: 1.176111647e-06 | N32: -0.0001281383799 | O32: -0.0009154573663 | P32: 3.697198154e-05 | Q32: 0.0002238549261 | R32: 8.588999436e-08
A33: 13.51578 | B33: ='DF raw data'!A38 -> -7.035319e-07 | C33: ='DF raw data'!B38 -> -8.1486014e-06 | D33: ='DF raw data'!C38 -> -5.3387002e-06 | F33: -7.042298036e-07 | G33: -8.175899808e-06 | H33: -5.343996191e-06 | J33: -1.747297001e-05 | K33: 4.910566428e-06 | L33: -2.051234408e-06 | N33: -0.0001368773111 | O33: -0.0009839151846 | P33: 3.942795223e-05 | Q33: 0.0002435744221 | R33: 9.603781581e-08
A34: 14.01592 | B34: ='DF raw data'!A39 -> 2.2460613e-06 | C34: ='DF raw data'!B39 -> 1.1282131e-05 | D34: ='DF raw data'!C39 -> -7.0541309e-06 | F34: 2.248289393e-06 | G34: 1.131992696e-05 | H34: -7.061128598e-06 | J34: -1.236324418e-05 | K34: 3.852959999e-06 | L34: -5.651515547e-06 | N34: -0.0001430606641 | O34: -0.001055465545 | P34: 4.135497164e-05 | Q34: 0.0002642576976 | R34: 1.071292142e-07
A35: 14.51606 | B35: ='DF raw data'!A40 -> -8.5301032e-08 | C35: ='DF raw data'!B40 -> 1.941296e-06 | D35: ='DF raw data'!C40 -> -4.0401637e-06 | F35: -8.538565062e-08 | G35: 1.947799483e-06 | H35: -4.044171542e-06 | J35: -7.470198693e-06 | K35: 9.644222974e-06 | L35: -6.628568123e-06 | N35: -0.0001467968092 | O35: -0.001128884501 | P35: 4.617843332e-05 | Q35: 0.0002873533793 | R35: 1.189734051e-07
A36: 15.0162 | B36: ='DF raw data'!A41 -> -3.4435993e-06 | C36: ='DF raw data'!B41 -> -7.46452e-06 | D36: ='DF raw data'!C41 -> -7.404341e-06 | F36: -3.447015351e-06 | G36: -7.489526685e-06 | H36: -7.411686106e-06 | J36: -9.166246705e-06 | K36: 8.682604939e-06 | L36: -6.690056359e-06 | N36: -0.0001513812159 | O36: -0.001204596303 | P36: 5.052095136e-05 | Q36: 0.0003126209279 | R36: 1.317112902e-07
A37: 15.51634 | B37: ='DF raw data'!A42 -> -3.796767e-06 | C37: ='DF raw data'!B42 -> 4.963154e-06 | D37: ='DF raw data'!C42 -> -3.1705704e-06 | F37: -3.800533393e-06 | G37: 4.979780927e-06 | H37: -3.173715606e-06 | J37: -9.917721129e-06 | K37: 2.720652853e-06 | L37: -7.93758418e-06 | N37: -0.0001563414649 | O37: -0.001282788923 | P37: 5.188165867e-05 | Q37: 0.0003385690206 | R37: 1.452822691e-07
A38: 16.01648 | B38: ='DF raw data'!A43 -> -4.5208932e-07 | C38: ='DF raw data'!B43 -> -4.2199704e-06 | D38: ='DF raw data'!C43 -> -7.2643786e-07 | F38: -4.525377926e-07 | G38: -4.234107608e-06 | H38: -7.271584864e-07 | J38: -1.057031136e-05 | K38: 1.215371789e-06 | L38: -5.395096832e-06 | N38: -0.0001616281004 | O38: -0.001363625601 | P38: 5.248951472e-05 | Q38: 0.0003648211265 | R38: 1.597257081e-07
A39: 16.51662 | B39: ='DF raw data'!A44 -> 5.8539672e-07 | C39: ='DF raw data'!B44 -> 1.9607737e-06 | D39: ='DF raw data'!C44 -> 4.6887335e-06 | F39: 5.859774335e-07 | G39: 1.967342435e-06 | H39: 4.693384724e-06 | J39: -1.277769992e-05 | K39: 6.406879147e-06 | L39: -1.129936686e-05 | N39: -0.0001680187393 | O39: -0.001447658493 | P39: 5.569385126e-05 | Q39: 0.0003926758493 | R39: 1.753961455e-07
A40: 17.01676 | B40: ='DF raw data'!A45 -> -5.5274495e-07 | C40: ='DF raw data'!B45 -> -6.5802983e-06 | D40: ='DF raw data'!C45 -> 4.0797849e-07 | F40: -5.53293273e-07 | G40: -6.602342778e-06 | H40: 4.083832047e-07 | J40: -1.227050328e-05 | K40: 8.554757872e-06 | L40: -9.459720443e-06 | N40: -0.0001741557088 | O40: -0.00153476073 | P40: 5.997242786e-05 | Q40: 0.0004226704594 | R40: 1.923643468e-07
A41: 17.5169 | B41: ='DF raw data'!A46 -> -2.7985348e-06 | C41: ='DF raw data'!B46 -> -1.3307299e-05 | D41: ='DF raw data'!C46 -> -5.2764726e-06 | F41: -2.801310947e-06 | G41: -1.335187942e-05 | H41: -5.281706861e-06 | J41: -1.248057246e-05 | K41: -9.16307066e-07 | L41: -2.711836676e-06 | N41: -0.0001803977423 | O41: -0.001624984856 | P41: 5.951414604e-05 | Q41: 0.0004524358644 | R41: 2.104120382e-07
A42: 18.01704 | B42: ='DF raw data'!A47 -> -6.7915512e-06 | C42: ='DF raw data'!B47 -> -8.7476892e-06 | D42: ='DF raw data'!C47 -> -5.2755413e-06 | F42: -6.798288419e-06 | G42: -8.776994596e-06 | H42: -5.280774637e-06 | J42: -1.747637839e-05 | K42: 1.092861441e-05 | L42: -9.910672844e-06 | N42: -0.0001891383782 | O42: -0.001719580525 | P42: 6.497998326e-05 | Q42: 0.0004849349532 | R42: 2.304154998e-07
A43: 18.51718 | B43: ='DF raw data'!A48 -> -5.5666947e-06 | C43: ='DF raw data'!B48 -> 1.0744167e-06 | D43: ='DF raw data'!C48 -> -7.7838986e-06 | F43: -5.572216861e-06 | G43: 1.078016074e-06 | H43: -7.791620227e-06 | J43: -1.672844317e-05 | K43: 3.002058736e-06 | L43: -1.079125632e-05 | N43: -0.0001975049418 | O43: -0.001818360646 | P43: 6.648143291e-05 | Q43: 0.0005181849771 | R43: 2.521355712e-07
A44: 19.01732 | B44: ='DF raw data'!A49 -> -2.3590524e-06 | C44: ='DF raw data'!B49 -> 6.9090543e-06 | D44: ='DF raw data'!C49 -> -6.8673135e-06 | F44: -2.36139258e-06 | G44: 6.932200135e-06 | H44: -6.874125875e-06 | J44: -9.159098321e-06 | K44: 1.135285892e-05 | L44: -1.046675073e-05 | N44: -0.0002020857732 | O44: -0.001919431825 | P44: 7.215945177e-05 | Q44: 0.0005542748053 | R44: 2.751648407e-07
A45: 19.51746 | B45: ='DF raw data'!A50 -> 3.2410921e-06 | C45: ='DF raw data'!B50 -> -9.6701694e-07 | D45: ='DF raw data'!C50 -> -1.5889118e-05 | F45: 3.244307263e-06 | G45: -9.702565172e-07 | H45: -1.590488001e-05 | J45: -1.014249038e-05 | K45: -6.788694686e-06 | L45: -1.890258578e-05 | N45: -0.0002071584383 | O45: -0.002023040046 | P45: 6.876415401e-05 | Q45: 0.0005886665093 | R45: 2.989930745e-07
A46: 20.0176 | B46: ='DF raw data'!A51 -> 1.4055499e-06 | C46: ='DF raw data'!B51 -> -7.3210854e-06 | D46: ='DF raw data'!C51 -> -9.2335094e-06 | F46: 1.406944206e-06 | G46: -7.345611569e-06 | H46: -9.242669041e-06 | J46: -1.198660193e-05 | K46: -2.052363009e-06 | L46: -2.266582221e-05 | N46: -0.0002131534174 | O46: -0.002129646597 | P46: 6.773768517e-05 | Q46: 0.0006225448351 | R46: 3.240114643e-07
A47: 20.51774 | B47: ='DF raw data'!A52 -> -1.331578e-06 | C47: ='DF raw data'!B52 -> 9.5753569e-07 | D47: ='DF raw data'!C52 -> 1.9849076e-06 | F47: -1.332898925e-06 | G47: 9.607435043e-07 | H47: 1.986876628e-06 | J47: -7.656211435e-06 | K47: 9.918027677e-07 | L47: -1.729177844e-05 | N47: -0.000216982595 | O47: -0.002238168272 | P47: 6.823372541e-05 | Q47: 0.0006566712505 | R47: 3.498873514e-07
A48: 21.01788 | B48: ='DF raw data'!A53 -> -1.6553302e-07 | C48: ='DF raw data'!B53 -> -3.1246695e-06 | D48: ='DF raw data'!C53 -> -1.9116333e-06 | F48: -1.656972288e-07 | G48: -3.13513737e-06 | H48: -1.91352964e-06 | J48: -4.90340736e-06 | K48: 1.383921859e-06 | L48: -8.592392606e-06 | N48: -0.0002194349852 | O48: -0.002347916485 | P48: 6.892588009e-05 | Q48: 0.0006911438402 | R48: 3.763460026e-07
A49: 21.51802 | B49: ='DF raw data'!A54 -> 9.4424695e-07 | C49: ='DF raw data'!B54 -> -2.8732925e-06 | D49: ='DF raw data'!C54 -> -3.4533577e-06 | F49: 9.45183643e-07 | G49: -2.882918239e-06 | H49: -3.456783431e-06 | J49: -7.350262935e-06 | K49: 1.403123872e-09 | L49: -4.235440493e-06 | N49: -0.0002231111457 | O49: -0.002459503293 | P49: 6.892658185e-05 | Q49: 0.0007256167809 | R49: 4.036183652e-07
A50: 22.01816 | B50: ='DF raw data'!A55 -> 3.889762e-06 | C50: ='DF raw data'!B55 -> 4.4214371e-06 | D50: ='DF raw data'!C55 -> -1.0963852e-05 | F50: 3.893620644e-06 | G50: 4.436249236e-06 | H50: -1.097472814e-05 | J50: -1.27401487e-05 | K50: -2.096270912e-06 | L50: -7.348994378e-06 | N50: -0.0002294830036 | O50: -0.002574276923 | P50: 6.787815291e-05 | Q50: 0.0007595653603 | R50: 4.322613293e-07
A51: 22.5183 | B51: ='DF raw data'!A56 -> 3.1988407e-06 | C51: ='DF raw data'!B56 -> 5.2662995e-06 | D51: ='DF raw data'!C56 -> -3.4212781e-06 | F51: 3.20201395e-06 | G51: 5.283941987e-06 | H51: -3.424672008e-06 | J51: -1.565818753e-05 | K51: 7.264648844e-07 | L51: -6.379472565e-06 | N51: -0.0002373142895 | O51: -0.002692967292 | P51: 6.824148706e-05 | Q51: 0.0007936956576 | R51: 4.627573521e-07
A52: 23.01844 | B52: ='DF raw data'!A57 -> 1.8882151e-06 | C52: ='DF raw data'!B57 -> 8.4908334e-06 | D52: ='DF raw data'!C57 -> 2.161697e-07 | F52: 1.890088209e-06 | G52: 8.51927831e-06 | H52: 2.163841403e-07 | J52: -1.002830122e-05 | K52: 9.862973858e-06 | L52: -1.279985187e-05 | N52: -0.0002423298441 | O52: -0.00281416614 | P52: 7.317435481e-05 | Q52: 0.0008302930794 | R52: 4.948054428e-07
A53: 23.51858 | B53: ='DF raw data'!A58 -> 3.3174533e-06 | C53: ='DF raw data'!B58 -> -3.6032711e-06 | D53: ='DF raw data'!C58 -> 6.2341214e-06 | F53: 3.320744214e-06 | G53: -3.615342321e-06 | H53: 6.240305648e-06 | J53: -9.176938401e-06 | K53: 1.962122707e-06 | L53: -1.642245293e-05 | N53: -0.0002469195981 | O53: -0.002937660508 | P53: 7.415569086e-05 | Q53: 0.0008673813066 | R53: 5.280489256e-07
A54: 24.01872 | B54: ='DF raw data'!A59 -> 2.416406e-06 | C54: ='DF raw data'!B59 -> -1.1707619e-06 | D54: ='DF raw data'!C59 -> 2.0938644e-05 | F54: 2.418803075e-06 | G54: -1.174684038e-06 | H54: 2.095941513e-05 | J54: -1.604217907e-05 | K54: 5.606846629e-06 | L54: -1.537525314e-05 | N54: -0.0002549429335 | O54: -0.003065167666 | P54: 7.695989913e-05 | Q54: 0.0009058720306 | R54: 5.635182169e-07
A55: 24.51886 | B55: ='DF raw data'!A60 -> 3.597665e-06 | C55: ='DF raw data'!B60 -> 1.4119994e-05 | D55: ='DF raw data'!C60 -> 1.9946323e-05 | F55: 3.601233884e-06 | G55: 1.416729701e-05 | H55: 1.996610975e-05 | J55: -1.793980965e-05 | K55: 1.098885655e-05 | L55: -1.135472773e-05 | N55: -0.0002639153499 | O55: -0.00319716229 | P55: 8.245586585e-05 | Q55: 0.0009471115073 | R55: 6.017540609e-07
A56: 25.019 | B56: ='DF raw data'!A61 -> 8.1401004e-06 | C56: ='DF raw data'!B61 -> 2.6069624e-06 | D56: ='DF raw data'!C61 -> 1.15263e-05 | F56: 8.14817538e-06 | G56: 2.615695914e-06 | H56: 1.153773409e-05 | J56: -6.594243907e-06 | K56: 1.025120963e-05 | L56: 2.084942814e-06 | N56: -0.0002672133951 | O56: -0.003330806397 | P56: 8.758290583e-05 | Q56: 0.0009909152219 | R56: 6.413020131e-07
A57: 25.51914 | B57: ='DF raw data'!A62 -> 8.4604972e-06 | C57: ='DF raw data'!B62 -> -6.7302703e-06 | D57: ='DF raw data'!C62 -> 1.0376977e-05 | F57: 8.468890013e-06 | G57: -6.752817196e-06 | H57: 1.038727096e-05 | J57: 2.435491613e-06 | K57: 3.532468013e-06 | L57: 2.721761812e-06 | N57: -0.0002659953083 | O57: -0.00346384129 | P57: 8.934963438e-05 | Q57: 0.001035602548 | R57: 6.806814669e-07
A58: 26.01928 | B58: ='DF raw data'!A63 -> 2.5604481e-06 | C58: ='DF raw data'!B63 -> -5.0061267e-06 | D58: ='DF raw data'!C63 -> 6.8962008e-06 | F58: 2.562988065e-06 | G58: -5.022897589e-06 | H58: 6.903041831e-06 | J58: 4.576518007e-08 | K58: 2.655322121e-06 | L58: -4.65228209e-06 | N58: -0.0002659724193 | O58: -0.003596864736 | P58: 9.067766719e-05 | Q58: 0.001080954076 | R58: 7.201744054e-07
A59: 26.51942 | B59: ='DF raw data'!A64 -> -1.9592894e-06 | C59: ='DF raw data'!B64 -> -4.2382512e-06 | D59: ='DF raw data'!C64 -> 1.989768e-06 | F59: -1.961233015e-06 | G59: -4.25244965e-06 | H59: 1.99174185e-06 | J59: -3.313796128e-06 | K59: -1.208716568e-05 | L59: -1.103628414e-05 | N59: -0.0002676297813 | O59: -0.003730717095 | P59: 8.463239215e-05 | Q59: 0.001123282121 | R59: 7.595796066e-07
A60: 27.01956 | B60: ='DF raw data'!A65 -> -3.9924757e-06 | C60: ='DF raw data'!B65 -> -3.4787831e-06 | D60: ='DF raw data'!C65 -> -3.3403476e-06 | F60: -3.996436236e-06 | G60: -3.490437277e-06 | H60: -3.343661225e-06 | J60: 8.979331269e-07 | K60: -4.682272781e-07 | L60: -9.891019167e-06 | N60: -0.000267180689 | O60: -0.003864344845 | P60: 8.439821295e-05 | Q60: 0.001165493043 | R60: 7.988448873e-07
A61: 27.5197 | B61: ='DF raw data'!A66 -> -4.7453482e-06 | C61: ='DF raw data'!B66 -> 4.7476692e-06 | D61: ='DF raw data'!C66 -> -3.7909095e-07 | F61: -4.750055585e-06 | G61: 4.763574237e-06 | H61: -3.794670082e-07 | J61: 4.911814892e-06 | K61: -6.346346837e-07 | L61: -7.757110728e-06 | N61: -0.0002647240939 | O61: -0.003996743953 | P61: 8.408080676e-05 | Q61: 0.001207545218 | R61: 8.37429902e-07
A62: 28.01984 | B62: ='DF raw data'!A67 -> -3.4811142e-06 | C62: ='DF raw data'!B67 -> -2.2225672e-06 | D62: ='DF raw data'!C67 -> -3.3237203e-07 | F62: -3.484567465e-06 | G62: -2.230012962e-06 | H62: -3.327017431e-07 | J62: 2.263441108e-06 | K62: 9.259203437e-06 | L62: -1.032271699e-05 | N62: -0.0002635920565 | O62: -0.004128576884 | P62: 8.871170477e-05 | Q62: 0.00125191349 | R62: 8.761160005e-07
A63: 28.51998 | B63: ='DF raw data'!A68 -> 8.6782642e-08 | C63: ='DF raw data'!B68 -> -5.6907397e-06 | D63: ='DF raw data'!C68 -> -4.5286715e-06 | F63: 8.686873038e-08 | G63: -5.709804092e-06 | H63: -4.533163942e-06 | J63: -6.361925175e-06 | K63: 3.103266858e-06 | L63: -1.967324752e-05 | N63: -0.0002667739097 | O63: -0.004262001188 | P63: 9.026377266e-05 | Q63: 0.001297058013 | R63: 9.157850385e-07
A64: 29.02012 | B64: ='DF raw data'!A69 -> 2.6792645e-06 | C64: ='DF raw data'!B69 -> -2.8220552e-06 | D64: ='DF raw data'!C69 -> 2.1348542e-06 | F64: 2.68192233e-06 | G64: -2.83150929e-06 | H64: 2.136971975e-06 | J64: -1.130020569e-05 | K64: -1.87492988e-07 | L64: -9.350928028e-06 | N64: -0.0002724255946 | O64: -0.004398252124 | P64: 9.016999991e-05 | Q64: 0.001342155637 | R64: 9.569697337e-07
A65: 29.52026 | B65: ='DF raw data'!A70 -> 4.6905575e-06 | C65: ='DF raw data'!B70 -> -1.5032509e-05 | D65: ='DF raw data'!C70 -> 5.0359458e-06 | F65: 4.695210533e-06 | G65: -1.5082869e-05 | H65: 5.040941458e-06 | J65: -7.088414639e-06 | K65: 1.01080968e-05 | L65: -1.153594131e-06 | N65: -0.0002759707943 | O65: -0.004536276158 | P65: 9.522546345e-05 | Q65: 0.0013897817 | R65: 9.995955497e-07
A66: 30.0204 | B66: ='DF raw data'!A71 -> 3.5837825e-06 | C66: ='DF raw data'!B71 -> -3.8126186e-06 | D66: ='DF raw data'!C71 -> 4.1932408e-06 | F66: 3.587337612e-06 | G66: -3.82539115e-06 | H66: 4.197400495e-06 | J66: -2.522165909e-06 | K66: 4.53359406e-07 | L66: -5.490695772e-06 | N66: -0.0002772322304 | O66: -0.004674931085 | P66: 9.545220662e-05 | Q66: 0.001437521167 | R66: 1.042592002e-06
A67: 30.52054 | B67: ='DF raw data'!A72 -> -1.5766832e-06 | C67: ='DF raw data'!B72 -> -3.190848e-06 | D67: ='DF raw data'!C72 -> 5.8926316e-06 | F67: -1.57824727e-06 | G67: -3.201537573e-06 | H67: 5.898477091e-06 | J67: -3.612792238e-06 | K67: 2.20952365e-06 | L67: -7.505353132e-06 | N67: -0.0002790391323 | O67: -0.004814489717 | P67: 9.655727778e-05 | Q67: 0.001485813324 | R67: 1.086197281e-06
A68: 31.02068 | B68: ='DF raw data'!A73 -> -5.2790106e-06 | C68: ='DF raw data'!B73 -> 3.7014665e-06 | D68: ='DF raw data'!C73 -> -2.9889443e-06 | F68: -5.284247379e-06 | G68: 3.713866682e-06 | H68: -2.991909333e-06 | J68: -6.006000048e-06 | K68: 1.370047735e-05 | L68: -1.459173165e-05 | N68: -0.0002820429731 | O68: -0.004955550689 | P68: 0.0001034094345 | Q68: 0.001537532518 | R68: 1.131330789e-06
A69: 31.52082 | B69: ='DF raw data'!A74 -> -5.9907097e-07 | C69: ='DF raw data'!B74 -> 9.7888133e-06 | D69: ='DF raw data'!C74 -> -7.8725488e-06 | F69: -5.996652484e-07 | G69: 9.821606537e-06 | H69: -7.880358368e-06 | J69: -7.499997725e-06 | K69: -9.366711795e-06 | L69: -1.184745102e-05 | N69: -0.000285794022 | O69: -0.005098487712 | P69: 9.872476728e-05 | Q69: 0.001586908724 | R69: 1.17705599e-06
A70: 32.02096 | B70: ='DF raw data'!A75 -> 2.109557e-06 | C70: ='DF raw data'!B75 -> 8.9210025e-06 | D70: ='DF raw data'!C75 -> -7.4493282e-06 | F70: 2.111649681e-06 | G70: 8.950888508e-06 | H70: -7.456717934e-06 | J70: -4.813605865e-06 | K70: -1.007771636e-05 | L70: -4.81976607e-06 | N70: -0.0002882014988 | O70: -0.005242628809 | P70: 9.368449822e-05 | Q70: 0.001633764088 | R70: 1.222987292e-06
A71: 32.5211 | B71: ='DF raw data'!A76 -> 1.7914303e-06 | C71: ='DF raw data'!B76 -> 5.5019314e-06 | D71: ='DF raw data'!C76 -> -3.2166236e-06 | F71: 1.793207399e-06 | G71: =(1-$G$1*($B$2-$G$2))*C71*$M$2/$M$1 -> 5.520363271e-06 | H71: -3.219814491e-06 | J71: =-CELL("contents", INDEX($F$6:$F$1203,1204-CELL("row",F71))) -> 2.19495744e-06 | K71: =CELL("contents", INDEX($G$6:$G$1203,1204-CELL("row",G71))) -> 1.240685108e-05 | L71: =-CELL("contents", INDEX($H$6:$H$1203,1204-CELL("row",H71))) -> -1.466242571e-06 | N71: -0.0002871037128 | O71: -0.00538622086 | P71: 9.988966072e-05 | Q71: 0.001683722903 | R71: 1.269203472e-06
A72: =A71+$B$1 -> 33.02124 | B72: ='DF raw data'!A77 -> 3.945765e-06 | C72: ='DF raw data'!B77 -> 5.0733629e-06 | D72: ='DF raw data'!C77 -> -2.2515223e-06 | F72: 3.949679199e-06 | G72: 5.090359035e-06 | H72: -2.25375581e-06 | J72: 2.415848847e-06 | K72: 3.471955568e-06 | L72: -5.718269502e-06 | N72: =J72*$B$1+N71 -> -0.0002858954502 | O72: =N72*$B$1+O71 -> -0.005529208611 | P72: =K72*$B$1+P71 -> 0.0001016261246 | Q72: =P72*$B$1+Q71 -> 0.001734550193 | R72: =(N72^2+P72^2)*$B$1+R71 -> 1.3152484e-06
A73: 33.52138 | B73: ='DF raw data'!A78 -> 3.2647245e-06 | C73: ='DF raw data'!B78 -> 1.1267235e-06 | D73: ='DF raw data'!C78 -> 1.7350659e-06 | F73: 3.267963107e-06 | G73: 1.130498106e-06 | H73: 1.736787085e-06 | J73: -3.49205909e-06 | K73: 8.825605903e-07 | L73: -6.776729754e-06 | N73: -0.0002876419686 | O73: -0.005673069865 | P73: 0.0001020675284 | Q73: 0.001785598247 | R73: 1.361839283e-06
A74: 34.02152 | B74: ='DF raw data'!A79 -> -3.716535e-06 | C74: ='DF raw data'!B79 -> -1.2803206e-05 | D74: ='DF raw data'!C79 -> 7.3072379e-06 | F74: -3.720221803e-06 | G74: -1.284609767e-05 | H74: 7.31448668e-06 | J74: -1.851268939e-06 | K74: 1.112661351e-05 | L74: -3.109494361e-06 | N74: -0.0002885678623 | O74: -0.005817394195 | P74: 0.0001076323929 | Q74: 0.001839429512 | R74: 1.409280634e-06
A75: 34.52166 | B75: ='DF raw data'!A80 -> -1.5232195e-06 | C75: ='DF raw data'!B80 -> -1.0813541e-05 | D75: ='DF raw data'!C80 -> 1.6599926e-06 | F75: =(1-$G$1*($B$2-$G$2))*B75 -> -1.524730534e-06 | G75: -1.084976715e-05 | H75: =(1-$G$1*($B$2-$G$2))*D75 -> 1.661639313e-06 | J75: 2.876321383e-07 | K75: 8.299191465e-06 | L75: -3.611476334e-06 | N75: -0.0002884240059 | O75: -0.005961646578 | P75: 0.0001117831505 | Q75: 0.001895336737 | R75: 1.45713597e-06
A76: 35.0218 | B76: ='DF raw data'!A81 -> 4.5536531e-06 | C76: ='DF raw data'!B81 -> -4.2822817e-06 | D76: ='DF raw data'!C81 -> 1.0427694e-06 | F76: 4.558170324e-06 | G76: -4.296627655e-06 | H76: 1.043803827e-06 | J76: -6.902733726e-06 | K76: 1.768006976e-06 | L76: 5.202429496e-06 | N76: -0.0002918763392 | O76: -0.00610762561 | P76: 0.0001126674015 | Q76: 0.001951686211 | R76: 1.506092544e-06
A77: 35.52194 | B77: ='DF raw data'!A82 -> 6.4887849e-06 | C77: ='DF raw data'!B82 -> 5.9114393e-07 | D77: ='DF raw data'!C82 -> 2.1488313e-06 | F77: 6.495221775e-06 | G77: 5.931243052e-07 | H77: 2.150962941e-06 | J77: -1.003191079e-05 | K77: 8.715270305e-06 | L77: 3.773029836e-06 | N77: -0.000296893699 | O77: -0.006256114025 | P77: 0.0001170262568 | Q77: 0.002010215723 | R77: 1.557027309e-06
A78: 36.02208 | B78: ='DF raw data'!A83 -> 3.1687327e-06 | C78: ='DF raw data'!B83 -> 1.6214705e-06 | D78: ='DF raw data'!C83 -> 1.1055319e-06 | F78: 3.171876083e-06 | G78: 1.626902544e-06 | H78: 1.106628588e-06 | J78: -7.822919646e-06 | K78: -8.88058427e-07 | L78: -3.110026088e-06 | N78: -0.0003008062541 | O78: -0.006406559265 | P78: 0.0001165821033 | Q78: 0.002068523096 | R78: 1.609079774e-06
A79: 36.52222 | B79: ='DF raw data'!A84 -> 7.1796467e-07 | C79: ='DF raw data'!B84 -> 3.2771691e-06 | D79: ='DF raw data'!C84 -> 1.4437584e-06 | F79: 7.18676891e-07 | G79: 3.288147855e-06 | H79: 1.445190608e-06 | J79: -4.764498999e-06 | K79: -2.261875247e-06 | L79: 1.109217553e-07 | N79: -0.0003031891706 | O79: -0.006558196296 | P79: 0.000115450849 | Q79: 0.002126264684 | R79: 1.661720795e-06
A80: 37.02236 | B80: ='DF raw data'!A85 -> -1.0272684e-06 | C80: ='DF raw data'!B85 -> 4.8245215e-06 | D80: ='DF raw data'!C85 -> -4.8098707e-07 | F80: -1.02828745e-06 | G80: 4.840683998e-06 | H80: -4.814642092e-07 | J80: -5.77448241e-06 | K80: 4.997852867e-06 | L80: 2.380734348e-06 | N80: -0.0003060772202 | O80: -0.006711277757 | P80: 0.0001179504751 | Q80: 0.002185256435 | R80: 1.715533648e-06
A81: 37.5225 | B81: ='DF raw data'!A86 -> -3.2496878e-06 | C81: ='DF raw data'!B86 -> 5.462703e-06 | D81: ='DF raw data'!C86 -> 5.5081482e-06 | F81: -3.25291149e-06 | G81: 5.481003453e-06 | H81: 5.513612283e-06 | J81: -4.318437244e-06 | K81: 4.604799306e-06 | L81: 2.67979252e-06 | N81: -0.0003082370434 | O81: -0.006865439432 | P81: 0.0001202535195 | Q81: 0.00224540003 | R81: 1.770284466e-06
A82: 38.02264 | B82: ='DF raw data'!A87 -> -9.5771748e-07 | C82: ='DF raw data'!B87 -> 5.9848537e-07 | D82: ='DF raw data'!C87 -> 1.0406729e-05 | F82: -9.586675357e-07 | G82: 6.004903396e-07 | H82: 1.041705248e-05 | J82: 5.34083766e-06 | K82: 5.776331119e-06 | L82: 4.231041534e-07 | N82: -0.0003055658769 | O82: -0.00701826515 | P82: 0.0001231424937 | Q82: 0.002306988517 | R82: 1.82456695e-06
A83: 38.52278 | B83: ='DF raw data'!A88 -> 1.2180485e-06 | C83: ='DF raw data'!B88 -> 9.1737604e-07 | D83: ='DF raw data'!C88 -> 2.8696131e-06 | F83: 1.219256804e-06 | G83: 9.204493165e-07 | H83: 2.872459756e-06 | J83: 4.447913057e-06 | K83: -1.05406069e-06 | L83: 3.340132528e-06 | N83: -0.0003033412977 | O83: -0.007169978267 | P83: 0.0001226153158 | Q83: 0.002368313341 | R83: 1.878107167e-06
A84: 39.02292 | B84: ='DF raw data'!A89 -> 3.1338955e-06 | C84: ='DF raw data'!B89 -> 8.1129674e-06 | D84: ='DF raw data'!C89 -> 2.6206335e-06 | F84: 3.137004324e-06 | G84: 8.140146431e-06 | H84: 2.623233168e-06 | J84: -5.85907284e-06 | K84: 7.192719781e-06 | L84: 9.427807417e-06 | N84: -0.0003062716543 | O84: -0.007323156972 | P84: 0.0001262126827 | Q84: 0.002431437352 | R84: 1.932988513e-06
A85: 39.52306 | B85: ='DF raw data'!A90 -> -7.6247443e-07 | C85: ='DF raw data'!B90 -> -8.6418822e-06 | D85: ='DF raw data'!C90 -> 5.1947436e-06 | F85: -7.632308046e-07 | G85: -8.670833135e-06 | H85: 5.199896786e-06 | J85: -9.167448496e-06 | K85: -5.161322875e-06 | L85: 1.214564054e-05 | N85: -0.000310856662 | O85: -0.007478628823 | P85: 0.0001236312986 | Q85: 0.002493270309 | R85: 1.988962463e-06
A86: 40.0232 | B86: ='DF raw data'!A91 -> -5.0545327e-06 | C86: ='DF raw data'!B91 -> -2.719315e-06 | D86: ='DF raw data'!C91 -> 1.8222735e-07 | F86: -5.059546796e-06 | G86: -2.728424903e-06 | H86: 1.824081195e-07 | J86: -5.349334381e-06 | K86: -9.836875117e-06 | L86: 1.261418187e-05 | N86: -0.0003135320781 | O86: -0.007635438756 | P86: 0.0001187114839 | Q86: 0.002552642671 | R86: 2.045175588e-06
A87: 40.52334 | B87: ='DF raw data'!A92 -> -1.6504396e-06 | C87: ='DF raw data'!B92 -> 9.8755629e-07 | D87: ='DF raw data'!C92 -> -7.1943605e-06 | F87: -1.652076836e-06 | G87: 9.908646755e-07 | H87: -7.201497306e-06 | J87: -4.276810291e-06 | K87: 4.757817918e-06 | L87: 3.76510218e-06 | N87: -0.000315671082 | O87: -0.007793318491 | P87: 0.000121091059 | Q87: 0.002613205153 | R87: 2.10234723e-06
A88: 41.02348 | B88: ='DF raw data'!A93 -> 3.6520323e-08 | C88: ='DF raw data'!B93 -> 6.6876978e-06 | D88: ='DF raw data'!C93 -> -1.0132057e-05 | F88: 3.655655116e-08 | G88: 6.710102075e-06 | H88: -1.0142108e-05 | J88: -2.87134315e-06 | K88: -3.213451753e-06 | L88: 1.210287916e-06 | N88: -0.0003171071556 | O88: -0.007951916464 | P88: 0.0001194838832 | Q88: 0.002672963823 | R88: 2.15977998e-06
A89: 41.52362 | B89: ='DF raw data'!A94 -> 1.1909528e-06 | C89: ='DF raw data'!B94 -> 4.3521918e-06 | D89: ='DF raw data'!C94 -> -6.2607423e-06 | F89: 1.192134225e-06 | G89: 4.366771959e-06 | H89: -6.266952956e-06 | J89: -3.662877574e-07 | K89: -3.233399858e-06 | L89: 1.396955707e-06 | N89: -0.0003172903508 | O89: -0.00811060606 | P89: 0.0001178667306 | Q89: 0.002731913689 | R89: 2.217078885e-06
A90: 42.02376 | B90: ='DF raw data'!A95 -> -3.9306665e-06 | C90: ='DF raw data'!B95 -> 3.0881492e-07 | D90: ='DF raw data'!C95 -> -1.3569032e-06 | F90: -3.934565721e-06 | G90: 3.098494725e-07 | H90: -1.358249248e-06 | J90: 3.653209392e-06 | K90: 2.958815251e-06 | L90: -5.234539217e-06 | N90: -0.0003154632346 | O90: -0.008268381842 | P90: 0.0001193465525 | Q90: 0.002791603674 | R90: 2.273975138e-06
A91: 42.5239 | B91: ='DF raw data'!A96 -> -8.793967e-06 | C91: ='DF raw data'!B96 -> -3.5426951e-06 | D91: ='DF raw data'!C96 -> -4.3193568e-06 | F91: -8.802690615e-06 | G91: -3.554563387e-06 | H91: -4.323641602e-06 | J91: 6.01053284e-06 | K91: 2.916911338e-06 | L91: -6.243437452e-06 | N91: -0.0003124571267 | O91: -0.00842465415 | P91: 0.0001208054165 | Q91: 0.002852023295 | R91: 2.330102552e-06
A92: 43.02404 | B92: ='DF raw data'!A97 -> -1.7617763e-06 | C92: ='DF raw data'!B97 -> -1.5599675e-06 | D92: ='DF raw data'!C97 -> -1.983778e-06 | F92: -1.763523982e-06 | G92: -1.565193505e-06 | H92: -1.985745908e-06 | J92: 8.841174954e-06 | K92: 3.965993204e-07 | L92: -4.664008011e-06 | N92: -0.0003080353015 | O92: -0.008578714925 | P92: 0.0001210037717 | Q92: 0.002912542121 | R92: 2.384881715e-06
A93: 43.52418 | B93: ='DF raw data'!A98 -> 5.8978535e-06 | C93: ='DF raw data'!B98 -> 4.2893457e-06 | D93: ='DF raw data'!C98 -> -2.5836098e-07 | F93: 5.903704171e-06 | G93: 4.30371532e-06 | H93: -2.586172741e-07 | J93: 1.168618721e-05 | K93: -4.559691496e-06 | L93: -5.43766702e-06 | N93: -0.0003021905718 | O93: -0.008729852518 | P93: 0.0001187232876 | Q93: 0.002971920386 | R93: 2.437603654e-06
A94: 44.02432 | B94: ='DF raw data'!A99 -> 6.2846652e-06 | C94: ='DF raw data'!B99 -> 5.4122697e-06 | D94: ='DF raw data'!C99 -> -3.9439283e-06 | F94: 6.290899588e-06 | G94: 5.430401198e-06 | H94: -3.947840677e-06 | J94: 6.5192627e-06 | K94: -4.257001448e-06 | L94: 1.527998272e-06 | N94: -0.0002989300278 | O94: -0.008879359382 | P94: 0.0001165941909 | Q94: 0.003030233805 | R94: 2.489094751e-06
A95: 44.52446 | B95: ='DF raw data'!A100 -> 3.6129518e-06 | C95: ='DF raw data'!B100 -> 6.0133584e-06 | D95: ='DF raw data'!C100 -> -3.9259567e-06 | F95: 3.616535848e-06 | G95: 6.033503588e-06 | H95: -3.929851249e-06 | J95: -1.740957919e-06 | K95: 6.000035241e-06 | L95: -3.435197939e-06 | N95: -0.0002998007505 | O95: -0.009029301729 | P95: 0.0001195950485 | Q95: 0.003090048073 | R95: 2.541201069e-06
A96: 45.0246 | B96: ='DF raw data'!A101 -> -1.1877323e-06 | C96: ='DF raw data'!B101 -> -1.6605721e-06 | D96: ='DF raw data'!C101 -> -1.5792601e-06 | F96: -1.18891053e-06 | G96: -1.666135137e-06 | H96: -1.580826726e-06 | J96: -3.014595916e-06 | K96: 7.246402722e-06 | L96: -7.606083157e-06 | N96: -0.0003013084705 | O96: -0.009179998148 | P96: 0.0001232192644 | Q96: 0.003151674956 | R96: 2.594200796e-06
A97: 45.52474 | B97: ='DF raw data'!A102 -> -7.12049e-06 | C97: ='DF raw data'!B102 -> 2.6102985e-06 | D97: ='DF raw data'!C102 -> -4.1717421e-06 | F97: -7.127553526e-06 | G97: 2.61904319e-06 | H97: -4.175880468e-06 | J97: -1.38295343e-06 | K97: 5.925064422e-06 | L97: 8.466062011e-07 | N97: -0.0003020001408 | O97: -0.009331040498 | P97: 0.0001261826261 | Q97: 0.003214783934 | R97: 2.647778863e-06
A98: 46.02488 | B98: ='DF raw data'!A103 -> -7.8436542e-06 | C98: ='DF raw data'!B103 -> 1.2290599e-06 | D98: ='DF raw data'!C103 -> -1.0995997e-05 | F98: -7.851435105e-06 | G98: 1.23317734e-06 | H98: -1.100690503e-05 | J98: -2.334879005e-06 | K98: -2.938967983e-08 | L98: -2.868993021e-06 | N98: -0.0003031679072 | O98: -0.009482666895 | P98: 0.0001261679271 | Q98: 0.003277885561 | R98: 2.701708522e-06
A99: 46.52502 | B99: ='DF raw data'!A104 -> -9.1599713e-07 | C99: ='DF raw data'!B104 -> -3.6617116e-06 | D99: ='DF raw data'!C104 -> -1.4304597e-05 | F99: -9.169057992e-07 | G99: -3.6739786e-06 | H99: -1.431878716e-05 | J99: -3.557338182e-06 | K99: -7.075856989e-06 | L99: -7.851711879e-06 | N99: -0.0003049470743 | O99: -0.009635183125 | P99: 0.000122629008 | Q99: 0.003339217233 | R99: 2.755738942e-06
A100: 47.02516 | B100: ='DF raw data'!A105 -> 9.7459588e-06 | C100: ='DF raw data'!B105 -> -3.1565564e-06 | D100: ='DF raw data'!C105 -> -5.8794531e-06 | F100: 9.755626791e-06 | G100: -3.167131094e-06 | H100: -5.885285517e-06 | J100: -4.831180081e-06 | K100: 2.1917182e-06 | L100: -1.199083712e-09 | N100: -0.0003073633407 | O100: -0.009788907826 | P100: 0.000123725174 | Q100: 0.003401097142 | R100: 2.810644383e-06
A101: 47.5253 | B101: ='DF raw data'!A106 -> 1.2735733e-05 | C101: ='DF raw data'!B106 -> 8.2245151e-06 | D101: ='DF raw data'!C106 -> -2.9686444e-06 | F101: 1.274836685e-05 | G101: 8.252067824e-06 | H101: -2.971589295e-06 | J101: -4.205584505e-06 | K101: 7.763025868e-06 | L101: 1.590553465e-06 | N101: -0.0003094667217 | O101: -0.009943684512 | P101: 0.0001276077737 | Q101: 0.003464918894 | R101: 2.866686768e-06
A102: 48.02544 | B102: ='DF raw data'!A107 -> 6.4102883e-06 | C102: ='DF raw data'!B107 -> 1.5457199e-05 | D102: ='DF raw data'!C107 -> -4.1650192e-06 | F102: 6.416647306e-06 | G102: 1.550898174e-05 | H102: -4.169150899e-06 | J102: -4.869329388e-06 | K102: 2.551033212e-06 | L102: -3.160858965e-06 | N102: -0.0003119020681 | O102: -0.01009967921 | P102: 0.0001288836475 | Q102: 0.003529378761 | R102: 2.92364966e-06
A103: 48.52558 | B103: ='DF raw data'!A108 -> -9.9489762e-07 | C103: ='DF raw data'!B108 -> 8.2621391e-06 | D103: ='DF raw data'!C108 -> 4.3373538e-07 | F103: -9.958845584e-07 | G103: 8.289817868e-06 | H103: 4.341656455e-07 | J103: -7.435119229e-06 | K103: -7.622998633e-06 | L103: 2.425769879e-06 | N103: -0.0003156206687 | O103: -0.01025753373 | P103: 0.0001250710809 | Q103: 0.003591931812 | R103: 2.981295388e-06
A104: 49.02572 | B104: ='DF raw data'!A109 -> -3.0210772e-06 | C104: ='DF raw data'!B109 -> 1.4758441e-05 | D104: ='DF raw data'!C109 -> 7.9847568e-06 | F104: -3.024074109e-06 | G104: 1.480788285e-05 | H104: 7.992677679e-06 | J104: -6.518542586e-06 | K104: -7.032883505e-06 | L104: 5.11742025e-06 | N104: -0.0003188808525 | O104: -0.0104170188 | P104: 0.0001215536546 | Q104: 0.003652725656 | R104: 3.039541837e-06
A105: 49.52586 | B105: ='DF raw data'!A110 -> -9.2188247e-06 | C105: ='DF raw data'!B110 -> 5.0991162e-06 | D105: ='DF raw data'!C110 -> 1.026104e-05 | F105: -9.227969774e-06 | G105: 5.116198611e-06 | H105: 1.027121895e-05 | J105: -4.096340543e-06 | K105: -1.368907327e-07 | L105: 7.754978515e-06 | N105: -0.0003209295963 | O105: -0.01057752853 | P105: 0.00012148519 | Q105: 0.003713485259 | R105: 3.098435551e-06
A106: 50.026 | B106: ='DF raw data'!A111 -> -1.0303437e-05 | C106: ='DF raw data'!B111 -> 1.0769523e-06 | D106: ='DF raw data'!C111 -> 5.3631929e-06 | F106: -1.031365801e-05 | G106: 1.080560169e-06 | H106: 5.368513187e-06 | J106: -2.103499804e-06 | K106: -4.844174453e-06 | L106: 6.786920753e-06 | N106: -0.0003219816407 | O106: -0.01073856443 | P106: 0.0001190624246 | Q106: 0.00377303314 | R106: 3.157376068e-06
A107: 50.52614 | B107: ='DF raw data'!A112 -> -7.235501e-06 | C107: ='DF raw data'!B112 -> 1.6446844e-06 | D107: ='DF raw data'!C112 -> -3.1355621e-06 | F107: -7.242678617e-06 | G107: 1.650194212e-06 | H107: -3.138672578e-06 | J107: 6.958104499e-07 | K107: 4.190994558e-06 | L107: -5.66084169e-06 | N107: -0.0003216336381 | O107: -0.01089942628 | P107: 0.0001211585086 | Q107: 0.003833629357 | R107: 3.216456397e-06
A108: 51.02628 | B108: ='DF raw data'!A113 -> -7.2238231e-06 | C108: ='DF raw data'!B113 -> 4.9803652e-06 | D108: ='DF raw data'!C113 -> -6.7752715e-08 | F108: -7.230989133e-06 | G108: 4.997049786e-06 | H108: -6.781992569e-08 | J108: 3.753294779e-06 | K108: -9.731651789e-06 | L108: -9.865171151e-06 | N108: -0.0003197564652 | O108: -0.01105934928 | P108: 0.0001162913203 | Q108: 0.003891791298 | R108: 3.274356539e-06
A109: 51.52642 | B109: ='DF raw data'!A114 -> -5.5899268e-06 | C109: ='DF raw data'!B114 -> 4.096009e-06 | D109: ='DF raw data'!C114 -> 1.2627238e-05 | F109: -5.595472007e-06 | G109: 4.109730928e-06 | H109: 1.263976422e-05 | J109: 6.326768334e-06 | K109: -7.953133817e-06 | L109: -9.243137005e-06 | N109: -0.0003165921953 | O109: -0.0112176897 | P109: 0.00011231364 | Q109: 0.003947963842 | R109: 3.330794823e-06
A110: 52.02656 | B110: ='DF raw data'!A115 -> 9.4570942e-07 | C110: ='DF raw data'!B115 -> -5.147826e-06 | D110: ='DF raw data'!C115 -> 1.5368867e-05 | F110: 9.466475637e-07 | G110: -5.165071592e-06 | H110: 1.538411292e-05 | J110: 2.078361091e-06 | K110: -6.793516586e-06 | L110: -5.264385695e-06 | N110: -0.0003155527238 | O110: -0.01137551024 | P110: 0.0001089159306 | Q110: 0.004002437055 | R110: 3.386528525e-06
A111: 52.5267 | B111: ='DF raw data'!A116 -> 7.5724624e-06 | C111: ='DF raw data'!B116 -> -5.3054014e-06 | D111: ='DF raw data'!C116 -> 1.0167731e-05 | F111: 7.579974283e-06 | G111: -5.323174881e-06 | H111: 1.017781739e-05 | J111: 1.891212624e-06 | K111: -7.534777774e-06 | L111: -3.219816292e-06 | N111: -0.0003146068527 | O111: -0.01153285771 | P111: 0.0001051474868 | Q111: 0.004055025519 | R111: 3.441560662e-06
A112: 53.02684 | B112: ='DF raw data'!A117 -> 1.0417326e-05 | C112: ='DF raw data'!B117 -> -7.5593414e-07 | D112: ='DF raw data'!C117 -> -1.6770272e-06 | F112: 1.042765999e-05 | G112: -7.584665744e-07 | H112: -1.678690811e-06 | J112: 4.200496263e-06 | K112: 5.845275516e-06 | L112: -4.412847707e-06 | N112: -0.0003125060165 | O112: -0.01168915447 | P112: 0.0001080709429 | Q112: 0.004109076121 | R112: 3.496245639e-06
A113: 53.52698 | B113: ='DF raw data'!A118 -> 1.0028979e-05 | C113: ='DF raw data'!B118 -> 8.3969007e-06 | D113: ='DF raw data'!C118 -> -7.5689923e-06 | F113: 1.003892775e-05 | G113: 8.425030929e-06 | H113: -7.57650074e-06 | J113: 3.253115392e-06 | K113: -5.654380038e-06 | L113: -3.665306281e-06 | N113: -0.0003108790034 | O113: -0.01184463749 | P113: 0.0001052429613 | Q113: 0.004161712335 | R113: 3.550121638e-06
A114: 54.02712 | B114: ='DF raw data'!A119 -> 5.2543896e-06 | C114: ='DF raw data'!B119 -> 4.0606515e-06 | D114: ='DF raw data'!C119 -> 5.9291679e-06 | F114: 5.259601954e-06 | G114: 4.074254978e-06 | H114: 5.935049635e-06 | J114: -1.117234098e-06 | K114: -1.600941262e-05 | L114: 1.517339309e-06 | N114: -0.0003114377768 | O114: -0.01200039998 | P114: 9.723601367e-05 | Q114: 0.004210343955 | R114: 3.603360706e-06
A115: 54.52726 | B115: ='DF raw data'!A120 -> 3.9863019e-07 | C115: ='DF raw data'!B120 -> 8.5680006e-07 | D115: ='DF raw data'!C120 -> 1.0677603e-05 | F115: 3.990256311e-07 | G115: 8.596704026e-07 | H115: 1.068819518e-05 | J115: -4.948909053e-06 | K115: -1.152998331e-05 | L115: -8.244892528e-07 | N115: -0.0003139129242 | O115: -0.01215740039 | P115: 9.146940781e-05 | Q115: 0.004256091465 | R115: 3.656829662e-06
A116: 55.0274 | B116: ='DF raw data'!A121 -> 1.3812555e-06 | C116: ='DF raw data'!B121 -> 3.4937198e-06 | D116: ='DF raw data'!C121 -> 9.0233343e-06 | F116: 1.382625705e-06 | G116: 3.505424016e-06 | H116: 9.032285448e-06 | J116: -3.093101316e-06 | K116: -7.290187414e-06 | L116: -8.458688103e-06 | N116: -0.0003154599079 | O116: -0.01231517451 | P116: 8.782329348e-05 | Q116: 0.004300015407 | R116: 3.710458616e-06
A117: 55.52754 | B117: ='DF raw data'!A122 -> 2.2706904e-06 | C117: ='DF raw data'!B122 -> 4.9523455e-06 | D117: ='DF raw data'!C122 -> 1.2148314e-05 | F117: 2.272942925e-06 | G117: 4.968936218e-06 | H117: 1.216036513e-05 | J117: 1.675463112e-06 | K117: -4.259812032e-06 | L117: -9.150935632e-06 | N117: -0.0003146219418 | O117: -0.01247252953 | P117: 8.569279109e-05 | Q117: 0.004342873799 | R117: 3.763638612e-06
A118: 56.02768 | B118: ='DF raw data'!A123 -> 5.7222373e-06 | C118: ='DF raw data'!B123 -> -2.9708267e-06 | D118: ='DF raw data'!C123 -> 9.4973993e-06 | F118: 5.727913759e-06 | G118: -2.980779186e-06 | H118: 9.50682072e-06 | J118: -1.981623222e-06 | K118: -7.053364589e-06 | L118: -6.723165671e-06 | N118: -0.0003156130308 | O118: -0.01263038023 | P118: 8.216512132e-05 | Q118: 0.004383967863 | R118: 3.816834849e-06
A119: 56.52782 | B119: ='DF raw data'!A124 -> 4.4804278e-06 | C119: ='DF raw data'!B124 -> -1.2189288e-06 | D119: ='DF raw data'!C124 -> 6.6557413e-06 | F119: 4.484872384e-06 | G119: -1.2230123e-06 | H119: 6.662343795e-06 | J119: -9.61037114e-06 | K119: -2.882783188e-06 | L119: -7.610412948e-06 | N119: -0.0003204195618 | O119: -0.01279063487 | P119: 8.072332614e-05 | Q119: 0.004424340828 | R119: 3.871442611e-06
A120: 57.02796 | B120: ='DF raw data'!A125 -> -7.0414585e-06 | C120: ='DF raw data'!B125 -> 1.9753642e-07 | D120: ='DF raw data'!C125 -> -2.3197417e-06 | F120: -7.048443627e-06 | G120: 1.981981814e-07 | H120: -2.322042884e-06 | J120: -1.566153084e-05 | K120: -1.245291287e-05 | L120: -3.456515866e-06 | N120: -0.0003282525199 | O120: -0.01295480708 | P120: 7.44951263e-05 | Q120: 0.00446159882 | R120: 3.928108093e-06
A121: 57.5281 | B121: ='DF raw data'!A126 -> -9.8623614e-06 | C121: ='DF raw data'!B126 -> -4.9075229e-06 | D121: ='DF raw data'!C126 -> -1.0038481e-05 | F121: -9.872144863e-06 | G121: -4.923963459e-06 | H121: -1.004843917e-05 | J121: -1.80125067e-05 | K121: -8.743259759e-06 | L121: 2.864796061e-06 | N121: -0.000337261295 | O121: -0.01312348495 | P121: 7.012227236e-05 | Q121: 0.004496669773 | R121: 3.987455863e-06
A122: 58.02824 | B122: ='DF raw data'!A127 -> -1.0273993e-06 | C122: ='DF raw data'!B127 -> 8.4078567e-07 | D122: ='DF raw data'!C127 -> -3.1703012e-06 | F122: -1.02841848e-06 | G122: 8.436023632e-07 | H122: -3.173446139e-06 | J122: -1.531255e-05 | K122: 6.161354368e-06 | L122: 3.970322757e-08 | N122: -0.0003449197137 | O122: -0.01329599309 | P122: 7.320381213e-05 | Q122: 0.004533281928 | R122: 4.049637472e-06
A123: 58.52838 | B123: ='DF raw data'!A128 -> 1.8000378e-06 | C123: ='DF raw data'!B128 -> -6.4323272e-06 | D123: ='DF raw data'!C128 -> 5.9661734e-06 | F123: 1.801823437e-06 | G123: -6.453875964e-06 | H123: 5.972091844e-06 | J123: -1.248604889e-05 | K123: 1.89451447e-06 | L123: -1.982481272e-06 | N123: -0.0003511644862 | O123: -0.0134716245 | P123: 7.41513346e-05 | Q123: 0.004570367976 | R123: 4.114062965e-06
A124: 59.02852 | B124: ='DF raw data'!A129 -> -1.7788032e-07 | C124: ='DF raw data'!B129 -> -4.3704772e-06 | D124: ='DF raw data'!C129 -> 8.0302825e-06 | F124: -1.780567773e-07 | G124: -4.385118617e-06 | H124: 8.03824854e-06 | J124: -1.196628879e-05 | K124: -4.504402392e-06 | L124: -3.046072509e-06 | N124: -0.0003571493059 | O124: -0.01365024915 | P124: 7.189850279e-05 | Q124: 0.004606327294 | R124: 4.180444057e-06
A125: 59.52866 | B125: ='DF raw data'!A130 -> -1.8537589e-06 | C125: ='DF raw data'!B130 -> 2.3978841e-06 | D125: ='DF raw data'!C130 -> 2.4696901e-06 | F125: -1.855597829e-06 | G125: 2.405917186e-06 | H125: 2.472140033e-06 | J125: -9.933758623e-06 | K125: 1.165974056e-06 | L125: -4.451423036e-06 | N125: -0.0003621175759 | O125: -0.01383135864 | P125: 7.248165305e-05 | Q125: 0.004642578268 | R125: 4.248654515e-06
A126: 60.0288 | B126: ='DF raw data'!A131 -> -3.1173963e-06 | C126: ='DF raw data'!B131 -> 1.7850522e-06 | D126: ='DF raw data'!C131 -> -2.7527412e-06 | F126: -3.120488757e-06 | G126: 1.791032255e-06 | H126: -2.755471919e-06 | J126: -3.089365013e-06 | K126: -1.429087061e-05 | L126: -4.315850381e-06 | N126: -0.0003636626909 | O126: -0.0140132409 | P126: 6.533421703e-05 | Q126: 0.004675254523 | R126: 4.316933184e-06
A127: 60.52894 | B127: ='DF raw data'!A132 -> -2.2561267e-06 | C127: ='DF raw data'!B132 -> -2.0134853e-06 | D127: ='DF raw data'!C132 -> -3.6665979e-06 | F127: -2.258364778e-06 | G127: -2.020230622e-06 | H127: -3.670235165e-06 | J127: 1.179092801e-06 | K127: -8.968701383e-06 | L127: -5.476970671e-06 | N127: -0.0003630729795 | O127: -0.01419482822 | P127: 6.084861072e-05 | Q127: 0.004705687347 | R127: 4.384714428e-06
A128: 61.02908 | B128: ='DF raw data'!A133 -> -4.3587984e-06 | C128: ='DF raw data'!B133 -> 4.6913606e-06 | D128: ='DF raw data'!C133 -> -7.7741124e-06 | F128: -4.363122328e-06 | G128: 4.707077e-06 | H128: -7.78182432e-06 | J128: 7.668359774e-07 | K128: -4.204387978e-06 | L128: -3.849042566e-06 | N128: -0.0003626894541 | O128: -0.01437622372 | P128: 5.874582812e-05 | Q128: 0.004735068485 | R128: 4.452230684e-06
A129: 61.52922 | B129: ='DF raw data'!A134 -> -7.360793e-06 | C129: ='DF raw data'!B134 -> 1.5330979e-05 | D129: ='DF raw data'!C134 -> -7.3990805e-06 | F129: -7.368094907e-06 | G129: 1.53823389e-05 | H129: -7.406420388e-06 | J129: 1.969317327e-06 | K129: 3.492436652e-06 | L129: -9.633284248e-07 | N129: -0.0003617045198 | O129: -0.01455712662 | P129: 6.049253538e-05 | Q129: 0.004765323222 | R129: 4.519494266e-06
A130: 62.02936 | B130: ='DF raw data'!A135 -> -4.7006229e-06 | C130: ='DF raw data'!B135 -> 1.6263368e-05 | D130: ='DF raw data'!C135 -> -2.1753176e-06 | F130: -4.705285918e-06 | G130: 1.631785147e-05 | H130: -2.177475515e-06 | J130: -1.991448159e-06 | K130: -1.167536874e-05 | L130: 3.374977059e-07 | N130: -0.0003627005226 | O130: -0.01473852766 | P130: 5.465321646e-05 | Q130: 0.004792657482 | R130: 4.586782423e-06
A131: 62.5295 | B131: ='DF raw data'!A136 -> -2.0421322e-08 | C131: ='DF raw data'!B136 -> 9.0338817e-06 | D131: ='DF raw data'!C136 -> 5.001607e-06 | F131: -2.044157995e-08 | G131: 9.064145861e-06 | H131: 5.006568594e-06 | J131: -4.506456074e-06 | K131: -1.640982857e-05 | L131: -9.888087662e-06 | N131: -0.0003649543816 | O131: -0.01492105594 | P131: 4.64460048e-05 | Q131: 0.004815886987 | R131: 4.654475837e-06
A132: 63.02964 | B132: ='DF raw data'!A137 -> -3.1707291e-06 | C132: ='DF raw data'!B137 -> 7.792476e-06 | D132: ='DF raw data'!C137 -> 9.820734e-07 | F132: -3.173874463e-06 | G132: 7.818581362e-06 | H132: 9.830476168e-07 | J132: -3.681283214e-06 | K132: -1.085258155e-05 | L132: -2.634111849e-05 | N132: -0.0003667955386 | O132: -0.01510450506 | P132: 4.101819467e-05 | Q132: 0.004836401827 | R132: 4.722605638e-06
A133: 63.52978 | B133: ='DF raw data'!A138 -> -1.1069857e-05 | C133: ='DF raw data'!B138 -> 4.1882099e-06 | D133: ='DF raw data'!C138 -> -3.9716133e-06 | F133: -1.10808383e-05 | G133: 4.202240708e-06 | H133: -3.97555314e-06 | J133: -4.690665829e-06 | K133: 5.368819282e-06 | L133: -2.044870601e-05 | N133: -0.0003691415282 | O133: -0.01528912751 | P133: 4.370335594e-05 | Q133: 0.004858259623 | R133: 4.791712708e-06
A134: 64.02992 | B134: ='DF raw data'!A139 -> -1.442435e-05 | C134: ='DF raw data'!B139 -> 7.8682624e-06 | D134: ='DF raw data'!C139 -> 9.7728218e-07 | F134: -1.443865896e-05 | G134: 7.894621652e-06 | H134: 9.782516439e-07 | J134: -9.144266122e-06 | K134: -1.31096667e-06 | L134: -6.202465949e-06 | N134: -0.0003737149414 | O134: -0.0154760373 | P134: 4.304768907e-05 | Q134: 0.004879789494 | R134: 4.862490501e-06
A135: 64.53006 | B135: ='DF raw data'!A140 -> -8.9822688e-06 | C135: ='DF raw data'!B140 -> 1.3486881e-05 | D135: ='DF raw data'!C140 -> -1.4985297e-06 | F135: -8.991179211e-06 | G135: =(1-$G$1*($B$2-$G$2))*C135*$M$2/$M$1 -> 1.353206303e-05 | H135: -1.500016241e-06 | J135: =-CELL("contents", INDEX($F$6:$F$1203,1204-CELL("row",F135))) -> -1.056770477e-05 | K135: =CELL("contents", INDEX($G$6:$G$1203,1204-CELL("row",G135))) -> -1.820254123e-05 | L135: =-CELL("contents", INDEX($H$6:$H$1203,1204-CELL("row",H135))) -> -3.056330876e-06 | N135: -0.0003790002733 | O135: -0.01566559049 | P135: 3.39438701e-05 | Q135: 0.004896766181 | R135: 4.934907469e-06
A136: =A135+$B$1 -> 65.0302 | B136: ='DF raw data'!A141 -> 5.9134118e-07 | C136: ='DF raw data'!B141 -> 9.7627944e-06 | D136: ='DF raw data'!C141 -> -5.4232905e-06 | F136: 5.919277905e-07 | G136: 9.795500472e-06 | H136: -5.428670404e-06 | J136: -2.001935952e-06 | K136: -5.19894148e-06 | L136: -7.417487355e-07 | N136: =J136*$B$1+N135 -> -0.0003800015215 | O136: =N136*$B$1+O135 -> -0.01585564445 | P136: =K136*$B$1+P135 -> 3.134367151e-05 | Q136: =P136*$B$1+Q135 -> 0.004912442405 | R136: =(N136^2+P136^2)*$B$1+R135 -> 5.007619614e-06
A137: 65.53034 | B137: ='DF raw data'!A142 -> 4.0559012e-06 | C137: ='DF raw data'!B142 -> 7.995601e-07 | D137: ='DF raw data'!C142 -> -5.35454e-06 | F137: 4.059924654e-06 | G137: 8.022386846e-07 | H137: -5.359851704e-06 | J137: 2.710103659e-06 | K137: -6.650223146e-07 | L137: 3.453586162e-06 | N137: -0.0003786460903 | O137: -0.01604502051 | P137: 3.101106725e-05 | Q137: 0.00492795228 | R137: 5.079807094e-06
A138: 66.03048 | B138: ='DF raw data'!A143 -> 3.5714352e-06 | C138: ='DF raw data'!B143 -> 6.1378464e-06 | D138: ='DF raw data'!C143 -> -4.6553896e-06 | F138: 3.574978064e-06 | G138: 6.158408632e-06 | H138: -4.660007746e-06 | J138: -3.903241679e-06 | K138: -5.535060844e-07 | L138: 7.342667107e-06 | N138: -0.0003805982576 | O138: -0.01623537292 | P138: 3.073423671e-05 | Q138: 0.004943323702 | R138: 5.15272732e-06
A139: 66.53062 | B139: ='DF raw data'!A144 -> 1.070332e-06 | C139: ='DF raw data'!B144 -> 7.6717242e-06 | D139: ='DF raw data'!C144 -> -2.6994994e-06 | F139: =(1-$G$1*($B$2-$G$2))*B139 -> 1.071393769e-06 | G139: 7.697425035e-06 | H139: =(1-$G$1*($B$2-$G$2))*D139 -> -2.702177303e-06 | J139: -8.717847134e-06 | K139: -3.235091305e-07 | L139: 5.056598475e-06 | N139: -0.0003849584017 | O139: -0.01642790602 | P139: 3.057243686e-05 | Q139: 0.0049586142 | R139: 5.22731202e-06
A140: 67.03076 | B140: ='DF raw data'!A145 -> -3.0246788e-06 | C140: ='DF raw data'!B145 -> 1.8735133e-06 | D140: ='DF raw data'!C145 -> -1.8131312e-06 | F140: -3.027679281e-06 | G140: 1.879789706e-06 | H140: -1.814929826e-06 | J140: -5.488111611e-06 | K140: 3.177566035e-06 | L140: 1.727990568e-06 | N140: -0.0003877032258 | O140: -0.01662181191 | P140: 3.216166473e-05 | Q140: 0.004974699535 | R140: 5.303007291e-06
A141: 67.5309 | B141: ='DF raw data'!A146 -> -5.9011122e-06 | C141: ='DF raw data'!B146 -> 1.1018079e-05 | D141: ='DF raw data'!C146 -> -3.6419724e-06 | F141: -5.906966103e-06 | G141: 1.105499037e-05 | H141: -3.645585237e-06 | J141: -2.197168731e-06 | K141: 8.327706574e-06 | L141: 2.739485376e-06 | N141: -0.0003888021178 | O141: -0.0168162674 | P141: 3.63266839e-05 | Q141: 0.004992867963 | R141: 5.379271996e-06
A142: 68.03104 | B142: ='DF raw data'!A147 -> -5.1743473e-07 | C142: ='DF raw data'!B147 -> 1.7141452e-05 | D142: ='DF raw data'!C147 -> 1.3121145e-06 | F142: -5.179480253e-07 | G142: 1.719887711e-05 | H142: 1.313416118e-06 | J142: -2.026924516e-06 | K142: 8.671641935e-07 | L142: -8.035719734e-07 | N142: -0.0003898158638 | O142: -0.01701122991 | P142: 3.67603874e-05 | Q142: 0.005011253303 | R142: 5.455947326e-06
A143: 68.53118 | B143: ='DF raw data'!A148 -> 6.7043861e-06 | C143: ='DF raw data'!B148 -> 1.6374812e-06 | D143: ='DF raw data'!C148 -> 7.8481908e-06 | F143: 6.711036851e-06 | G143: 1.642966881e-06 | H143: 7.855976205e-06 | J143: -2.212135664e-06 | K143: 5.579536042e-06 | L143: 1.70167649e-06 | N143: -0.0003909222413 | O143: -0.01720674576 | P143: 3.955093656e-05 | Q143: 0.005031034308 | R143: 5.533161178e-06
A144: 69.03132 | B144: ='DF raw data'!A149 -> 4.5894326e-06 | C144: ='DF raw data'!B149 -> -3.610478e-06 | D144: ='DF raw data'!C149 -> 2.3719886e-06 | F144: 4.593985317e-06 | G144: -3.622573364e-06 | H144: 2.374341613e-06 | J144: -3.846982825e-06 | K144: 4.626218522e-06 | L144: 4.092469907e-06 | N144: -0.0003928462713 | O144: -0.01740322389 | P144: 4.186469349e-05 | Q144: 0.005051972516 | R144: 5.611223452e-06
A145: 69.53146 | B145: ='DF raw data'!A150 -> 2.2273694e-06 | C145: ='DF raw data'!B150 -> -3.2227385e-06 | D145: ='DF raw data'!C150 -> 8.4772591e-06 | F145: 2.22957895e-06 | G145: -3.233534909e-06 | H145: 8.485668541e-06 | J145: -7.897415572e-06 | K145: -1.388951252e-05 | L145: -6.340924764e-07 | N145: -0.0003967960847 | O145: -0.01760167748 | P145: 3.49179927e-05 | Q145: 0.005069436401 | R145: 5.690578865e-06
A146: 70.0316 | B146: ='DF raw data'!A151 -> 4.6383598e-06 | C146: ='DF raw data'!B151 -> -3.1078548e-06 | D146: ='DF raw data'!C151 -> 1.2200294e-05 | F146: 4.642961053e-06 | G146: -3.11826634e-06 | H146: 1.221239669e-05 | J146: -5.930364191e-06 | K146: -2.306319742e-06 | L146: -6.342699823e-06 | N146: -0.0003997620971 | O146: -0.0178016145 | P146: 3.376450994e-05 | Q146: 0.005086323383 | R146: 5.771076286e-06
A147: 70.53174 | B147: ='DF raw data'!A152 -> 5.6559534e-06 | C147: ='DF raw data'!B152 -> 3.3051888e-06 | D147: ='DF raw data'!C152 -> 4.270124e-07 | F147: 5.661564106e-06 | G147: 3.316261423e-06 | H147: 4.274359963e-07 | J147: 4.294573095e-06 | K147: 3.623901097e-06 | L147: -9.33720653e-06 | N147: -0.0003976142093 | O147: -0.01800047727 | P147: 3.557696784e-05 | Q147: 0.005104116848 | R147: 5.850779987e-06
A148: 71.03188 | B148: ='DF raw data'!A153 -> 3.2132543e-06 | C148: ='DF raw data'!B153 -> 8.1529961e-06 | D148: ='DF raw data'!C153 -> -3.7295567e-06 | F148: 3.216441848e-06 | G148: 8.180309231e-06 | H148: -3.73325642e-06 | J148: 1.001192399e-05 | K148: 2.696824493e-06 | L148: -9.122757107e-06 | N148: -0.0003926068456 | O148: -0.01819683566 | P148: 3.692575764e-05 | Q148: 0.005122584896 | R148: 5.928553581e-06
A149: 71.53202 | B149: ='DF raw data'!A154 -> 1.7330917e-06 | C149: ='DF raw data'!B154 -> -4.3824403e-07 | D149: ='DF raw data'!C154 -> -3.0765941e-06 | F149: 1.734810927e-06 | G149: -4.397121794e-07 | H149: -3.079646081e-06 | J149: 5.566543238e-06 | K149: 5.907795564e-06 | L149: -5.428803336e-06 | N149: -0.0003898227947 | O149: -0.01839180163 | P149: 3.988048251e-05 | Q149: 0.005142530721 | R149: 6.00535121e-06
A150: 72.03216 | B150: ='DF raw data'!A155 -> 3.7013983e-06 | C150: ='DF raw data'!B155 -> 1.1347243e-05 | D150: ='DF raw data'!C155 -> 1.4471526e-06 | F150: 3.705070087e-06 | G150: 1.138525709e-05 | H150: 1.448588175e-06 | J150: -2.91853712e-07 | K150: 9.832316095e-06 | L150: -6.077617722e-06 | N150: -0.0003899687624 | O150: -0.01858684061 | P150: 4.479801708e-05 | Q150: 0.005164936001 | R150: 6.082414031e-06
A151: 72.5323 | B151: ='DF raw data'!A156 -> 7.2962562e-06 | C151: ='DF raw data'!B156 -> 1.9445739e-05 | D151: ='DF raw data'!C156 -> -3.2904327e-07 | F151: 7.303494086e-06 | G151: 1.951088364e-05 | H151: -3.293696809e-07 | J151: 1.913258772e-06 | K151: 3.498598125e-06 | L151: -8.62517049e-06 | N151: -0.0003890118652 | O151: -0.018781401 | P151: 4.654780595e-05 | Q151: 0.005188216421 | R151: 6.159183985e-06
A152: 73.03244 | B152: ='DF raw data'!A157 -> 3.482523e-06 | C152: ='DF raw data'!B157 -> 2.1642531e-06 | D152: ='DF raw data'!C157 -> -4.0018958e-06 | F152: 3.485977663e-06 | G152: 2.171503505e-06 | H152: -4.005865681e-06 | J152: 3.61018035e-06 | K152: -7.001689251e-06 | L152: -3.398756625e-06 | N152: -0.0003872062696 | O152: -0.01897505834 | P152: 4.304598109e-05 | Q152: 0.005209745438 | R152: 6.23509606e-06
A153: 73.53258 | B153: ='DF raw data'!A158 -> -2.0885832e-06 | C153: ='DF raw data'!B158 -> -3.7166538e-07 | D153: ='DF raw data'!C158 -> -7.1509012e-06 | F153: -2.090655075e-06 | G153: -3.729104861e-07 | H153: -7.157994894e-06 | J153: -1.346144252e-06 | K153: -5.892542435e-06 | L153: -3.113423655e-06 | N153: -0.0003878795302 | O153: -0.01916905241 | P153: 4.009888491e-05 | Q153: 0.005229800494 | R153: 6.311146574e-06
A154: 74.03272 | B154: ='DF raw data'!A159 -> 2.1693654e-06 | C154: ='DF raw data'!B159 -> 7.2150362e-07 | D154: ='DF raw data'!C159 -> -8.976479e-06 | F154: 2.17151741e-06 | G154: 7.239207097e-07 | H154: -8.985383667e-06 | J154: -7.938977061e-06 | K154: 1.231304788e-06 | L154: -3.435267208e-06 | N154: -0.0003918501301 | O154: -0.01936503234 | P154: 4.071470969e-05 | Q154: 0.005250163549 | R154: 6.388770408e-06
A155: 74.53286 | B155: ='DF raw data'!A160 -> 6.5486624e-06 | C155: ='DF raw data'!B160 -> -4.7097842e-06 | D155: ='DF raw data'!C160 -> -2.9178618e-06 | F155: 6.555158673e-06 | G155: -4.72556232e-06 | H155: -2.920756319e-06 | J155: -8.282142043e-06 | K155: 4.551784295e-06 | L155: -1.751575541e-06 | N155: -0.0003959923607 | O155: -0.01956308396 | P155: 4.299123909e-05 | Q155: 0.005271665187 | R155: 6.468121719e-06
A156: 75.033 | B156: ='DF raw data'!A161 -> 5.1389129e-06 | C156: ='DF raw data'!B161 -> 7.0323417e-06 | D156: ='DF raw data'!C161 -> -2.9416215e-06 | F156: 5.144010702e-06 | G156: 7.055900557e-06 | H156: -2.944539589e-06 | J156: -5.229533356e-06 | K156: -1.387543552e-06 | L156: -3.915530657e-06 | N156: -0.0003986078595 | O156: -0.01976244369 | P156: 4.229727306e-05 | Q156: 0.005292819745 | R156: 6.548482856e-06
A157: 75.53314 | B157: ='DF raw data'!A162 -> 4.2211745e-06 | C157: ='DF raw data'!B162 -> 7.2196722e-06 | D157: ='DF raw data'!C162 -> -4.1151025e-06 | F157: 4.225361905e-06 | G157: 7.243858628e-06 | H157: -4.119184682e-06 | J157: -2.810004262e-06 | K157: -3.761936683e-06 | L157: -7.660645029e-06 | N157: -0.000400013255 | O157: -0.01996250632 | P157: 4.041577804e-05 | Q157: 0.005313033292 | R157: 6.629327506e-06
A158: 76.03328 | B158: ='DF raw data'!A163 -> 2.8893869e-06 | C158: ='DF raw data'!B163 -> -9.3166218e-06 | D158: ='DF raw data'!C163 -> -1.9719928e-07 | F158: 2.892253172e-06 | G158: -9.347833161e-06 | H158: -1.973949017e-07 | J158: -1.585141702e-06 | K158: -4.822485235e-06 | L158: -9.505753763e-06 | N158: -0.0004008060478 | O158: -0.02016296546 | P158: 3.800386028e-05 | Q158: 0.005332040543 | R158: 6.710395089e-06
A159: 76.53342 | B159: ='DF raw data'!A164 -> 1.2570986e-06 | C159: ='DF raw data'!B164 -> -2.8440482e-07 | D159: ='DF raw data'!C164 -> -2.8857821e-06 | F159: 1.258345642e-06 | G159: -2.853575969e-07 | H159: -2.888644796e-06 | J159: -1.907524189e-06 | K159: -1.168674974e-05 | L159: -6.792319403e-06 | N159: -0.0004017600769 | O159: -0.02036390174 | P159: 3.215884926e-05 | Q159: 0.00534812447 | R159: 6.791640507e-06
A160: 77.03356 | B160: ='DF raw data'!A165 -> 4.6618746e-07 | C160: ='DF raw data'!B165 -> 1.142343e-05 | D160: ='DF raw data'!C165 -> -6.1523924e-06 | F160: 4.66649918e-07 | G160: 1.146169932e-05 | H160: -6.158495573e-06 | J160: -4.63037458e-07 | K160: -6.088669481e-06 | L160: -8.273218399e-06 | N160: -0.0004019916605 | O160: -0.02056495385 | P160: 2.911366211e-05 | Q160: 0.005362685377 | R160: 6.872885699e-06
A161: 77.5337 | B161: ='DF raw data'!A166 -> 5.0673575e-06 | C161: ='DF raw data'!B166 -> 6.1783214e-07 | D161: ='DF raw data'!C166 -> -4.9192777e-06 | F161: 5.072384319e-06 | G161: 6.199019227e-07 | H161: -4.924157623e-06 | J161: 4.437090231e-06 | K161: 2.514622842e-06 | L161: -6.085811342e-06 | N161: -0.0003997724942 | O161: -0.02076489607 | P161: 3.037132558e-05 | Q161: 0.005377875292 | R161: 6.953278435e-06
A162: 78.03384 | B162: ='DF raw data'!A167 -> 9.7346119e-06 | C162: ='DF raw data'!B167 -> 1.5145939e-06 | D162: ='DF raw data'!C167 -> -1.0523395e-05 | F162: 9.744268635e-06 | G162: 1.5196679e-06 | H162: -1.053383421e-05 | J162: 6.067858751e-06 | K162: -2.201231464e-06 | L162: -8.712510345e-06 | N162: -0.0003967377153 | O162: -0.02096332047 | P162: 2.927040167e-05 | Q162: 0.00539251459 | R162: 7.032429377e-06
A163: 78.53398 | B163: ='DF raw data'!A168 -> 9.5649366e-06 | C163: ='DF raw data'!B168 -> 4.571813e-06 | D163: ='DF raw data'!C168 -> -1.179744e-05 | F163: 9.574425017e-06 | G163: 4.587128906e-06 | H163: -1.180914306e-05 | J163: 8.039219002e-07 | K163: -4.998930566e-06 | L163: -6.243302719e-06 | N163: -0.0003963356418 | O163: -0.02116154378 | P163: 2.677023654e-05 | Q163: 0.005405903457 | R163: 7.111350762e-06
A164: 79.03412 | B164: ='DF raw data'!A169 -> 4.2037523e-06 | C164: ='DF raw data'!B169 -> 8.0095615e-06 | D164: ='DF raw data'!C169 -> -6.4046317e-06 | F164: 4.207922422e-06 | G164: 8.036394114e-06 | H164: -6.410985095e-06 | J164: -5.134254933e-06 | K164: -2.554523667e-06 | L164: 4.569670921e-06 | N164: -0.0003989034881 | O164: -0.02136105137 | P164: 2.549261707e-05 | Q164: 0.005418653334 | R164: 7.191260063e-06
A165: 79.53426 | B165: ='DF raw data'!A170 -> -5.4339303e-06 | C165: ='DF raw data'!B170 -> 1.3461931e-05 | D165: ='DF raw data'!C170 -> 1.4655863e-06 | F165: -5.439320759e-06 | G165: 1.350702945e-05 | H165: 1.467040162e-06 | J165: -7.214963451e-06 | K165: -1.682334626e-06 | L165: 6.762605857e-06 | N165: -0.0004025119799 | O165: -0.02156236371 | P165: 2.465121423e-05 | Q165: 0.005430982392 | R165: 7.272594619e-06
A166: 80.0344 | B166: ='DF raw data'!A171 -> -9.1291122e-06 | C166: ='DF raw data'!B171 -> 1.2960912e-05 | D166: ='DF raw data'!C171 -> 9.5864482e-07 | F166: -9.138168279e-06 | G166: 1.3004332e-05 | H166: 9.595957957e-07 | J166: -5.76232316e-06 | K166: -1.048549489e-05 | L166: 5.234074957e-06 | N166: -0.0004053939482 | O166: -0.02176511744 | P166: 1.940699882e-05 | Q166: 0.005440688609 | R166: 7.354978122e-06
A167: 80.53454 | B167: ='DF raw data'!A172 -> -3.5277021e-06 | C167: ='DF raw data'!B172 -> -2.2582972e-07 | D167: ='DF raw data'!C172 -> -1.0495559e-06 | F167: -3.53120158e-06 | G167: -2.26586266e-07 | H167: -1.050597059e-06 | J167: -2.949185793e-06 | K167: -1.630822232e-05 | L167: 2.857669499e-06 | N167: -0.000406868954 | O167: -0.02196860888 | P167: 1.125060451e-05 | Q167: 0.005446315486 | R167: 7.437835777e-06
A168: 81.03468 | B168: ='DF raw data'!A173 -> 3.9168893e-07 | C168: ='DF raw data'!B173 -> -2.8498093e-06 | D168: ='DF raw data'!C173 -> -4.1005942e-06 | F168: 3.920774854e-07 | G168: -2.859356369e-06 | H168: -4.104661989e-06 | J168: -1.556941255e-06 | K168: 5.498844321e-07 | L168: -1.280507104e-06 | N168: -0.0004076476426 | O168: -0.02217248977 | P168: 1.152562371e-05 | Q168: 0.005452079912 | R168: 7.52101378e-06
A169: 81.53482 | B169: ='DF raw data'!A174 -> -5.1276356e-07 | C169: ='DF raw data'!B174 -> 5.8272285e-06 | D169: ='DF raw data'!C174 -> -4.5541628e-06 | F169: -5.132722215e-07 | G169: 5.84675014e-06 | H169: -4.558680529e-06 | J169: -5.49726288e-06 | K169: -8.076432799e-06 | L169: -5.055132722e-06 | N169: -0.0004103970436 | O169: -0.02237774574 | P169: 7.486276612e-06 | Q169: 0.005455824098 | R169: 7.605278257e-06
A170: 82.03496 | B170: ='DF raw data'!A175 -> -2.4162559e-06 | C170: ='DF raw data'!B175 -> 6.6444677e-06 | D170: ='DF raw data'!C175 -> 3.2560902e-06 | F170: -2.418652826e-06 | G170: 6.666727151e-06 | H170: 3.259320241e-06 | J170: -8.297775436e-06 | K170: -1.768899958e-05 | L170: -3.797812697e-06 | N170: -0.000414547093 | O170: -0.02258507733 | P170: -1.360699636e-06 | Q170: 0.005455143558 | R170: 7.691227888e-06
A171: 82.5351 | B171: ='DF raw data'!A176 -> -3.308834e-06 | C171: ='DF raw data'!B176 -> -1.6160069e-06 | D171: ='DF raw data'!C176 -> 4.1137272e-07 | F171: -3.312116363e-06 | G171: -1.621420641e-06 | H171: 4.117808017e-07 | J171: -4.984654877e-06 | K171: -9.876234835e-06 | L171: 6.723307411e-07 | N171: -0.0004170401183 | O171: -0.02279365577 | P171: -6.300199727e-06 | Q171: 0.005451992576 | R171: 7.778233319e-06
A172: 83.03524 | B172: ='DF raw data'!A177 -> -1.6392928e-06 | C172: ='DF raw data'!B177 -> 2.3556058e-07 | D172: ='DF raw data'!C177 -> -6.0896753e-07 | F172: -1.640918978e-06 | G172: 2.363497251e-07 | H172: -6.095716258e-07 | J172: -2.868466299e-06 | K172: -3.812403887e-06 | L172: -2.019654612e-06 | N172: -0.0004184747531 | O172: -0.02300295174 | P172: -8.206935407e-06 | Q172: 0.005447887959 | R172: 7.865852082e-06
A173: 83.53538 | B173: ='DF raw data'!A178 -> 4.2964007e-06 | C173: ='DF raw data'!B178 -> 5.3307463e-06 | D173: ='DF raw data'!C178 -> 1.0604593e-05 | F173: 4.300662729e-06 | G173: 5.348604688e-06 | H173: 1.061511276e-05 | J173: -1.075938473e-06 | K173: -1.175596083e-05 | L173: 9.492006539e-07 | N173: -0.0004190128729 | O173: -0.02321251683 | P173: -1.408656166e-05 | Q173: 0.005440842706 | R173: 7.953761799e-06
A174: 84.03552 | B174: ='DF raw data'!A179 -> 8.0744858e-06 | C174: ='DF raw data'!B179 -> 9.2679129e-06 | D174: ='DF raw data'!C179 -> 1.1764764e-05 | F174: 8.08249569e-06 | G174: 9.298961083e-06 | H174: 1.177643465e-05 | J174: 3.325546573e-06 | K174: -8.454491494e-06 | L174: 4.983781312e-06 | N174: -0.0004173496341 | O174: -0.02342125008 | P174: -1.831499103e-05 | Q174: 0.005431682646 | R174: 8.041044309e-06
A175: 84.53566 | B175: ='DF raw data'!A180 -> 4.0843393e-06 | C175: ='DF raw data'!B180 -> 8.0301124e-06 | D175: ='DF raw data'!C180 -> -1.6771618e-06 | F175: 4.088390965e-06 | G175: 8.057013861e-06 | H175: -1.678825545e-06 | J175: 4.00980088e-06 | K175: -5.975526409e-07 | L175: 1.894742522e-06 | N175: -0.0004153441723 | O175: -0.02362898031 | P175: -1.861385101e-05 | Q175: 0.005422373115 | R175: 8.127497138e-06
A176: 85.0358 | B176: ='DF raw data'!A181 -> -3.4291784e-06 | C176: ='DF raw data'!B181 -> 4.7024382e-06 | D176: ='DF raw data'!C181 -> -5.5916744e-06 | F176: -3.432580145e-06 | G176: 4.71819171e-06 | H176: -5.597221341e-06 | J176: -1.154181613e-06 | K176: -8.322490458e-06 | L176: 5.327408852e-06 | N176: -0.0004159214246 | O176: -0.02383699926 | P176: -2.277626139e-05 | Q176: 0.005410981796 | R176: 8.214276124e-06
A177: 85.53594 | B177: ='DF raw data'!A182 -> -3.5954558e-06 | C177: ='DF raw data'!B182 -> 6.6097796e-06 | D177: ='DF raw data'!C182 -> 2.4212304e-07 | F177: -3.599022492e-06 | G177: 6.631922843e-06 | H177: 2.423632261e-07 | J177: -8.326642243e-06 | K177: -7.046137258e-06 | L177: 3.049267976e-06 | N177: -0.0004200859115 | O177: -0.02404710102 | P177: -2.630031647e-05 | Q177: 0.005397827955 | R177: 8.302882866e-06
A178: 86.03608 | B178: ='DF raw data'!A183 -> 3.4423513e-07 | C178: ='DF raw data'!B183 -> 1.4144012e-05 | D178: ='DF raw data'!C183 -> 7.3775402e-07 | F178: 3.445766112e-07 | G178: 1.419139547e-05 | H178: 7.38485872e-07 | J178: -1.307015274e-05 | K178: -8.207762093e-06 | L178: -9.81248674e-07 | N178: -0.0004266228177 | O178: -0.02426047216 | P178: -3.040534661e-05 | Q178: 0.005382621025 | R178: 8.394374234e-06
A179: 86.53622 | B179: ='DF raw data'!A184 -> -5.5367905e-06 | C179: ='DF raw data'!B184 -> 1.7833539e-05 | D179: ='DF raw data'!C184 -> -2.975964e-06 | F179: -5.542282996e-06 | G179: 1.789328265e-05 | H179: -2.978916156e-06 | J179: -1.476052293e-05 | K179: -8.921311253e-06 | L179: 1.904134229e-06 | N179: -0.0004340051456 | O179: -0.02447753549 | P179: -3.486725122e-05 | Q179: 0.005365182518 | R179: 8.48918887e-06
A180: 87.03636 | B180: ='DF raw data'!A185 -> -9.8688297e-06 | C180: ='DF raw data'!B185 -> 8.0640002e-06 | D180: ='DF raw data'!C185 -> 1.9899844e-07 | F180: -9.878619579e-06 | G180: 8.091015188e-06 | H180: 1.991958465e-07 | J180: -1.196415168e-05 | K180: -4.237856325e-06 | L180: -3.726197224e-06 | N180: -0.0004399888964 | O180: -0.02469759154 | P180: -3.698677268e-05 | Q180: 0.005346683954 | R180: 8.58669529e-06
A181: 87.5365 | B181: ='DF raw data'!A186 -> 1.1900797e-06 | C181: ='DF raw data'!B186 -> 1.0476631e-05 | D181: ='DF raw data'!C186 -> 1.7514368e-06 | F181: 1.191260259e-06 | G181: 1.051172848e-05 | H181: 1.753174225e-06 | J181: -9.990884235e-06 | K181: -9.003644354e-06 | L181: -5.394896534e-06 | N181: -0.0004449857373 | O181: -0.02492014671 | P181: -4.148985537e-05 | Q181: 0.005325933218 | R181: 8.68659011e-06
A182: 88.03664 | B182: ='DF raw data'!A187 -> 1.1898431e-05 | C182: ='DF raw data'!B187 -> 1.3465533e-05 | D182: ='DF raw data'!C187 -> -3.2574235e-06 | F182: 1.191023424e-05 | G182: 1.351064352e-05 | H182: -3.260654864e-06 | J182: -1.138452726e-05 | K182: -1.036835778e-05 | L182: 8.707899876e-07 | N182: -0.0004506795948 | O182: -0.0251455496 | P182: -4.667548583e-05 | Q182: 0.00530258894 | R182: 8.789264199e-06
A183: 88.53678 | B183: ='DF raw data'!A188 -> 9.0103813e-06 | C183: ='DF raw data'!B188 -> 4.9659552e-06 | D183: ='DF raw data'!C188 -> -2.485328e-06 | F183: 9.019319598e-06 | G183: 4.982591511e-06 | H183: -2.487793445e-06 | J183: -1.015752328e-05 | K183: -4.166367833e-06 | L183: 5.959832395e-06 | N183: -0.0004557597784 | O183: -0.02537349329 | P183: -4.875925303e-05 | Q183: 0.005278202487 | R183: 8.894340833e-06
A184: 89.03692 | B184: ='DF raw data'!A189 -> 2.194191e-06 | C184: ='DF raw data'!B189 -> 1.2666706e-05 | D184: ='DF raw data'!C189 -> 1.1320763e-07 | F184: 2.196367637e-06 | G184: 1.270914039e-05 | H184: 1.13319932e-07 | J184: -8.965999457e-06 | K184: -2.610750903e-06 | L184: 1.3729335e-05 | N184: -0.0004602440334 | O184: -0.02560367974 | P184: -5.006499399e-05 | Q184: 0.005253162981 | R184: 9.001536376e-06
A185: 89.53706 | B185: ='DF raw data'!A190 -> -3.4847812e-06 | C185: ='DF raw data'!B190 -> 9.2337559e-06 | D185: ='DF raw data'!C190 -> 2.1144396e-07 | F185: -3.488238103e-06 | G185: 9.264689655e-06 | H185: 2.116537124e-07 | J185: -2.907285669e-06 | K185: -1.189479137e-05 | L185: 8.554419975e-06 | N185: -0.0004616980833 | O185: -0.02583459342 | P185: -5.601405495e-05 | Q185: 0.005225148112 | R185: 9.109718006e-06
A186: 90.0372 | B186: ='DF raw data'!A191 -> -1.8609039e-06 | C186: ='DF raw data'!B191 -> 7.5930016e-06 | D186: ='DF raw data'!C191 -> -1.0826282e-05 | F186: -1.862749917e-06 | G186: 7.618438708e-06 | H186: -1.083702167e-05 | J186: 4.999540729e-06 | K186: -8.568551829e-06 | L186: 2.991909333e-06 | N186: -0.000459197613 | O186: -0.02606425652 | P186: -6.029953046e-05 | Q186: 0.005194989905 | R186: 9.216997276e-06
A187: 90.53734 | B187: ='DF raw data'!A192 -> 6.2593704e-06 | C187: ='DF raw data'!B192 -> -6.9669329e-07 | D187: ='DF raw data'!C192 -> -1.1071071e-05 | F187: 6.265579695e-06 | G187: -6.990272632e-07 | H187: -1.10820535e-05 | J187: 1.133055878e-06 | K187: 6.114763607e-06 | L187: 3.379305048e-06 | N187: -0.0004586309264 | O187: -0.02629363619 | P187: -5.724129259e-05 | Q187: 0.005166361244 | R187: 9.323836629e-06
A188: 91.03748 | B188: ='DF raw data'!A193 -> 5.5933438e-06 | C188: ='DF raw data'!B193 -> 9.4772604e-06 | D188: ='DF raw data'!C193 -> 5.5195278e-06 | F188: 5.598892397e-06 | G188: 9.509009912e-06 | H188: 5.525003172e-06 | J188: -2.447797409e-06 | K188: 6.300749392e-07 | L188: 6.249965021e-06 | N188: -0.0004598551678 | O188: -0.02652362815 | P188: -5.692616691e-05 | Q188: 0.005137890191 | R188: 9.43122037e-06
A189: 91.53762 | B189: ='DF raw data'!A194 -> 2.0550237e-06 | C189: ='DF raw data'!B194 -> 1.5306026e-05 | D189: ='DF raw data'!C194 -> 2.7344404e-06 | F189: 2.057062284e-06 | G189: 1.53573023e-05 | H189: 2.737152965e-06 | J189: 5.055737722e-06 | K189: -3.320419908e-06 | L189: 9.198700568e-06 | N189: -0.0004573265911 | O189: -0.02675235547 | P189: -5.858684172e-05 | Q189: 0.005108588568 | R189: 9.537540145e-06
A190: 92.03776 | B190: ='DF raw data'!A195 -> 4.6310147e-06 | C190: ='DF raw data'!B195 -> 7.7739296e-06 | D190: ='DF raw data'!C195 -> -3.840104e-06 | F190: 4.635608667e-06 | G190: 7.79997283e-06 | H190: -3.843913383e-06 | J190: 3.813832472e-06 | K190: -7.585113539e-06 | L190: 8.521641991e-06 | N190: -0.000455419141 | O190: -0.0269801288 | P190: -6.23804604e-05 | Q190: 0.005077389605 | R190: 9.643218685e-06
A191: 92.5379 | B191: ='DF raw data'!A196 -> 5.6402664e-06 | C191: ='DF raw data'!B196 -> 7.0554247e-06 | D191: ='DF raw data'!C196 -> 8.006474e-07 | F191: 5.645861544e-06 | G191: 7.079060886e-06 | H191: 8.014416422e-07 | J191: 3.317317718e-07 | K191: -1.186225774e-05 | L191: 7.445993505e-06 | N191: -0.0004552532286 | O191: -0.02720781915 | P191: -6.831324999e-05 | Q191: 0.005043223416 | R191: 9.749209455e-06
A192: 93.03804 | B192: ='DF raw data'!A197 -> 5.372402e-06 | C192: ='DF raw data'!B197 -> 7.0431502e-06 | D192: ='DF raw data'!C197 -> 1.5797933e-06 | F192: 5.377731423e-06 | G192: 7.066745266e-06 | H192: 1.581360455e-06 | J192: 3.748218348e-06 | K192: -1.626238828e-06 | L192: 7.342466809e-06 | N192: -0.0004533785947 | O192: -0.02743457192 | P192: -6.912659708e-05 | Q192: 0.00500865044 | R192: 9.85440422e-06
A193: 93.53818 | B193: ='DF raw data'!A198 -> 3.6107472e-06 | C193: ='DF raw data'!B198 -> 5.4278803e-06 | D193: ='DF raw data'!C198 -> 1.0422383e-06 | F193: 3.614329061e-06 | G193: 5.446064094e-06 | H193: 1.0432722e-06 | J193: 3.516300213e-06 | K193: 5.329996056e-06 | L193: 1.044263082e-05 | N193: -0.0004516199523 | O193: -0.02766044513 | P193: -6.646085285e-05 | Q193: 0.004975410709 | R193: 9.958622206e-06
A194: 94.03832 | B194: ='DF raw data'!A199 -> -1.1233183e-06 | C194: ='DF raw data'!B199 -> 5.9307654e-06 | D194: ='DF raw data'!C199 -> -1.3994967e-06 | F194: -1.124432632e-06 | G194: 5.950633896e-06 | H194: -1.400885001e-06 | J194: 1.78724529e-06 | K194: -9.823354975e-06 | L194: 7.628200275e-06 | N194: -0.0004507260795 | O194: -0.02788587127 | P194: -7.137390561e-05 | Q194: 0.004939713764 | R194: 1.006277548e-05
A195: 94.53846 | B195: ='DF raw data'!A200 -> 2.3514535e-06 | C195: ='DF raw data'!B200 -> 1.0913338e-05 | D195: ='DF raw data'!C200 -> -3.3179194e-06 | F195: 2.353786142e-06 | G195: 1.094989848e-05 | H195: -3.321210776e-06 | J195: 1.09577333e-06 | K195: -2.105392769e-05 | L195: -5.022424007e-06 | N195: -0.0004501780394 | O195: -0.02811102331 | P195: -8.1903817e-05 | Q195: 0.004898750389 | R195: 1.016748904e-05
A196: 95.0386 | B196: ='DF raw data'!A201 -> 7.7232498e-06 | C196: ='DF raw data'!B201 -> 1.3104078e-05 | D196: ='DF raw data'!C201 -> -5.2589012e-06 | F196: 7.730911264e-06 | G196: 1.314797762e-05 | H196: -5.26411803e-06 | J196: -5.971656212e-06 | K196: -1.944020365e-05 | L196: -2.451685262e-06 | N196: -0.0004531647035 | O196: -0.02833766911 | P196: -9.162664046e-05 | Q196: 0.004852924241 | R196: 1.027439581e-05
A197: 95.53874 | B197: ='DF raw data'!A202 -> 5.15293e-06 | C197: ='DF raw data'!B202 -> 2.0679139e-05 | D197: ='DF raw data'!C202 -> -5.9040094e-06 | F197: 5.158041707e-06 | G197: 2.074841562e-05 | H197: -5.909866177e-06 | J197: -1.253829867e-05 | K197: -1.417011542e-05 | L197: 3.975287277e-06 | N197: -0.0004594356082 | O197: -0.02856745123 | P197: -9.871368198e-05 | Q197: 0.00480355358 | R197: 1.038483946e-05
A198: 96.03888 | B198: ='DF raw data'!A203 -> 3.4430727e-06 | C198: ='DF raw data'!B203 -> 1.5937405e-05 | D198: ='DF raw data'!C203 -> -5.3568028e-06 | F198: 3.446488228e-06 | G198: 1.599079647e-05 | H198: -5.362116748e-06 | J198: -9.610036108e-06 | K198: -1.880832287e-05 | L198: 3.834186744e-06 | N198: -0.0004642419717 | O198: -0.02879963721 | P198: -0.0001081204766 | Q198: 0.004749478205 | R198: 1.049847659e-05
A199: 96.53902 | B199: ='DF raw data'!A204 -> 4.813241e-06 | C199: ='DF raw data'!B204 -> 9.3873332e-06 | D199: ='DF raw data'!C204 -> 3.9366668e-07 | F199: 4.818015735e-06 | G199: =(1-$G$1*($B$2-$G$2))*C199*$M$2/$M$1 -> 9.41878145e-06 | H199: 3.940571973e-07 | J199: =-CELL("contents", INDEX($F$6:$F$1203,1204-CELL("row",F199))) -> -1.002910101e-06 | K199: =CELL("contents", INDEX($G$6:$G$1203,1204-CELL("row",G199))) -> -1.186948889e-05 | L199: =-CELL("contents", INDEX($H$6:$H$1203,1204-CELL("row",H199))) -> 8.593326632e-06 | N199: -0.0004647435671 | O199: -0.02903207406 | P199: -0.0001140568828 | Q199: 0.004692433795 | R199: 1.061300643e-05
A200: =A199+$B$1 -> 97.03916 | B200: ='DF raw data'!A205 -> 8.3151854e-06 | C200: ='DF raw data'!B205 -> 9.8855471e-06 | D200: ='DF raw data'!C205 -> 1.4691151e-06 | F200: 8.323434064e-06 | G200: 9.918664403e-06 | H200: 1.470572462e-06 | J200: -5.981403372e-07 | K200: -1.302468596e-05 | L200: 6.785657101e-06 | N200: =J200*$B$1+N199 -> -0.000465042721 | O200: =N200*$B$1+O199 -> -0.02926466053 | P200: =K200*$B$1+P199 -> -0.0001205710492 | Q200: =P200*$B$1+Q199 -> 0.004632131391 | R200: =(N200^2+P200^2)*$B$1+R199 -> 1.07284398e-05
... 1003 more rows

Sheet 12 mm
A1: dz | B1: ='DF raw data'!E7 -> 0.50019 | C1: mm | F1: T_coeff | G1: -0.0008 | H1: /degC | L1: Hallref | M1: ='PI vs gap'!B50 -> 0.50518 | N1: T | P1: IBy total | Q1: =P1203*1000 -> -11.20226489 | R1: muTm
A2: Tref | B2: ='DF raw data'!E8 -> 21.23 | C2: degC | F2: Tcorr | G2: 20 | H2: degC | L2: NMRref | M2: ='PI vs gap'!B51 -> 0.50641 | N2: T | P2: JBy total | Q2: =Q1203 -> -9.213119927 | R2: muTm^2
A3: Encoder | B3: ='DF raw data'!E9 -> 432923 | P3: PI total | Q3: =R1203 -> 3772.35255 | R3: T^2mm^3
J4: SXR-rotation
A5: z [mm] | B5: Bx | C5: By | D5: Bz | F5: Bx_corr | G5: By_corr | H5: Bz_corr | J5: Bx_rot | K5: By_rot | L5: Bz_rot | N5: Ix | O5: Jx | P5: Iy | Q5: Jy | R5: PI
A6: ='PI vs gap'!B53 -> 0.012 | B6: ='DF raw data'!D11 -> -3.6564093e-06 | C6: ='DF raw data'!E11 -> -3.67856e-06 | D6: ='DF raw data'!F11 -> -3.0916146e-06 | F6: =(1-$G$1*($B$2-$G$2))*B6 -> -3.660007207e-06 | G6: =(1-$G$1*($B$2-$G$2))*C6*$M$2/$M$1 -> -3.691144985e-06 | H6: =(1-$G$1*($B$2-$G$2))*D6 -> -3.094656749e-06 | J6: =-CELL("contents", INDEX($F$6:$F$1203,1204-CELL("row",F6))) -> -1.15890374e-06 | K6: =CELL("contents", INDEX($G$6:$G$1203,1204-CELL("row",G6))) -> 1.382376121e-06 | L6: =-CELL("contents", INDEX($H$6:$H$1203,1204-CELL("row",H6))) -> 3.790445131e-07 | N6: =J6*$B$1 -> -5.796720618e-07 | O6: =N6*$B$1 -> -2.899461686e-07 | P6: =K6*$B$1 -> 6.91450712e-07 | Q6: =P6*$B$1 -> 3.458567316e-07 | R6: =(N6^2+P6^2)*$B$1 -> 4.072165767e-13
A7: =A6+$B$1 -> 0.51219 | B7: ='DF raw data'!D12 -> -4.0238597e-06 | C7: ='DF raw data'!E12 -> 6.3146003e-06 | D7: ='DF raw data'!F12 -> -3.0444955e-06 | F7: =(1-$G$1*($B$2-$G$2))*B7 -> -4.027819178e-06 | G7: =(1-$G$1*($B$2-$G$2))*C7*$M$2/$M$1 -> 6.336203631e-06 | H7: -3.047491284e-06 | J7: =-CELL("contents", INDEX($F$6:$F$1203,1204-CELL("row",F7))) -> 7.069070928e-07 | K7: =CELL("contents", INDEX($G$6:$G$1203,1204-CELL("row",G7))) -> -8.542019977e-06 | L7: =-CELL("contents", INDEX($H$6:$H$1203,1204-CELL("row",H7))) -> -4.413767878e-07 | N7: =J7*$B$1+N6 -> -2.260842031e-07 | O7: =N7*$B$1+O6 -> -4.030312262e-07 | P7: =K7*$B$1+P6 -> -3.58118226e-06 | Q7: =P7*$B$1+Q6 -> -1.445414823e-06 | R7: =(N7^2+P7^2)*$B$1+R6 -> 6.847653237e-12
A8: =A7+$B$1 -> 1.01238 | B8: ='DF raw data'!D13 -> -3.4658374e-06 | C8: ='DF raw data'!E13 -> -9.3332055e-06 | D8: ='DF raw data'!F13 -> -5.5693581e-06 | F8: -3.469247784e-06 | G8: -9.365135997e-06 | H8: -5.574838348e-06 | J8: 6.900003829e-06 | K8: -2.604548527e-06 | L8: -1.678432454e-06 | N8: =J8*$B$1+N7 -> 3.225228712e-06 | O8: =N8*$B$1+O7 -> 1.210195923e-06 | P8: =K8*$B$1+P7 -> -4.883951388e-06 | Q8: =P8*$B$1+Q7 -> -3.888318468e-06 | R8: =(N8^2+P8^2)*$B$1+R7 -> 2.398170241e-11
A9: 1.51257 | B9: ='DF raw data'!D14 -> -3.6633505e-06 | C9: ='DF raw data'!E14 -> -2.0786351e-06 | D9: ='DF raw data'!F14 -> 5.1220868e-06 | F9: -3.666955237e-06 | G9: -2.085746467e-06 | H9: 5.127126933e-06 | J9: 8.229558225e-06 | K9: 1.944954135e-06 | L9: -1.856442744e-06 | N9: 7.341571441e-06 | O9: 4.882376542e-06 | P9: -3.911104779e-06 | Q9: -5.844613967e-06 | R9: 5.859255544e-11
A10: 2.01276 | B10: ='DF raw data'!D15 -> -4.0163218e-06 | C10: ='DF raw data'!E15 -> 8.0530226e-06 | D10: ='DF raw data'!F15 -> 7.9867768e-06 | F10: -4.020273861e-06 | G10: 8.080573372e-06 | H10: 7.994635788e-06 | J10: 1.54278711e-07 | K10: 8.284478789e-06 | L10: -1.104107674e-06 | N10: 7.418740109e-06 | O10: 8.593156158e-06 | P10: 2.327086662e-07 | Q10: -5.72821542e-06 | R10: 8.614895196e-11
A11: 2.51295 | B11: ='DF raw data'!D16 -> -3.9234078e-06 | C11: ='DF raw data'!E16 -> 3.551057e-06 | D11: ='DF raw data'!F16 -> -3.4666466e-06 | F11: -3.927268433e-06 | G11: 3.563205775e-06 | H11: -3.47005778e-06 | J11: -7.772866682e-06 | K11: -7.14676344e-08 | L11: -7.666771887e-07 | N11: 3.530829924e-06 | O11: 1.035924198e-05 | P11: 1.969612701e-07 | Q11: -5.629697362e-06 | R11: 9.240410486e-11
A12: 3.01314 | B12: ='DF raw data'!D17 -> -4.2038887e-06 | C12: ='DF raw data'!E17 -> 1.0862066e-05 | D12: ='DF raw data'!F17 -> -5.1697007e-06 | F12: -4.208025326e-06 | G12: 1.089922699e-05 | H12: -5.174787685e-06 | J12: -9.2071201e-06 | K12: 9.619785827e-07 | L12: -1.001845447e-06 | N12: -1.074479479e-06 | O12: 9.821798086e-06 | P12: 6.781333374e-07 | Q12: -5.290501848e-06 | R12: 9.321159708e-11
A13: 3.51333 | B13: ='DF raw data'!D18 -> -4.047623e-06 | C13: ='DF raw data'!E18 -> 7.0328392e-06 | D13: ='DF raw data'!F18 -> -2.2380611e-06 | F13: -4.051605861e-06 | G13: 7.056899749e-06 | H13: -2.240263352e-06 | J13: -7.539278457e-06 | K13: 4.594779433e-06 | L13: -9.453538938e-07 | N13: -4.845551171e-06 | O13: 7.398101846e-06 | P13: 2.976396062e-06 | Q13: -3.801738302e-06 | R13: 1.093868912e-10
A14: 4.01352 | B14: ='DF raw data'!D19 -> -4.0329401e-06 | C14: ='DF raw data'!E19 -> 6.1973192e-06 | D14: ='DF raw data'!F19 -> -4.4144454e-06 | F14: -4.036908513e-06 | G14: 6.218521292e-06 | H14: -4.418789214e-06 | J14: -7.497185679e-06 | K14: 4.156177215e-06 | L14: -4.648903324e-07 | N14: -8.595568475e-06 | O14: 3.09868445e-06 | P14: 5.055274343e-06 | Q14: -1.273140628e-06 | R14: 1.591255828e-10
A15: 4.51371 | B15: ='DF raw data'!D20 -> -3.9874872e-06 | C15: ='DF raw data'!E20 -> 4.9014711e-06 | D15: ='DF raw data'!F20 -> -4.3440286e-06 | F15: -3.991410887e-06 | G15: 4.918239873e-06 | H15: -4.348303124e-06 | J15: -9.952175714e-06 | K15: -7.287047339e-07 | L15: -2.170021502e-07 | N15: -1.357354725e-05 | O15: -3.690668147e-06 | P15: 4.690783522e-06 | Q15: 1.073142382e-06 | R15: 2.622870867e-10
A16: 5.0139 | B16: ='DF raw data'!D21 -> -3.5924609e-06 | C16: ='DF raw data'!E21 -> -6.3868679e-06 | D16: ='DF raw data'!F21 -> -7.3611936e-06 | F16: -3.595995882e-06 | G16: -6.408718471e-06 | H16: -7.368437015e-06 | J16: -8.941996375e-06 | K16: -4.831030332e-06 | L16: -1.217353398e-07 | N16: -1.804624441e-05 | O16: -1.271721914e-05 | P16: 2.274350461e-06 | Q16: 2.210749739e-06 | R16: 4.277697499e-10
A17: 5.51409 | B17: ='DF raw data'!D22 -> -3.4582267e-06 | C17: ='DF raw data'!E22 -> -9.9557765e-06 | D17: ='DF raw data'!F22 -> -7.3013598e-06 | F17: -3.461629595e-06 | G17: -9.989836919e-06 | H17: -7.308544338e-06 | J17: -6.878211807e-06 | K17: 2.89686458e-06 | L17: -1.473828422e-07 | N17: -2.148665718e-05 | O17: -2.346463019e-05 | P17: 3.723333155e-06 | Q17: 4.07312375e-06 | R17: 6.656299257e-10
A18: 6.01428 | B18: ='DF raw data'!D23 -> -3.3691836e-06 | C18: ='DF raw data'!E23 -> -1.172542e-05 | D18: ='DF raw data'!F23 -> -3.8779526e-06 | F18: -3.372498877e-06 | G18: -1.176553467e-05 | H18: -3.881768505e-06 | J18: -7.838411114e-06 | K18: -2.043088424e-05 | L18: -1.035023662e-06 | N18: -2.540735203e-05 | O18: -3.617313361e-05 | P18: -6.495990835e-06 | Q18: 8.238940943e-07 | R18: 1.009626312e-09
A19: 6.51447 | B19: ='DF raw data'!D24 -> -3.5417329e-06 | C19: ='DF raw data'!E24 -> -6.1308197e-06 | D19: ='DF raw data'!F24 -> 1.2332692e-06 | F19: -3.545217965e-06 | G19: -6.151794286e-06 | H19: 1.234482737e-06 | J19: -8.705942326e-07 | K19: 6.450779478e-07 | L19: -1.717939691e-06 | N19: -2.584281456e-05 | O19: -4.909945102e-05 | P19: -6.173329296e-06 | Q19: -2.263943486e-06 | R19: 1.362740974e-09
A20: 7.01466 | B20: ='DF raw data'!D25 -> -3.4142436e-06 | C20: ='DF raw data'!E25 -> -9.8654455e-06 | D20: ='DF raw data'!F25 -> -5.3906678e-07 | F20: -3.417603216e-06 | G20: -9.899196881e-06 | H20: -5.395972217e-07 | J20: 4.36283521e-06 | K20: -1.509110924e-06 | L20: -1.692423307e-06 | N20: -2.366056802e-05 | O20: -6.093423054e-05 | P20: -6.928171489e-06 | Q20: -5.729345583e-06 | R20: 1.66676748e-09
A21: 7.51485 | B21: ='DF raw data'!D26 -> -3.3743277e-06 | C21: ='DF raw data'!E26 -> -1.1232009e-05 | D21: ='DF raw data'!F26 -> -2.5460706e-06 | F21: -3.377648038e-06 | G21: -1.127043563e-05 | H21: -2.548575933e-06 | J21: 3.483347845e-06 | K21: -4.718703152e-06 | L21: -1.44499768e-06 | N21: -2.191823226e-05 | O21: -7.189751113e-05 | P21: -9.288419619e-06 | Q21: -1.037532019e-05 | R21: 1.950216972e-09
A22: 8.01504 | B22: ='DF raw data'!D27 -> -2.5691265e-06 | C22: ='DF raw data'!E27 -> 5.8005066e-06 | D22: ='DF raw data'!F27 -> -5.4533539e-06 | F22: -2.57165452e-06 | G22: 5.820351128e-06 | H22: -5.45872e-06 | J22: 3.113190768e-06 | K22: 4.936181746e-06 | L22: -1.186315887e-06 | N22: -2.036104537e-05 | O22: -8.208190241e-05 | P22: -6.819390871e-06 | Q22: -1.378631131e-05 | R22: 2.180842706e-09
A23: 8.51523 | B23: ='DF raw data'!D28 -> -1.0212757e-06 | C23: ='DF raw data'!E28 -> -3.2143685e-06 | D23: ='DF raw data'!F28 -> -1.3252558e-05 | F23: =(1-$G$1*($B$2-$G$2))*B23 -> -1.022280635e-06 | G23: -3.225365406e-06 | H23: -1.326559852e-05 | J23: -9.789014722e-07 | K23: -1.370405708e-06 | L23: -6.117215823e-07 | N23: -2.08506821e-05 | O23: -9.251120509e-05 | P23: -7.504854102e-06 | Q23: -1.754016429e-05 | R23: 2.4264729e-09
A24: 9.01542 | B24: ='DF raw data'!D29 -> -2.3285615e-06 | C24: ='DF raw data'!E29 -> -8.6703565e-08 | D24: ='DF raw data'!F29 -> -1.059492e-05 | F24: -2.330852805e-06 | G24: -8.700019277e-08 | H24: -1.06053454e-05 | J24: -7.928211992e-06 | K24: 1.214573196e-07 | L24: 8.383117278e-06 | N24: -2.481629445e-05 | O24: -0.0001049240674 | P24: -7.444102365e-06 | Q24: -2.126362985e-05 | R24: 2.762232005e-09
A25: 9.51561 | B25: ='DF raw data'!D30 -> 2.1399824e-06 | C25: ='DF raw data'!E30 -> -4.9107616e-06 | D25: ='DF raw data'!F30 -> 1.0643543e-06 | F25: 2.142088143e-06 | G25: -4.927562158e-06 | H25: 1.065401625e-06 | J25: -7.95172921e-06 | K25: 8.418869595e-07 | L25: 1.018057984e-05 | N25: -2.879366989e-05 | O25: -0.0001193263732 | P25: -7.022998927e-06 | Q25: -2.477646368e-05 | R25: 3.20159787e-09
A26: 10.0158 | B26: ='DF raw data'!D31 -> 5.9302834e-06 | C26: ='DF raw data'!E31 -> 7.0261672e-06 | D26: ='DF raw data'!F31 -> 2.3069167e-06 | F26: 5.936118799e-06 | G26: 7.050204923e-06 | H26: 2.309186706e-06 | J26: -3.229970967e-06 | K26: -2.792786325e-06 | L26: 1.304648612e-05 | N26: -3.040926906e-05 | O26: -0.0001345367854 | P26: -8.419922719e-06 | Q26: -2.898802483e-05 | R26: 3.69959641e-09
A27: 10.51599 | B27: ='DF raw data'!D32 -> 5.2783394e-06 | C27: ='DF raw data'!E32 -> 1.1335331e-05 | D27: ='DF raw data'!F32 -> 1.0534403e-06 | F27: 5.283533286e-06 | G27: 1.137411111e-05 | H27: 1.054476885e-06 | J27: -1.724161007e-06 | K27: 1.304319085e-06 | L27: 1.445875543e-05 | N27: -3.127167716e-05 | O27: -0.0001501785656 | P27: -7.767515356e-06 | Q27: -3.287325833e-05 | R27: 4.218919721e-09
A28: 11.01618 | B28: ='DF raw data'!D33 -> 5.551879e-06 | C28: ='DF raw data'!E33 -> 6.7420992e-06 | D28: ='DF raw data'!F33 -> 3.8074447e-06 | F28: 5.557342049e-06 | G28: 6.765165078e-06 | H28: 3.811191226e-06 | J28: -3.586162715e-06 | K28: -4.681666274e-07 | L28: 7.765221266e-06 | N28: -3.306543989e-05 | O28: -0.000166717568 | P28: -8.001687621e-06 | Q28: -3.687562246e-05 | R28: 4.797814777e-09
A29: 11.51637 | B29: ='DF raw data'!D34 -> 3.9646434e-06 | C29: ='DF raw data'!E34 -> 7.478619e-06 | D29: ='DF raw data'!F34 -> 9.7465308e-06 | F29: 3.968544609e-06 | G29: 7.504204639e-06 | H29: 9.756121386e-06 | J29: -3.877210625e-06 | K29: 4.953185421e-06 | L29: -4.989690829e-06 | N29: -3.500478187e-05 | O29: -0.0001842266099 | P29: -5.524153805e-06 | Q29: -3.963874895e-05 | R29: 5.425978904e-09
A30: 12.01656 | B30: ='DF raw data'!D35 -> 9.2554501e-07 | C30: ='DF raw data'!E35 -> -4.422152e-06 | D30: ='DF raw data'!F35 -> 8.4480616e-06 | F30: 9.264557463e-07 | G30: -4.437280941e-06 | H30: 8.456374493e-06 | J30: -6.51533779e-06 | K30: 7.082872504e-06 | L30: -4.226831714e-06 | N30: -3.826368868e-05 | O30: -0.0002033657243 | P30: -1.981371808e-06 | Q30: -4.062981132e-05 | R30: 6.160275683e-09
A31: 12.51675 | B31: ='DF raw data'!D36 -> -2.2379832e-06 | C31: ='DF raw data'!E36 -> -9.6826516e-06 | D31: ='DF raw data'!F36 -> -4.9917999e-06 | F31: -2.240185375e-06 | G31: -9.715777612e-06 | H31: -4.996711831e-06 | J31: -9.74411158e-06 | K31: -5.679987758e-06 | L31: 3.882700722e-06 | N31: -4.313759585e-05 | O31: -0.0002249427184 | P31: -4.822444885e-06 | Q31: -4.304195003e-05 | R31: 7.102687739e-09
A32: 13.01694 | B32: ='DF raw data'!D37 -> -1.9978183e-06 | C32: ='DF raw data'!E37 -> -1.4451471e-05 | D32: ='DF raw data'!F37 -> -1.0387806e-05 | F32: -1.999784153e-06 | G32: -1.450091196e-05 | H32: -1.03980276e-05 | J32: -6.55790033e-06 | K32: 3.911839645e-06 | L32: 7.674218708e-06 | N32: -4.641779202e-05 | O32: -0.0002481604338 | P32: -2.865781813e-06 | Q32: -4.447538543e-05 | R32: 8.184510736e-09
A33: 13.51713 | B33: ='DF raw data'!D38 -> -7.3131423e-07 | C33: ='DF raw data'!E38 -> -1.1530883e-05 | D33: ='DF raw data'!F38 -> -1.0829326e-05 | F33: -7.320338432e-07 | G33: -1.157033213e-05 | H33: -1.083998206e-05 | J33: -5.39820271e-08 | K33: 1.045593759e-05 | L33: 3.660791678e-06 | N33: -4.644479329e-05 | O33: -0.0002713916549 | P33: 2.364173612e-06 | Q33: -4.329284943e-05 | R33: 9.26627572e-09
A34: 14.01732 | B34: ='DF raw data'!D39 -> 5.2717905e-07 | C34: ='DF raw data'!E39 -> -2.5563054e-06 | D34: ='DF raw data'!F39 -> -1.5146687e-05 | F34: 5.276977942e-07 | G34: -2.565050959e-06 | H34: -1.516159134e-05 | J34: -1.828724696e-06 | K34: -1.094207207e-06 | L34: 4.626372576e-06 | N34: -4.735950309e-05 | O34: -0.0002950804048 | P34: 1.816862109e-06 | Q34: -4.238407317e-05 | R34: 1.038981426e-08
A35: 14.51751 | B35: ='DF raw data'!D40 -> 1.5155379e-06 | C35: ='DF raw data'!E40 -> 4.55296e-06 | D35: ='DF raw data'!F40 -> -1.2324728e-05 | F35: 1.517029189e-06 | G35: 4.568536457e-06 | H35: -1.233685553e-05 | J35: -5.928365877e-06 | K35: -1.047904839e-05 | L35: 1.947736989e-06 | N35: -5.032481242e-05 | O35: -0.0003202523727 | P35: -3.424653105e-06 | Q35: -4.409705041e-05 | R35: 1.166245518e-08
A36: 15.0177 | B36: ='DF raw data'!D41 -> 3.3781501e-07 | C36: ='DF raw data'!E41 -> 2.9001972e-06 | D36: ='DF raw data'!F41 -> -6.289205e-06 | F36: 3.3814742e-07 | G36: 2.910119272e-06 | H36: -6.295393578e-06 | J36: -1.691350553e-06 | K36: -4.806130837e-06 | L36: -1.742054096e-06 | N36: -5.117080905e-05 | O36: -0.0003458474997 | P36: -5.828631688e-06 | Q36: -4.701247369e-05 | R36: 1.298917146e-08
A37: 15.51789 | B37: ='DF raw data'!D42 -> 6.0241978e-06 | C37: ='DF raw data'!E42 -> -3.776629e-06 | D37: ='DF raw data'!F42 -> -6.378852e-06 | F37: 6.030125611e-06 | G37: -3.789549496e-06 | H37: -6.38512879e-06 | J37: 4.093097749e-06 | K37: 3.994981718e-06 | L37: -3.073713761e-06 | N37: -4.912348249e-05 | O37: -0.0003704185744 | P37: -3.830381783e-06 | Q37: -4.892839236e-05 | R37: 1.420352692e-08
A38: 16.01808 | B38: ='DF raw data'!D43 -> 8.8840134e-06 | C38: ='DF raw data'!E43 -> -8.6383152e-06 | D38: ='DF raw data'!F43 -> -7.2682142e-06 | F38: 8.892755269e-06 | G38: -8.667868358e-06 | H38: -7.275366123e-06 | J38: 2.972007481e-06 | K38: -4.151438057e-06 | L38: 1.26461686e-06 | N38: -4.763691407e-05 | O38: -0.0003942460824 | P38: -5.906889584e-06 | Q38: -5.188295946e-05 | R38: 1.535604818e-08
A39: 16.51827 | B39: ='DF raw data'!D44 -> 5.2145947e-06 | C39: ='DF raw data'!E44 -> -5.3945691e-06 | D39: ='DF raw data'!F44 -> -1.335122e-06 | F39: 5.219725861e-06 | G39: -5.413024846e-06 | H39: -1.33643576e-06 | J39: 3.143991046e-06 | K39: -1.086463204e-05 | L39: 3.722945777e-06 | N39: -4.606432119e-05 | O39: -0.0004172869952 | P39: -1.134126988e-05 | Q39: -5.755574924e-05 | R39: 1.648174883e-08
A40: 17.01846 | B40: ='DF raw data'!D45 -> -1.193956e-06 | C40: ='DF raw data'!E45 -> 1.7912865e-06 | D40: ='DF raw data'!F45 -> 7.4879517e-06 | F40: -1.195130853e-06 | G40: 1.797414798e-06 | H40: 7.495319844e-06 | J40: -1.120281373e-06 | K40: -1.785448098e-06 | L40: 8.717681866e-06 | N40: -4.662467473e-05 | O40: -0.0004406081913 | P40: -1.223433317e-05 | Q40: -6.367524035e-05 | R40: 1.76439599e-08
A41: 17.51865 | B41: ='DF raw data'!D46 -> -2.9242296e-06 | C41: ='DF raw data'!E46 -> 3.4812733e-06 | D41: ='DF raw data'!F46 -> 4.1876028e-06 | F41: -2.927107042e-06 | G41: 3.493183333e-06 | H41: 4.191723401e-06 | J41: -8.224066726e-06 | K41: -7.751571538e-06 | L41: 7.428926978e-06 | N41: -5.073827066e-05 | O41: -0.0004659869669 | P41: -1.611159174e-05 | Q41: -7.173409742e-05 | R41: 1.90614761e-08
A42: 18.01884 | B42: ='DF raw data'!D47 -> -1.2716235e-07 | C42: ='DF raw data'!E47 -> -5.0380509e-06 | D42: ='DF raw data'!F47 -> 8.0532647e-07 | F42: -1.272874778e-07 | G42: -5.055286936e-06 | H42: 8.061189112e-07 | J42: -6.753601311e-06 | K42: -1.067451784e-05 | L42: 3.298580412e-06 | N42: -5.41163545e-05 | O42: -0.0004930554262 | P42: -2.145087882e-05 | Q42: -8.246361249e-05 | R42: 2.075647997e-08
A43: 18.51903 | B43: ='DF raw data'!D48 -> -1.9004118e-07 | C43: ='DF raw data'!E48 -> 3.6654856e-07 | D43: ='DF raw data'!F48 -> 4.2912925e-06 | F43: -1.902281805e-07 | G43: 3.678025855e-07 | H43: 4.295515132e-06 | J43: 1.209493171e-06 | K43: -4.920330702e-06 | L43: 2.226272499e-06 | N43: -5.351137811e-05 | O43: -0.0005198212825 | P43: -2.391197903e-05 | Q43: -9.442414529e-05 | R43: 2.247475783e-08
A44: 19.01922 | B44: ='DF raw data'!D49 -> -3.0691449e-06 | C44: ='DF raw data'!E49 -> -2.3290809e-06 | D44: ='DF raw data'!F49 -> 7.749908e-06 | F44: -3.072164939e-06 | G44: -2.337049085e-06 | H44: 7.757533909e-06 | J44: 2.802565814e-06 | K44: 8.114935128e-07 | L44: 8.835533518e-07 | N44: -5.210956272e-05 | O44: -0.0005458859646 | P44: -2.350607809e-05 | Q44: -0.0001061816505 | R44: 2.410934986e-08
A45: 19.51941 | B45: ='DF raw data'!D50 -> -1.5643459e-06 | C45: ='DF raw data'!E50 -> -9.4994575e-06 | D45: ='DF raw data'!F50 -> -2.7178444e-07 | F45: -1.565885216e-06 | G45: -9.531956774e-06 | H45: -2.720518759e-07 | J45: -5.117165041e-06 | K45: -1.14187774e-05 | L45: 4.721042139e-06 | N45: -5.46691175e-05 | O45: -0.0005732309105 | P45: -2.921763636e-05 | Q45: -0.00012079602 | R45: 2.603127125e-08
A46: 20.0196 | B46: ='DF raw data'!D51 -> 4.1744309e-07 | C46: ='DF raw data'!E51 -> 7.4380555e-06 | D46: ='DF raw data'!F51 -> -1.1504848e-05 | F46: 4.17853854e-07 | G46: 7.463502364e-06 | H46: -1.151616877e-05 | J46: -7.284646145e-06 | K46: -2.786894537e-06 | L46: 4.011542778e-06 | N46: -5.831282466e-05 | O46: -0.0006023984023 | P46: -3.061161314e-05 | Q46: -0.0001361076428 | R46: 2.820082356e-08
A47: 20.51979 | B47: ='DF raw data'!D52 -> 4.3421783e-06 | C47: ='DF raw data'!E52 -> -1.5371985e-05 | D47: ='DF raw data'!F52 -> -7.562785e-06 | F47: 4.346451003e-06 | G47: -1.54245752e-05 | H47: -7.57022678e-06 | J47: -1.175350908e-05 | K47: -9.921424266e-06 | L47: -4.290588088e-06 | N47: -6.419181236e-05 | O47: -0.0006345065049 | P47: -3.557421034e-05 | Q47: -0.0001539015071 | R47: 3.089490353e-08
A48: 21.01998 | B48: ='DF raw data'!D53 -> 1.9797149e-06 | C48: ='DF raw data'!E53 -> -1.0265863e-05 | D48: ='DF raw data'!F53 -> -1.805127e-06 | F48: 1.981662939e-06 | G48: -1.030098428e-05 | H48: -1.806903245e-06 | J48: -1.553825361e-05 | K48: -3.061088904e-06 | L48: -7.947555807e-09 | N48: -7.196389144e-05 | O48: -0.0006705021238 | P48: -3.71053364e-05 | Q48: -0.0001724612253 | R48: 3.417395292e-08
A49: 21.52017 | B49: ='DF raw data'!D54 -> -4.8354054e-06 | C49: ='DF raw data'!E54 -> -5.4446023e-06 | D49: ='DF raw data'!F54 -> -6.5980839e-06 | F49: -4.840163439e-06 | G49: -5.463229218e-06 | H49: -6.604576415e-06 | J49: -1.102789979e-05 | K49: -4.12158116e-06 | L49: 6.126847692e-06 | N49: -7.747993663e-05 | O49: -0.0007092568133 | P49: -3.916691008e-05 | Q49: -0.000192052122 | R49: 3.79439787e-08
A50: 22.02036 | B50: ='DF raw data'!D55 -> -7.5399589e-06 | C50: ='DF raw data'!E55 -> 7.1606632e-06 | D50: ='DF raw data'!F55 -> -9.0105658e-07 | F50: -7.54737822e-06 | G50: 7.185161057e-06 | H50: -9.019432197e-07 | J50: -9.0013283e-06 | K50: -1.677293444e-07 | L50: 5.90280445e-06 | N50: -8.198231103e-05 | O50: -0.0007502635454 | P50: -3.925080662e-05 | Q50: -0.000211684983 | R50: 4.2076411e-08
A51: 22.52055 | B51: ='DF raw data'!D56 -> -3.415706e-06 | C51: ='DF raw data'!E56 -> 2.92288e-06 | D51: ='DF raw data'!F56 -> 6.2883828e-06 | F51: -3.419067055e-06 | G51: 2.932879674e-06 | H51: 6.294570569e-06 | J51: -9.134693102e-06 | K51: 4.282427166e-06 | L51: 1.298890752e-07 | N51: -8.655139318e-05 | O51: -0.0007935556868 | P51: -3.710877938e-05 | Q51: -0.0002302464233 | R51: 4.651219854e-08
A52: 23.02074 | B52: ='DF raw data'!D57 -> -3.2307477e-07 | C52: ='DF raw data'!E57 -> -4.7817917e-07 | D52: ='DF raw data'!F57 -> 1.774153e-06 | F52: -3.233926756e-07 | G52: -4.79815103e-07 | H52: 1.775898767e-06 | J52: -1.025738535e-05 | K52: 3.030079477e-06 | L52: -8.00722116e-07 | N52: -9.168203475e-05 | O52: -0.0008394141237 | P52: -3.559316392e-05 | Q52: -0.000248049768 | R52: 5.135027072e-08
A53: 23.52093 | B53: ='DF raw data'!D58 -> 4.6388809e-06 | C53: ='DF raw data'!E58 -> 5.8641494e-06 | D53: ='DF raw data'!F58 -> -6.39897e-07 | F53: 4.643445559e-06 | G53: 5.884211661e-06 | H53: -6.405266586e-07 | J53: -8.868899418e-06 | K53: 2.508470247e-06 | L53: -7.542419845e-06 | N53: -9.611816955e-05 | O53: -0.000887491471 | P53: -3.433845219e-05 | Q53: -0.0002652255184 | R53: 5.656116601e-08
A54: 24.02112 | B54: ='DF raw data'!D59 -> 6.1926071e-06 | C54: ='DF raw data'!E59 -> -1.5115726e-06 | D54: ='DF raw data'!F59 -> 1.3384214e-06 | F54: 6.198700625e-06 | G54: -1.516743949e-06 | H54: 1.339738407e-06 | J54: -2.620348588e-06 | K54: 4.330090775e-06 | L54: -1.515363952e-05 | N54: -9.742884171e-05 | O54: -0.0009362244033 | P54: -3.217258408e-05 | Q54: -0.0002813179232 | R54: 6.182689341e-08
A55: 24.52131 | B55: ='DF raw data'!D60 -> 5.6080821e-06 | C55: ='DF raw data'!E60 -> -5.7740358e-06 | D55: ='DF raw data'!F60 -> 6.508677e-06 | F55: 5.613600453e-06 | G55: -5.793789767e-06 | H55: 6.515081538e-06 | J55: -4.999054234e-07 | K55: 7.303245065e-06 | L55: -1.127204979e-05 | N55: -9.767888941e-05 | O55: -0.000985082407 | P55: -2.851957394e-05 | Q55: -0.0002955831289 | R55: 6.700612654e-08
A56: 25.0215 | B56: ='DF raw data'!D61 -> 2.4784017e-06 | C56: ='DF raw data'!E61 -> -5.1189086e-06 | D56: ='DF raw data'!F61 -> 5.538519e-06 | F56: 2.480840447e-06 | G56: -5.136421264e-06 | H56: 5.543968903e-06 | J56: -2.401967813e-07 | K56: 5.830900797e-07 | L56: -8.865937106e-07 | N56: -9.779903343e-05 | O56: -0.001034000506 | P56: -2.822791811e-05 | Q56: -0.0003097024513 | R56: 7.218882837e-08
A57: 25.52169 | B57: ='DF raw data'!D62 -> -4.6356222e-06 | C57: ='DF raw data'!E62 -> 1.1601653e-05 | D57: ='DF raw data'!F62 -> 5.0565341e-06 | F57: -4.640183652e-06 | G57: 1.164134425e-05 | H57: 5.06150973e-06 | J57: 6.735722636e-07 | K57: 1.163852965e-05 | L57: -4.15481622e-06 | N57: -9.746211932e-05 | O57: -0.001082750083 | P57: -2.240644196e-05 | Q57: -0.0003209099295 | R57: 7.719118522e-08
A58: 26.02188 | B58: ='DF raw data'!D63 -> 3.5878434e-06 | C58: ='DF raw data'!E63 -> -2.2987911e-06 | D58: ='DF raw data'!F63 -> 3.5327118e-06 | F58: 3.591373838e-06 | G58: -2.306655659e-06 | H58: 3.536187988e-06 | J58: -5.407608456e-06 | K58: 2.980543183e-06 | L58: -2.204663056e-06 | N58: -0.000100166951 | O58: -0.00113285259 | P58: -2.091560407e-05 | Q58: -0.0003313717055 | R58: 8.242861497e-08
A59: 26.52207 | B59: ='DF raw data'!D64 -> 1.0135765e-05 | C59: ='DF raw data'!E64 -> -5.7745706e-06 | D59: ='DF raw data'!F64 -> 2.1052599e-06 | F59: 1.014573859e-05 | G59: -5.794326397e-06 | H59: 2.107331476e-06 | J59: -9.891507275e-06 | K59: 6.752012534e-07 | L59: 3.545204952e-06 | N59: -0.000105114584 | O59: -0.001185429854 | P59: -2.057787515e-05 | Q59: -0.0003416645529 | R59: 8.816705711e-08
A60: 27.02226 | B60: ='DF raw data'!D65 -> 3.0919614e-06 | C60: ='DF raw data'!E65 -> -8.763338e-06 | D60: ='DF raw data'!F65 -> -6.4415707e-07 | F60: 3.09500389e-06 | G60: -8.793318883e-06 | H60: -6.447909206e-07 | J60: -3.973555335e-06 | K60: 1.930224715e-06 | L60: 4.534241107e-06 | N60: -0.0001071021167 | O60: -0.001239001262 | P60: -1.961239605e-05 | Q60: -0.0003514744772 | R60: 9.409706439e-08
A61: 27.52245 | B61: ='DF raw data'!D66 -> 8.8642946e-07 | C61: ='DF raw data'!E66 -> -6.1346905e-06 | D61: ='DF raw data'!F66 -> -4.4622302e-06 | F61: 8.873017066e-07 | G61: -6.155678329e-06 | H61: -4.466621035e-06 | J61: -2.968925851e-06 | K61: -2.642702814e-06 | L61: 1.325576585e-06 | N61: -0.0001085871437 | O61: -0.001293315465 | P61: -2.093424957e-05 | Q61: -0.0003619455795 | R61: 1.002140933e-07
A62: 28.02264 | B62: ='DF raw data'!D67 -> 8.85591e-06 | C62: ='DF raw data'!E67 -> -2.5081386e-06 | D62: ='DF raw data'!F67 -> -2.5077372e-06 | F62: 8.864624215e-06 | G62: -2.516719372e-06 | H62: -2.510204813e-06 | J62: -6.16054802e-06 | K62: -3.270083071e-06 | L62: 2.195960201e-06 | N62: -0.0001116685882 | O62: -0.001349170976 | P62: -2.256991243e-05 | Q62: -0.000373234824 | R62: 1.067061966e-07
A63: 28.52283 | B63: ='DF raw data'!D68 -> 1.0873948e-05 | C63: ='DF raw data'!E68 -> -1.7984359e-05 | D63: ='DF raw data'!F68 -> 2.2843576e-06 | F63: 1.088464796e-05 | G63: -1.804588658e-05 | H63: 2.286605408e-06 | J63: -3.949368158e-06 | K63: -7.033284232e-06 | L63: 2.889068949e-06 | N63: -0.0001136440227 | O63: -0.00140601458 | P63: -2.608789087e-05 | Q63: -0.0003862837262 | R63: 1.135065507e-07
A64: 29.02302 | B64: ='DF raw data'!D69 -> 1.3373206e-06 | C64: ='DF raw data'!E69 -> -1.1398392e-05 | D64: ='DF raw data'!F69 -> 7.3157116e-06 | F64: 1.338636523e-06 | G64: -1.143738785e-05 | H64: 7.32291026e-06 | J64: 4.113872972e-07 | K64: -1.043674014e-05 | L64: 1.381481341e-07 | N64: -0.0001134382508 | O64: -0.001462755259 | P64: -3.130824392e-05 | Q64: -0.0004019437967 | R64: 1.204334034e-07
A65: 29.52321 | B65: ='DF raw data'!D70 -> -5.0750318e-06 | C65: ='DF raw data'!E70 -> -1.1593063e-05 | D65: ='DF raw data'!F70 -> -1.9564015e-06 | F65: -5.080025631e-06 | G65: -1.163272486e-05 | H65: -1.958326599e-06 | J65: 1.419625638e-06 | K65: -4.280100934e-06 | L65: -7.321042324e-07 | N65: -0.0001127281683 | O65: -0.001519140761 | P65: -3.34491076e-05 | Q65: -0.0004186747058 | R65: 1.273492718e-07
A66: 30.0234 | B66: ='DF raw data'!D71 -> -6.2510885e-06 | C66: ='DF raw data'!E71 -> 2.0469311e-06 | D66: ='DF raw data'!F71 -> -7.6729975e-06 | F66: -6.257239571e-06 | G66: 2.053934002e-06 | H66: -7.68054773e-06 | J66: -6.055397554e-07 | K66: 1.575567509e-06 | L66: -2.007133978e-06 | N66: -0.0001130310532 | O66: -0.001575677764 | P66: -3.266102449e-05 | Q66: -0.0004350114237 | R66: 1.342732826e-07
A67: 30.52359 | B67: ='DF raw data'!D72 -> -4.4613412e-06 | C67: ='DF raw data'!E72 -> -2.4143405e-06 | D67: ='DF raw data'!F72 -> -6.1082446e-06 | F67: -4.46573116e-06 | G67: -2.422600373e-06 | H67: -6.114255113e-06 | J67: -5.577789349e-06 | K67: -7.792540221e-06 | L67: -4.857119908e-06 | N67: -0.0001158210077 | O67: -0.001633610274 | P67: -3.655877518e-05 | Q67: -0.0004532977574 | R67: 1.416516103e-07
A68: 31.02378 | B68: ='DF raw data'!D73 -> 7.7709365e-07 | C68: ='DF raw data'!E73 -> -9.3756859e-07 | D68: ='DF raw data'!F73 -> -4.057847e-06 | F68: 7.778583102e-07 | G68: -9.40776173e-07 | H68: -4.061839921e-06 | J68: -5.148635377e-06 | K68: -1.66615577e-06 | L68: 9.856808065e-07 | N68: -0.0001183963036 | O68: -0.001692830921 | P68: -3.739216964e-05 | Q68: -0.0004720009468 | R68: 1.493624688e-07
A69: 31.52397 | B69: ='DF raw data'!D74 -> 4.8094257e-06 | C69: ='DF raw data'!E74 -> 4.9535088e-06 | D69: ='DF raw data'!F74 -> -1.7638614e-06 | F69: 4.814158175e-06 | G69: 4.970455603e-06 | H69: -1.76559704e-06 | J69: 5.455496331e-07 | K69: -8.051468539e-06 | L69: 1.605776331e-06 | N69: -0.0001181234251 | O69: -0.001751915077 | P69: -4.141943369e-05 | Q69: -0.0004927185333 | R69: 1.571998024e-07
A70: 32.02416 | B70: ='DF raw data'!D75 -> 3.6941742e-06 | C70: ='DF raw data'!E75 -> 2.7152678e-06 | D70: ='DF raw data'!F75 -> 1.6839057e-06 | F70: 3.697809267e-06 | G70: 2.724557197e-06 | H70: 1.685562663e-06 | J70: 2.840459465e-08 | K70: -7.896029769e-06 | L70: -4.716085967e-06 | N70: -0.0001181092174 | O70: -0.001810992126 | P70: -4.536894882e-05 | Q70: -0.0005154116278 | R70: 1.652069083e-07
A71: 32.52435 | B71: ='DF raw data'!D76 -> 6.8230975e-07 | C71: ='DF raw data'!E76 -> 5.4439884e-06 | D71: ='DF raw data'!F76 -> 8.460107e-06 | F71: 6.829811428e-07 | G71: =(1-$G$1*($B$2-$G$2))*C71*$M$2/$M$1 -> 5.462613218e-06 | H71: 8.468431745e-06 | J71: =-CELL("contents", INDEX($F$6:$F$1203,1204-CELL("row",F71))) -> -2.372868207e-06 | K71: =CELL("contents", INDEX($G$6:$G$1203,1204-CELL("row",G71))) -> -2.545637971e-06 | L71: =-CELL("contents", INDEX($H$6:$H$1203,1204-CELL("row",H71))) -> -1.069312569e-05 | N71: -0.0001192961024 | O71: -0.001870662844 | P71: -4.664225147e-05 | Q71: -0.0005387416156 | R71: 1.734135555e-07
A72: =A71+$B$1 -> 33.02454 | B72: ='DF raw data'!D77 -> -6.4053211e-07 | C72: ='DF raw data'!E77 -> 1.7503229e-06 | D72: ='DF raw data'!F77 -> 9.3092713e-06 | F72: -6.411623936e-07 | G72: 1.756311055e-06 | H72: 9.318431623e-06 | J72: -3.507505493e-08 | K72: -7.523967119e-06 | L72: -8.287959735e-06 | N72: =J72*$B$1+N71 -> -0.0001193136466 | O72: =N72*$B$1+O71 -> -0.001930342336 | P72: =K72*$B$1+P71 -> -5.040566459e-05 | Q72: =P72*$B$1+Q71 -> -0.0005639540249 | R72: =(N72^2+P72^2)*$B$1+R71 -> 1.818049817e-07
A73: 33.52473 | B73: ='DF raw data'!D78 -> -2.365276e-06 | C73: ='DF raw data'!E78 -> -8.032559e-06 | D73: ='DF raw data'!F78 -> 3.9589231e-06 | F73: -2.367603432e-06 | G73: -8.060039762e-06 | H73: 3.96281868e-06 | J73: 2.482654831e-06 | K73: -4.919929133e-06 | L73: -2.99030747e-06 | N73: -0.0001180718475 | O73: -0.001989400694 | P73: -5.286656394e-05 | Q73: -0.0005903973515 | R73: 1.901760789e-07
A74: 34.02492 | B74: ='DF raw data'!D79 -> -3.1521126e-06 | C74: ='DF raw data'!E79 -> -3.0410479e-06 | D74: ='DF raw data'!F79 -> 6.1859555e-06 | F74: -3.155214279e-06 | G74: -3.051451847e-06 | H74: 6.19204248e-06 | J74: 6.973497776e-06 | K74: 8.132347697e-07 | L74: 2.112353613e-06 | N74: -0.0001145837736 | O74: -0.002046714352 | P74: -5.245979204e-05 | Q74: -0.0006166372149 | R74: 1.981198318e-07
A75: 34.52511 | B75: ='DF raw data'!D80 -> -2.3393736e-06 | C75: ='DF raw data'!E80 -> -1.0406762e-05 | D75: ='DF raw data'!F80 -> 1.2275319e-05 | F75: -2.341675544e-06 | G75: -1.044236532e-05 | H75: 1.228739791e-05 | J75: 6.985726097e-06 | K75: -6.929389502e-06 | L75: 1.660672796e-06 | N75: -0.0001110895833 | O75: -0.00210228025 | P75: -5.592580337e-05 | Q75: -0.0006446107425 | R75: 2.058570663e-07
A76: 35.0253 | B76: ='DF raw data'!D81 -> -4.141541e-06 | C76: ='DF raw data'!E81 -> -1.1252421e-05 | D76: ='DF raw data'!F81 -> 9.6043059e-06 | F76: -4.145616276e-06 | G76: -1.129091746e-05 | H76: 9.613756537e-06 | J76: -2.546246343e-07 | K76: -7.002624297e-06 | L76: -2.043243675e-06 | N76: -0.000111216944 | O76: -0.002157909853 | P76: -5.942844602e-05 | Q76: -0.0006743362569 | R76: 2.138105619e-07
A77: 35.52549 | B77: ='DF raw data'!D82 -> -7.849143e-06 | C77: ='DF raw data'!E82 -> 1.2803943e-06 | D77: ='DF raw data'!F82 -> -2.8110901e-06 | F77: -7.856866557e-06 | G77: 1.284774749e-06 | H77: -2.813856213e-06 | J77: -2.228079875e-06 | K77: -9.680967126e-06 | L77: 4.091565643e-07 | N77: -0.0001123314072 | O77: -0.0022140969 | P77: -6.427076897e-05 | Q77: -0.0007064838529 | R77: 2.221882827e-07
A78: 36.02568 | B78: ='DF raw data'!D83 -> -6.5958525e-06 | C78: ='DF raw data'!E83 -> -5.8823784e-06 | D78: ='DF raw data'!F83 -> -2.6283981e-06 | F78: -6.602342819e-06 | G78: -5.902503026e-06 | H78: -2.630984444e-06 | J78: -3.366106793e-07 | K78: -1.033016979e-05 | L78: 7.76162343e-06 | N78: -0.0001124997765 | O78: -0.002270368163 | P78: -6.943781659e-05 | Q78: -0.0007412159543 | R78: 2.309305085e-07
A79: 36.52587 | B79: ='DF raw data'!D84 -> -7.3830965e-06 | C79: ='DF raw data'!E84 -> -4.3953328e-06 | D79: ='DF raw data'!F84 -> 2.0757741e-06 | F79: -7.390361467e-06 | G79: -4.410369987e-06 | H79: 2.077816662e-06 | J79: -7.179255343e-07 | K79: -2.744053169e-06 | L79: 9.473946199e-06 | N79: -0.0001128588757 | O79: -0.002326819044 | P79: -7.081036455e-05 | Q79: -0.0007766345906 | R79: 2.39809498e-07
A80: 37.02606 | B80: ='DF raw data'!D85 -> -7.9321107e-06 | C80: ='DF raw data'!E85 -> -1.4373869e-06 | D80: ='DF raw data'!F85 -> -6.6188495e-06 | F80: -7.939915897e-06 | G80: -1.442304447e-06 | H80: -6.625362448e-06 | J80: -2.608455197e-06 | K80: -1.893759787e-06 | L80: 8.955581229e-06 | N80: -0.0001141635989 | O80: -0.002383922535 | P80: -7.175760426e-05 | Q80: -0.0008125270267 | R80: 2.489041932e-07
A81: 37.52625 | B81: ='DF raw data'!D86 -> -7.3997148e-06 | C81: ='DF raw data'!E86 -> 6.5155149e-07 | D81: ='DF raw data'!F86 -> -7.0575716e-06 | F81: -7.406996119e-06 | G81: 6.537805594e-07 | H81: -7.06451625e-06 | J81: -1.747743689e-06 | K81: -9.195639498e-06 | L81: 6.630424224e-06 | N81: -0.0001150378028 | O81: -0.002441463293 | P81: -7.635717118e-05 | Q81: -0.0008507201201 | R81: 2.584398722e-07
A82: 38.02644 | B82: ='DF raw data'!D87 -> -7.2318439e-06 | C82: ='DF raw data'!E87 -> 7.4798195e-06 | D82: ='DF raw data'!F87 -> 4.7526464e-06 | F82: -7.238960034e-06 | G82: 7.505409246e-06 | H82: 4.757323004e-06 | J82: -1.161642132e-06 | K82: -5.148471249e-06 | L82: 3.726809476e-06 | N82: -0.0001156188446 | O82: -0.002499294683 | P82: -7.893238501e-05 | Q82: -0.0008902013098 | R82: 2.682426152e-07
A83: 38.52663 | B83: ='DF raw data'!D88 -> -6.4864512e-06 | C83: ='DF raw data'!E88 -> 5.4146335e-06 | D83: ='DF raw data'!F88 -> 5.4875801e-07 | F83: -6.492833868e-06 | G83: 5.43315789e-06 | H83: 5.492979879e-07 | J83: -2.90718686e-06 | K83: -6.140547239e-06 | L83: 3.985494672e-06 | N83: -0.0001170729904 | O83: -0.002557853422 | P83: -8.200382533e-05 | Q83: -0.0009312188032 | R83: 2.784618532e-07
A84: 39.02682 | B84: ='DF raw data'!D89 -> -2.2588724e-06 | C84: ='DF raw data'!E89 -> 3.2124194e-06 | D84: ='DF raw data'!F89 -> 5.1355329e-07 | F84: -2.26109513e-06 | G84: 3.223409638e-06 | H84: 5.140586264e-07 | J84: -3.719724211e-06 | K84: -2.075839289e-06 | L84: 1.202794186e-06 | N84: -0.0001189335593 | O84: -0.002617342799 | P84: -8.304213939e-05 | Q84: -0.0009727556509 | R84: 2.889864453e-07
A85: 39.52701 | B85: ='DF raw data'!D90 -> -3.5114285e-06 | C85: ='DF raw data'!E90 -> -1.9597753e-07 | D85: ='DF raw data'!F90 -> 7.7521054e-06 | F85: -3.514883746e-06 | G85: -1.966480027e-07 | H85: 7.759733472e-06 | J85: -6.52135e-06 | K85: -4.421346813e-06 | L85: 9.040735338e-07 | N85: -0.0001221954733 | O85: -0.002678463753 | P85: -8.525365285e-05 | Q85: -0.001015398675 | R85: 3.000906228e-07
A86: 40.0272 | B86: ='DF raw data'!D91 -> -5.8018709e-06 | C86: ='DF raw data'!E91 -> 6.851777e-06 | D86: ='DF raw data'!F91 -> 7.0633378e-06 | F86: -5.807579941e-06 | G86: 6.875218104e-06 | H86: 7.070288124e-06 | J86: -9.318431623e-06 | K86: -1.495705418e-05 | L86: 9.020087641e-07 | N86: -0.0001268564596 | O86: -0.002741916086 | P86: -9.273502178e-05 | Q86: -0.001061783806 | R86: 3.124414871e-07
A87: 40.52739 | B87: ='DF raw data'!D92 -> -4.0159871e-06 | C87: ='DF raw data'!E92 -> 3.5560916e-07 | D87: ='DF raw data'!F92 -> 8.1400485e-06 | F87: =(1-$G$1*($B$2-$G$2))*B87 -> -4.019938831e-06 | G87: 3.568257599e-07 | H87: 8.148058308e-06 | J87: -8.047276336e-06 | K87: -2.582343418e-07 | L87: 1.203260244e-06 | N87: -0.0001308816268 | O87: -0.002807381767 | P87: -9.286418802e-05 | Q87: -0.001108233544 | R87: 3.253232592e-07
A88: 41.02758 | B88: ='DF raw data'!D93 -> 1.2375308e-06 | C88: ='DF raw data'!E93 -> -1.0128431e-05 | D88: ='DF raw data'!F93 -> 4.7820631e-06 | F88: 1.23874853e-06 | G88: -1.01630821e-05 | H88: 4.78676865e-06 | J88: -5.977541519e-06 | K88: -7.898840653e-06 | L88: 3.669851884e-06 | N88: -0.0001338715333 | O88: -0.002874342969 | P88: -9.681510912e-05 | Q88: -0.001156659494 | R88: 3.389758216e-07
A89: 41.52777 | B89: ='DF raw data'!D94 -> 6.1710484e-06 | C89: ='DF raw data'!E94 -> -6.1368223e-06 | D89: ='DF raw data'!F94 -> -2.3305713e-06 | F89: 6.177120712e-06 | G89: -6.157817422e-06 | H89: -2.332864582e-06 | J89: -3.957922167e-06 | K89: -2.751551133e-06 | L89: 3.917408441e-06 | N89: -0.0001358512464 | O89: -0.002942294404 | P89: -9.819140748e-05 | Q89: -0.001205773854 | R89: 3.530297168e-07
A90: 42.02796 | B90: ='DF raw data'!D95 -> 5.3143845e-06 | C90: ='DF raw data'!E95 -> 5.3867484e-06 | D90: ='DF raw data'!F95 -> 2.0618661e-06 | F90: 5.319613854e-06 | G90: 5.40517739e-06 | H90: 2.063894976e-06 | J90: -3.388790292e-06 | K90: -9.973234714e-06 | L90: 7.646040308e-06 | N90: -0.0001375462854 | O90: -0.00301109368 | P90: -0.0001031799198 | Q90: -0.001257383418 | R90: 3.678178724e-07
A91: 42.52815 | B91: ='DF raw data'!D96 -> 2.3525786e-06 | C91: ='DF raw data'!E96 -> -3.4362561e-06 | D91: ='DF raw data'!F96 -> 2.7742587e-06 | F91: 2.354893537e-06 | G91: -3.448012122e-06 | H91: 2.776988571e-06 | J91: -2.337119064e-06 | K91: -1.343868128e-05 | L91: 8.779570104e-06 | N91: -0.000138715289 | O91: -0.003080477681 | P91: -0.0001099018137 | Q91: -0.001312355206 | R91: 3.834839933e-07
A92: 43.02834 | B92: ='DF raw data'!D97 -> -3.4216689e-07 | C92: ='DF raw data'!E97 -> -7.2410653e-06 | D92: ='DF raw data'!F97 -> 2.2407637e-06 | F92: -3.425035822e-07 | G92: -7.265838227e-06 | H92: 2.242968611e-06 | J92: -1.676522176e-06 | K92: -1.297999539e-05 | L92: 5.840380785e-06 | N92: -0.0001395538686 | O92: -0.00315028113 | P92: -0.0001163942776 | Q92: -0.00137057446 | R92: 4.000017227e-07
A93: 43.52853 | B93: ='DF raw data'!D98 -> -1.3172398e-06 | C93: ='DF raw data'!E98 -> 6.7573096e-06 | D93: ='DF raw data'!F98 -> 3.0891949e-06 | F93: -1.318535964e-06 | G93: 6.780427515e-06 | H93: 3.092234668e-06 | J93: -4.114669455e-06 | K93: -3.908038685e-06 | L93: -1.31329341e-06 | N93: -0.0001416119851 | O93: -0.003221114029 | P93: -0.0001183490395 | Q93: -0.001429771466 | R93: 4.17038419e-07
A94: 44.02872 | B94: ='DF raw data'!D99 -> -7.5030108e-08 | C94: ='DF raw data'!E99 -> 6.2356125e-06 | D94: ='DF raw data'!F99 -> 5.9641297e-06 | F94: -7.510393763e-08 | G94: 6.2569456e-06 | H94: 5.969998404e-06 | J94: -4.266606113e-06 | K94: 3.016959846e-06 | L94: -3.521596344e-06 | N94: -0.0001437460988 | O94: -0.00329301439 | P94: -0.0001168399864 | Q94: -0.001488213659 | R94: 4.342022004e-07
A95: 44.52891 | B95: ='DF raw data'!D100 -> 4.5502341e-07 | C95: ='DF raw data'!E100 -> -2.2486233e-06 | D95: ='DF raw data'!F100 -> -7.3007885e-07 | F95: 4.55471153e-07 | G95: -2.256316226e-06 | H95: -7.307972476e-07 | J95: 1.188379416e-06 | K95: -5.087819456e-06 | L95: 2.614065712e-06 | N95: -0.0001431516833 | O95: -0.003364617431 | P95: -0.0001193848628 | Q95: -0.001547928773 | R95: 4.515813769e-07
A96: 45.0291 | B96: ='DF raw data'!D101 -> -4.6168648e-06 | C96: ='DF raw data'!E101 -> 5.7602088e-06 | D96: ='DF raw data'!F101 -> -4.5697798e-06 | F96: -4.621407795e-06 | G96: 5.779915462e-06 | H96: -4.574276463e-06 | J96: 6.657395838e-06 | K96: -6.810768965e-06 | L96: 5.690556203e-06 | N96: -0.0001398217205 | O96: -0.003434554857 | P96: -0.0001227915413 | Q96: -0.001609347874 | R96: 4.689018943e-07
A97: 45.52929 | B97: ='DF raw data'!D102 -> -5.1383763e-06 | C97: ='DF raw data'!E102 -> 5.20195e-06 | D97: ='DF raw data'!F102 -> -1.6857285e-06 | F97: -5.143432462e-06 | G97: 5.219746763e-06 | H97: -1.687387257e-06 | J97: 3.374836675e-06 | K97: -1.603388163e-05 | L97: -1.538466062e-07 | N97: -0.0001381336609 | O97: -0.003503647933 | P97: -0.0001308115286 | Q97: -0.001674778493 | R97: 4.87005053e-07
A98: 46.02948 | B98: ='DF raw data'!D103 -> -7.276001e-08 | C98: ='DF raw data'!E103 -> 8.7303891e-07 | D98: ='DF raw data'!F103 -> 1.3615189e-06 | F98: -7.283160585e-08 | G98: 8.760257259e-07 | H98: 1.362858635e-06 | J98: -6.257162195e-06 | K98: -8.518321377e-06 | L98: -3.120813662e-06 | N98: -0.0001412634309 | O98: -0.003574306488 | P98: -0.0001350723077 | Q98: -0.00174234031 | R98: 5.061122536e-07
A99: 46.52967 | B99: ='DF raw data'!D104 -> 3.018354e-07 | C99: ='DF raw data'!E104 -> 7.819126e-06 | D99: ='DF raw data'!F104 -> 2.9190139e-06 | F99: 3.02132406e-07 | G99: 7.845876571e-06 | H99: 2.92188621e-06 | J99: -8.712822189e-06 | K99: 2.781992924e-06 | L99: 6.679075349e-07 | N99: -0.0001456214974 | O99: -0.003647144905 | P99: -0.0001336807827 | Q99: -0.001809206101 | R99: 5.256577642e-07
A100: 47.02986 | B100: ='DF raw data'!D105 -> 2.4716385e-07 | C100: ='DF raw data'!E105 -> 5.1300344e-06 | D100: ='DF raw data'!F105 -> -2.8938832e-06 | F100: 2.474070592e-07 | G100: 5.147585128e-06 | H100: -2.896730781e-06 | J100: -5.719034498e-06 | K100: -1.742738078e-06 | L100: 4.292761725e-07 | N100: -0.0001484821013 | O100: -0.003721414167 | P100: -0.0001345524828 | Q100: -0.001876507907 | R100: 5.457410454e-07
A101: 47.53005 | B101: ='DF raw data'!D106 -> 8.0372365e-07 | C101: ='DF raw data'!E106 -> 3.5535927e-06 | D101: ='DF raw data'!F106 -> -9.962323e-06 | F101: 8.045145141e-07 | G101: 3.56575015e-06 | H101: -9.972125926e-06 | J101: -5.521530945e-06 | K101: 1.620953252e-06 | L101: -4.447277119e-06 | N101: -0.0001512439159 | O101: -0.003797064862 | P101: -0.0001337416982 | Q101: -0.001943404167 | R101: 5.661295721e-07
A102: 48.03024 | B102: ='DF raw data'!D107 -> 1.1745865e-06 | C102: ='DF raw data'!E107 -> -5.5323976e-06 | D102: ='DF raw data'!F107 -> -6.6484627e-06 | F102: 1.175742293e-06 | G102: -5.551324881e-06 | H102: -6.655004787e-06 | J102: -2.327632839e-06 | K102: -8.801243602e-07 | L102: -7.603179174e-06 | N102: -0.0001524081745 | O102: -0.003873297907 | P102: -0.0001341819276 | Q102: -0.002010520626 | R102: 5.867539271e-07
A103: 48.53043 | B103: ='DF raw data'!D108 -> 2.1447845e-06 | C103: ='DF raw data'!E108 -> -5.3849612e-06 | D103: ='DF raw data'!F108 -> -3.482584e-07 | F103: 2.146894968e-06 | G103: -5.403384076e-06 | H103: -3.486010863e-07 | J103: 3.14780009e-06 | K103: 5.123485058e-06 | L103: -8.550108236e-06 | N103: -0.0001508336764 | O103: -0.003948743403 | P103: -0.0001316192116 | Q103: -0.002076355239 | R103: 6.067987486e-07
A104: 49.03062 | B104: ='DF raw data'!D109 -> 1.8735877e-06 | C104: ='DF raw data'!E109 -> -2.0196599e-06 | D104: ='DF raw data'!F109 -> -1.8195007e-06 | F104: 1.87543131e-06 | G104: -2.026569503e-06 | H104: -1.821291089e-06 | J104: 4.165127757e-06 | K104: -3.91486496e-06 | L104: -4.260075493e-06 | N104: -0.0001487503211 | O104: -0.004023146826 | P104: -0.000133577388 | Q104: -0.002143169313 | R104: 6.267911311e-07
A105: 49.53081 | B105: ='DF raw data'!D110 -> -3.1989043e-06 | C105: ='DF raw data'!E110 -> 5.4334455e-06 | D105: ='DF raw data'!F110 -> -5.6426998e-06 | F105: -3.202052022e-06 | G105: 5.452034249e-06 | H105: -5.648252217e-06 | J105: 4.119360666e-06 | K105: -1.316796627e-05 | L105: 6.616440477e-07 | N105: -0.0001466898581 | O105: -0.004096519626 | P105: -0.000140163873 | Q105: -0.002213277881 | R105: 6.473808651e-07
A106: 50.031 | B106: ='DF raw data'!D111 -> -6.7981023e-06 | C106: ='DF raw data'!E111 -> 7.9041165e-06 | D106: ='DF raw data'!F111 -> 1.5186505e-06 | F106: -6.804791633e-06 | G106: 7.931157838e-06 | H106: 1.520144852e-06 | J106: 1.340916965e-06 | K106: -1.364247411e-06 | L106: -1.359992717e-06 | N106: -0.0001460191449 | O106: -0.004169556943 | P106: -0.0001408462559 | Q106: -0.002283727769 | R106: 6.679683146e-07
A107: 50.53119 | B107: ='DF raw data'!D112 -> -2.0179073e-06 | C107: ='DF raw data'!E112 -> -1.6064365e-06 | D107: ='DF raw data'!F112 -> 1.1324195e-05 | F107: -2.019892921e-06 | G107: -1.611932395e-06 | H107: 1.133533801e-05 | J107: 9.742339038e-07 | K107: 9.559586879e-06 | L107: -5.945283208e-06 | N107: -0.0001455318428 | O107: -0.004242350515 | P107: -0.0001360646462 | Q107: -0.002351785945 | R107: 6.878224089e-07
A108: 51.03138 | B108: ='DF raw data'!D113 -> 7.3229417e-06 | C108: ='DF raw data'!E113 -> 5.3560584e-06 | D108: ='DF raw data'!F113 -> 4.1444746e-06 | F108: 7.330147475e-06 | G108: 5.374382395e-06 | H108: 4.148552763e-06 | J108: 5.222010007e-06 | K108: -1.469883378e-06 | L108: -6.568841786e-06 | N108: -0.0001429198456 | O108: -0.004313837593 | P108: -0.0001367998671 | Q108: -0.00242021187 | R108: 7.073999885e-07
A109: 51.53157 | B109: ='DF raw data'!D114 -> 7.9329657e-06 | C109: ='DF raw data'!E114 -> -3.8630928e-06 | D109: ='DF raw data'!F114 -> -5.315318e-06 | F109: 7.940771738e-06 | G109: -3.876309103e-06 | H109: -5.320548273e-06 | J109: 5.081562342e-06 | K109: -1.132412167e-05 | L109: 3.75465655e-06 | N109: -0.000140378099 | O109: -0.004384053314 | P109: -0.0001424640795 | Q109: -0.002491470978 | R109: 7.274086012e-07
A110: 52.03176 | B110: ='DF raw data'!D115 -> 4.6667151e-06 | C110: ='DF raw data'!E115 -> 5.8521405e-06 | D110: ='DF raw data'!F115 -> 3.0437317e-07 | F110: 4.671307148e-06 | G110: 5.872161677e-06 | H110: 3.046726732e-07 | J110: 3.49564183e-06 | K110: -1.555002592e-05 | L110: 5.777028608e-06 | N110: -0.0001386296139 | O110: -0.00445339446 | P110: -0.000150242047 | Q110: -0.002566620548 | R110: 7.483119628e-07
A111: 52.53195 | B111: ='DF raw data'!D116 -> 1.7505004e-06 | C111: ='DF raw data'!E116 -> 6.4094679e-06 | D111: ='DF raw data'!F116 -> 1.633989e-06 | F111: 1.752222892e-06 | G111: 6.431395789e-06 | H111: 1.635596845e-06 | J111: 6.097819456e-06 | K111: -6.619851731e-06 | L111: 3.444144407e-06 | N111: -0.0001355795456 | O111: -0.004521209993 | P111: -0.0001535532306 | Q111: -0.002643426338 | R111: 7.693001392e-07
A112: 53.03214 | B112: ='DF raw data'!D117 -> -2.5886188e-06 | C112: ='DF raw data'!E117 -> 1.1602719e-05 | D112: ='DF raw data'!F117 -> 1.3457446e-06 | F112: -2.591166001e-06 | G112: 1.164241389e-05 | H112: 1.347068813e-06 | J112: 6.632676938e-06 | K112: 7.90875917e-07 | L112: 4.070168208e-06 | N112: -0.0001322619469 | O112: -0.004587366097 | P112: -0.0001531576424 | Q112: -0.002720034259 | R112: 7.897831628e-07
A113: 53.53233 | B113: ='DF raw data'!D118 -> -3.4895352e-06 | C113: ='DF raw data'!E118 -> 1.1852761e-05 | D113: ='DF raw data'!F118 -> -1.2513939e-06 | F113: -3.492968903e-06 | G113: 1.189331133e-05 | H113: -1.252625272e-06 | J113: 5.667289331e-07 | K113: -2.388859533e-06 | L113: 3.909681044e-06 | N113: -0.0001319784747 | O113: -0.00465338041 | P113: -0.0001543525261 | Q113: -0.002797239849 | R113: 8.10412509e-07
A114: 54.03252 | B114: ='DF raw data'!D119 -> -1.621615e-06 | C114: ='DF raw data'!E119 -> -6.236492e-06 | D114: ='DF raw data'!F119 -> -4.0041396e-06 | F114: -1.623210669e-06 | G114: -6.257828109e-06 | H114: -4.008079673e-06 | J114: -6.966541438e-06 | K114: -4.760741381e-06 | L114: 3.376990492e-06 | N114: -0.0001354630691 | O114: -0.004721137682 | P114: -0.0001567338013 | Q114: -0.002875636529 | R114: 8.318785268e-07
A115: 54.53271 | B115: ='DF raw data'!D120 -> 4.0322587e-07 | C115: ='DF raw data'!E120 -> 7.8971789e-06 | D115: ='DF raw data'!F120 -> -5.1138176e-07 | F115: 4.036226443e-07 | G115: 7.924196504e-06 | H115: -5.118849597e-07 | J115: -7.233933793e-06 | K115: -8.851959318e-06 | L115: 5.693884575e-06 | N115: -0.0001390814105 | O115: -0.004790704813 | P115: -0.0001611614628 | Q115: -0.002956247881 | R115: 8.545454648e-07
A116: 55.0329 | B116: ='DF raw data'!D121 -> 2.5904549e-07 | C116: ='DF raw data'!E121 -> 9.8039854e-06 | D116: ='DF raw data'!F121 -> 2.9605312e-07 | F116: 2.593003908e-07 | G116: 9.837526516e-06 | H116: 2.963444363e-07 | J116: -1.105452896e-06 | K116: -2.817423124e-06 | L116: 3.823740262e-06 | N116: -0.0001396343469 | O116: -0.004860548517 | P116: -0.0001625707097 | Q116: -0.003037564125 | R116: 8.775176842e-07
A117: 55.53309 | B117: ='DF raw data'!D122 -> 1.1175139e-06 | C117: ='DF raw data'!E122 -> -3.6367996e-06 | D117: ='DF raw data'!F122 -> -2.2174956e-06 | F117: 1.118613534e-06 | G117: -3.649241715e-06 | H117: -2.219677616e-06 | J117: 1.323146196e-06 | K117: -1.061025574e-05 | L117: 3.041763153e-06 | N117: -0.0001389725224 | O117: -0.004930061183 | P117: -0.0001678778535 | Q117: -0.003121534948 | R117: 9.012748764e-07
A118: 56.03328 | B118: ='DF raw data'!D123 -> 2.8869067e-06 | C118: ='DF raw data'!E123 -> 6.926763e-06 | D118: ='DF raw data'!F123 -> -3.3292147e-06 | F118: 2.889747416e-06 | G118: 6.950460644e-06 | H118: -3.332490647e-06 | J118: 2.04515075e-06 | K118: -3.871673498e-07 | L118: 2.220675497e-06 | N118: -0.0001379495585 | O118: -0.004999062173 | P118: -0.0001680715108 | Q118: -0.003205602637 | R118: 9.249229159e-07
A119: 56.53347 | B119: ='DF raw data'!D124 -> 1.3190288e-06 | C119: ='DF raw data'!E124 -> 7.7202531e-06 | D119: ='DF raw data'!F124 -> -2.7167828e-06 | F119: 1.320326724e-06 | G119: 7.74666541e-06 | H119: -2.719456114e-06 | J119: 5.42987014e-06 | K119: 3.889480812e-06 | L119: -1.099377324e-06 | N119: -0.0001352335917 | O119: -0.005066704663 | P119: -0.0001661260314 | Q119: -0.003288697217 | R119: 9.478746256e-07
A120: 57.03366 | B120: ='DF raw data'!D125 -> 7.503254e-07 | C120: ='DF raw data'!E125 -> 1.5037134e-05 | D120: ='DF raw data'!F125 -> -7.434557e-07 | F120: 7.510637202e-07 | G120: 1.508857861e-05 | H120: -7.441872604e-07 | J120: 5.744100238e-06 | K120: -1.011368167e-05 | L120: -2.491097731e-07 | N120: -0.0001323604502 | O120: -0.005132910037 | P120: -0.0001711847938 | Q120: -0.003374322139 | R120: 9.712952832e-07
A121: 57.53385 | B121: ='DF raw data'!D126 -> -2.4350961e-06 | C121: ='DF raw data'!E126 -> 1.8911725e-05 | D121: ='DF raw data'!F126 -> 4.0984214e-06 | F121: -2.437492235e-06 | G121: 1.897642526e-05 | H121: 4.102454247e-06 | J121: 3.603949e-06 | K121: -7.515534568e-06 | L121: -2.630426796e-06 | N121: -0.000130557791 | O121: -0.005198213738 | P121: -0.000174943989 | Q121: -0.003461827373 | R121: 9.951297049e-07
A122: 58.03404 | B122: ='DF raw data'!D127 -> -6.7136648e-06 | C122: ='DF raw data'!E127 -> -3.0003498e-06 | D122: ='DF raw data'!F127 -> 2.150982e-06 | F122: -6.720271046e-06 | G122: -3.010614511e-06 | H122: 2.153098566e-06 | J122: 1.440469929e-06 | K122: -8.92575954e-07 | L122: -4.081467916e-06 | N122: -0.0001298372823 | O122: -0.005263157048 | P122: -0.0001753904466 | Q122: -0.00354955592 | R122: 1.018948517e-06
A123: 58.53423 | B123: ='DF raw data'!D128 -> -6.3702396e-06 | C123: ='DF raw data'!E128 -> -5.0074955e-06 | D123: ='DF raw data'!F128 -> -5.0154285e-06 | F123: -6.376507916e-06 | G123: -5.024627001e-06 | H123: -5.020363682e-06 | J123: 2.63706422e-06 | K123: -1.042393147e-06 | L123: 4.558821671e-06 | N123: -0.0001285182492 | O123: -0.005327440591 | P123: -0.0001759118412 | Q123: -0.003637545264 | R123: 1.042688493e-06
A124: 59.03442 | B124: ='DF raw data'!D129 -> 6.3578e-07 | C124: ='DF raw data'!E129 -> -1.5048097e-07 | D124: ='DF raw data'!F129 -> -7.5179942e-06 | F124: 6.364056075e-07 | G124: -1.509957912e-07 | H124: -7.525391906e-06 | J124: 3.784147941e-06 | K124: -1.155828606e-05 | L124: 1.076463499e-05 | N124: -0.0001266254562 | O124: -0.005390777378 | P124: -0.0001816931803 | Q124: -0.003728426376 | R124: 1.067221021e-06
A125: 59.53461 | B125: ='DF raw data'!D130 -> 6.8098411e-06 | C125: ='DF raw data'!E130 -> 1.1121712e-05 | D125: ='DF raw data'!F130 -> -4.1823023e-06 | F125: 6.816541984e-06 | G125: 1.115976128e-05 | H125: -4.186417685e-06 | J125: -2.108680502e-06 | K125: -1.606400534e-05 | L125: 1.057743296e-05 | N125: -0.0001276801971 | O125: -0.005454641736 | P125: -0.0001897282352 | Q125: -0.003823326542 | R125: 1.093380475e-06
A126: 60.0348 | B126: ='DF raw data'!D131 -> 1.2033051e-05 | C126: ='DF raw data'!E131 -> 8.9481837e-06 | D126: ='DF raw data'!F131 -> 3.7976622e-06 | F126: 1.204489152e-05 | G126: 8.978796971e-06 | H126: 3.8013991e-06 | J126: -7.681194165e-06 | K126: -5.039356421e-06 | L126: 1.737684501e-06 | N126: -0.0001315222536 | O126: -0.005520427852 | P126: -0.0001922488708 | Q126: -0.003919487505 | R126: 1.12051965e-06
A127: 60.53499 | B127: ='DF raw data'!D132 -> 7.4294071e-06 | C127: ='DF raw data'!E132 -> -2.6264893e-06 | D127: ='DF raw data'!F132 -> 1.0361344e-06 | F127: 7.436717637e-06 | G127: -2.63547497e-06 | H127: 1.037153956e-06 | J127: -7.465850075e-06 | K127: -2.578327927e-07 | L127: -2.906966743e-06 | N127: -0.0001352565972 | O127: -0.00558808185 | P127: -0.0001923778362 | Q127: -0.004015712974 | R127: 1.148181947e-06
A128: 61.03518 | B128: ='DF raw data'!D133 -> -2.9876469e-06 | C128: ='DF raw data'!E133 -> 2.1898124e-07 | D128: ='DF raw data'!F133 -> -1.7509502e-06 | F128: -2.990586745e-06 | G128: 2.197304124e-07 | H128: -1.752673135e-06 | J128: -4.237076785e-06 | K128: 1.389337456e-06 | L128: -5.561222564e-06 | N128: -0.0001373759406 | O128: -0.005656795921 | P128: -0.0001916829035 | Q128: -0.004111590846 | R128: 1.175999756e-06
A129: 61.53537 | B129: ='DF raw data'!D134 -> -5.1825632e-06 | C129: ='DF raw data'!E134 -> -9.4627649e-06 | D129: ='DF raw data'!F134 -> -1.1519643e-06 | F129: -5.187662842e-06 | G129: -9.495138642e-06 | H129: -1.153097833e-06 | J129: -5.305517297e-06 | K129: -1.960566164e-06 | L129: -5.206272536e-06 | N129: -0.0001400297073 | O129: -0.005726837381 | P129: -0.0001926635591 | Q129: -0.004207959232 | R129: 1.204374318e-06
A130: 62.03556 | B130: ='DF raw data'!D135 -> -3.2195971e-06 | C130: ='DF raw data'!E135 -> -8.9576097e-06 | D130: ='DF raw data'!F135 -> -3.4167335e-06 | F130: -3.222765184e-06 | G130: -8.988255219e-06 | H130: -3.420095566e-06 | J130: -3.924044764e-06 | K130: -7.57979667e-06 | L130: -8.750681806e-07 | N130: -0.0001419924753 | O130: -0.005797860597 | P130: -0.0001964548976 | Q130: -0.004306224007 | R130: 1.233763676e-06
A131: 62.53575 | B131: ='DF raw data'!D136 -> 7.3724323e-07 | C131: ='DF raw data'!E136 -> 8.9657988e-06 | D131: ='DF raw data'!F136 -> -5.345335e-06 | F131: 7.379686773e-07 | G131: 8.996472336e-06 | H131: -5.35059481e-06 | J131: -3.437099181e-06 | K131: 1.361889973e-06 | L131: 1.024386906e-06 | N131: -0.0001437116779 | O131: -0.005869743741 | P131: -0.0001957736939 | Q131: -0.004404148051 | R131: 1.263265075e-06
A132: 63.03594 | B132: ='DF raw data'!D137 -> 2.7518067e-06 | C132: ='DF raw data'!E137 -> 7.8442099e-06 | D132: ='DF raw data'!F137 -> -9.6371423e-06 | F132: 2.754514478e-06 | G132: 7.871046288e-06 | H132: -9.646625248e-06 | J132: -1.179326416e-05 | K132: -2.405998268e-06 | L132: 4.171294319e-06 | N132: -0.0001496105507 | O132: -0.005944577442 | P132: -0.0001969771501 | Q132: -0.004502674052 | R132: 1.293868357e-06
A133: 63.53613 | B133: ='DF raw data'!D138 -> 1.624277e-06 | C133: ='DF raw data'!E138 -> 6.6193465e-06 | D133: ='DF raw data'!F138 -> -6.8975769e-06 | F133: 1.625875289e-06 | G133: 6.64199242e-06 | H133: -6.904364116e-06 | J133: -1.469858719e-05 | K133: -5.091437091e-06 | L133: 5.274183995e-06 | N133: -0.000156962637 | O133: -0.006023088584 | P133: -0.0001995238361 | Q133: -0.004602473879 | R133: 1.326104118e-06
A134: 64.03632 | B134: ='DF raw data'!D139 -> 8.8222396e-07 | C134: ='DF raw data'!E139 -> 9.1775473e-06 | D134: ='DF raw data'!F139 -> -1.2437432e-06 | F134: 8.830920684e-07 | G134: 9.208945264e-06 | H134: -1.244967043e-06 | J134: -5.208032766e-06 | K134: -4.599681045e-06 | L134: 1.195532948e-06 | N134: -0.0001595676429 | O134: -0.006102902723 | P134: -0.0002018245505 | Q134: -0.004703424501 | R134: 1.359214186e-06
A135: 64.53651 | B135: ='DF raw data'!D140 -> 2.9532562e-06 | C135: ='DF raw data'!E140 -> 1.5345726e-06 | D135: ='DF raw data'!F140 -> -1.0894073e-08 | F135: 2.956162204e-06 | G135: =(1-$G$1*($B$2-$G$2))*C135*$M$2/$M$1 -> 1.539822636e-06 | H135: -1.090479277e-08 | J135: =-CELL("contents", INDEX($F$6:$F$1203,1204-CELL("row",F135))) -> 6.574280933e-06 | K135: =CELL("contents", INDEX($G$6:$G$1203,1204-CELL("row",G135))) -> 1.961154771e-06 | L135: =-CELL("contents", INDEX($H$6:$H$1203,1204-CELL("row",H135))) -> -4.017245384e-06 | N135: -0.0001562792534 | O135: -0.006181072043 | P135: -0.0002008436005 | Q135: -0.004803884462 | R135: 1.391607169e-06
A136: =A135+$B$1 -> 65.0367 | B136: ='DF raw data'!D141 -> 2.412587e-06 | C136: ='DF raw data'!E141 -> 5.0931743e-07 | D136: ='DF raw data'!F141 -> -2.6468354e-06 | F136: 2.414960986e-06 | G136: 5.110598923e-07 | H136: -2.649439886e-06 | J136: 5.437684922e-06 | K136: -1.598411194e-06 | L136: -4.107716319e-06 | N136: =J136*$B$1+N135 -> -0.0001535593777 | O136: =N136*$B$1+O135 -> -0.006257880908 | P136: =K136*$B$1+P135 -> -0.0002016431098 | Q136: =P136*$B$1+Q135 -> -0.004904744329 | R136: =(N136^2+P136^2)*$B$1+R135 -> 1.423739587e-06
A137: 65.53689 | B137: ='DF raw data'!D142 -> -4.8560514e-07 | C137: ='DF raw data'!E142 -> 2.2536119e-06 | D137: ='DF raw data'!F142 -> 1.3252446e-06 | F137: -4.860829755e-07 | G137: 2.261321893e-06 | H137: 1.326548641e-06 | J137: -5.251531227e-06 | K137: -1.057638024e-05 | L137: 8.519118472e-07 | N137: -0.0001561861412 | O137: -0.006336003654 | P137: -0.0002069333094 | Q137: -0.005008250301 | R137: 1.457360111e-06
A138: 66.03708 | B138: ='DF raw data'!D143 -> -1.0824156e-06 | C138: ='DF raw data'!E143 -> 7.5335669e-07 | D138: ='DF raw data'!F143 -> 4.1951225e-06 | F138: -1.083480697e-06 | G138: 7.559340525e-07 | H138: 4.199250501e-06 | J138: -5.044337449e-06 | K138: -4.438350487e-06 | L138: -8.119781711e-07 | N138: -0.0001587092683 | O138: -0.006415388443 | P138: -0.000209153328 | Q138: -0.005112866704 | R138: 1.491840082e-06
A139: 66.53727 | B139: ='DF raw data'!D144 -> 2.073207e-07 | C139: ='DF raw data'!E144 -> 5.8030387e-06 | D139: ='DF raw data'!F144 -> -8.4089169e-07 | F139: 2.075247036e-07 | G139: 5.822891891e-06 | H139: -8.417191274e-07 | J139: 2.531364314e-06 | K139: -2.1182827e-06 | L139: -5.981258172e-06 | N139: -0.0001574431052 | O139: -0.00649413991 | P139: -0.0002102128718 | Q139: -0.00521801308 | R139: 1.526342079e-06
A140: 67.03746 | B140: ='DF raw data'!D145 -> 4.4889598e-06 | C140: ='DF raw data'!E145 -> 7.8523481e-06 | D140: ='DF raw data'!F145 -> -1.4227063e-06 | F140: 4.493376936e-06 | G140: 7.87921233e-06 | H140: -1.424106243e-06 | J140: 4.307447161e-06 | K140: 1.557311665e-07 | L140: -2.265284048e-06 | N140: -0.0001552885632 | O140: -0.006571813696 | P140: -0.0002101349766 | Q140: -0.005323120494 | R140: 1.560490674e-06
A141: 67.53765 | B141: ='DF raw data'!D146 -> 8.7554463e-07 | C141: ='DF raw data'!E146 -> -9.9067222e-07 | D141: ='DF raw data'!F146 -> 4.2353877e-06 | F141: 8.764061659e-07 | G141: -9.940614796e-07 | H141: 4.239555321e-06 | J141: -1.977183736e-06 | K141: 1.480244002e-06 | L141: 3.774910861e-06 | N141: -0.0001562775307 | O141: -0.006649982154 | P141: -0.0002093945734 | Q141: -0.005427857566 | R141: 1.594638022e-06
A142: 68.03784 | B142: ='DF raw data'!D147 -> -3.7519935e-06 | C142: ='DF raw data'!E147 -> -9.969441e-07 | D142: ='DF raw data'!F147 -> 4.4717872e-06 | F142: -3.755685462e-06 | G142: -1.000354817e-06 | H142: 4.476187439e-06 | J142: -1.097892364e-05 | K142: 1.717620238e-06 | L142: 3.816147898e-06 | N142: -0.0001617690785 | O142: -0.00673089743 | P142: -0.0002085354369 | Q142: -0.005532164906 | R142: 1.629479388e-06
A143: 68.53803 | B143: ='DF raw data'!D148 -> -2.6236598e-06 | C143: ='DF raw data'!E148 -> -1.1471817e-06 | D143: ='DF raw data'!F148 -> -3.084426e-06 | F143: -2.626241481e-06 | G143: -1.151106405e-06 | H143: -3.087461075e-06 | J143: -1.59093434e-05 | K143: -1.179150823e-05 | L143: 9.828695829e-06 | N143: -0.000169726773 | O143: -0.006815793064 | P143: -0.0002144334314 | Q143: -0.005639422364 | R143: 1.666888035e-06
A144: 69.03822 | B144: ='DF raw data'!D149 -> -2.1907258e-06 | C144: ='DF raw data'!E149 -> -1.2983543e-06 | D144: ='DF raw data'!F149 -> -8.178411e-06 | F144: -2.192881474e-06 | G144: -1.302796193e-06 | H144: -8.186458556e-06 | J144: -1.469905665e-05 | K144: -1.576892727e-05 | L144: 1.478772282e-05 | N144: -0.0001770790942 | O144: -0.006904366256 | P144: -0.0002223208911 | Q144: -0.005750625051 | R144: 1.707295176e-06
A145: 69.53841 | B145: ='DF raw data'!D150 -> -7.275089e-07 | C145: ='DF raw data'!E150 -> 5.9217604e-07 | D145: ='DF raw data'!F150 -> -6.7077654e-06 | F145: -7.282247688e-07 | G145: 5.942019758e-07 | H145: -6.714365841e-06 | J145: -1.320927715e-05 | K145: -1.433784298e-05 | L145: 9.19640847e-06 | N145: -0.0001836862425 | O145: -0.006996244278 | P145: -0.0002294925368 | Q145: -0.005865414923 | R145: 1.750515323e-06
A146: 70.0386 | B146: ='DF raw data'!D151 -> 3.9548318e-06 | C146: ='DF raw data'!E151 -> 9.2970986e-06 | D146: ='DF raw data'!F151 -> -1.0981222e-06 | F146: 3.958723354e-06 | G146: 9.328905569e-06 | H146: -1.099202752e-06 | J146: -1.023620653e-05 | K146: -1.941886275e-05 | L146: 7.138996967e-06 | N146: -0.0001888062906 | O146: -0.007090683296 | P146: -0.0002392056578 | Q146: -0.005985063201 | R146: 1.796966549e-06
A147: 70.53879 | B147: ='DF raw data'!D152 -> 5.8028559e-06 | C147: ='DF raw data'!E152 -> 1.4019352e-05 | D147: ='DF raw data'!F152 -> 5.5022447e-06 | F147: 5.80856591e-06 | G147: 1.406731461e-05 | H147: 5.507658909e-06 | J147: -2.820328375e-06 | K147: -1.59195438e-05 | L147: 5.895608676e-06 | N147: -0.0001902169907 | O147: -0.007185827933 | P147: -0.0002471684544 | Q147: -0.00610869439 | R147: 1.845622405e-06
A148: 71.03898 | B148: ='DF raw data'!D153 -> 9.2794608e-07 | C148: ='DF raw data'!E153 -> 4.552605e-08 | D148: ='DF raw data'!F153 -> 3.7306434e-06 | F148: 9.288591789e-07 | G148: 4.568180243e-08 | H148: 3.734314353e-06 | J148: -5.164414588e-08 | K148: -1.012867378e-05 | L148: 1.129846476e-06 | N148: -0.0001902428226 | O148: -0.00728098549 | P148: -0.0002522347157 | Q148: -0.006234859672 | R148: 1.895548712e-06
A149: 71.53917 | B149: ='DF raw data'!D154 -> -2.2728932e-06 | C149: ='DF raw data'!E154 -> -3.4570726e-06 | D149: ='DF raw data'!F154 -> -3.0340473e-06 | F149: -2.275129727e-06 | G149: -3.468899838e-06 | H149: -3.037032803e-06 | J149: -3.818210125e-06 | K149: -1.400634874e-05 | L149: 1.240302258e-06 | N149: -0.0001921526531 | O149: -0.007377098326 | P149: -0.0002592405513 | Q149: -0.006364529204 | R149: 1.947632649e-06
A150: 72.03936 | B150: ='DF raw data'!D155 -> 3.8286774e-07 | C150: ='DF raw data'!E155 -> 4.6862556e-06 | D150: ='DF raw data'!F155 -> -6.2518684e-06 | F150: 3.832444819e-07 | G150: 4.702288084e-06 | H150: -6.258020239e-06 | J150: -5.000103465e-06 | K150: -1.760674833e-05 | L150: 3.11664086e-06 | N150: -0.0001946536549 | O150: -0.007474462138 | P150: -0.0002680472708 | Q150: -0.006498603768 | R150: 2.002523192e-06
A151: 72.53955 | B151: ='DF raw data'!D156 -> 5.4492843e-06 | C151: ='DF raw data'!E156 -> 6.9610546e-06 | D151: ='DF raw data'!F156 -> -8.865778e-06 | F151: =(1-$G$1*($B$2-$G$2))*B151 -> 5.454646396e-06 | G151: 6.984869562e-06 | H151: -8.874501926e-06 | J151: -3.491751706e-06 | K151: -1.568444121e-05 | L151: 1.352422175e-06 | N151: -0.0001964001941 | O151: -0.007572699551 | P151: -0.0002758924714 | Q151: -0.006636602423 | R151: 2.059889829e-06
A152: 73.03974 | B152: ='DF raw data'!D157 -> 6.2438044e-06 | C152: ='DF raw data'!E157 -> 1.0748918e-05 | D152: ='DF raw data'!F157 -> -4.5047582e-06 | F152: 6.249948304e-06 | G152: 1.078569189e-05 | H152: -4.509190882e-06 | J152: -2.026031655e-06 | K152: -1.059017126e-05 | L152: -4.389318043e-06 | N152: -0.0001974135949 | O152: -0.007671443857 | P152: -0.0002811895692 | Q152: -0.006777250634 | R152: 2.118932107e-06
A153: 73.53993 | B153: ='DF raw data'!D158 -> 1.5899636e-06 | C153: ='DF raw data'!E158 -> 1.1337466e-05 | D153: ='DF raw data'!F158 -> -4.8992897e-06 | F153: 1.591528124e-06 | G153: 1.137625342e-05 | H153: -4.904110601e-06 | J153: -2.917543441e-06 | K153: -1.55651525e-05 | L153: -2.42490456e-06 | N153: -0.000198872921 | O153: -0.007770918103 | P153: -0.0002889751028 | Q153: -0.00692179309 | R153: 2.180484012e-06
A154: 74.04012 | B154: ='DF raw data'!D159 -> 2.7718993e-06 | C154: ='DF raw data'!E159 -> -2.7283349e-07 | D154: ='DF raw data'!F159 -> -1.1481889e-05 | F154: 2.774626849e-06 | G154: -2.737669002e-07 | H154: -1.149318718e-05 | J154: -4.878766687e-06 | K154: -8.248011052e-06 | L154: 3.789367873e-06 | N154: -0.0002013132313 | O154: -0.007871612968 | P154: -0.0002931006754 | Q154: -0.007068399117 | R154: 2.243725547e-06
A155: 74.54031 | B155: ='DF raw data'!D160 -> 7.9349702e-06 | C155: ='DF raw data'!E160 -> -7.1016361e-06 | D155: ='DF raw data'!F160 -> -1.1252874e-05 | F155: 7.942778211e-06 | G155: -7.125932015e-06 | H155: -1.126394683e-05 | J155: -2.344737253e-06 | K155: -6.578481479e-06 | L155: 3.644269937e-06 | N155: -0.0002024860454 | O155: -0.007972894463 | P155: -0.0002963911661 | Q155: -0.007216651015 | R155: 2.308174189e-06
A156: 75.0405 | B156: ='DF raw data'!D161 -> 8.5884458e-06 | C156: ='DF raw data'!E161 -> -2.8230274e-06 | D156: ='DF raw data'!F161 -> -8.1294256e-06 | F156: 8.596896831e-06 | G156: -2.832685461e-06 | H156: -8.137424955e-06 | J156: -2.663577484e-06 | K156: -5.12437118e-06 | L156: 4.971464913e-06 | N156: -0.0002038183402 | O156: -0.008074842359 | P156: -0.0002989543253 | Q156: -0.007366184979 | R156: 2.373656865e-06
A157: 75.54069 | B157: ='DF raw data'!D162 -> 6.4275659e-06 | C157: ='DF raw data'!E162 -> 7.1675842e-08 | D157: ='DF raw data'!F162 -> -2.2678089e-06 | F157: 6.433890625e-06 | G157: 7.192105735e-08 | H157: -2.270040424e-06 | J157: -4.366228245e-06 | K157: -7.639375304e-06 | L157: 1.734021099e-06 | N157: -0.0002060022839 | O157: -0.008177882641 | P157: -0.0003027754644 | Q157: -0.007517630238 | R157: 2.440737307e-06
A158: 76.04088 | B158: ='DF raw data'!D163 -> -1.485118e-06 | C158: ='DF raw data'!E163 -> 3.2029461e-06 | D158: ='DF raw data'!F163 -> 2.9736564e-06 | F158: -1.486579356e-06 | G158: 3.213903928e-06 | H158: 2.976582478e-06 | J158: 1.236018246e-06 | K158: -3.78807838e-06 | L158: 1.962419122e-07 | N158: -0.00020538404 | O158: -0.008280613684 | P158: -0.0003046702234 | Q158: -0.007670023237 | R158: 2.508266233e-06
A159: 76.54107 | B159: ='DF raw data'!D164 -> -9.540774e-06 | C159: ='DF raw data'!E164 -> 9.1600344e-07 | D159: ='DF raw data'!F164 -> 2.8266384e-06 | F159: -9.550162122e-06 | G159: 9.191372449e-07 | H159: 2.829419812e-06 | J159: 7.836954482e-06 | K159: -1.09629051e-05 | L159: 2.695938896e-06 | N159: -0.0002014640737 | O159: -0.008381383999 | P159: -0.0003101537589 | Q159: -0.007825159046 | R159: 2.576683785e-06
A160: 77.04126 | B160: ='DF raw data'!D165 -> -8.7794251e-06 | C160: ='DF raw data'!E165 -> 2.5052545e-06 | D160: ='DF raw data'!F165 -> -8.3197136e-07 | F160: -8.788064054e-06 | G160: 2.513825405e-06 | H160: -8.327900198e-07 | J160: 6.513816495e-06 | K160: -1.881062897e-05 | L160: -4.29650971e-07 | N160: -0.0001982059278 | O160: -0.008480524622 | P160: -0.0003195626474 | Q160: -0.007985001086 | R160: 2.64741359e-06
A161: 77.54145 | B161: ='DF raw data'!D166 -> 3.1024641e-07 | C161: ='DF raw data'!E166 -> -7.4636733e-07 | D161: ='DF raw data'!F166 -> -2.2226179e-06 | F161: 3.105516925e-07 | G161: -7.489207807e-07 | H161: -2.224804956e-06 | J161: -9.392157698e-07 | K161: -1.389441912e-05 | L161: -7.044971938e-06 | N161: -0.0001986757142 | O161: -0.008579900228 | P161: -0.0003265124969 | Q161: -0.008148319372 | R161: 2.720482571e-06
A162: 78.04164 | B162: ='DF raw data'!D167 -> 6.4639421e-06 | C162: ='DF raw data'!E167 -> 1.2303575e-06 | D162: ='DF raw data'!F167 -> 3.370495e-07 | F162: 6.470302619e-06 | G162: 1.234566764e-06 | H162: 3.373811567e-07 | J162: -4.850038446e-06 | K162: -1.076328148e-05 | L162: -1.013019131e-05 | N162: -0.0002011016549 | O162: -0.008680489264 | P162: -0.0003318961826 | Q162: -0.008314330524 | R162: 2.79580966e-06
A163: 78.54183 | B163: ='DF raw data'!D168 -> 4.800549e-06 | C163: ='DF raw data'!E168 -> 7.7545446e-06 | D163: ='DF raw data'!F168 -> 4.1099356e-06 | F163: 4.80527274e-06 | G163: 7.781074227e-06 | H163: 4.113979777e-06 | J163: -3.668811562e-06 | K163: -6.509663644e-06 | L163: -9.354206291e-06 | N163: -0.0002029367578 | O163: -0.008781996201 | P163: -0.0003351522513 | Q163: -0.008481970328 | R163: 2.872594007e-06
A164: 79.04202 | B164: ='DF raw data'!D169 -> 3.3400679e-06 | C164: ='DF raw data'!E169 -> 1.2257311e-05 | D164: ='DF raw data'!F169 -> -6.1900045e-07 | F164: 3.343354527e-06 | G164: 1.229924536e-05 | H164: -6.196095464e-07 | J164: -8.434603491e-06 | K164: -7.598004951e-06 | L164: -8.523725201e-06 | N164: -0.0002071556621 | O164: -0.008885613392 | P164: -0.0003389526974 | Q164: -0.008651511078 | R164: 2.951525189e-06
A165: 79.54221 | B165: ='DF raw data'!D170 -> 1.8330679e-06 | C165: ='DF raw data'!E170 -> 1.0443637e-05 | D165: ='DF raw data'!F170 -> -3.8272392e-06 | F165: 1.834871639e-06 | G165: 1.047936647e-05 | H165: -3.831005203e-06 | J165: -1.451678147e-05 | K165: 5.422527746e-07 | L165: -2.756931554e-07 | N165: -0.000214416811 | O165: -0.008992862537 | P165: -0.000338681468 | Q165: -0.008820916162 | R165: 3.031895571e-06
A166: 80.0424 | B166: ='DF raw data'!D171 -> 2.3094573e-07 | C166: ='DF raw data'!E171 -> 1.2088662e-05 | D166: ='DF raw data'!F171 -> 3.1369004e-07 | F166: 2.311729806e-07 | G166: 1.213001939e-05 | H166: 3.13998711e-07 | J166: -1.609709497e-05 | K166: -1.131568591e-05 | L166: 1.521437823e-06 | N166: -0.0002224684169 | O166: -0.009104139014 | P166: -0.0003443414609 | Q166: -0.008993152317 | R166: 3.115959122e-06
A167: 80.54259 | B167: ='DF raw data'!D172 -> 1.3048658e-07 | C167: ='DF raw data'!E172 -> 1.9018956e-06 | D167: ='DF raw data'!F172 -> 5.0615909e-06 | F167: 1.306149788e-07 | G167: 1.908402311e-06 | H167: 5.066571505e-06 | J167: -1.093415463e-05 | K167: -6.210168212e-06 | L167: -2.07655302e-06 | N167: -0.0002279375717 | O167: -0.009218151108 | P167: -0.000347447725 | Q167: -0.009166942195 | R167: 3.202329659e-06
A168: 81.04278 | B168: ='DF raw data'!D173 -> 2.6826019e-08 | C168: ='DF raw data'!E173 -> 2.9450316e-06 | D168: ='DF raw data'!F173 -> 2.2311121e-06 | F168: 2.68524158e-08 | G168: 2.955107058e-06 | H168: 2.233307514e-06 | J168: -9.270529634e-07 | K168: -7.342555595e-06 | L168: 1.772548273e-07 | N168: -0.0002284012744 | O168: -0.009332395142 | P168: -0.0003511203978 | Q168: -0.009342569106 | R168: 3.290089333e-06
A169: 81.54297 | B169: ='DF raw data'!D174 -> -3.2630492e-06 | C169: ='DF raw data'!E174 -> 5.6938957e-06 | D169: ='DF raw data'!F174 -> -4.2882584e-06 | F169: -3.26626004e-06 | G169: 5.713375494e-06 | H169: -4.292478046e-06 | J169: 8.630115085e-06 | K169: -2.136164769e-05 | L169: 7.080440705e-06 | N169: -0.0002240845771 | O169: -0.009444480006 | P169: -0.0003618052804 | Q169: -0.00952354049 | R169: 3.380682225e-06
A170: 82.04316 | B170: ='DF raw data'!D175 -> -6.2593685e-06 | C170: ='DF raw data'!E175 -> 3.5056914e-06 | D170: ='DF raw data'!F175 -> -7.9024085e-06 | F170: -6.265527719e-06 | G170: 3.517684972e-06 | H170: -7.91018447e-06 | J170: 8.622700897e-06 | K170: -1.509254313e-05 | L170: 1.256835711e-05 | N170: -0.0002197715883 | O170: -0.009554407557 | P170: -0.0003693544196 | Q170: -0.009708287877 | R170: 3.473078441e-06
A171: 82.54335 | B171: ='DF raw data'!D176 -> -4.9815867e-06 | C171: ='DF raw data'!E176 -> 3.2560497e-06 | D171: ='DF raw data'!F176 -> -6.3405842e-06 | F171: -4.986488581e-06 | G171: 3.267189205e-06 | H171: -6.346823335e-06 | J171: 1.330094326e-06 | K171: -1.719344718e-05 | L171: 1.047217349e-05 | N171: -0.0002191062884 | O171: -0.009664002331 | P171: -0.0003779544099 | Q171: -0.009897336893 | R171: 3.568543255e-06
A172: 83.04354 | B172: ='DF raw data'!D177 -> -2.7033607e-06 | C172: ='DF raw data'!E177 -> 7.1152976e-06 | D172: ='DF raw data'!F177 -> -8.2287243e-06 | F172: -2.706020807e-06 | G172: 7.139640254e-06 | H172: -8.236821365e-06 | J172: -2.8638924e-06 | K172: -8.429692697e-06 | L172: 3.380988923e-06 | N172: -0.0002205387788 | O172: -0.009774313623 | P172: -0.0003821708579 | Q172: -0.01008849493 | R172: 3.665926205e-06
A173: 83.54373 | B173: ='DF raw data'!D178 -> -1.4849143e-06 | C173: ='DF raw data'!E178 -> 1.033823e-05 | D173: ='DF raw data'!F178 -> -1.8140288e-05 | F173: -1.486375456e-06 | G173: 1.037359886e-05 | H173: -1.815813804e-05 | J173: -8.352486367e-06 | K173: -9.128161431e-06 | L173: -4.893160437e-06 | N173: -0.0002247166089 | O173: -0.009886714624 | P173: -0.000386736673 | Q173: -0.01028193675 | R173: 3.765995621e-06
A174: 84.04392 | B174: ='DF raw data'!D179 -> -2.5085178e-06 | C174: ='DF raw data'!E179 -> 3.5565286e-06 | D174: ='DF raw data'!F179 -> -1.6060409e-05 | F174: -2.510986182e-06 | G174: 3.568696094e-06 | H174: -1.607621244e-05 | J174: -8.047607762e-06 | K174: -1.514716838e-05 | L174: -3.464369188e-06 | N174: -0.0002287419419 | O174: -0.01000112906 | P174: -0.0003943131351 | Q174: -0.01047916824 | R174: 3.869937966e-06
A175: 84.54411 | B175: ='DF raw data'!D180 -> -3.1926324e-06 | C175: ='DF raw data'!E180 -> 1.1131186e-05 | D175: ='DF raw data'!F180 -> -1.6579089e-06 | F175: -3.19577395e-06 | G175: 1.11692677e-05 | H175: -1.659540282e-06 | J175: 1.798715897e-07 | K175: -1.309044898e-05 | L175: 7.783075818e-06 | N175: -0.0002286519719 | O175: -0.01011549849 | P175: -0.0004008608468 | Q175: -0.01067967482 | R175: 3.976464002e-06
A176: 85.0443 | B176: ='DF raw data'!D181 -> -3.0870365e-06 | C176: ='DF raw data'!E181 -> 2.0005695e-05 | D176: ='DF raw data'!F181 -> 5.0561339e-06 | F176: -3.090074144e-06 | G176: 2.007413791e-05 | H176: 5.061109136e-06 | J176: 3.223165777e-06 | K176: -3.11999946e-06 | L176: 1.196032239e-05 | N176: -0.0002270397766 | O176: -0.01022906151 | P176: -0.0004024214393 | Q176: -0.010880962 | R176: 4.083249603e-06
A177: 85.54449 | B177: ='DF raw data'!D182 -> -1.6259587e-06 | C177: ='DF raw data'!E182 -> 1.7306331e-05 | D177: ='DF raw data'!F182 -> 1.057031e-06 | F177: -1.627558643e-06 | G177: 1.736553893e-05 | H177: 1.058071119e-06 | J177: 2.354238894e-06 | K177: -1.020940604e-05 | L177: 9.733228782e-06 | N177: -0.0002258622099 | O177: -0.01034203553 | P177: -0.0004075280821 | Q177: -0.01108480348 | R177: 4.191837288e-06
A178: 86.04468 | B178: ='DF raw data'!D183 -> 5.8204705e-07 | C178: ='DF raw data'!E183 -> 6.7487713e-06 | D178: ='DF raw data'!F183 -> -1.5769784e-06 | F178: 5.826197843e-07 | G178: 6.771860004e-06 | H178: -1.578530147e-06 | J178: 4.871961598e-06 | K178: -1.962651374e-05 | L178: 5.420414445e-06 | N178: -0.0002234253034 | O178: -0.01045379063 | P178: -0.000417345068 | Q178: -0.01129355531 | R178: 4.303927753e-06
A179: 86.54487 | B179: ='DF raw data'!D184 -> -1.4384573e-06 | C179: ='DF raw data'!E184 -> 5.213264e-07 | D179: ='DF raw data'!F184 -> 7.8953093e-08 | F179: -1.439872742e-06 | G179: 5.23109947e-07 | H179: 7.903078284e-08 | J179: 6.982317546e-06 | K179: -1.349330351e-05 | L179: 2.435924293e-06 | N179: -0.000219932818 | O179: -0.01056379883 | P179: -0.0004240942835 | Q179: -0.01150568303 | R179: 4.418084318e-06
A180: 87.04506 | B180: ='DF raw data'!D185 -> -2.686073e-06 | C180: ='DF raw data'!E185 -> 7.8894409e-06 | D180: ='DF raw data'!F185 -> -1.8086522e-06 | F180: -2.688716096e-06 | G180: 7.916432031e-06 | H180: -1.810431914e-06 | J180: 5.119179721e-06 | K180: -1.943546435e-05 | L180: 2.723986167e-06 | N180: -0.0002173722555 | O180: -0.01067252626 | P180: -0.0004338157084 | Q180: -0.0117226733 | R180: 4.535852437e-06
A181: 87.54525 | B181: ='DF raw data'!D186 -> -4.1793538e-08 | C181: ='DF raw data'!E186 -> 7.0822066e-06 | D181: ='DF raw data'!F186 -> 5.6652954e-07 | F181: -4.183466284e-08 | G181: 7.106436044e-06 | H181: 5.670870051e-07 | J181: 4.216910761e-06 | K181: -1.606829095e-05 | L181: 5.852973364e-06 | N181: -0.0002152629989 | O181: -0.01078019866 | P181: -0.0004418529069 | Q181: -0.01194368371 | R181: 4.65668441e-06
A182: 88.04544 | B182: ='DF raw data'!D187 -> -5.2485893e-07 | C182: ='DF raw data'!E187 -> -4.0046575e-06 | D182: ='DF raw data'!F187 -> 8.3773722e-07 | F182: -5.253753912e-07 | G182: -4.01835812e-06 | H182: 8.385615534e-07 | J182: 1.151228195e-06 | K182: -2.293667375e-06 | L182: 3.137492458e-06 | N182: -0.000214687166 | O182: -0.01088758303 | P182: -0.0004430001764 | Q182: -0.01216526797 | R182: 4.777900323e-06
A183: 88.54563 | B183: ='DF raw data'!D188 -> -7.9117526e-06 | C183: ='DF raw data'!E188 -> 9.0740068e-06 | D183: ='DF raw data'!F188 -> -2.6287983e-06 | F183: -7.919537765e-06 | G183: 9.105050534e-06 | H183: -2.631385038e-06 | J183: -2.023489857e-06 | K183: -1.478367304e-05 | L183: -6.129953945e-06 | N183: -0.0002156992954 | O183: -0.01099547366 | P183: -0.0004503948218 | Q183: -0.01239055095 | R183: 4.902638546e-06
A184: 89.04582 | B184: ='DF raw data'!D189 -> -1.5119025e-05 | C184: ='DF raw data'!E189 -> 2.3818644e-05 | D184: ='DF raw data'!F189 -> -2.8090928e-06 | F184: -1.513390212e-05 | G184: 2.390013167e-05 | H184: -2.811856947e-06 | J184: 1.953813162e-06 | K184: -2.760423985e-05 | L184: -1.056008691e-05 | N184: -0.0002147220176 | O184: -0.01110287547 | P184: -0.0004642021865 | Q184: -0.01262274025 | R184: 5.033482855e-06
A185: 89.54601 | B185: ='DF raw data'!D190 -> -1.2547971e-05 | C185: ='DF raw data'!E190 -> 3.1997411e-06 | D185: ='DF raw data'!F190 -> -7.3567335e-06 | F185: -1.25603182e-05 | G185: 3.210687963e-06 | H185: -7.363972526e-06 | J185: 4.24550427e-06 | K185: -6.993385096e-06 | L185: -4.825740661e-06 | N185: -0.0002125984588 | O185: -0.01120921509 | P185: -0.0004677002078 | Q185: -0.01285667921 | R185: 5.165503799e-06
A186: 90.0462 | B186: ='DF raw data'!D191 -> -9.1030306e-06 | C186: ='DF raw data'!E191 -> 6.9670573e-06 | D186: ='DF raw data'!F191 -> -7.7809473e-06 | F186: -9.111987982e-06 | G186: 6.990892798e-06 | H186: -7.788603752e-06 | J186: 9.688225442e-07 | K186: 3.295169704e-06 | L186: -3.18062686e-07 | N186: -0.0002121138635 | O186: -0.01131531232 | P186: -0.0004660519969 | Q186: -0.01308979376 | R186: 5.296651993e-06
A187: 90.54639 | B187: ='DF raw data'!D192 -> -9.9815152e-06 | C187: ='DF raw data'!E192 -> 1.4223227e-05 | D187: ='DF raw data'!F192 -> -8.1264316e-06 | F187: -9.991337011e-06 | G187: 1.42718871e-05 | H187: -8.134428009e-06 | J187: -4.520171576e-06 | K187: -7.949585167e-06 | L187: -1.828129711e-06 | N187: -0.0002143748081 | O187: -0.01142254046 | P187: -0.0004700282999 | Q187: -0.01332489722 | R187: 5.430144282e-06
A188: 91.04658 | B188: ='DF raw data'!D193 -> -7.4195418e-06 | C188: ='DF raw data'!E193 -> 1.6946076e-05 | D188: ='DF raw data'!F193 -> -5.9743379e-06 | F188: -7.426842629e-06 | G188: 1.700405143e-05 | H188: -5.980216648e-06 | J188: -9.124067056e-06 | K188: -1.412710848e-05 | L188: -3.965750162e-06 | N188: -0.0002189385752 | O188: -0.01153205134 | P188: -0.0004770945383 | Q188: -0.01356353513 | R188: 5.567973286e-06
A189: 91.54677 | B189: ='DF raw data'!D194 -> -3.3297333e-06 | C189: ='DF raw data'!E194 -> 1.2640383e-05 | D189: ='DF raw data'!F194 -> -8.0575464e-06 | F189: -3.333009758e-06 | G189: 1.268362792e-05 | H189: -8.065475026e-06 | J189: -8.691373404e-06 | K189: -1.624594968e-05 | L189: -3.705800923e-06 | N189: -0.0002232859133 | O189: -0.01164373673 | P189: -0.0004852205998 | Q189: -0.01380623763 | R189: 5.710675307e-06
A190: 92.04696 | B190: ='DF raw data'!D195 -> -2.9406515e-06 | C190: ='DF raw data'!E195 -> 5.9602175e-06 | D190: ='DF raw data'!F195 -> -6.3439129e-06 | F190: -2.943545101e-06 | G190: 5.980608426e-06 | H190: -6.35015531e-06 | J190: -4.917654916e-06 | K190: -1.779043762e-05 | L190: -5.229655022e-06 | N190: -0.0002257456751 | O190: -0.01175665245 | P190: -0.0004941191988 | Q190: -0.01405339111 | R190: 5.858288825e-06
A191: 92.54715 | B191: ='DF raw data'!D196 -> -5.4648485e-06 | C191: ='DF raw data'!E196 -> 1.7956654e-05 | D191: ='DF raw data'!F196 -> -6.3417847e-06 | F191: -5.470225911e-06 | G191: 1.801808679e-05 | H191: -6.348025016e-06 | J191: -4.671973503e-06 | K191: -2.158898179e-05 | L191: -3.05073247e-07 | N191: -0.0002280825495 | O191: -0.01187073707 | P191: -0.0005049177916 | Q191: -0.01430594594 | R191: 6.011828961e-06
A192: 93.04734 | B192: ='DF raw data'!D197 -> -6.7774749e-06 | C192: ='DF raw data'!E197 -> 1.5759775e-05 | D192: ='DF raw data'!F197 -> -1.0011043e-05 | F192: -6.784143935e-06 | G192: 1.581369189e-05 | H192: -1.002089387e-05 | J192: -6.878477668e-06 | K192: -2.814231944e-05 | L192: 9.055709559e-06 | N192: -0.0002315230953 | O192: -0.0119865426 | P192: -0.0005189942984 | Q192: -0.0145655417 | R192: 6.173369336e-06
A193: 93.54753 | B193: ='DF raw data'!D198 -> -4.7031067e-06 | C193: ='DF raw data'!E198 -> 1.34244e-05 | D193: ='DF raw data'!F198 -> -3.9835741e-06 | F193: -4.707734557e-06 | G193: 1.347032718e-05 | H193: -3.987493937e-06 | J193: -5.5266728e-06 | K193: -2.136699994e-05 | L193: 5.547522996e-06 | N193: -0.0002342874817 | O193: -0.01210373086 | P193: -0.0005296818581 | Q193: -0.01483048326 | R193: 6.341159819e-06
A194: 94.04772 | B194: ='DF raw data'!D199 -> -1.0927804e-07 | C194: ='DF raw data'!E199 -> 7.7640179e-06 | D194: ='DF raw data'!F199 -> 5.7564812e-06 | F194: -1.093855696e-07 | G194: 7.790579937e-06 | H194: 5.762145578e-06 | J194: 1.605640397e-07 | K194: -2.434189888e-05 | L194: 1.385199797e-06 | N194: -0.0002342071692 | O194: -0.01222087894 | P194: -0.0005418574325 | Q194: -0.01510151493 | R194: 6.515457265e-06
A195: 94.54791 | B195: ='DF raw data'!D200 -> 3.8145258e-06 | C195: ='DF raw data'!E200 -> 2.1792916e-06 | D195: ='DF raw data'!F200 -> 8.9064798e-07 | F195: 3.818279293e-06 | G195: 2.18674733e-06 | H195: 8.915243776e-07 | J195: 6.253969456e-06 | K195: -2.360540379e-05 | L195: 6.49019147e-06 | N195: -0.0002310789962 | O195: -0.01233646234 | P195: -0.0005536646194 | Q195: -0.01537845244 | R195: 6.69549666e-06
A196: 95.0481 | B196: ='DF raw data'!D201 -> 6.9544872e-06 | C196: ='DF raw data'!E201 -> 1.0357042e-05 | D196: ='DF raw data'!F201 -> -5.2802443e-06 | F196: 6.961330415e-06 | G196: 1.039247522e-05 | H196: -5.28544006e-06 | J196: 4.617539993e-08 | K196: -1.932567502e-05 | L196: 4.818173422e-06 | N196: -0.0002310558998 | O196: -0.0124520342 | P196: -0.0005633311288 | Q196: -0.01566022504 | R196: 6.880931493e-06
A197: 95.54829 | B197: ='DF raw data'!D202 -> 7.8716221e-06 | C197: ='DF raw data'!E202 -> 1.5298518e-05 | D197: ='DF raw data'!F202 -> -3.8259077e-06 | F197: 7.879367776e-06 | G197: 1.535085685e-05 | H197: -3.829672393e-06 | J197: -1.12393026e-05 | K197: -2.253741347e-05 | L197: 5.72099963e-06 | N197: -0.0002366776865 | O197: -0.01257041801 | P197: -0.0005746041176 | Q197: -0.01594763627 | R197: 7.074097979e-06
A198: 96.04848 | B198: ='DF raw data'!D203 -> 8.5903812e-06 | C198: ='DF raw data'!E203 -> 1.8287286e-05 | D198: ='DF raw data'!F203 -> -5.7112502e-06 | F198: 8.598834135e-06 | G198: 1.834984994e-05 | H198: -5.71687007e-06 | J198: -9.819947029e-06 | K198: -2.056503764e-05 | L198: 5.131551383e-06 | N198: -0.0002415895258 | O198: -0.01269125867 | P198: -0.0005848905438 | Q198: -0.01624019267 | R198: 7.27440529e-06
A199: 96.54867 | B199: ='DF raw data'!D204 -> 8.1304097e-06 | C199: ='DF raw data'!E204 -> 1.670951e-05 | D199: ='DF raw data'!F204 -> -8.5362717e-06 | F199: 8.138410023e-06 | G199: =(1-$G$1*($B$2-$G$2))*C199*$M$2/$M$1 -> 1.67666761e-05 | H199: -8.544671391e-06 | J199: =-CELL("contents", INDEX($F$6:$F$1203,1204-CELL("row",F199))) -> -2.819392555e-06 | K199: =CELL("contents", INDEX($G$6:$G$1203,1204-CELL("row",G199))) -> -1.855357354e-05 | L199: =-CELL("contents", INDEX($H$6:$H$1203,1204-CELL("row",H199))) -> 1.49518952e-06 | N199: -0.0002429997578 | O199: -0.01281280472 | P199: -0.0005941708558 | Q199: -0.01653739099 | R199: 7.480527531e-06
A200: =A199+$B$1 -> 97.04886 | B200: ='DF raw data'!D205 -> 8.9430205e-07 | C200: ='DF raw data'!E205 -> 1.2575802e-05 | D200: ='DF raw data'!F205 -> -1.0133435e-05 | F200: 8.951820432e-07 | G200: 1.261882598e-05 | H200: -1.01434063e-05 | J200: -2.669185296e-07 | K200: -1.474913327e-05 | L200: -2.348693943e-06 | N200: =J200*$B$1+N199 -> -0.0002431332678 | O200: =N200*$B$1+O199 -> -0.01293441755 | P200: =K200*$B$1+P199 -> -0.0006015482247 | Q200: =P200*$B$1+Q199 -> -0.0168382794 | R200: =(N200^2+P200^2)*$B$1+R199 -> 7.691094542e-06
... 1003 more rows

Sheet 15 mm
A1: dz | B1: ='DF raw data'!H7 -> 0.50015 | C1: mm | F1: T_coeff | G1: -0.0008 | H1: /degC | L1: Hallref | M1: ='PI vs gap'!B50 -> 0.50518 | N1: T | P1: IBy total | Q1: =P1203*1000 -> -13.67780508 | R1: muTm
A2: Tref | B2: ='DF raw data'!H8 -> 21.25 | C2: degC | F2: Tcorr | G2: 20 | H2: degC | L2: NMRref | M2: ='PI vs gap'!B51 -> 0.50641 | N2: T | P2: JBy total | Q2: =Q1203 -> -9.590851698 | R2: muTm^2
A3: Encoder | B3: ='DF raw data'!H9 -> 493304 | P3: PI total | Q3: =R1203 -> 2876.278465 | R3: T^2mm^3
J4: SXR-rotation
A5: z [mm] | B5: Bx | C5: By | D5: Bz | F5: Bx_corr | G5: By_corr | H5: Bz_corr | J5: Bx_rot | K5: By_rot | L5: Bz_rot | N5: Ix | O5: Jx | P5: Iy | Q5: Jy | R5: PI
A6: ='PI vs gap'!B53 -> 0.012 | B6: ='DF raw data'!G11 -> -2.3965749e-06 | C6: ='DF raw data'!H11 -> -5.5324936e-06 | D6: ='DF raw data'!I11 -> 4.9081041e-07 | F6: =(1-$G$1*($B$2-$G$2))*B6 -> -2.398971475e-06 | G6: =(1-$G$1*($B$2-$G$2))*C6*$M$2/$M$1 -> -5.551509945e-06 | H6: =(1-$G$1*($B$2-$G$2))*D6 -> 4.913012204e-07 | J6: =-CELL("contents", INDEX($F$6:$F$1203,1204-CELL("row",F6))) -> -4.437526694e-06 | K6: =CELL("contents", INDEX($G$6:$G$1203,1204-CELL("row",G6))) -> 4.415349901e-06 | L6: =-CELL("contents", INDEX($H$6:$H$1203,1204-CELL("row",H6))) -> -1.99059851e-06 | N6: =J6*$B$1 -> -2.219428976e-06 | O6: =N6*$B$1 -> -1.110047402e-06 | P6: =K6*$B$1 -> 2.208337253e-06 | Q6: =P6*$B$1 -> 1.104499877e-06 | R6: =(N6^2+P6^2)*$B$1 -> 4.902779593e-12
A7: =A6+$B$1 -> 0.51215 | B7: ='DF raw data'!G12 -> -2.0165735e-06 | C7: ='DF raw data'!H12 -> -1.4470244e-05 | D7: ='DF raw data'!I12 -> 8.7169592e-06 | F7: =(1-$G$1*($B$2-$G$2))*B7 -> -2.018590073e-06 | G7: =(1-$G$1*($B$2-$G$2))*C7*$M$2/$M$1 -> -1.451998127e-05 | H7: 8.725676159e-06 | J7: =-CELL("contents", INDEX($F$6:$F$1203,1204-CELL("row",F7))) -> -4.44501027e-06 | K7: =CELL("contents", INDEX($G$6:$G$1203,1204-CELL("row",G7))) -> 6.318720275e-07 | L7: =-CELL("contents", INDEX($H$6:$H$1203,1204-CELL("row",H7))) -> -2.608369664e-06 | N7: =J7*$B$1+N6 -> -4.442600862e-06 | O7: =N7*$B$1+O6 -> -3.332014223e-06 | P7: =K7*$B$1+P6 -> 2.524368048e-06 | Q7: =P7*$B$1+Q6 -> 2.367062556e-06 | R7: =(N7^2+P7^2)*$B$1+R6 -> 1.796126419e-11
A8: =A7+$B$1 -> 1.0123 | B8: ='DF raw data'!G13 -> -2.6753896e-06 | C8: ='DF raw data'!H13 -> 2.7802878e-06 | D8: ='DF raw data'!I13 -> 4.1047601e-06 | F8: -2.67806499e-06 | G8: 2.789844234e-06 | H8: 4.10886486e-06 | J8: -1.100928028e-06 | K8: -1.496408352e-05 | L8: -4.116060749e-06 | N8: =J8*$B$1+N7 -> -4.993230015e-06 | O8: =N8*$B$1+O7 -> -5.829378216e-06 | P8: =K8*$B$1+P7 -> -4.959918324e-06 | Q8: =P8*$B$1+Q7 -> -1.136405939e-07 | R8: =(N8^2+P8^2)*$B$1+R7 -> 4.273526205e-11
A9: 1.51245 | B9: ='DF raw data'!G14 -> -2.5188619e-06 | C9: ='DF raw data'!H14 -> -3.1441461e-06 | D9: ='DF raw data'!I14 -> -5.6385547e-06 | F9: -2.521380762e-06 | G9: -3.154953192e-06 | H9: -5.644193255e-06 | J9: 4.422653435e-07 | K9: 2.458876827e-06 | L9: -4.813645236e-06 | N9: -4.772031004e-06 | O9: -8.216109522e-06 | P9: -3.73011108e-06 | Q9: -1.97925565e-06 | R9: 6.108376924e-11
A10: 2.0126 | B10: ='DF raw data'!G15 -> -2.5051759e-06 | C10: ='DF raw data'!H15 -> -2.5004931e-06 | D10: ='DF raw data'!I15 -> 7.3979004e-07 | F10: -2.507681076e-06 | G10: -2.509087821e-06 | H10: 7.4052983e-07 | J10: -3.679294819e-06 | K10: 5.408113449e-06 | L10: -4.072423255e-06 | N10: -6.612230308e-06 | O10: -1.152321651e-05 | P10: -1.025243138e-06 | Q10: -2.492031006e-06 | R10: 8.347684171e-11
A11: 2.51275 | B11: ='DF raw data'!G16 -> -2.7540209e-06 | C11: ='DF raw data'!H16 -> 5.2043933e-06 | D11: ='DF raw data'!I16 -> 6.5354502e-06 | F11: -2.756774921e-06 | G11: 5.222281895e-06 | H11: 6.54198565e-06 | J11: -8.377340972e-06 | K11: -3.184007415e-06 | L11: -3.374973702e-06 | N11: -1.080215739e-05 | O11: -1.692591553e-05 | P11: -2.617724447e-06 | Q11: -3.801285888e-06 | R11: 1.452649154e-10
A12: 3.0129 | B12: ='DF raw data'!G17 -> -2.3404409e-06 | C12: ='DF raw data'!H17 -> -7.791682e-06 | D12: ='DF raw data'!I17 -> -3.8208968e-06 | F12: -2.342781341e-06 | G12: -7.818463651e-06 | H12: -3.824717697e-06 | J12: -9.139247317e-06 | K12: -4.871771645e-06 | L12: -3.814935624e-06 | N12: -1.537315194e-05 | O12: -2.461479747e-05 | P12: -5.054341035e-06 | Q12: -6.329214556e-06 | R12: 2.762442794e-10
A13: 3.51305 | B13: ='DF raw data'!G18 -> -2.3063967e-06 | C13: ='DF raw data'!H18 -> -8.4897738e-06 | D13: ='DF raw data'!I18 -> -2.8617835e-06 | F13: -2.308703097e-06 | G13: -8.51895494e-06 | H13: -2.864645283e-06 | J13: -5.781199524e-06 | K13: -5.238484597e-06 | L13: -4.587934151e-06 | N13: -1.826461888e-05 | O13: -3.374984661e-05 | P13: -7.674369106e-06 | Q13: -1.016755026e-05 | R13: 4.725492753e-10
A14: 4.0132 | B14: ='DF raw data'!G19 -> -2.9423882e-06 | C14: ='DF raw data'!H19 -> 9.3086119e-06 | D14: ='DF raw data'!I19 -> 1.9024264e-09 | F14: -2.945330588e-06 | G14: 9.340607559e-06 | H14: 1.904328826e-09 | J14: -1.936129295e-06 | K14: 1.760528378e-06 | L14: -4.61178678e-06 | N14: -1.923297395e-05 | O14: -4.336921853e-05 | P14: -6.793840837e-06 | Q14: -1.356548976e-05 | R14: 6.806434649e-10
A15: 4.51335 | B15: ='DF raw data'!G20 -> -2.3632001e-06 | C15: ='DF raw data'!H20 -> -5.9103595e-06 | D15: ='DF raw data'!I20 -> 3.9929505e-06 | F15: -2.3655633e-06 | G15: -5.93067465e-06 | H15: 3.99694345e-06 | J15: -1.454718365e-06 | K15: 4.065107969e-06 | L15: -4.205265765e-06 | N15: -1.996055134e-05 | O15: -5.335248828e-05 | P15: -4.760677086e-06 | Q15: -1.59465424e-05 | R15: 8.912504561e-10
A16: 5.0135 | B16: ='DF raw data'!G21 -> -2.4105302e-06 | C16: ='DF raw data'!H21 -> -5.2995283e-06 | D16: ='DF raw data'!I21 -> -1.2471228e-08 | F16: -2.41294073e-06 | G16: -5.317743894e-06 | H16: -1.248369923e-08 | J16: -3.421650432e-06 | K16: -4.826516626e-06 | L16: -4.041578741e-06 | N16: -2.16718898e-05 | O16: -6.419168397e-05 | P16: -7.174659377e-06 | Q16: -1.953494829e-05 | R16: 1.151901901e-09
A17: 5.51365 | B17: ='DF raw data'!G22 -> -2.4134624e-06 | C17: ='DF raw data'!H22 -> -6.3191774e-06 | D17: ='DF raw data'!I22 -> -6.9134626e-06 | F17: -2.415875862e-06 | G17: -6.340897743e-06 | H17: -6.920376063e-06 | J17: -5.970556392e-06 | K17: 7.403814396e-06 | L17: -3.918131617e-06 | N17: -2.465806358e-05 | O17: -7.652441447e-05 | P17: -3.471641607e-06 | Q17: -2.127128984e-05 | R17: 1.462031109e-09
A18: 6.0138 | B18: ='DF raw data'!G23 -> -2.2498625e-06 | C18: ='DF raw data'!H23 -> -9.1442316e-06 | D18: ='DF raw data'!I23 -> 2.2958227e-06 | F18: -2.252112362e-06 | G18: -9.175662249e-06 | H18: 2.298118523e-06 | J18: -6.490386202e-06 | K18: -3.862270663e-06 | L18: -4.047977033e-06 | N18: -2.790423024e-05 | O18: -9.048071522e-05 | P18: -5.403356279e-06 | Q18: -2.397377848e-05 | R18: 1.866073448e-09
A19: 6.51395 | B19: ='DF raw data'!G24 -> -2.2851727e-06 | C19: ='DF raw data'!H24 -> -6.1315814e-06 | D19: ='DF raw data'!I24 -> 1.3838029e-05 | F19: -2.287457873e-06 | G19: -6.152656936e-06 | H19: 1.385186703e-05 | J19: -2.473730259e-06 | K19: -6.819478692e-07 | L19: -4.020060444e-06 | N19: -2.914146643e-05 | O19: -0.0001050558197 | P19: -5.744432506e-06 | Q19: -2.68468564e-05 | R19: 2.307317566e-09
A20: 7.0141 | B20: ='DF raw data'!G25 -> -2.6964171e-06 | C20: ='DF raw data'!H25 -> 5.0662957e-06 | D20: ='DF raw data'!I25 -> 1.3488087e-05 | F20: -2.699113517e-06 | G20: 5.083709625e-06 | H20: 1.350157509e-05 | J20: 9.80263264e-07 | K20: 8.090919331e-06 | L20: -3.339730194e-06 | N20: -2.865118776e-05 | O20: -0.0001193857112 | P20: -1.697759202e-06 | Q20: -2.769599067e-05 | R20: 2.719327605e-09
A21: 7.51425 | B21: ='DF raw data'!G26 -> -2.9784333e-06 | C21: ='DF raw data'!H26 -> 1.1399682e-05 | D21: ='DF raw data'!I26 -> 5.9439185e-06 | F21: -2.981411733e-06 | G21: 1.143886511e-05 | H21: 5.949862418e-06 | J21: -1.85661446e-06 | K21: -7.362850477e-06 | L21: -2.949203157e-06 | N21: -2.957977348e-05 | O21: -0.0001341800349 | P21: -5.380288868e-06 | Q21: -3.038694214e-05 | R21: 3.171418446e-09
A22: 8.0144 | B22: ='DF raw data'!G27 -> -2.574996e-06 | C22: ='DF raw data'!H27 -> 1.4527616e-05 | D22: ='DF raw data'!I27 -> 9.277353e-07 | F22: -2.577570996e-06 | G22: 1.457755047e-05 | H22: 9.286630353e-07 | J22: -4.470334068e-06 | K22: -7.057323313e-06 | L22: -3.684292712e-06 | N22: -3.181561107e-05 | O22: -0.0001500926128 | P22: -8.910009124e-06 | Q22: -3.484328321e-05 | R22: 3.717392874e-09
A23: 8.51455 | B23: ='DF raw data'!G28 -> -1.8406846e-06 | C23: ='DF raw data'!H28 -> 5.842975e-06 | D23: ='DF raw data'!I28 -> -2.9545868e-07 | F23: =(1-$G$1*($B$2-$G$2))*B23 -> -1.842525285e-06 | G23: 5.863058535e-06 | H23: -2.957541387e-07 | J23: -4.502536839e-06 | K23: -1.033658532e-05 | L23: -6.382027652e-06 | N23: -3.406755487e-05 | O23: -0.0001671315004 | P23: -1.407985227e-05 | Q23: -4.188532132e-05 | R23: 4.397016967e-09
A24: 9.0147 | B24: ='DF raw data'!G29 -> -1.8254051e-06 | C24: ='DF raw data'!H29 -> 3.7048037e-06 | D24: ='DF raw data'!I29 -> -2.7755962e-06 | F24: -1.827230505e-06 | G24: 3.71753789e-06 | H24: -2.778371796e-06 | J24: -2.20319089e-06 | K24: 1.764949121e-06 | L24: -1.58461293e-06 | N24: -3.516948079e-05 | O24: -0.0001847215162 | P24: -1.319711297e-05 | Q24: -4.848585737e-05 | R24: 5.102756711e-09
A25: 9.51485 | B25: ='DF raw data'!G30 -> 2.8725572e-06 | C25: ='DF raw data'!H30 -> -2.3902842e-06 | D25: ='DF raw data'!I30 -> -1.929697e-06 | F25: 2.875429757e-06 | G25: -2.39850011e-06 | H25: -1.931626697e-06 | J25: 2.051466617e-06 | K25: 2.491815155e-06 | L25: 2.72574312e-06 | N25: -3.414343976e-05 | O25: -0.0002017983576 | P25: -1.195083162e-05 | Q25: -5.44630658e-05 | R25: 5.757251428e-09
A26: 10.015 | B26: ='DF raw data'!G31 -> 8.7171375e-06 | C26: ='DF raw data'!H31 -> -7.7603263e-06 | D26: ='DF raw data'!I31 -> -1.5728986e-06 | F26: 8.725854637e-06 | G26: -7.787000175e-06 | H26: -1.574471499e-06 | J26: 5.498176784e-06 | K26: 2.581920003e-06 | L26: 4.660607151e-06 | N26: -3.139352664e-05 | O26: -0.0002174998299 | P26: -1.065948433e-05 | Q26: -5.979440689e-05 | R26: 6.307005365e-09
A27: 10.51515 | B27: ='DF raw data'!G32 -> 8.5532029e-06 | C27: ='DF raw data'!H32 -> -7.7511186e-06 | D27: ='DF raw data'!I32 -> 1.0133567e-07 | F27: 8.561756103e-06 | G27: -7.777760826e-06 | H27: 1.014370057e-07 | J27: 4.233013485e-06 | K27: 9.142369105e-07 | L27: 7.293517932e-06 | N27: -2.927638495e-05 | O27: -0.0002321424139 | P27: -1.020222874e-05 | Q27: -6.489705159e-05 | R27: 6.787745637e-09
A28: 11.0153 | B28: ='DF raw data'!G33 -> 5.3238637e-06 | C28: ='DF raw data'!H33 -> -1.0638615e-05 | D28: ='DF raw data'!I33 -> -7.5967569e-07 | F28: 5.329187564e-06 | G28: -1.067518216e-05 | H28: -7.604353657e-07 | J28: -2.338294859e-06 | K28: -7.6251304e-06 | L28: 5.161660904e-06 | N28: -3.044588312e-05 | O28: -0.0002473699223 | P28: -1.401593771e-05 | Q28: -7.190712284e-05 | R28: 7.349613301e-09
A29: 11.51545 | B29: ='DF raw data'!G34 -> 2.7681617e-06 | C29: ='DF raw data'!H34 -> -1.0677443e-05 | D29: ='DF raw data'!I34 -> -6.4893143e-06 | F29: 2.770929862e-06 | G29: -1.071414362e-05 | H29: -6.495803614e-06 | J29: -6.816114305e-06 | K29: -4.513761504e-06 | L29: 8.691594712e-07 | N29: -3.385496269e-05 | O29: -0.0002643024819 | P29: -1.627349552e-05 | Q29: -8.004631162e-05 | R29: 8.055317527e-09
A30: 12.0156 | B30: ='DF raw data'!G35 -> 3.2235275e-06 | C30: ='DF raw data'!H35 -> -5.7583829e-06 | D30: ='DF raw data'!I35 -> -2.258472e-06 | F30: 3.226751027e-06 | G30: -5.778175674e-06 | H30: -2.260730472e-06 | J30: -6.02688126e-06 | K30: 8.776882655e-07 | L30: 1.886791106e-06 | N30: -3.686930735e-05 | O30: -0.000282742666 | P30: -1.583451974e-05 | Q30: -8.796594667e-05 | R30: 8.860597958e-09
A31: 12.51575 | B31: ='DF raw data'!G36 -> 2.1184878e-06 | C31: ='DF raw data'!H36 -> -1.8536387e-06 | D31: ='DF raw data'!I36 -> 4.9935256e-06 | F31: 2.120606288e-06 | G31: -1.860010046e-06 | H31: 4.998519126e-06 | J31: -1.753786134e-06 | K31: 7.978320129e-06 | L31: 5.68856278e-06 | N31: -3.774646349e-05 | O31: -0.0003016215597 | P31: -1.184416292e-05 | Q31: -9.388980476e-05 | R31: 9.643372571e-09
A32: 13.0159 | B32: ='DF raw data'!G37 -> -8.8430357e-07 | C32: ='DF raw data'!H37 -> 3.6981316e-06 | D32: ='DF raw data'!I37 -> 6.1873066e-06 | F32: -8.851878736e-07 | G32: 3.710842857e-06 | H32: 6.193493907e-06 | J32: 1.239582844e-06 | K32: -2.253499219e-06 | L32: 1.099322925e-05 | N32: -3.712648613e-05 | O32: -0.0003201903717 | P32: -1.297125056e-05 | Q32: -0.0001003773757 | R32: 1.041691922e-08
A33: 13.51605 | B33: ='DF raw data'!G38 -> 1.0727252e-06 | C33: ='DF raw data'!H38 -> -4.3440568e-06 | D33: ='DF raw data'!I38 -> 1.9065168e-07 | F33: 1.073797925e-06 | G33: -4.358988238e-06 | H33: 1.908423317e-07 | J33: -1.167540474e-06 | K33: -5.785542408e-06 | L33: 8.130674252e-06 | N33: -3.77104315e-05 | O33: -0.000339051244 | P33: -1.586488959e-05 | Q33: -0.0001083122003 | R33: 1.125405597e-08
A34: 14.0162 | B34: ='DF raw data'!G39 -> 1.3865809e-06 | C34: ='DF raw data'!H39 -> -1.7042725e-05 | D34: ='DF raw data'!I39 -> 4.658024e-06 | F34: 1.387967481e-06 | G34: -1.710130443e-05 | H34: 4.662682024e-06 | J34: -5.543802564e-06 | K34: -5.841639365e-06 | L34: -1.13005903e-06 | N34: -4.048316435e-05 | O34: -0.0003592988987 | P34: -1.878658552e-05 | Q34: -0.000117708311 | R34: 1.225026594e-08
A35: 14.51635 | B35: ='DF raw data'!G40 -> -3.154053e-06 | C35: ='DF raw data'!H40 -> -6.9649659e-06 | D35: ='DF raw data'!I40 -> 4.7283879e-07 | F35: -3.157207053e-06 | G35: -6.988905954e-06 | H35: 4.733116288e-07 | J35: -6.050132989e-06 | K35: -2.939530877e-06 | L35: -2.345485042e-06 | N35: -4.350913836e-05 | O35: -0.0003810599942 | P35: -2.025679189e-05 | Q35: -0.0001278397455 | R35: 1.340230282e-08
A36: 15.0165 | B36: ='DF raw data'!G41 -> -5.8399146e-06 | C36: ='DF raw data'!H41 -> -1.4773658e-05 | D36: ='DF raw data'!I41 -> -1.3488072e-05 | F36: -5.845754515e-06 | G36: -1.482443817e-05 | H36: -1.350156007e-05 | J36: -8.06190415e-06 | K36: -3.663450919e-06 | L36: 8.646917079e-06 | N36: -4.754129972e-05 | O36: -0.0004048377753 | P36: -2.208906687e-05 | Q36: -0.0001388875923 | R36: 1.477676606e-08
A37: 15.51665 | B37: ='DF raw data'!G42 -> -1.6168761e-06 | C37: ='DF raw data'!H42 -> -1.3530652e-05 | D37: ='DF raw data'!I42 -> -1.018526e-05 | F37: -1.618492976e-06 | G37: -1.35771597e-05 | H37: -1.019544526e-05 | J37: -9.147666728e-06 | K37: -1.324458549e-05 | L37: 8.101493901e-06 | N37: -5.211650524e-05 | O37: -0.0004309038454 | P37: -2.87133463e-05 | Q37: -0.0001532485724 | R37: 1.654759033e-08
A38: 16.0168 | B38: ='DF raw data'!G43 -> 3.9828683e-06 | C38: ='DF raw data'!H43 -> 4.6073064e-06 | D38: ='DF raw data'!I43 -> -2.1139824e-06 | F38: 3.986851168e-06 | G38: 4.623142682e-06 | H38: -2.116096382e-06 | J38: -4.283981602e-06 | K38: 3.335025619e-06 | L38: 1.217986269e-06 | N38: -5.425913864e-05 | O38: -0.0004580415536 | P38: -2.704533324e-05 | Q38: -0.0001667752958 | R38: 1.838589375e-08
A39: 16.51695 | B39: ='DF raw data'!G44 -> 7.6304586e-06 | C39: ='DF raw data'!H44 -> 5.2361493e-06 | D39: ='DF raw data'!I44 -> 6.1498354e-06 | F39: 7.638089059e-06 | G39: 5.254147047e-06 | H39: 6.155985235e-06 | J39: -4.241408471e-07 | K39: 4.963480889e-06 | L39: 1.166821556e-06 | N39: -5.447127268e-05 | O39: -0.0004852853606 | P39: -2.456284827e-05 | Q39: -0.0001790604044 | R39: 2.017165585e-08
A40: 17.0171 | B40: ='DF raw data'!G45 -> 9.9355839e-06 | C40: ='DF raw data'!H45 -> -6.8988555e-07 | D40: ='DF raw data'!I45 -> 6.7073593e-06 | F40: 9.945519484e-06 | G40: -6.922568319e-07 | H40: 6.714066659e-06 | J40: -2.184841859e-07 | K40: 6.231692668e-07 | L40: 4.412935026e-08 | N40: -5.458054755e-05 | O40: -0.0005125838215 | P40: -2.425117016e-05 | Q40: -0.0001911896271 | R40: 2.195576863e-08
A41: 17.51725 | B41: ='DF raw data'!G46 -> 3.1989603e-06 | C41: ='DF raw data'!H46 -> -2.1663921e-06 | D41: ='DF raw data'!I46 -> 1.5233334e-05 | F41: 3.20215926e-06 | G41: -2.173838446e-06 | H41: 1.524856733e-05 | J41: -3.658167113e-07 | K41: 7.27836558e-06 | L41: -2.096922828e-06 | N41: -5.476351078e-05 | O41: -0.0005399737914 | P41: -2.061089562e-05 | Q41: -0.0002014981666 | R41: 2.366820778e-08
A42: 18.0174 | B42: ='DF raw data'!G47 -> -4.0150535e-06 | C42: ='DF raw data'!H47 -> 6.6913044e-06 | D42: ='DF raw data'!I47 -> 2.1070526e-05 | F42: -4.019068554e-06 | G42: 6.714303822e-06 | H42: 2.109159653e-05 | J42: 1.797427532e-06 | K42: -3.412012934e-06 | L42: -4.1050011e-06 | N42: -5.38645274e-05 | O42: -0.0005669141348 | P42: -2.231741388e-05 | Q42: -0.0002126602211 | R42: 2.536844483e-08
A43: 18.51755 | B43: ='DF raw data'!G48 -> -1.3034861e-06 | C43: ='DF raw data'!H48 -> -2.6275168e-06 | D43: ='DF raw data'!I48 -> 8.8140623e-06 | F43: -1.304789586e-06 | G43: -2.636548128e-06 | H43: 8.822876362e-06 | J43: 5.334413284e-06 | K43: -7.153586557e-06 | L43: -4.001673876e-06 | N43: -5.119652059e-05 | O43: -0.0005925200745 | P43: -2.58952802e-05 | Q43: -0.0002256117455 | R43: 2.701476321e-08
A44: 19.0177 | B44: ='DF raw data'!G49 -> 1.4084743e-06 | C44: ='DF raw data'!H49 -> -3.418206e-06 | D44: ='DF raw data'!I49 -> -8.3048894e-07 | F44: 1.409882774e-06 | G44: -3.429955094e-06 | H44: -8.313194289e-07 | J44: 5.353582734e-06 | K44: -3.755698708e-06 | L44: 5.520811696e-06 | N44: -4.851892619e-05 | O44: -0.0006167868155 | P44: -2.777369291e-05 | Q44: -0.000239502758 | R44: 2.857796413e-08
A45: 19.51785 | B45: ='DF raw data'!G50 -> 5.3352591e-07 | C45: ='DF raw data'!H50 -> 3.981665e-06 | D45: ='DF raw data'!I50 -> 8.2018305e-06 | F45: 5.340594359e-07 | G45: 3.995350821e-06 | H45: 8.21003233e-06 | J45: 2.035691057e-06 | K45: -1.724920205e-06 | L45: 1.190286798e-05 | N45: -4.75007753e-05 | O45: -0.0006405443282 | P45: -2.863641175e-05 | Q45: -0.0002538252594 | R45: 3.011660946e-08
A46: 20.018 | B46: ='DF raw data'!G51 -> -5.9623981e-06 | C46: ='DF raw data'!H51 -> 4.924862e-06 | D46: ='DF raw data'!I51 -> 1.4445335e-05 | F46: -5.968360498e-06 | G46: 4.941789787e-06 | H46: 1.445978033e-05 | J46: -1.213331419e-07 | K46: 1.416043266e-06 | L46: 1.448481434e-05 | N46: -4.756146007e-05 | O46: -0.0006643321925 | P46: -2.792817771e-05 | Q46: -0.0002677935375 | R46: 3.163810356e-08
A47: 20.51815 | B47: ='DF raw data'!G52 -> -1.0860471e-05 | C47: ='DF raw data'!H52 -> -4.2043584e-06 | D47: ='DF raw data'!I52 -> 1.3376446e-06 | F47: -1.087133147e-05 | G47: -4.218809665e-06 | H47: 1.338982245e-06 | J47: -2.389273887e-06 | K47: -7.342364002e-06 | L47: 1.050616667e-05 | N47: -4.875645541e-05 | O47: -0.0006887177337 | P47: -3.160046107e-05 | Q47: -0.0002835985081 | R47: 3.332650047e-08
A48: 21.0183 | B48: ='DF raw data'!G53 -> -1.1524635e-05 | C48: ='DF raw data'!H53 -> -2.3273035e-06 | D48: ='DF raw data'!I53 -> -5.6789509e-06 | F48: -1.153615963e-05 | G48: -2.335302932e-06 | H48: -5.684629851e-06 | J48: -5.078225552e-06 | K48: -9.040974083e-06 | L48: 2.016632918e-06 | N48: -5.129632992e-05 | O48: -0.0007143735931 | P48: -3.612230425e-05 | Q48: -0.0003016650785 | R48: 3.529515806e-08
A49: 21.51845 | B49: ='DF raw data'!G54 -> -8.1808812e-06 | C49: ='DF raw data'!H54 -> -4.0333043e-06 | D49: ='DF raw data'!I54 -> 5.5481864e-06 | F49: -8.189062081e-06 | G49: -4.047167616e-06 | H49: 5.553734586e-06 | J49: -4.461914657e-06 | K49: -7.486828255e-06 | L49: -1.957554499e-06 | N49: -5.352795654e-05 | O49: -0.0007411456005 | P49: -3.986684141e-05 | Q49: -0.0003216044793 | R49: 3.752312984e-08
A50: 22.0186 | B50: ='DF raw data'!G55 -> -3.8296912e-06 | C50: ='DF raw data'!H55 -> -2.6060345e-06 | D50: ='DF raw data'!I55 -> 3.9602742e-06 | F50: -3.833520891e-06 | G50: -2.614991989e-06 | H50: 3.964234474e-06 | J50: -2.908302597e-06 | K50: -5.051579866e-06 | L50: -1.851104255e-07 | N50: -5.498254408e-05 | O50: -0.0007686451199 | P50: -4.239338908e-05 | Q50: -0.0003428075328 | R50: 3.993399267e-08
A51: 22.51875 | B51: ='DF raw data'!G56 -> -6.4327293e-07 | C51: ='DF raw data'!H56 -> -3.7944712e-06 | D51: ='DF raw data'!I56 -> 1.3158131e-06 | F51: -6.439162029e-07 | G51: -3.807513596e-06 | H51: 1.317128913e-06 | J51: 4.468756292e-07 | K51: -4.55754167e-06 | L51: 2.978569594e-06 | N51: -5.475903923e-05 | O51: -0.0007960328534 | P51: -4.467284354e-05 | Q51: -0.0003651506555 | R51: 4.243184947e-08
A52: 23.0189 | B52: ='DF raw data'!G57 -> 2.2344993e-06 | C52: ='DF raw data'!H57 -> -9.7362472e-06 | D52: ='DF raw data'!I57 -> -8.4033695e-07 | F52: 2.236733799e-06 | G52: -9.769712731e-06 | H52: -8.411772869e-07 | J52: 2.314384072e-06 | K52: -2.136482987e-06 | L52: 7.040228896e-06 | N52: -5.360150004e-05 | O52: -0.0008228416437 | P52: -4.574140551e-05 | Q52: -0.0003880282195 | R52: 4.491529277e-08
A53: 23.51905 | B53: ='DF raw data'!G58 -> 1.6798784e-06 | C53: ='DF raw data'!H58 -> -1.0416993e-05 | D53: ='DF raw data'!I58 -> -1.6367233e-06 | F53: 1.681558278e-06 | G53: -1.04527984e-05 | H53: -1.638360023e-06 | J53: -2.13124892e-08 | K53: 4.669467364e-06 | L53: -3.43003661e-07 | N53: -5.361215948e-05 | O53: -0.0008496557652 | P53: -4.340597141e-05 | Q53: -0.0004097377161 | R53: 4.729517752e-08
A54: 24.0192 | B54: ='DF raw data'!G59 -> -4.4405151e-06 | C54: ='DF raw data'!H59 -> 3.8803946e-06 | D54: ='DF raw data'!I59 -> 2.6513551e-06 | F54: -4.444955615e-06 | G54: 3.893732333e-06 | H54: 2.654006455e-06 | J54: -3.450248001e-06 | K54: -3.333421725e-06 | L54: -5.866651491e-06 | N54: -5.533780102e-05 | O54: -0.0008773329664 | P54: -4.507318228e-05 | Q54: -0.0004322810682 | R54: 4.984287359e-08
A55: 24.51935 | B55: ='DF raw data'!G60 -> -9.3595427e-06 | C55: ='DF raw data'!H60 -> -7.0256027e-07 | D55: ='DF raw data'!I60 -> 5.7226239e-06 | F55: -9.368902243e-06 | G55: -7.049751175e-07 | H55: 5.728346524e-06 | J55: -6.037773342e-06 | K55: -1.041156215e-05 | L55: -4.503393995e-06 | N55: -5.835759336e-05 | O55: -0.0009065205167 | P55: -5.028052509e-05 | Q55: -0.0004574288728 | R55: 5.281063361e-08
A56: 25.0195 | B56: ='DF raw data'!G61 -> -8.7555945e-06 | C56: ='DF raw data'!H61 -> -1.3136775e-05 | D56: ='DF raw data'!I61 -> 8.050687e-06 | F56: -8.764350094e-06 | G56: -1.318192886e-05 | H56: 8.058737687e-06 | J56: -7.256167218e-06 | K56: -7.986623171e-06 | L56: -4.895654364e-06 | N56: -6.198676539e-05 | O56: -0.0009375231974 | P56: -5.427503467e-05 | Q56: -0.0004845745314 | R56: 5.620572106e-08
A57: 25.51965 | B57: ='DF raw data'!G62 -> -5.1454535e-06 | C57: ='DF raw data'!H62 -> -5.1494217e-06 | D57: ='DF raw data'!I62 -> 1.3034189e-05 | F57: -5.150598953e-06 | G57: -5.167121346e-06 | H57: 1.304722319e-05 | J57: -3.217195481e-06 | K57: -7.764104347e-06 | L57: -6.137598667e-06 | N57: -6.359584571e-05 | O57: -0.0009693306597 | P57: -5.815825146e-05 | Q57: -0.0005136623809 | R57: 5.992024199e-08
A58: 26.0198 | B58: ='DF raw data'!G63 -> -2.6175821e-06 | C58: ='DF raw data'!H63 -> 8.7918479e-06 | D58: ='DF raw data'!I63 -> 6.9111479e-06 | F58: -2.620199682e-06 | G58: 8.822067332e-06 | H58: 6.918059048e-06 | J58: 1.521946526e-06 | K58: -4.193103008e-06 | L58: -1.498536039e-06 | N58: -6.283464416e-05 | O58: -0.001000757407 | P58: -6.025543193e-05 | Q58: -0.0005437991351 | R58: 6.371083361e-08
A59: 26.51995 | B59: ='DF raw data'!G64 -> -3.6933179e-06 | C59: ='DF raw data'!H64 -> -1.4171976e-06 | D59: ='DF raw data'!I64 -> -1.2769999e-06 | F59: -3.697011218e-06 | G59: -1.422068806e-06 | H59: -1.2782769e-06 | J59: 4.585652171e-07 | K59: -4.38871055e-06 | L59: -6.097093002e-06 | N59: -6.260529276e-05 | O59: -0.001032069444 | P59: -6.245044551e-05 | Q59: -0.0005750337255 | R59: 6.762174695e-08
A60: 27.0201 | B60: ='DF raw data'!G65 -> -3.3661108e-06 | C60: ='DF raw data'!H65 -> -1.1270128e-05 | D60: ='DF raw data'!I65 -> 3.9030379e-06 | F60: -3.369476911e-06 | G60: -1.13088658e-05 | H60: 3.906940938e-06 | J60: -2.805204802e-06 | K60: -1.850991654e-05 | L60: -4.59613144e-06 | N60: -6.400831594e-05 | O60: -0.001064083203 | P60: -7.170818027e-05 | Q60: -0.0006108985718 | R60: 7.224269663e-08
A61: 27.52025 | B61: ='DF raw data'!G66 -> -1.4588132e-06 | C61: ='DF raw data'!H66 -> 2.1685253e-06 | D61: ='DF raw data'!I66 -> 4.5008233e-06 | F61: -1.460272013e-06 | G61: 2.175978978e-06 | H61: 4.505324123e-06 | J61: -2.846431488e-06 | K61: -7.700374243e-06 | L61: -2.286924139e-06 | N61: -6.543195865e-05 | O61: -0.001096808997 | P61: -7.555952244e-05 | Q61: -0.000648689667 | R61: 7.723948654e-08
A62: 28.0204 | B62: ='DF raw data'!G67 -> -1.018938e-06 | C62: ='DF raw data'!H67 -> 8.4716221e-06 | D62: ='DF raw data'!I67 -> 5.258345e-06 | F62: -1.019956938e-06 | G62: 8.500740848e-06 | H62: 5.263603345e-06 | J62: -2.730064637e-07 | K62: -2.402380602e-06 | L62: -2.843476135e-06 | N62: -6.556850284e-05 | O62: -0.001129603084 | P62: -7.67610731e-05 | Q62: -0.0006870817177 | R62: 8.233676072e-08
A63: 28.52055 | B63: ='DF raw data'!G68 -> 5.0815464e-07 | C63: ='DF raw data'!H68 -> 8.6079845e-06 | D63: ='DF raw data'!I68 -> 9.7297798e-06 | F63: 5.086627946e-07 | G63: 8.637571955e-06 | H63: 9.73950958e-06 | J63: 2.184494812e-06 | K63: 2.047314044e-06 | L63: 4.582126649e-06 | N63: -6.447592775e-05 | O63: -0.001161850719 | P63: -7.573710898e-05 | Q63: -0.0007249616327 | R63: 8.728487218e-08
A64: 29.0207 | B64: ='DF raw data'!G69 -> 5.8391033e-06 | C64: ='DF raw data'!H69 -> 3.6666449e-06 | D64: ='DF raw data'!I69 -> 2.4536891e-06 | F64: 5.844942403e-06 | G64: 3.67924793e-06 | H64: 2.456142789e-06 | J64: -2.483285905e-06 | K64: -4.43557177e-06 | L64: 4.356550398e-06 | N64: -6.57179432e-05 | O64: -0.001194719549 | P64: -7.79555602e-05 | Q64: -0.0007639511062 | R64: 9.248439028e-08
A65: 29.52085 | B65: ='DF raw data'!G70 -> 9.8100263e-06 | C65: ='DF raw data'!H70 -> -3.295001e-07 | D65: ='DF raw data'!I70 -> 3.4977236e-06 | F65: 9.819836326e-06 | G65: -3.306326612e-07 | H65: 3.501221324e-06 | J65: -1.011923913e-05 | K65: -1.312944608e-05 | L65: 4.031040814e-06 | N65: -7.077908065e-05 | O65: -0.001230119706 | P65: -8.452225266e-05 | Q65: -0.0008062249108 | R65: 9.856305806e-08
A66: 30.021 | B66: ='DF raw data'!G71 -> 7.6543529e-06 | C66: ='DF raw data'!H71 -> 4.8742941e-06 | D66: ='DF raw data'!I71 -> 7.8090943e-06 | F66: 7.662007253e-06 | G66: 4.891048075e-06 | H66: 7.816903394e-06 | J66: -9.376243677e-06 | K66: -3.651134229e-06 | L66: 1.58779611e-06 | N66: -7.546860893e-05 | O66: -0.001267865331 | P66: -8.634836745e-05 | Q66: -0.0008494120468 | R66: 1.051408065e-07
A67: 30.52115 | B67: ='DF raw data'!G72 -> 4.0617651e-06 | C67: ='DF raw data'!H72 -> -6.3578412e-08 | D67: ='DF raw data'!I72 -> 7.700346e-06 | F67: 4.065826865e-06 | G67: -6.379694439e-08 | H67: 7.708046346e-06 | J67: -5.751330985e-06 | K67: -1.072761376e-06 | L67: 1.271616346e-06 | N67: -7.834513712e-05 | O67: -0.001307049651 | P67: -8.688490905e-05 | Q67: -0.0008928675341 | R67: 1.119863335e-07
A68: 31.0213 | B68: ='DF raw data'!G73 -> -7.4739916e-07 | C68: ='DF raw data'!H73 -> 2.290343e-06 | D68: ='DF raw data'!I73 -> -1.5790904e-06 | F68: -7.481465592e-07 | G68: 2.298215391e-06 | H68: -1.58066949e-06 | J68: -4.599753458e-06 | K68: -2.435315218e-06 | L68: -1.25457322e-06 | N68: -8.064570381e-05 | O68: -0.0013473846 | P68: -8.810293196e-05 | Q68: -0.0009369322155 | R68: 1.191214015e-07
A69: 31.52145 | B69: ='DF raw data'!G74 -> -1.7549156e-06 | C69: ='DF raw data'!H74 -> 1.5395478e-06 | D69: ='DF raw data'!I74 -> -7.3042033e-06 | F69: -1.756670516e-06 | G69: 1.54483955e-06 | H69: -7.311507503e-06 | J69: -4.129770044e-06 | K69: -5.102055066e-06 | L69: -7.383958382e-07 | N69: -8.27112083e-05 | O69: -0.001388752611 | P69: -9.06547248e-05 | Q69: -0.0009822731761 | R69: 1.26653372e-07
A70: 32.0216 | B70: ='DF raw data'!G75 -> 2.6755133e-06 | C70: ='DF raw data'!H75 -> 1.5152643e-06 | D70: ='DF raw data'!I75 -> 4.2708812e-06 | F70: 2.678188813e-06 | G70: 1.520472582e-06 | H70: 4.275152081e-06 | J70: -5.627588867e-06 | K70: 1.498840985e-07 | L70: 1.123715793e-06 | N70: -8.552584687e-05 | O70: -0.001431528363 | P70: -9.057976027e-05 | Q70: -0.001027576643 | R70: 1.344153816e-07
A71: 32.52175 | B71: ='DF raw data'!G76 -> 2.7861151e-06 | C71: ='DF raw data'!H76 -> -2.8169827e-06 | D71: ='DF raw data'!I76 -> 1.1515025e-05 | F71: 2.788901215e-06 | G71: =(1-$G$1*($B$2-$G$2))*C71*$M$2/$M$1 -> -2.826665263e-06 | H71: 1.152654002e-05 | J71: =-CELL("contents", INDEX($F$6:$F$1203,1204-CELL("row",F71))) -> -1.101504404e-05 | K71: =CELL("contents", INDEX($G$6:$G$1203,1204-CELL("row",G71))) -> 2.079888426e-07 | L71: =-CELL("contents", INDEX($H$6:$H$1203,1204-CELL("row",H71))) -> 6.674976608e-07 | N71: -9.103502115e-05 | O71: -0.001477059529 | P71: -9.047573465e-05 | Q71: -0.001072828082 | R71: 1.426544694e-07
A72: =A71+$B$1 -> 33.0219 | B72: ='DF raw data'!G77 -> -1.3745067e-06 | C72: ='DF raw data'!H77 -> -1.2819216e-05 | D72: ='DF raw data'!I77 -> 1.1326811e-05 | F72: -1.375881207e-06 | G72: -1.286327834e-05 | H72: 1.133813781e-05 | J72: -1.219795777e-05 | K72: 1.561442021e-06 | L72: -3.537127694e-06 | N72: =J72*$B$1+N71 -> -9.713582973e-05 | O72: =N72*$B$1+O71 -> -0.001525642014 | P72: =K72*$B$1+P71 -> -8.969477942e-05 | Q72: =P72*$B$1+Q71 -> -0.001117688926 | R72: =(N72^2+P72^2)*$B$1+R71 -> 1.513973529e-07
A73: 33.52205 | B73: ='DF raw data'!G78 -> -3.0798237e-06 | C73: ='DF raw data'!H78 -> -1.8139436e-07 | D73: ='DF raw data'!I78 -> 2.3937898e-06 | F73: -3.082903524e-06 | G73: -1.820178506e-07 | H73: 2.39618359e-06 | J73: -7.430422299e-06 | K73: 6.353614202e-06 | L73: -2.563668808e-06 | N73: -0.0001008521554 | O73: -0.001576083219 | P73: -8.651701928e-05 | Q73: -0.001160960413 | R73: 1.602281773e-07
A74: 34.0222 | B74: ='DF raw data'!G79 -> 1.1578976e-06 | C74: ='DF raw data'!H79 -> 4.1271005e-06 | D74: ='DF raw data'!I79 -> -2.4561109e-07 | F74: 1.159055498e-06 | G74: 4.141286213e-06 | H74: -2.458567011e-07 | J74: -5.048961518e-06 | K74: 5.031763186e-06 | L74: 2.187049665e-06 | N74: -0.0001033773935 | O74: -0.001627787423 | P74: -8.400038292e-05 | Q74: -0.001202973205 | R74: 1.691023137e-07
A75: 34.52235 | B75: ='DF raw data'!G80 -> 5.5810506e-06 | C75: ='DF raw data'!H80 -> 1.4412133e-06 | D75: ='DF raw data'!I80 -> 6.4934261e-07 | F75: 5.586631651e-06 | G75: 1.446167053e-06 | H75: 6.499919526e-07 | J75: -5.558835182e-06 | K75: 8.428979635e-06 | L75: 5.488499617e-06 | N75: -0.000106157645 | O75: -0.001680882169 | P75: -7.978462875e-05 | Q75: -0.001242877487 | R75: 1.779224752e-07
A76: 35.0225 | B76: ='DF raw data'!G81 -> 3.2508269e-06 | C76: ='DF raw data'!H81 -> 3.4306129e-06 | D76: ='DF raw data'!I81 -> -5.459126e-06 | F76: 3.254077727e-06 | G76: 3.442404639e-06 | H76: -5.464585126e-06 | J76: -5.301125229e-06 | K76: -7.851263304e-06 | L76: 3.55050736e-06 | N76: -0.0001088090027 | O76: -0.001735302992 | P76: -8.37114381e-05 | Q76: -0.001284745762 | R76: 1.873488042e-07
A77: 35.52265 | B77: ='DF raw data'!G82 -> -2.8118939e-06 | C77: ='DF raw data'!H82 -> 2.5201032e-06 | D77: ='DF raw data'!I82 -> -5.7404472e-06 | F77: -2.814705794e-06 | G77: 2.528765325e-06 | H77: -5.746187647e-06 | J77: -3.254008558e-06 | K77: -7.200042589e-06 | L77: 4.556409558e-06 | N77: -0.0001104364951 | O77: -0.001790537805 | P77: -8.73125394e-05 | Q77: -0.001328415129 | R77: 1.972616267e-07
A78: 36.0228 | B78: ='DF raw data'!G83 -> -7.9335132e-06 | C78: ='DF raw data'!H83 -> 1.291907e-06 | D78: ='DF raw data'!I83 -> -3.5602375e-07 | F78: -7.941446713e-06 | G78: 1.296347556e-06 | H78: -3.563797737e-07 | J78: -1.649486639e-06 | K78: 4.348005818e-06 | L78: 8.477166798e-06 | N78: -0.0001112614859 | O78: -0.001846185237 | P78: -8.513788429e-05 | Q78: -0.001370996842 | R78: 2.070783596e-07
A79: 36.52295 | B79: ='DF raw data'!G84 -> -8.5881238e-06 | C79: ='DF raw data'!H84 -> -3.176968e-06 | D79: ='DF raw data'!I84 -> 8.6929995e-06 | F79: -8.596711924e-06 | G79: -3.187887908e-06 | H79: 8.701692499e-06 | J79: -4.146539697e-06 | K79: -1.248719409e-05 | L79: 2.695230037e-06 | N79: -0.0001133353777 | O79: -0.001902869926 | P79: -9.138335441e-05 | Q79: -0.001416702226 | R79: 2.176794516e-07
A80: 37.0231 | B80: ='DF raw data'!G85 -> -1.4620874e-06 | C80: ='DF raw data'!H85 -> -7.4046084e-06 | D80: ='DF raw data'!I85 -> 4.7691715e-06 | F80: -1.463549487e-06 | G80: -7.430059598e-06 | H80: 4.773940672e-06 | J80: -6.290006222e-06 | K80: -3.129381598e-06 | L80: 3.50946636e-06 | N80: -0.0001164813243 | O80: -0.00196112806 | P80: -9.294851462e-05 | Q80: -0.001463190426 | R80: 2.287864454e-07
A81: 37.52325 | B81: ='DF raw data'!G86 -> 5.6098852e-06 | C81: ='DF raw data'!H86 -> -4.7185868e-06 | D81: ='DF raw data'!I86 -> -7.3261658e-06 | F81: 5.615495085e-06 | G81: -4.734805576e-06 | H81: -7.333491966e-06 | J81: -5.143170132e-06 | K81: -3.206633118e-06 | L81: 5.810345741e-06 | N81: -0.0001190536808 | O81: -0.002020672759 | P81: -9.455231217e-05 | Q81: -0.001510480765 | R81: 2.403468718e-07
A82: 38.0234 | B82: ='DF raw data'!G87 -> 1.6964967e-06 | C82: ='DF raw data'!H87 -> 2.516236e-06 | D82: ='DF raw data'!I87 -> -1.9400761e-06 | F82: 1.698193197e-06 | G82: 2.524884833e-06 | H82: -1.942016176e-06 | J82: -2.589322436e-06 | K82: 1.105562334e-06 | L82: 2.525148326e-06 | N82: -0.0001203487305 | O82: -0.002080865176 | P82: -9.399936517e-05 | Q82: -0.001557494547 | R82: 2.520102185e-07
A83: 38.52355 | B83: ='DF raw data'!G88 -> -2.4125311e-06 | C83: ='DF raw data'!H88 -> -7.2404254e-07 | D83: ='DF raw data'!I88 -> 6.0981906e-06 | F83: -2.414943631e-06 | G83: -7.265312266e-07 | H83: 6.104288791e-06 | J83: -4.654275726e-06 | K83: -1.459424165e-06 | L83: -1.386348764e-06 | N83: -0.0001226765665 | O83: -0.002142221861 | P83: -9.472929617e-05 | Q83: -0.001604873405 | R83: 2.640254118e-07
A84: 39.0237 | B84: ='DF raw data'!G89 -> -5.8292613e-07 | C84: ='DF raw data'!H89 -> 1.5330104e-06 | D84: ='DF raw data'!I89 -> -2.9958903e-06 | F84: -5.835090561e-07 | G84: 1.538279679e-06 | H84: -2.99888619e-06 | J84: -7.978849779e-06 | K84: 3.217341399e-06 | L84: 2.451467418e-06 | N84: -0.0001266671882 | O84: -0.002205574455 | P84: -9.312014287e-05 | Q84: -0.001651447444 | R84: 2.763870879e-07
A85: 39.52385 | B85: ='DF raw data'!G90 -> 3.8758026e-06 | C85: ='DF raw data'!H90 -> -2.7498693e-06 | D85: ='DF raw data'!I90 -> -7.1563195e-06 | F85: 3.879678403e-06 | G85: -2.75932118e-06 | H85: -7.163475819e-06 | J85: -6.978410239e-06 | K85: 6.755539673e-06 | L85: -1.995660367e-06 | N85: -0.0001301574401 | O85: -0.002270672699 | P85: -8.97413597e-05 | Q85: -0.001696331585 | R85: 2.888880725e-07
A86: 40.024 | B86: ='DF raw data'!G91 -> 8.3960749e-06 | C86: ='DF raw data'!H91 -> -6.0804787e-06 | D86: ='DF raw data'!I91 -> 1.021446e-06 | F86: 8.404470975e-06 | G86: -6.101378585e-06 | H86: 1.022467446e-06 | J86: -3.75453058e-06 | K86: -4.223095345e-06 | L86: -1.234624091e-05 | N86: -0.0001320352685 | O86: -0.002336710139 | P86: -9.185354084e-05 | Q86: -0.001742272134 | R86: 3.018271456e-07
A87: 40.52415 | B87: ='DF raw data'!G92 -> 1.2122562e-05 | C87: ='DF raw data'!H92 -> -1.8438998e-06 | D87: ='DF raw data'!I92 -> 5.1010752e-06 | F87: =(1-$G$1*($B$2-$G$2))*B87 -> 1.213468456e-05 | G87: -1.850237672e-06 | H87: 5.106176275e-06 | J87: -1.592691901e-06 | K87: -2.328946358e-07 | L87: -6.690148465e-06 | N87: -0.0001328318534 | O87: -0.00240314599 | P87: -9.197002309e-05 | Q87: -0.001788270941 | R87: 3.148824543e-07
A88: 41.0243 | B88: ='DF raw data'!G93 -> 1.0442143e-05 | C88: ='DF raw data'!H93 -> 8.1784847e-06 | D88: ='DF raw data'!I93 -> -9.3118456e-07 | F88: 1.045258514e-05 | G88: 8.206595873e-06 | H88: -9.321157446e-07 | J88: -3.962193735e-06 | K88: 1.088824901e-06 | L88: -4.943638199e-07 | N88: -0.0001348135446 | O88: -0.002470572984 | P88: -9.142544731e-05 | Q88: -0.001833997378 | R88: 3.281530864e-07
A89: 41.52445 | B89: ='DF raw data'!G94 -> 6.4240285e-06 | C89: ='DF raw data'!H94 -> 7.3691144e-06 | D89: ='DF raw data'!I94 -> -2.5600277e-06 | F89: 6.430452528e-06 | G89: 7.394443597e-06 | H89: -2.562587728e-06 | J89: -7.142512377e-06 | K89: 2.584865894e-06 | L89: -2.900303506e-06 | N89: -0.0001383858722 | O89: -0.002539786678 | P89: -9.013262664e-05 | Q89: -0.001879077212 | R89: 3.417944476e-07
A90: 42.0246 | B90: ='DF raw data'!G95 -> 5.1570587e-06 | C90: ='DF raw data'!H95 -> 7.6659917e-06 | D90: ='DF raw data'!I95 -> 7.693377e-07 | F90: 5.162215759e-06 | G90: 7.692341327e-06 | H90: 7.701070377e-07 | J90: -8.063571916e-06 | K90: -3.459009317e-06 | L90: 6.663651194e-07 | N90: -0.0001424188676 | O90: -0.002611017475 | P90: -9.186265015e-05 | Q90: -0.001925022316 | R90: 3.56159696e-07
A91: 42.52475 | B91: ='DF raw data'!G96 -> 7.0096885e-06 | C91: ='DF raw data'!H96 -> 7.9336451e-06 | D91: ='DF raw data'!I96 -> 2.915174e-06 | F91: 7.016698188e-06 | G91: 7.960914708e-06 | H91: 2.918089174e-06 | J91: -9.175794528e-06 | K91: -1.052108029e-05 | L91: 5.847919878e-06 | N91: -0.0001470081413 | O91: -0.002684543597 | P91: -9.712476846e-05 | Q91: -0.001973599269 | R91: 3.716866598e-07
A92: 43.0249 | B92: ='DF raw data'!G97 -> 6.8717836e-06 | C92: ='DF raw data'!H97 -> 7.4186164e-06 | D92: ='DF raw data'!I97 -> -1.2684143e-06 | F92: 6.878655384e-06 | G92: 7.444115746e-06 | H92: -1.269682714e-06 | J92: -4.201662865e-06 | K92: -1.612487273e-05 | L92: -6.931596772e-07 | N92: -0.000149109603 | O92: -0.002759120765 | P92: -0.0001051896236 | Q92: -0.002026209859 | R92: 3.883409199e-07
A93: 43.52505 | B93: ='DF raw data'!G98 -> 3.6896363e-06 | C93: ='DF raw data'!H98 -> 4.9500804e-06 | D93: ='DF raw data'!I98 -> -5.7789844e-06 | F93: 3.693325936e-06 | G93: 4.967094868e-06 | H93: -5.784763384e-06 | J93: 5.065072012e-06 | K93: -4.366887897e-06 | L93: -7.475805437e-06 | N93: -0.0001465763072 | O93: -0.002832430905 | P93: -0.0001073737225 | Q93: -0.002079912827 | R93: 4.04852737e-07
A94: 44.0252 | B94: ='DF raw data'!G99 -> 2.8725572e-06 | C94: ='DF raw data'!H99 -> 9.1136744e-06 | D94: ='DF raw data'!I99 -> -6.6769976e-06 | F94: 2.875429757e-06 | G94: 9.145000017e-06 | H94: -6.683674598e-06 | J94: 3.801511113e-06 | K94: -1.22820263e-06 | L94: -1.818914497e-06 | N94: -0.0001446749814 | O94: -0.002904790097 | P94: -0.0001079880081 | Q94: -0.002133923029 | R94: 4.211537559e-07
A95: 44.52535 | B95: ='DF raw data'!G100 -> 2.5042336e-06 | C95: ='DF raw data'!H100 -> 1.0939358e-05 | D95: ='DF raw data'!I100 -> -8.3695995e-06 | F95: 2.506737834e-06 | G95: 1.097695888e-05 | H95: -8.3779691e-06 | J95: -6.004299601e-06 | K95: -1.315715701e-05 | L95: 5.659047494e-06 | N95: -0.0001476780319 | O95: -0.002978651264 | P95: -0.0001145685602 | Q95: -0.002191224494 | R95: 4.386263742e-07
A96: 45.0255 | B96: ='DF raw data'!G101 -> -9.7080749e-07 | C96: ='DF raw data'!H101 -> 4.7779604e-06 | D96: ='DF raw data'!I101 -> -2.7658791e-06 | F96: -9.717782975e-07 | G96: 4.794383256e-06 | H96: -2.768644979e-06 | J96: -1.220056538e-05 | K96: -1.288644068e-05 | L96: 1.950610362e-06 | N96: -0.0001537801446 | O96: -0.003055564404 | P96: -0.0001210137135 | Q96: -0.002251749503 | R96: 4.577784439e-07
A97: 45.52565 | B97: ='DF raw data'!G102 -> -2.1509386e-06 | C97: ='DF raw data'!H102 -> -1.530346e-06 | D97: ='DF raw data'!I102 -> 4.8976212e-06 | F97: -2.153089539e-06 | G97: -1.535606121e-06 | H97: 4.902518821e-06 | J97: -1.368876309e-05 | K97: -1.304375857e-05 | L97: -5.462930873e-06 | N97: -0.0001606265795 | O97: -0.003135901787 | P97: -0.0001275375493 | Q97: -0.002315537408 | R97: 4.788181162e-07
A98: 46.0258 | B98: ='DF raw data'!G103 -> 8.5411915e-07 | C98: ='DF raw data'!H103 -> 6.3210865e-07 | D98: ='DF raw data'!I103 -> 1.9154647e-06 | F98: 8.549732691e-07 | G98: 6.342813405e-07 | H98: 1.917380165e-06 | J98: -1.290534145e-05 | K98: -8.233107487e-06 | L98: -4.081884206e-06 | N98: -0.000167081186 | O98: -0.003219467443 | P98: -0.000131655338 | Q98: -0.002381384826 | R98: 5.01449529e-07
A99: 46.52595 | B99: ='DF raw data'!G104 -> 2.3869561e-06 | C99: ='DF raw data'!H104 -> -2.14531e-06 | D99: ='DF raw data'!I104 -> -5.6866743e-06 | F99: 2.389343056e-06 | G99: -2.152683882e-06 | H99: -5.692360974e-06 | J99: -1.031394164e-05 | K99: -9.526045966e-08 | L99: 7.355194146e-07 | N99: -0.0001722397039 | O99: -0.003305613131 | P99: -0.0001317029825 | Q99: -0.002447256072 | R99: 5.249626764e-07
A100: 47.0261 | B100: ='DF raw data'!G105 -> 1.0392195e-06 | C100: ='DF raw data'!H105 -> -3.5044758e-07 | D100: ='DF raw data'!I105 -> -1.2375956e-05 | F100: 1.040258719e-06 | G100: -3.516521421e-07 | H100: -1.238833196e-05 | J100: -1.236359624e-05 | K100: -1.037019143e-05 | L100: 1.395660766e-06 | N100: -0.0001784233566 | O100: -0.003394851572 | P100: -0.0001368896338 | Q100: -0.002515721423 | R100: 5.502570955e-07
A101: 47.52625 | B101: ='DF raw data'!G106 -> -1.1628261e-07 | C101: ='DF raw data'!H106 -> 3.6685634e-07 | D101: ='DF raw data'!I106 -> -1.0672506e-05 | F101: -1.163988926e-07 | G101: 3.681173025e-07 | H101: -1.068317851e-05 | J101: -1.640644305e-05 | K101: -1.148251563e-05 | L101: 1.563481019e-06 | N101: -0.0001866290391 | O101: -0.003488194086 | P101: -0.000142632614 | Q101: -0.002587059125 | R101: 5.77852602e-07
A102: 48.0264 | B102: ='DF raw data'!G107 -> -2.1880533e-06 | C102: ='DF raw data'!H107 -> -6.8702329e-06 | D102: ='DF raw data'!I107 -> -6.2738804e-06 | F102: -2.190241353e-06 | G102: -6.893847337e-06 | H102: -6.28015428e-06 | J102: -1.499889291e-05 | K102: -1.096959766e-05 | L102: 6.29480822e-06 | N102: -0.0001941307354 | O102: -0.003585288574 | P102: -0.0001481190582 | Q102: -0.002661140872 | R102: 6.076745449e-07
A103: 48.52655 | B103: ='DF raw data'!G108 -> -2.4760793e-06 | C103: ='DF raw data'!H108 -> -7.8309104e-06 | D103: ='DF raw data'!I108 -> -9.8480996e-06 | F103: -2.478555379e-06 | G103: -7.857826887e-06 | H103: -9.8579477e-06 | J103: -1.133930498e-05 | K103: -1.267101877e-05 | L103: 2.662054895e-06 | N103: -0.0001998020888 | O103: -0.003685219588 | P103: -0.0001544564683 | Q103: -0.002738392274 | R103: 6.395729491e-07
A104: 49.0267 | B104: ='DF raw data'!G109 -> -9.7525188e-08 | C104: ='DF raw data'!H109 -> 3.6462286e-06 | D104: ='DF raw data'!I109 -> -1.0156178e-05 | F104: -9.762271319e-08 | G104: 3.658761455e-06 | H104: -1.016633418e-05 | J104: -9.54128175e-06 | K104: -9.326952885e-06 | L104: 3.439915179e-06 | N104: -0.0002045741608 | O104: -0.003787537355 | P104: -0.0001591213438 | Q104: -0.002817976814 | R104: 6.731681193e-07
A105: 49.52685 | B105: ='DF raw data'!G110 -> 4.7712268e-07 | C105: ='DF raw data'!H110 -> 1.0707462e-05 | D105: ='DF raw data'!I110 -> -9.5201867e-06 | F105: 4.775998027e-07 | G105: 1.07442658e-05 | H105: -9.529706887e-06 | J105: -8.710020819e-06 | K105: -8.804397204e-06 | L105: 8.070048587e-06 | N105: -0.0002089304777 | O105: -0.003892033933 | P105: -0.000163524863 | Q105: -0.002899763774 | R105: 7.083748409e-07
A106: 50.027 | B106: ='DF raw data'!G111 -> 2.1039359e-06 | C106: ='DF raw data'!H111 -> 8.0458585e-06 | D106: ='DF raw data'!I111 -> -9.8657365e-06 | F106: 2.106039836e-06 | G106: 8.073513809e-06 | H106: -9.875602236e-06 | J106: -7.626730912e-06 | K106: -8.776904329e-07 | L106: 7.646305066e-07 | N106: -0.0002127449872 | O106: -0.003998438339 | P106: -0.0001639638399 | Q106: -0.002981770289 | R106: 7.444579477e-07
A107: 50.52715 | B107: ='DF raw data'!G112 -> 5.5951987e-06 | C107: ='DF raw data'!H112 -> 1.1633182e-05 | D107: ='DF raw data'!I112 -> -5.5812529e-06 | F107: 5.600793899e-06 | G107: 1.16731677e-05 | H107: -5.586834153e-06 | J107: -6.458780628e-06 | K107: 2.135276053e-06 | L107: 1.077281505e-06 | N107: -0.0002159753463 | O107: -0.004106458408 | P107: -0.0001628958816 | Q107: -0.003063242664 | R107: 7.81059134e-07
A108: 51.0273 | B108: ='DF raw data'!G113 -> 4.900472e-06 | C108: ='DF raw data'!H113 -> -3.279308e-06 | D108: ='DF raw data'!I113 -> -2.603156e-06 | F108: 4.905372472e-06 | G108: -3.290579672e-06 | H108: -2.605759156e-06 | J108: -5.09740221e-06 | K108: -4.29431992e-06 | L108: 9.128582863e-06 | N108: -0.000218524812 | O108: -0.004215753593 | P108: -0.0001650436857 | Q108: -0.003145789264 | R108: 8.185666387e-07
A109: 51.52745 | B109: ='DF raw data'!G114 -> 1.7398869e-06 | C109: ='DF raw data'!H114 -> -1.5791042e-05 | D109: ='DF raw data'!I114 -> -8.3743253e-06 | F109: 1.741626787e-06 | G109: -1.584531914e-05 | H109: -8.382699625e-06 | J109: -2.906565562e-06 | K109: -1.076917111e-05 | L109: 8.888684004e-06 | N109: -0.0002199785308 | O109: -0.004325775855 | P109: -0.0001704298866 | Q109: -0.003231029771 | R109: 8.572967044e-07
A110: 52.0276 | B110: ='DF raw data'!G115 -> -1.088102e-07 | C110: ='DF raw data'!H115 -> -5.7945444e-06 | D110: ='DF raw data'!I115 -> -9.5903997e-06 | F110: -1.089190102e-07 | G110: -5.814461469e-06 | H110: -9.5999901e-06 | J110: -3.267708344e-06 | K110: -1.292299289e-05 | L110: 1.771934464e-06 | N110: -0.0002216128751 | O110: -0.004436615534 | P110: -0.0001768933215 | Q110: -0.003319502966 | R110: 8.975105217e-07
A111: 52.52775 | B111: ='DF raw data'!G116 -> -1.9119088e-06 | C111: ='DF raw data'!H116 -> 7.4546433e-06 | D111: ='DF raw data'!I116 -> 4.1520229e-07 | F111: -1.913820709e-06 | G111: 7.480266478e-06 | H111: 4.156174923e-07 | J111: -5.177179107e-06 | K111: -8.389618305e-06 | L111: 4.861067211e-06 | N111: -0.0002242022413 | O111: -0.004548750285 | P111: -0.0001810893891 | Q111: -0.003410074824 | R111: 9.390529867e-07
A112: 53.0279 | B112: ='DF raw data'!G117 -> -6.8795398e-06 | C112: ='DF raw data'!H117 -> 1.3905108e-06 | D112: ='DF raw data'!I117 -> 2.3539249e-06 | F112: -6.88641934e-06 | G112: 1.395290278e-06 | H112: 2.356278825e-06 | J112: -3.908341537e-06 | K112: -9.91109593e-06 | L112: 2.361261002e-06 | N112: -0.0002261569983 | O112: -0.004661862708 | P112: -0.0001860464237 | Q112: -0.003503125943 | R112: 9.819459805e-07
A113: 53.52805 | B113: ='DF raw data'!G118 -> -1.3420247e-05 | C113: ='DF raw data'!H118 -> 6.237569e-08 | D113: ='DF raw data'!I118 -> -1.4851141e-06 | F113: -1.343366725e-05 | G113: 6.259008838e-08 | H113: -1.486599214e-06 | J113: -1.2709697e-06 | K113: -1.04877441e-05 | L113: -6.303015519e-06 | N113: -0.0002267926738 | O113: -0.004775293064 | P113: -0.000191291869 | Q113: -0.003598800571 | R113: 1.025972933e-06
A114: 54.0282 | B114: ='DF raw data'!G119 -> -1.5166215e-05 | C114: ='DF raw data'!H119 -> 5.9349068e-06 | D114: ='DF raw data'!I119 -> -2.1582421e-06 | F114: -1.518138121e-05 | G114: 5.955306324e-06 | H114: -2.160400342e-06 | J114: -1.807307001e-06 | K114: -6.81816449e-07 | L114: -1.334849015e-06 | N114: -0.0002276965984 | O114: -0.004889175518 | P114: -0.0001916328795 | Q114: -0.003694645756 | R114: 1.070270669e-06
A115: 54.52835 | B115: ='DF raw data'!G120 -> -1.1114453e-05 | C115: ='DF raw data'!H120 -> -9.1097644e-07 | D115: ='DF raw data'!I120 -> -1.8138237e-06 | F115: -1.112556745e-05 | G115: -9.141076578e-07 | H115: -1.815637524e-06 | J115: -3.045008867e-06 | K115: 1.872324429e-06 | L115: -6.743070234e-07 | N115: -0.0002292195596 | O115: -0.00500381968 | P115: -0.0001906964364 | Q115: -0.003790022578 | R115: 1.114737373e-06
A116: 55.0285 | B116: ='DF raw data'!G121 -> -7.1254453e-06 | C116: ='DF raw data'!H121 -> 4.5906263e-06 | D116: ='DF raw data'!I121 -> -2.1587077e-06 | F116: -7.132570745e-06 | G116: 4.606405249e-06 | H116: -2.160866408e-06 | J116: -2.162168108e-06 | K116: -9.821261207e-06 | L116: -7.016883474e-07 | N116: -0.0002303009679 | O116: -0.005119004709 | P116: -0.0001956085402 | Q116: -0.00388785619 | R116: 1.160401687e-06
A117: 55.52865 | B117: ='DF raw data'!G122 -> -5.456639e-06 | C117: ='DF raw data'!H122 -> 8.5612874e-06 | D117: ='DF raw data'!I122 -> -9.485113e-06 | F117: -5.462095639e-06 | G117: 8.590714347e-06 | H117: -9.494598113e-06 | J117: -2.2090066e-06 | K117: -4.439853737e-06 | L117: 7.12770058e-06 | N117: -0.0002314058026 | O117: -0.005234742322 | P117: -0.000197829133 | Q117: -0.003986800431 | R117: 1.206758095e-06
A118: 56.0288 | B118: ='DF raw data'!G123 -> -5.1204242e-06 | C118: ='DF raw data'!H123 -> 7.9382409e-07 | D118: ='DF raw data'!I123 -> -1.5803689e-05 | F118: -5.125544624e-06 | G118: 7.965526305e-07 | H118: -1.581949269e-05 | J118: -5.456939088e-06 | K118: -5.961286609e-07 | L118: 5.527140819e-06 | N118: -0.0002341350907 | O118: -0.005351844987 | P118: -0.0001981272868 | Q118: -0.004085893793 | R118: 1.253809038e-06
A119: 56.52895 | B119: ='DF raw data'!G124 -> -7.0182414e-06 | C119: ='DF raw data'!H124 -> -1.5879862e-06 | D119: ='DF raw data'!I124 -> -1.1982487e-05 | F119: -7.025259641e-06 | G119: -1.593444443e-06 | H119: -1.199446949e-05 | J119: -5.519946332e-06 | K119: -1.97287566e-06 | L119: 1.207993687e-06 | N119: -0.0002368958918 | O119: -0.005470328467 | P119: -0.0001991140205 | Q119: -0.004185480671 | R119: 1.301706431e-06
A120: 57.0291 | B120: ='DF raw data'!G125 -> -5.5456821e-06 | C120: ='DF raw data'!H125 -> 9.3425033e-06 | D120: ='DF raw data'!I125 -> -5.9866329e-06 | F120: -5.551227782e-06 | G120: 9.37461545e-06 | H120: -5.992619533e-06 | J120: -1.368259092e-06 | K120: -5.826036217e-07 | L120: 2.982965085e-06 | N120: -0.0002375802266 | O120: -0.005589154218 | P120: -0.0001994054097 | Q120: -0.004285213286 | R120: 1.349824303e-06
A121: 57.52925 | B121: ='DF raw data'!G126 -> 2.2076656e-06 | C121: ='DF raw data'!H126 -> 1.3652333e-05 | D121: ='DF raw data'!I126 -> -3.8051878e-06 | F121: 2.209873266e-06 | G121: 1.369925894e-05 | H121: -3.808992988e-06 | J121: -3.662124566e-06 | K121: -6.354287709e-06 | L121: 4.204589389e-06 | N121: -0.0002394118382 | O121: -0.005708896049 | P121: -0.0002025835067 | Q121: -0.004386535427 | R121: 1.399018109e-06
A122: 58.0294 | B122: ='DF raw data'!G127 -> 5.1566549e-06 | C122: ='DF raw data'!H127 -> 1.1878553e-05 | D122: ='DF raw data'!I127 -> -7.3025899e-07 | F122: 5.161811555e-06 | G122: 1.191938209e-05 | H122: -7.30989249e-07 | J122: -9.176664897e-06 | K122: -8.819393372e-06 | L122: -5.226773852e-07 | N122: -0.0002440015472 | O122: -0.005830933423 | P122: -0.0002069945263 | Q122: -0.00449006374 | R122: 1.450225211e-06
A123: 58.52955 | B123: ='DF raw data'!G128 -> 1.5889653e-06 | C123: ='DF raw data'!H128 -> 1.8536364e-06 | D123: ='DF raw data'!I128 -> 3.7188145e-06 | F123: 1.590554265e-06 | G123: 1.860007738e-06 | H123: 3.722533314e-06 | J123: -5.27479993e-06 | K123: -6.88621419e-06 | L123: 7.537441912e-08 | N123: -0.0002466397384 | O123: -0.005954290288 | P123: -0.0002104386664 | Q123: -0.004595314639 | R123: 1.502798775e-06
A124: 59.0297 | B124: ='DF raw data'!G129 -> -3.6158426e-07 | C124: ='DF raw data'!H129 -> 3.8586468e-06 | D124: ='DF raw data'!I129 -> 4.2039933e-06 | F124: -3.619458443e-07 | G124: 3.871909781e-06 | H124: 4.208197293e-06 | J124: 2.966662198e-07 | K124: -6.619247111e-06 | L124: -7.82164433e-07 | N124: -0.0002464913607 | O124: -0.006077572942 | P124: -0.0002137492828 | Q124: -0.004702221342 | R124: 1.556038115e-06
A125: 59.52985 | B125: ='DF raw data'!G130 -> 3.8326161e-06 | C125: ='DF raw data'!H130 -> 3.2340747e-06 | D125: ='DF raw data'!I130 -> 3.9038346e-06 | F125: 3.836448716e-06 | G125: 3.245190896e-06 | H125: 3.907738435e-06 | J125: -3.071934966e-06 | K125: 7.017605262e-07 | L125: -5.478254782e-06 | N125: -0.000248027789 | O125: -0.00620162404 | P125: -0.0002133982973 | Q125: -0.004808952501 | R125: 1.609582483e-06
A126: 60.03 | B126: ='DF raw data'!G131 -> 4.3664095e-06 | C126: ='DF raw data'!H131 -> -1.8571093e-06 | D126: ='DF raw data'!I131 -> 6.2161885e-06 | F126: 4.370775909e-06 | G126: -1.863492576e-06 | H126: 6.222404688e-06 | J126: -6.956163614e-06 | K126: 7.624727019e-06 | L126: -6.605162264e-07 | N126: -0.0002515069143 | O126: -0.006327415224 | P126: -0.0002095847901 | Q126: -0.004913776333 | R126: 1.663189316e-06
A127: 60.53015 | B127: ='DF raw data'!G132 -> -1.3330556e-06 | C127: ='DF raw data'!H132 -> 2.3350392e-06 | D127: ='DF raw data'!I132 -> -1.4950662e-07 | F127: -1.334388656e-06 | G127: 2.343065221e-06 | H127: -1.496561266e-07 | J127: -4.040972836e-06 | K127: -7.49512939e-06 | L127: 3.735377746e-06 | N127: -0.0002535280068 | O127: -0.006454217256 | P127: -0.000213333479 | Q127: -0.005020475073 | R127: 1.718099596e-06
A128: 61.0303 | B128: ='DF raw data'!G133 -> -5.3520398e-06 | C128: ='DF raw data'!H133 -> 1.0180024e-05 | D128: ='DF raw data'!I133 -> -6.1812357e-06 | F128: -5.35739184e-06 | G128: 1.021501489e-05 | H128: -6.187416936e-06 | J128: 8.033388964e-07 | K128: -1.459723591e-05 | L128: 6.188684202e-06 | N128: -0.0002531262169 | O128: -0.006580818334 | P128: -0.0002206342866 | Q128: -0.005130825311 | R128: 1.774492694e-06
A129: 61.53045 | B129: ='DF raw data'!G134 -> -6.1150549e-06 | C129: ='DF raw data'!H134 -> 1.631634e-05 | D129: ='DF raw data'!I134 -> -4.1348981e-06 | F129: -6.121169955e-06 | G129: 1.63724227e-05 | H129: -4.139032998e-06 | J129: -6.67291625e-07 | K129: -1.616423255e-05 | L129: 5.157527675e-06 | N129: -0.0002534599628 | O129: -0.006707586334 | P129: -0.0002287188275 | Q129: -0.005245219033 | R129: 1.832787304e-06
A130: 62.0306 | B130: ='DF raw data'!G135 -> -5.7767011e-06 | C130: ='DF raw data'!H135 -> 5.1131274e-06 | D130: ='DF raw data'!I135 -> -9.320504e-07 | F130: -5.782477801e-06 | G130: 5.130702295e-06 | H130: -9.329824504e-07 | J130: -2.347380736e-06 | K130: -7.91874245e-06 | L130: 5.323814796e-06 | N130: -0.0002546340053 | O130: -0.006834941532 | P130: -0.0002326793865 | Q130: -0.005361593628 | R130: 1.892294238e-06
A131: 62.53075 | B131: ='DF raw data'!G136 -> -5.3669919e-06 | C131: ='DF raw data'!H136 -> 3.8124806e-06 | D131: ='DF raw data'!I136 -> -7.2256703e-06 | F131: -5.372358892e-06 | G131: 3.825584898e-06 | H131: -7.23289597e-06 | J131: -4.740528393e-07 | K131: -2.132201019e-06 | L131: 1.260287328e-06 | N131: -0.0002548711028 | O131: -0.006962415314 | P131: -0.0002337458069 | Q131: -0.005478501593 | R131: 1.952110368e-06
A132: 63.0309 | B132: ='DF raw data'!G137 -> -5.3934909e-06 | C132: ='DF raw data'!H137 -> 5.3003268e-06 | D132: ='DF raw data'!I137 -> -1.0871368e-05 | F132: -5.398884391e-06 | G132: 5.318545139e-06 | H132: -1.088223937e-05 | J132: -1.435700166e-08 | K132: 7.328224869e-07 | L132: 3.726251829e-06 | N132: -0.0002548782834 | O132: -0.007089892687 | P132: -0.0002333792857 | Q132: -0.005595226243 | R132: 2.011842697e-06
A133: 63.53105 | B133: ='DF raw data'!G138 -> -5.094922e-06 | C133: ='DF raw data'!H138 -> 1.081359e-06 | D133: ='DF raw data'!I138 -> -4.3170553e-06 | F133: -5.100016922e-06 | G133: 1.085075859e-06 | H133: -4.321372355e-06 | J133: -1.474426754e-06 | K133: -1.056499572e-05 | L133: 1.328331404e-05 | N133: -0.000255615718 | O133: -0.007217738889 | P133: -0.0002386633683 | Q133: -0.005714593727 | R133: 2.073010842e-06
A134: 64.0312 | B134: ='DF raw data'!G139 -> -3.2503722e-06 | C134: ='DF raw data'!H139 -> -6.7577539e-06 | D134: ='DF raw data'!I139 -> -1.6438464e-06 | F134: -3.253622572e-06 | G134: -6.780981723e-06 | H134: -1.645490246e-06 | J134: -3.890636049e-06 | K134: -1.499822346e-05 | L134: 5.82093552e-06 | N134: -0.0002575616196 | O134: -0.007346558333 | P134: -0.0002461647298 | Q134: -0.005837713016 | R134: 2.136497413e-06
A135: 64.53135 | B135: ='DF raw data'!G140 -> -3.788371e-06 | C135: ='DF raw data'!H140 -> -6.3358056e-07 | D135: ='DF raw data'!I140 -> -1.7531656e-08 | F135: -3.792159371e-06 | G135: =(1-$G$1*($B$2-$G$2))*C135*$M$2/$M$1 -> -6.357583098e-07 | H135: -1.754918766e-08 | J135: =-CELL("contents", INDEX($F$6:$F$1203,1204-CELL("row",F135))) -> -4.987155974e-06 | K135: =CELL("contents", INDEX($G$6:$G$1203,1204-CELL("row",G135))) -> -1.669089761e-06 | L135: =-CELL("contents", INDEX($H$6:$H$1203,1204-CELL("row",H135))) -> 1.361618959e-06 | N135: -0.0002600559457 | O135: -0.007476625314 | P135: -0.000246999525 | Q135: -0.005961249829 | R135: 2.200835639e-06
A136: =A135+$B$1 -> 65.0315 | B136: ='DF raw data'!G141 -> -7.9538058e-06 | C136: ='DF raw data'!H141 -> 6.9725711e-06 | D136: ='DF raw data'!I141 -> 4.1260841e-07 | F136: -7.961759606e-06 | G136: 6.996537295e-06 | H136: 4.130210184e-07 | J136: -3.962463205e-06 | K136: -8.655051229e-07 | L136: 6.014804295e-06 | N136: =J136*$B$1+N135 -> -0.0002620377716 | O136: =N136*$B$1+O135 -> -0.007607683505 | P136: =K136*$B$1+P135 -> -0.0002474324074 | Q136: =P136*$B$1+Q135 -> -0.006085003147 | R136: =(N136^2+P136^2)*$B$1+R135 -> 2.265798417e-06
A137: 65.53165 | B137: ='DF raw data'!G142 -> -1.0284157e-05 | C137: ='DF raw data'!H142 -> 9.4400375e-06 | D137: ='DF raw data'!I142 -> -1.4056498e-06 | F137: -1.029444116e-05 | G137: 9.472484896e-06 | H137: -1.40705545e-06 | J137: -3.428267242e-06 | K137: -8.173907e-08 | L137: 7.231096973e-06 | N137: -0.0002637524195 | O137: -0.007739599278 | P137: -0.0002474732892 | Q137: -0.006208776913 | R137: 2.331222222e-06
A138: 66.0318 | B138: ='DF raw data'!G143 -> -4.3844393e-06 | C138: ='DF raw data'!H143 -> 6.4486003e-06 | D138: ='DF raw data'!I143 -> -5.2747023e-06 | F138: -4.388823739e-06 | G138: 6.470765497e-06 | H138: -5.279977002e-06 | J138: -8.325560844e-06 | K138: -3.622883156e-06 | L138: 2.840730793e-06 | N138: -0.0002679164487 | O138: -0.00787359769 | P138: -0.0002492852742 | Q138: -0.006333456943 | R138: 2.398203496e-06
A139: 66.53195 | B139: ='DF raw data'!G144 -> 3.162384e-06 | C139: ='DF raw data'!H144 -> -2.9047781e-06 | D139: ='DF raw data'!I144 -> -7.2769149e-06 | F139: 3.165546384e-06 | G139: -2.914762434e-06 | H139: -7.284191815e-06 | J139: -1.256117262e-05 | K139: -1.03625623e-05 | L139: -2.85066832e-06 | N139: -0.0002741989192 | O139: -0.008010738279 | P139: -0.0002544681097 | Q139: -0.006460729168 | R139: 2.46819402e-06
A140: 67.0321 | B140: ='DF raw data'!G145 -> 3.2161824e-06 | C140: ='DF raw data'!H145 -> 3.709875e-06 | D140: ='DF raw data'!I145 -> -7.2926891e-06 | F140: 3.219398582e-06 | G140: 3.722626621e-06 | H140: -7.299981789e-06 | J140: -1.046113969e-05 | K140: -7.026261312e-06 | L140: -2.078204929e-06 | N140: -0.0002794310582 | O140: -0.008150495723 | P140: -0.0002579822943 | Q140: -0.006589759012 | R140: 2.540534005e-06
A141: 67.53225 | B141: ='DF raw data'!G146 -> -5.7638505e-07 | C141: ='DF raw data'!H146 -> 2.0168179e-06 | D141: ='DF raw data'!I146 -> -1.1855704e-05 | F141: -5.76961435e-07 | G141: 2.023750128e-06 | H141: -1.18675597e-05 | J141: -7.751208665e-06 | K141: 1.771910567e-06 | L141: 2.368657091e-06 | N141: -0.0002833078253 | O141: -0.008292192132 | P141: -0.0002570960733 | Q141: -0.006718345613 | R141: 2.613736817e-06
A142: 68.0324 | B142: ='DF raw data'!G147 -> -4.1026924e-06 | C142: ='DF raw data'!H147 -> 4.1113553e-06 | D142: ='DF raw data'!I147 -> -9.0690846e-06 | F142: -4.106795092e-06 | G142: 4.125486894e-06 | H142: -9.078153685e-06 | J142: -9.167378821e-06 | K142: -9.440355138e-06 | L142: 8.773962197e-06 | N142: -0.0002878928898 | O142: -0.008436181761 | P142: -0.0002618176669 | Q142: -0.00684929372 | R142: 2.689474935e-06
A143: 68.53255 | B143: ='DF raw data'!G148 -> -2.2994554e-06 | C143: ='DF raw data'!H148 -> 8.1832868e-06 | D143: ='DF raw data'!I148 -> -5.4967281e-06 | F143: -2.301754855e-06 | G143: 8.211414479e-06 | H143: -5.502224828e-06 | J143: -8.302574881e-06 | K143: -1.141543786e-05 | L143: 1.096051657e-05 | N143: -0.0002920454226 | O143: -0.008582248279 | P143: -0.0002675270981 | Q143: -0.006983097398 | R143: 2.767929103e-06
A144: 69.0327 | B144: ='DF raw data'!G149 -> 3.2954831e-06 | C144: ='DF raw data'!H149 -> 1.4408731e-05 | D144: ='DF raw data'!I149 -> -7.6740434e-06 | F144: 3.298778583e-06 | G144: 1.445825684e-05 | H144: -7.681717443e-06 | J144: -4.281243066e-06 | K144: 2.96356099e-07 | L144: 1.146756811e-05 | N144: -0.0002941866863 | O144: -0.00872938575 | P144: -0.0002673788756 | Q144: -0.007116826942 | R144: 2.846971443e-06
A145: 69.53285 | B145: ='DF raw data'!G150 -> 4.3022646e-06 | C145: ='DF raw data'!H150 -> 6.830468e-06 | D145: ='DF raw data'!I150 -> -3.5506857e-06 | F145: 4.306566865e-06 | G145: 6.853945756e-06 | H145: -3.554236386e-06 | J145: -5.424536017e-06 | K145: 3.107823251e-06 | L145: 9.362421969e-06 | N145: -0.000296899768 | O145: -0.008877880169 | P145: -0.0002658244978 | Q145: -0.007249779065 | R145: 2.926401333e-06
A146: 70.033 | B146: ='DF raw data'!G151 -> -9.5752887e-07 | C146: ='DF raw data'!H151 -> 7.2386238e-06 | D146: ='DF raw data'!I151 -> 4.6917899e-07 | F146: -9.584863989e-07 | G146: 7.263504474e-06 | H146: 4.69648169e-07 | J146: -1.209479471e-05 | K146: -2.355789407e-06 | L146: 1.058404647e-05 | N146: -0.0003029489796 | O146: -0.009029400101 | P146: -0.0002670027459 | Q146: -0.007383320488 | R146: 3.007960068e-06
A147: 70.53315 | B147: ='DF raw data'!G152 -> -1.9930067e-06 | C147: ='DF raw data'!H152 -> 8.3993064e-06 | D147: ='DF raw data'!I152 -> 1.0053531e-07 | F147: -1.994999707e-06 | G147: 8.428176584e-06 | H147: 1.006358453e-07 | J147: -1.599886588e-05 | K147: -1.363071214e-05 | L147: 6.38454857e-06 | N147: -0.0003109508124 | O147: -0.00918492215 | P147: -0.0002738201466 | Q147: -0.007520271635 | R147: 3.093819759e-06
A148: 71.0333 | B148: ='DF raw data'!G153 -> -6.9833737e-07 | C148: ='DF raw data'!H153 -> 8.126447e-06 | D148: ='DF raw data'!I153 -> 1.0442052e-06 | F148: -6.990357074e-07 | G148: 8.154379309e-06 | H148: 1.045249405e-06 | J148: -9.54188265e-06 | K148: -1.124312762e-05 | L148: -3.454690339e-07 | N148: -0.000315723185 | O148: -0.009342831101 | P148: -0.0002794433968 | Q148: -0.00766003525 | R148: 3.182731295e-06
A149: 71.53345 | B149: ='DF raw data'!G154 -> -2.4314195e-06 | C149: ='DF raw data'!H154 -> 1.36027e-05 | D149: ='DF raw data'!I154 -> -3.261641e-06 | F149: -2.433850919e-06 | G149: 1.364945534e-05 | H149: -3.264902641e-06 | J149: 3.055307355e-06 | K149: -1.04340572e-05 | L149: -6.942042708e-06 | N149: -0.000314195073 | O149: -0.009499975766 | P149: -0.0002846619906 | Q149: -0.007802408944 | R149: 3.272633754e-06
A150: 72.0336 | B150: ='DF raw data'!G155 -> -2.0675707e-06 | C150: ='DF raw data'!H155 -> 6.3010293e-06 | D150: ='DF raw data'!I155 -> -1.2006712e-05 | F150: -2.069638271e-06 | G150: 6.322687264e-06 | H150: -1.201871871e-05 | J150: 8.384369293e-06 | K150: -1.147140357e-05 | L150: -4.016065553e-06 | N150: -0.0003100016307 | O150: -0.009655023082 | P150: -0.0002903994131 | Q150: -0.007947652211 | R150: 3.362877234e-06
A151: 72.53375 | B151: ='DF raw data'!G156 -> -2.1019423e-06 | C151: ='DF raw data'!H156 -> 4.2565252e-06 | D151: ='DF raw data'!I156 -> -9.6350595e-06 | F151: =(1-$G$1*($B$2-$G$2))*B151 -> -2.104044242e-06 | G151: 4.271155773e-06 | H151: -9.644694559e-06 | J151: 1.57172005e-06 | K151: -2.391268438e-06 | L151: 6.587608728e-06 | N151: -0.0003092155349 | O151: -0.009809677232 | P151: -0.000291595406 | Q151: -0.008093493653 | R151: 3.453225394e-06
A152: 73.0339 | B152: ='DF raw data'!G157 -> -7.0305232e-06 | C152: ='DF raw data'!H157 -> 1.1214618e-05 | D152: ='DF raw data'!I157 -> 5.0751873e-06 | F152: -7.037553723e-06 | G152: 1.1253165e-05 | H152: 5.080262487e-06 | J152: -6.803284888e-06 | K152: -1.521679517e-06 | L152: 4.778256883e-06 | N152: -0.0003126181978 | O152: -0.009966033223 | P152: -0.000292356474 | Q152: -0.008239715743 | R152: 3.544854097e-06
A153: 73.53405 | B153: ='DF raw data'!G158 -> -1.1645445e-05 | C153: ='DF raw data'!H158 -> 1.2857377e-05 | D153: ='DF raw data'!I158 -> 2.7388048e-06 | F153: -1.165709044e-05 | G153: 1.290157051e-05 | H153: 2.741543605e-06 | J153: -6.445685346e-06 | K153: -4.55539883e-06 | L153: 1.686392908e-06 | N153: -0.0003158420074 | O153: -0.0101240016 | P153: -0.0002946348567 | Q153: -0.008387077367 | R153: 3.638165018e-06
A154: 74.0342 | B154: ='DF raw data'!G159 -> -9.4359766e-06 | C154: ='DF raw data'!H159 -> 1.8517621e-05 | D154: ='DF raw data'!I159 -> -9.2314076e-06 | F154: -9.445412577e-06 | G154: 1.858126996e-05 | H154: -9.240639008e-06 | J154: 2.063622261e-06 | K154: -1.291797671e-06 | L154: 5.656982631e-06 | N154: -0.0003148098867 | O154: -0.01028145377 | P154: -0.0002952809493 | Q154: -0.008534762134 | R154: 3.731341015e-06
A155: 74.53435 | B155: ='DF raw data'!G160 -> -4.9235077e-06 | C155: ='DF raw data'!H160 -> 1.4002714e-05 | D155: ='DF raw data'!I160 -> -8.589097e-06 | F155: -4.928431208e-06 | G155: 1.405084428e-05 | H155: -8.597686097e-06 | J155: 7.467854394e-06 | K155: 2.696125407e-06 | L155: 6.541371136e-06 | N155: -0.0003110748393 | O155: -0.01043703785 | P155: -0.0002939324822 | Q155: -0.008681772465 | R155: 3.822950419e-06
A156: 75.0345 | B156: ='DF raw data'!G161 -> -4.9468053e-06 | C156: ='DF raw data'!H161 -> 8.9452906e-06 | D156: ='DF raw data'!I161 -> -6.1301221e-06 | F156: -4.951752105e-06 | G156: 8.976037447e-06 | H156: -6.136252222e-06 | J156: 1.719984867e-06 | K156: -6.862335394e-07 | L156: 7.594777991e-06 | N156: -0.0003102145889 | O156: -0.01059219168 | P156: -0.0002942757019 | Q156: -0.008828954457 | R156: 3.914393484e-06
A157: 75.53465 | B157: ='DF raw data'!G162 -> -5.4480315e-06 | C157: ='DF raw data'!H162 -> 1.1399282e-05 | D157: ='DF raw data'!I162 -> -8.8426677e-06 | F157: -5.453479531e-06 | G157: 1.143846373e-05 | H157: -8.851510368e-06 | J157: -1.102199598e-05 | K157: -1.556147886e-05 | L157: 3.872084216e-06 | N157: -0.0003157272402 | O157: -0.01075010266 | P157: -0.0003020587755 | Q157: -0.008980029154 | R157: 4.009883719e-06
A158: 76.0348 | B158: ='DF raw data'!G163 -> -4.3462624e-06 | C158: ='DF raw data'!H163 -> 5.2418864e-06 | D158: ='DF raw data'!I163 -> -4.6147547e-06 | F158: -4.350608662e-06 | G158: 5.259903867e-06 | H158: -4.619369455e-06 | J158: -1.769927159e-05 | K158: -1.904277682e-05 | L158: -4.351633286e-06 | N158: -0.0003245795309 | O158: -0.01091244111 | P158: -0.0003115830204 | Q158: -0.009135867401 | R158: 4.11113201e-06
A159: 76.53495 | B159: ='DF raw data'!G164 -> -6.8171921e-06 | C159: ='DF raw data'!H164 -> 1.5696571e-05 | D159: ='DF raw data'!I164 -> 1.0432739e-06 | F159: -6.824009292e-06 | G159: 1.575052342e-05 | H159: 1.044317174e-06 | J159: -1.384090207e-05 | K159: -1.222893043e-05 | L159: -6.217543132e-06 | N159: -0.000331502058 | O159: -0.01107824186 | P159: -0.0003176993199 | Q159: -0.009294764716 | R159: 4.21657687e-06
A160: 77.0351 | B160: ='DF raw data'!G165 -> -8.1324233e-06 | C160: ='DF raw data'!H165 -> 9.5032838e-06 | D160: ='DF raw data'!I165 -> -1.8837056e-06 | F160: -8.140555723e-06 | G160: 9.535948587e-06 | H160: -1.885589306e-06 | J160: -1.100355456e-05 | K160: -8.616152684e-06 | L160: -2.04642458e-06 | N160: -0.0003370054859 | O160: -0.01124679516 | P160: -0.0003220086887 | Q160: -0.009455817362 | R160: 4.325240606e-06
A161: 77.53525 | B161: ='DF raw data'!G166 -> -5.6216431e-06 | C161: ='DF raw data'!H166 -> -3.5688438e-06 | D161: ='DF raw data'!I166 -> -3.0605809e-06 | F161: -5.627264743e-06 | G161: -3.581110667e-06 | H161: -3.063641481e-06 | J161: -1.137939503e-05 | K161: -1.001124328e-05 | L161: 2.744195154e-06 | N161: -0.0003426968903 | O161: -0.01141819501 | P161: -0.000327015812 | Q161: -0.00961937432 | R161: 4.437464513e-06
A162: 78.0354 | B162: ='DF raw data'!G167 -> -5.8637434e-06 | C162: ='DF raw data'!H167 -> 4.939272e-06 | D162: ='DF raw data'!I167 -> -1.0010757e-05 | F162: -5.869607143e-06 | G162: 4.956249318e-06 | H162: -1.002076776e-05 | J162: -8.935724598e-06 | K162: -1.455519289e-05 | L162: 6.462359003e-06 | N162: -0.0003471660929 | O162: -0.01159183013 | P162: -0.0003342955917 | Q162: -0.00978657226 | R162: 4.553638274e-06
A163: 78.53555 | B163: ='DF raw data'!G168 -> -4.4281605e-06 | C163: ='DF raw data'!H168 -> 6.093017e-06 | D163: ='DF raw data'!I168 -> -1.1458975e-05 | F163: -4.43258866e-06 | G163: 6.113959982e-06 | H163: -1.147043397e-05 | J163: -7.508666065e-06 | K163: -2.269799153e-05 | L163: 5.92579948e-06 | N163: -0.0003509215523 | O163: -0.01176734354 | P163: -0.0003456479922 | Q163: -0.009959448104 | R163: 4.674983902e-06
A164: 79.0357 | B164: ='DF raw data'!G169 -> 3.9267306e-06 | C164: ='DF raw data'!H169 -> 1.3155451e-05 | D164: ='DF raw data'!I169 -> -3.125406e-06 | F164: 3.930657331e-06 | G164: 1.320066905e-05 | H164: -3.128531406e-06 | J164: -5.053903154e-06 | K164: -1.865236549e-05 | L164: 7.691109226e-06 | N164: -0.0003534492619 | O164: -0.01194412119 | P164: -0.0003549769728 | Q164: -0.01013698984 | R164: 4.800489058e-06
A165: 79.53585 | B165: ='DF raw data'!G170 -> 7.8885114e-06 | C165: ='DF raw data'!H170 -> 1.8223815e-05 | D165: ='DF raw data'!I170 -> 2.1523335e-06 | F165: 7.896399911e-06 | G165: 1.828645409e-05 | H165: 2.154485833e-06 | J165: -2.009358551e-06 | K165: -1.189903238e-05 | L165: 8.3582498e-06 | N165: -0.0003544542426 | O165: -0.01212140148 | P165: -0.0003609282738 | Q165: -0.01031750811 | R165: 4.928480959e-06
A166: 80.036 | B166: ='DF raw data'!G171 -> 9.8467888e-07 | C166: ='DF raw data'!H171 -> 1.8049559e-05 | D166: ='DF raw data'!I171 -> 1.5404633e-07 | F166: 9.856635589e-07 | G166: 1.811159913e-05 | H166: 1.542003763e-07 | J166: -4.537146814e-06 | K166: -1.74986736e-05 | L166: 2.997953959e-06 | N166: -0.0003567234966 | O166: -0.01229981674 | P166: -0.0003696802354 | Q166: -0.01050240368 | R166: 5.060478111e-06
A167: 80.53615 | B167: ='DF raw data'!G172 -> -6.0666625e-06 | C167: ='DF raw data'!H172 -> 3.6132722e-06 | D167: ='DF raw data'!I172 -> -4.5762176e-06 | F167: -6.072729162e-06 | G167: 3.625691777e-06 | H167: -4.580793818e-06 | J167: -5.999554561e-06 | K167: -1.298310581e-05 | L167: 2.242036597e-07 | N167: -0.0003597241738 | O167: -0.01247973278 | P167: -0.0003761737358 | Q167: -0.01069054698 | R167: 5.195972827e-06
A168: 81.0363 | B168: ='DF raw data'!G173 -> -8.9341538e-06 | C168: ='DF raw data'!H173 -> -1.3256177e-07 | D168: ='DF raw data'!I173 -> -7.615145e-06 | F168: -8.943087954e-06 | G168: -1.330174127e-07 | H168: -7.622760145e-06 | J168: -3.03799516e-06 | K168: -1.154249709e-05 | L168: -9.618418109e-07 | N168: -0.0003612436271 | O168: -0.01266040878 | P168: -0.0003819467157 | Q168: -0.01088157763 | R168: 5.33420441e-06
A169: 81.53645 | B169: ='DF raw data'!G174 -> -7.0988081e-06 | C169: ='DF raw data'!H174 -> 1.1989831e-05 | D169: ='DF raw data'!I174 -> -2.9948935e-06 | F169: -7.105906908e-06 | G169: 1.203104257e-05 | H169: -2.997888393e-06 | J169: -2.086997813e-06 | K169: -1.59822853e-05 | L169: -5.533483556e-06 | N169: -0.000362287439 | O169: -0.01284160684 | P169: -0.0003899402557 | Q169: -0.01107660625 | R169: 5.475899702e-06
A170: 82.0366 | B170: ='DF raw data'!G175 -> -1.8372867e-06 | C170: ='DF raw data'!H175 -> 2.3086301e-05 | D170: ='DF raw data'!I175 -> 5.9024001e-07 | F170: -1.839123987e-06 | G170: 2.316565348e-05 | H170: 5.9083025e-07 | J170: -6.303502105e-06 | K170: -9.902396832e-06 | L170: -5.820016903e-06 | N170: -0.0003654401356 | O170: -0.01302438173 | P170: -0.0003948929395 | Q170: -0.01127411195 | R170: 5.620686588e-06
A171: 82.53675 | B171: ='DF raw data'!G176 -> 1.2210456e-06 | C171: ='DF raw data'!H176 -> 2.1946033e-05 | D171: ='DF raw data'!I176 -> -1.7638415e-06 | F171: 1.222266646e-06 | G171: 2.202146614e-05 | H171: -1.765605341e-06 | J171: -9.43457515e-06 | K171: -7.266587234e-06 | L171: -2.986307624e-06 | N171: -0.0003701588384 | O171: -0.01320951667 | P171: -0.0003985273231 | Q171: -0.01147343539 | R171: 5.768651761e-06
A172: 83.0369 | B172: ='DF raw data'!G177 -> 1.3166299e-06 | C172: ='DF raw data'!H177 -> 7.5298949e-06 | D172: ='DF raw data'!I177 -> -5.176204e-06 | F172: 1.31794653e-06 | G172: 7.555776734e-06 | H172: -5.181380204e-06 | J172: -8.19841012e-06 | K172: -8.289073094e-06 | L172: -7.293354969e-07 | N172: -0.0003742592732 | O172: -0.01339670245 | P172: -0.000402673103 | Q172: -0.01167483234 | R172: 5.919804909e-06
A173: 83.53705 | B173: ='DF raw data'!G178 -> 4.4568324e-07 | C173: ='DF raw data'!H178 -> 9.17532e-06 | D173: ='DF raw data'!I178 -> -7.4124878e-06 | F173: 4.461289232e-07 | G173: 9.206857506e-06 | H173: -7.419900288e-06 | J173: -7.194696809e-06 | K173: -9.995845535e-06 | L173: 5.32314833e-06 | N173: -0.0003778577008 | O173: -0.01358568798 | P173: -0.0004076725252 | Q173: -0.01187872976 | R173: 6.07433792e-06
A174: 84.0372 | B174: ='DF raw data'!G179 -> -1.1140565e-06 | C174: ='DF raw data'!H179 -> 1.0338938e-05 | D174: ='DF raw data'!I179 -> -2.8264442e-06 | F174: -1.115170556e-06 | G174: 1.037447511e-05 | H174: -2.829270644e-06 | J174: -8.281526353e-06 | K174: -1.091416879e-05 | L174: 6.316060651e-06 | N174: -0.0003819997062 | O174: -0.01377674513 | P174: -0.0004131312467 | Q174: -0.01208535735 | R174: 6.232686011e-06
A175: 84.53735 | B175: ='DF raw data'!G180 -> -1.3615628e-06 | C175: ='DF raw data'!H180 -> 1.0556555e-05 | D175: ='DF raw data'!I180 -> 5.1443544e-07 | F175: -1.362924363e-06 | G175: 1.05928401e-05 | H175: 5.149498754e-07 | J175: -7.138167937e-06 | K175: -7.751521144e-06 | L175: 7.291587904e-06 | N175: -0.0003855698609 | O175: -0.01396958789 | P175: -0.00041700817 | Q175: -0.01229392398 | R175: 6.394014361e-06
A176: 85.0375 | B176: ='DF raw data'!G181 -> 6.6715614e-07 | C176: ='DF raw data'!H181 -> 1.9396506e-05 | D176: ='DF raw data'!I181 -> -5.5857786e-06 | F176: 6.678232961e-07 | G176: 1.946317587e-05 | H176: -5.591364379e-06 | J176: -4.931632205e-06 | K176: -1.730695086e-05 | L176: 6.209201098e-06 | N176: -0.0003880364168 | O176: -0.01416366431 | P176: -0.0004256642415 | Q176: -0.01250681995 | R176: 6.559945279e-06
A177: 85.53765 | B177: ='DF raw data'!G182 -> 1.1155806e-06 | C177: ='DF raw data'!H182 -> 1.2212654e-05 | D177: ='DF raw data'!I182 -> -7.4028362e-06 | F177: 1.116696181e-06 | G177: 1.225463146e-05 | H177: -7.410239036e-06 | J177: -1.385629645e-06 | K177: -1.942220854e-05 | L177: -2.302154855e-07 | N177: -0.0003887294394 | O177: -0.01435808734 | P177: -0.0004353782591 | Q177: -0.01272457439 | R177: 6.730328781e-06
A178: 86.0378 | B178: ='DF raw data'!G183 -> -1.6475152e-06 | C178: ='DF raw data'!H183 -> 5.832967e-06 | D178: ='DF raw data'!I183 -> -7.9833189e-06 | F178: -1.649162715e-06 | G178: 5.853016135e-06 | H178: -7.991302219e-06 | J178: 8.144312676e-07 | K178: -1.16320649e-05 | L178: 2.897824029e-06 | N178: -0.0003883221016 | O178: -0.01455230664 | P178: -0.0004411960363 | Q178: -0.01294523859 | R178: 6.903104597e-06
A179: 86.53795 | B179: ='DF raw data'!G184 -> -6.4570831e-06 | C179: ='DF raw data'!H184 -> 6.589099e-06 | D179: ='DF raw data'!I184 -> -1.2640376e-05 | F179: -6.463540183e-06 | G179: 6.61174712e-06 | H179: -1.265301638e-05 | J179: -1.927640715e-06 | K179: -1.556549461e-05 | L179: 1.059123866e-05 | N179: -0.0003892862111 | O179: -0.01474700813 | P179: -0.0004489811184 | Q179: -0.0131697965 | R179: 7.079721466e-06
A180: 87.0381 | B180: ='DF raw data'!G185 -> -6.7326237e-06 | C180: ='DF raw data'!H185 -> 4.8130523e-06 | D180: ='DF raw data'!I185 -> -1.2894012e-05 | F180: -6.739356324e-06 | G180: 4.829595774e-06 | H180: -1.290690601e-05 | J180: -5.566118358e-06 | K180: -1.922700288e-05 | L180: 1.002123422e-05 | N180: -0.0003920701052 | O180: -0.014943102 | P180: -0.0004585975039 | Q180: -0.01339916404 | R180: 7.261791389e-06
A181: 87.53825 | B181: ='DF raw data'!G186 -> -2.603234e-06 | C181: ='DF raw data'!H186 -> 7.231286e-06 | D181: ='DF raw data'!I186 -> -7.3555825e-06 | F181: -2.605837234e-06 | G181: 7.256141452e-06 | H181: -7.362938082e-06 | J181: -6.479228356e-06 | K181: -2.025391249e-05 | L181: 2.771310642e-06 | N181: -0.0003953106913 | O181: -0.01514081664 | P181: -0.0004687274983 | Q181: -0.0136335981 | R181: 7.449835791e-06
A182: 88.0384 | B182: ='DF raw data'!G187 -> -3.082363e-06 | C182: ='DF raw data'!H187 -> 9.6910144e-06 | D182: ='DF raw data'!I187 -> -2.2827664e-06 | F182: -3.085445363e-06 | G182: 9.724324456e-06 | H182: -2.285049166e-06 | J182: -1.804969066e-06 | K182: -1.96527653e-05 | L182: 1.558750593e-06 | N182: -0.0003962134466 | O182: -0.0153389828 | P182: -0.0004785568288 | Q182: -0.01387294829 | R182: 7.642894558e-06
A183: 88.53855 | B183: ='DF raw data'!G188 -> -6.9839352e-06 | C183: ='DF raw data'!H188 -> 1.2479241e-05 | D183: ='DF raw data'!I188 -> -3.3450999e-06 | F183: -6.990919135e-06 | G183: 1.252213478e-05 | H183: -3.348445e-06 | J183: 2.545371829e-06 | K183: -1.4289566e-05 | L183: 1.020188269e-06 | N183: -0.0003949403788 | O183: -0.01553651223 | P183: -0.0004857037553 | Q183: -0.01411587303 | R183: 7.838896361e-06
A184: 89.0387 | B184: ='DF raw data'!G189 -> -7.8627545e-06 | C184: ='DF raw data'!H189 -> 1.7178012e-05 | D184: ='DF raw data'!I189 -> -3.0007507e-06 | F184: -7.870617254e-06 | G184: 1.723705644e-05 | H184: -3.003751451e-06 | J184: -2.011792282e-07 | K184: -9.580132135e-06 | L184: -2.080670292e-06 | N184: -0.0003950409986 | O184: -0.01573409198 | P184: -0.0004904952584 | Q184: -0.01436119423 | R184: 8.037277352e-06
A185: 89.53885 | B185: ='DF raw data'!G190 -> -4.8546917e-06 | C185: ='DF raw data'!H190 -> 1.2139269e-05 | D185: ='DF raw data'!I190 -> 3.5310657e-06 | F185: -4.859546392e-06 | G185: 1.218099422e-05 | H185: 3.534596766e-06 | J185: -5.85569975e-06 | K185: -3.254830415e-06 | L185: 6.537842411e-06 | N185: -0.0003979697269 | O185: -0.01593313654 | P185: -0.0004921231618 | Q185: -0.01460732963 | R185: 8.237619992e-06
A186: 90.039 | B186: ='DF raw data'!G191 -> -1.7235114e-07 | C186: ='DF raw data'!H191 -> 2.0535708e-05 | D186: ='DF raw data'!I191 -> 4.6306736e-06 | F186: -1.725234911e-07 | G186: 2.060629355e-05 | H186: 4.635304274e-06 | J186: -8.003106511e-06 | K186: -6.214912187e-06 | L186: 1.397336841e-05 | N186: -0.0004019724806 | O186: -0.01613418308 | P186: -0.0004952315501 | Q186: -0.01485501969 | R186: 8.441099099e-06
A187: 90.53915 | B187: ='DF raw data'!G192 -> 1.9219133e-06 | C187: ='DF raw data'!H192 -> 2.6812388e-05 | D187: ='DF raw data'!I192 -> 1.5261246e-06 | F187: 1.923835213e-06 | G187: 2.690454782e-05 | H187: 1.527650725e-06 | J187: -4.934236007e-06 | K187: -3.858791746e-06 | L187: 7.582851676e-06 | N187: -0.0004044403387 | O187: -0.01633646391 | P187: -0.0004971615248 | Q187: -0.01510367503 | R187: 8.646531495e-06
A188: 91.0393 | B188: ='DF raw data'!G193 -> -4.8559577e-06 | C188: ='DF raw data'!H193 -> 1.2914747e-05 | D188: ='DF raw data'!I193 -> -6.3293851e-06 | F188: -4.860813658e-06 | G188: 1.29591377e-05 | H188: -6.335714485e-06 | J188: -2.522775555e-06 | K188: -5.419763958e-06 | L188: 7.589677896e-07 | N188: -0.0004057021049 | O188: -0.01653937582 | P188: -0.0004998722198 | Q188: -0.01535368612 | R188: 8.853826882e-06
A189: 91.53945 | B189: ='DF raw data'!G194 -> -1.148859e-05 | C189: ='DF raw data'!H194 -> 1.0923347e-05 | D189: ='DF raw data'!I194 -> -2.7874451e-06 | F189: -1.150007859e-05 | G189: 1.096089284e-05 | H189: -2.790232545e-06 | J189: -3.884354174e-06 | K189: -8.285188889e-06 | L189: 5.283975497e-06 | N189: -0.0004076448647 | O189: -0.0167432594 | P189: -0.000504016057 | Q189: -0.01560576975 | R189: 9.063993174e-06
A190: 92.0396 | B190: ='DF raw data'!G195 -> -5.9743452e-06 | C190: ='DF raw data'!H195 -> 1.0272091e-05 | D190: ='DF raw data'!I195 -> 1.2673624e-06 | F190: -5.980319545e-06 | G190: 1.030739834e-05 | H190: 1.268629762e-06 | J190: -7.009214612e-06 | K190: -1.181107007e-05 | L190: 6.69773124e-06 | N190: -0.0004111505233 | O190: -0.01694889633 | P190: -0.0005099233637 | Q190: -0.01586080792 | R190: 9.278590828e-06
A191: 92.53975 | B191: ='DF raw data'!G196 -> -8.2476441e-07 | C191: ='DF raw data'!H196 -> 2.2391012e-05 | D191: ='DF raw data'!I196 -> -3.3858307e-06 | F191: -8.255891744e-07 | G191: 2.246797462e-05 | H191: -3.389216531e-06 | J191: -9.339496166e-06 | K191: -1.546052906e-05 | L191: 8.655711564e-06 | N191: -0.0004158216724 | O191: -0.01715686954 | P191: -0.0005176559473 | Q191: -0.01611971354 | R191: 9.499094631e-06
A192: 93.0399 | B192: ='DF raw data'!G197 -> -4.7810663e-06 | C192: ='DF raw data'!H197 -> 2.6227177e-05 | D192: ='DF raw data'!I197 -> -3.5102896e-06 | F192: -4.785847366e-06 | G192: 2.631732533e-05 | H192: -3.51379989e-06 | J192: -7.115717409e-06 | K192: -1.66037802e-05 | L192: 1.168275108e-05 | N192: -0.0004193805984 | O192: -0.01736662275 | P192: -0.0005259603279 | Q192: -0.0163827726 | R192: 9.725419685e-06
A193: 93.54005 | B193: ='DF raw data'!G198 -> -7.3374376e-06 | C193: ='DF raw data'!H198 -> 7.6812021e-06 | D193: ='DF raw data'!I198 -> -3.7008979e-06 | F193: -7.344775038e-06 | G193: 7.707604009e-06 | H193: -3.704598798e-06 | J193: -5.630728003e-06 | K193: -2.621973002e-05 | L193: 7.962121968e-06 | N193: -0.000422196807 | O193: -0.01757778448 | P193: -0.0005390741259 | Q193: -0.01665239052 | R193: 9.959915541e-06
A194: 94.0402 | B194: ='DF raw data'!G199 -> -5.1546649e-06 | C194: ='DF raw data'!H199 -> 7.8550574e-06 | D194: ='DF raw data'!I199 -> -3.2129904e-06 | F194: -5.159819565e-06 | G194: 7.882056886e-06 | H194: -3.21620339e-06 | J194: -1.079000723e-05 | K194: -2.69745767e-05 | L194: -1.633177546e-06 | N194: -0.0004275934291 | O194: -0.01779164534 | P194: -0.0005525654605 | Q194: -0.01692875614 | R194: 1.020407113e-05
A195: 94.54035 | B195: ='DF raw data'!G200 -> -5.1847001e-06 | C195: ='DF raw data'!H200 -> 1.6234815e-05 | D195: ='DF raw data'!I200 -> -3.7840257e-06 | F195: -5.1898848e-06 | G195: 1.629061748e-05 | H195: -3.787809726e-06 | J195: -1.287380494e-05 | K195: -2.255018322e-05 | L195: 2.11016786e-06 | N195: -0.0004340322627 | O195: -0.01800872657 | P195: -0.0005638439346 | Q195: -0.01721076268 | R195: 1.045729907e-05
A196: 95.0405 | B196: ='DF raw data'!G201 -> -4.5137331e-06 | C196: ='DF raw data'!H201 -> 1.7333321e-05 | D196: ='DF raw data'!I201 -> -2.3612995e-06 | F196: -4.518246833e-06 | G196: 1.739289927e-05 | H196: -2.363660799e-06 | J196: -4.489641957e-06 | K196: -2.020410588e-05 | L196: 4.780591115e-06 | N196: -0.0004362777571 | O196: -0.01822693089 | P196: -0.0005739490182 | Q196: -0.01749782328 | R196: 1.071725491e-05
A197: 95.54065 | B197: ='DF raw data'!G202 -> 4.7378299e-07 | C197: ='DF raw data'!H202 -> 1.368689e-05 | D197: ='DF raw data'!I202 -> -3.89766e-07 | F197: 4.74256773e-07 | G197: 1.373393472e-05 | H197: -3.90155766e-07 | J197: 4.872707239e-06 | K197: -1.725245619e-05 | L197: 5.367648887e-06 | N197: -0.0004338406726 | O197: -0.0184439163 | P197: -0.0005825778341 | Q197: -0.01778919959 | R197: 1.098114138e-05
A198: 96.0408 | B198: ='DF raw data'!G203 -> 8.0839703e-07 | C198: ='DF raw data'!H203 -> 1.7241257e-05 | D198: ='DF raw data'!I203 -> -3.5022351e-06 | F198: 8.09205427e-07 | G198: 1.730051883e-05 | H198: -3.505737335e-06 | J198: 3.911757349e-06 | K198: -2.21894937e-05 | L198: 6.758156605e-06 | N198: -0.0004318842071 | O198: -0.01865992319 | P198: -0.0005936759094 | Q198: -0.01808612659 | R198: 1.125070976e-05
A199: 96.54095 | B199: ='DF raw data'!G204 -> -3.4480163e-06 | C199: ='DF raw data'!H204 -> 1.4978467e-05 | D199: ='DF raw data'!I204 -> -4.211634e-06 | F199: -3.451464316e-06 | G199: =(1-$G$1*($B$2-$G$2))*C199*$M$2/$M$1 -> 1.502995114e-05 | H199: -4.215845634e-06 | J199: =-CELL("contents", INDEX($F$6:$F$1203,1204-CELL("row",F199))) -> -6.944143807e-07 | K199: =CELL("contents", INDEX($G$6:$G$1203,1204-CELL("row",G199))) -> -2.305466529e-05 | L199: =-CELL("contents", INDEX($H$6:$H$1203,1204-CELL("row",H199))) -> -3.081044266e-06 | N199: -0.0004322315185 | O199: -0.01887610378 | P199: -0.0006052067002 | Q199: -0.01838882072 | R199: 1.152734234e-05
A200: =A199+$B$1 -> 97.0411 | B200: ='DF raw data'!G205 -> -5.2784872e-06 | C200: ='DF raw data'!H205 -> 1.8430361e-05 | D200: ='DF raw data'!I205 -> -4.766895e-06 | F200: -5.283765687e-06 | G200: 1.849371003e-05 | H200: -4.771661895e-06 | J200: -2.752889339e-06 | K200: -5.387632393e-06 | L200: 2.276986712e-06 | N200: =J200*$B$1+N199 -> -0.0004336083761 | O200: =N200*$B$1+O199 -> -0.01909297301 | P200: =K200*$B$1+P199 -> -0.0006079013246 | Q200: =P200*$B$1+Q199 -> -0.01869286257 | R200: =(N200^2+P200^2)*$B$1+R199 -> 1.18062061e-05
... 1003 more rows

Sheet 20 mm
A1: dz | B1: ='DF raw data'!K7 -> 0.50014 | C1: mm | F1: T_coeff | G1: -0.0008 | H1: /degC | L1: Hallref | M1: ='PI vs gap'!B50 -> 0.50518 | N1: T | P1: IBy total | Q1: =P1203*1000 -> -10.5939537 | R1: muTm
A2: Tref | B2: ='DF raw data'!K8 -> 21.21 | C2: degC | F2: Tcorr | G2: 20 | H2: degC | L2: NMRref | M2: ='PI vs gap'!B51 -> 0.50641 | N2: T | P2: JBy total | Q2: =Q1203 -> -8.191312831 | R2: muTm^2
A3: Encoder | B3: ='DF raw data'!K9 -> 593694 | P3: PI total | Q3: =R1203 -> 1860.536887 | R3: T^2mm^3
J4: SXR-rotation
A5: z [mm] | B5: Bx | C5: By | D5: Bz | F5: Bx_corr | G5: By_corr | H5: Bz_corr | J5: Bx_rot | K5: By_rot | L5: Bz_rot | N5: Ix | O5: Jx | P5: Iy | Q5: Jy | R5: PI
A6: ='PI vs gap'!B53 -> 0.012 | B6: ='DF raw data'!J11 -> 1.5782309e-06 | C6: ='DF raw data'!K11 -> -3.3343088e-07 | D6: ='DF raw data'!L11 -> -4.243072e-06 | F6: =(1-$G$1*($B$2-$G$2))*B6 -> 1.579758628e-06 | G6: =(1-$G$1*($B$2-$G$2))*C6*$M$2/$M$1 -> -3.345662564e-07 | H6: =(1-$G$1*($B$2-$G$2))*D6 -> -4.247179294e-06 | J6: =-CELL("contents", INDEX($F$6:$F$1203,1204-CELL("row",F6))) -> -7.317816696e-06 | K6: =CELL("contents", INDEX($G$6:$G$1203,1204-CELL("row",G6))) -> 6.342907144e-06 | L6: =-CELL("contents", INDEX($H$6:$H$1203,1204-CELL("row",H6))) -> 4.341446856e-06 | N6: =J6*$B$1 -> -3.659932842e-06 | O6: =N6*$B$1 -> -1.830478812e-06 | P6: =K6*$B$1 -> 3.172341579e-06 | Q6: =P6*$B$1 -> 1.586614917e-06 | R6: =(N6^2+P6^2)*$B$1 -> 1.173271399e-11
A7: =A6+$B$1 -> 0.51214 | B7: ='DF raw data'!J12 -> 1.5798316e-06 | C7: ='DF raw data'!K12 -> 1.6318234e-07 | D7: ='DF raw data'!L12 -> -1.0353023e-06 | F7: =(1-$G$1*($B$2-$G$2))*B7 -> 1.581360877e-06 | G7: =(1-$G$1*($B$2-$G$2))*C7*$M$2/$M$1 -> 1.637379975e-07 | H7: -1.036304473e-06 | J7: =-CELL("contents", INDEX($F$6:$F$1203,1204-CELL("row",F7))) -> -7.643202465e-06 | K7: =CELL("contents", INDEX($G$6:$G$1203,1204-CELL("row",G7))) -> 1.155759057e-05 | L7: =-CELL("contents", INDEX($H$6:$H$1203,1204-CELL("row",H7))) -> 4.876059161e-06 | N7: =J7*$B$1+N6 -> -7.482604123e-06 | O7: =N7*$B$1+O6 -> -5.572828438e-06 | P7: =K7*$B$1+P6 -> 8.952754928e-06 | Q7: =P7*$B$1+Q6 -> 6.064245767e-06 | R7: =(N7^2+P7^2)*$B$1+R6 -> 7.98223664e-11
A8: =A7+$B$1 -> 1.01228 | B8: ='DF raw data'!J13 -> 1.6903025e-06 | C8: ='DF raw data'!K13 -> -2.0954712e-06 | D8: ='DF raw data'!L13 -> 3.3458866e-06 | F8: 1.691938713e-06 | G8: -2.102606557e-06 | H8: 3.349125418e-06 | J8: -8.031990948e-06 | K8: 1.244803938e-05 | L8: 5.760419293e-06 | N8: =J8*$B$1+N7 -> -1.149972408e-05 | O8: =N8*$B$1+O7 -> -1.132430044e-05 | P8: =K8*$B$1+P7 -> 1.517851734e-05 | Q8: =P8*$B$1+Q7 -> 1.365562943e-05 | R8: =(N8^2+P8^2)*$B$1+R7 -> 2.61188656e-10
A9: 1.51242 | B9: ='DF raw data'!J14 -> 1.6646038e-06 | C9: ='DF raw data'!K14 -> -8.3084808e-07 | D9: ='DF raw data'!L14 -> 6.5564573e-06 | F9: 1.666215136e-06 | G9: -8.336772279e-07 | H9: 6.562803951e-06 | J9: -8.148180311e-06 | K9: 4.710087244e-06 | L9: 5.857417997e-06 | N9: -1.557495498e-05 | O9: -1.911395842e-05 | P9: 1.753422038e-05 | Q9: 2.242519441e-05 | R9: 5.362797134e-10
A10: 2.01256 | B10: ='DF raw data'!J15 -> 1.5250291e-06 | C10: ='DF raw data'!K15 -> 2.8844306e-06 | D10: ='DF raw data'!L15 -> 6.0293469e-06 | F10: 1.526505328e-06 | G10: 2.894252469e-06 | H10: 6.035183308e-06 | J10: -8.405750898e-06 | K10: 3.326156568e-06 | L10: 5.441383866e-06 | N10: -1.977900723e-05 | O10: -2.90062311e-05 | P10: 1.919776432e-05 | Q10: 3.202676426e-05 | R10: 9.162677213e-10
A11: 2.5127 | B11: ='DF raw data'!J16 -> 1.5564685e-06 | C11: ='DF raw data'!K16 -> 1.7386927e-06 | D11: ='DF raw data'!L16 -> 4.5262905e-06 | F11: 1.557975162e-06 | G11: 1.744613179e-06 | H11: 4.530671949e-06 | J11: -1.143402944e-05 | K11: 9.628226127e-06 | L11: 5.735839223e-06 | N11: -2.549762271e-05 | O11: -4.175861212e-05 | P11: 2.401322534e-05 | Q11: 4.403673878e-05 | R11: 1.529821346e-09
A12: 3.01284 | B12: ='DF raw data'!J17 -> 1.526899e-06 | C12: ='DF raw data'!K17 -> 2.2655959e-06 | D12: ='DF raw data'!L17 -> 3.1791035e-06 | F12: 1.528377038e-06 | G12: 2.273310554e-06 | H12: 3.182180872e-06 | J12: -1.267770815e-05 | K12: 9.040082717e-06 | L12: 6.213159822e-06 | N12: -3.183825167e-05 | O12: -5.768219531e-05 | P12: 2.853453231e-05 | Q12: 5.830799977e-05 | R12: 2.444024153e-09
A13: 3.51298 | B13: ='DF raw data'!J18 -> 1.5892467e-06 | C13: ='DF raw data'!K18 -> 1.738598e-07 | D13: ='DF raw data'!L18 -> 1.0093073e-06 | F13: 1.590785091e-06 | G13: 1.744518157e-07 | H13: 1.010284309e-06 | J13: -9.123064486e-06 | K13: -1.008488885e-05 | L13: 5.540246973e-06 | N13: -3.640106114e-05 | O13: -7.588782203e-05 | P13: 2.3490676e-05 | Q13: 7.005662647e-05 | R13: 3.382711467e-09
A14: 4.01312 | B14: ='DF raw data'!J19 -> 1.8304083e-06 | C14: ='DF raw data'!K19 -> -6.052388e-06 | D14: ='DF raw data'!L19 -> 2.6928585e-06 | F14: 1.832180135e-06 | G14: -6.072997184e-06 | H14: 2.695465187e-06 | J14: -4.170140192e-06 | K14: 6.475984853e-06 | L14: 5.01082739e-06 | N14: -3.848671506e-05 | O14: -9.51365677e-05 | P14: 2.672957507e-05 | Q14: 8.342515614e-05 | R14: 4.480867574e-09
A15: 4.51326 | B15: ='DF raw data'!J20 -> 1.8826715e-06 | C15: ='DF raw data'!K20 -> -7.4919326e-06 | D15: ='DF raw data'!L20 -> 1.8771071e-06 | F15: 1.884493926e-06 | G15: -7.517443624e-06 | H15: 1.87892414e-06 | J15: -2.126697452e-06 | K15: 7.347152227e-06 | L15: 5.607796798e-06 | N15: -3.955036152e-05 | O15: -0.0001149172855 | P15: 3.040417978e-05 | Q15: 9.863150262e-05 | R15: 5.725538607e-09
A16: 5.0134 | B16: ='DF raw data'!J21 -> 1.3393976e-06 | C16: ='DF raw data'!K21 -> 7.2090743e-06 | D16: ='DF raw data'!L21 -> 1.2075044e-06 | F16: 1.340694137e-06 | G16: 7.233622154e-06 | H16: 1.208673264e-06 | J16: -2.88276762e-06 | K16: -9.295358515e-07 | L16: 6.019832563e-06 | N16: -4.099214892e-05 | O16: -0.0001354190989 | P16: 2.993928172e-05 | Q16: 0.000113605335 | R16: 7.014257779e-09
A17: 5.51354 | B17: ='DF raw data'!J22 -> 1.2767225e-06 | C17: ='DF raw data'!K22 -> 8.4899739e-06 | D17: ='DF raw data'!L22 -> -5.3647716e-07 | F17: 1.277958367e-06 | G17: 8.518883387e-06 | H17: -5.369964699e-07 | J17: -5.628222451e-06 | K17: -4.945446453e-06 | L17: 5.343653254e-06 | N17: -4.38070481e-05 | O17: -0.0001573287559 | P17: 2.746586613e-05 | Q17: 0.0001273421133 | R17: 8.351347692e-09
A18: 6.01368 | B18: ='DF raw data'!J23 -> 1.6774895e-06 | C18: ='DF raw data'!K23 -> -3.1263289e-06 | D18: ='DF raw data'!L23 -> -4.1685989e-06 | F18: 1.67911331e-06 | G18: -3.136974464e-06 | H18: -4.172634104e-06 | J18: -7.431333174e-06 | K18: 3.826358743e-07 | L18: 4.833624724e-06 | N18: -4.752375507e-05 | O18: -0.0001810972868 | P18: 2.765723764e-05 | Q18: 0.0001411746041 | R18: 9.863486017e-09
A19: 6.51382 | B19: ='DF raw data'!J24 -> 1.6820952e-06 | C19: ='DF raw data'!K24 -> -3.6757838e-06 | D19: ='DF raw data'!L24 -> -6.7721949e-06 | F19: 1.683723468e-06 | G19: -3.688300331e-06 | H19: -6.778750385e-06 | J19: -8.020498334e-06 | K19: 6.84282114e-06 | L19: 5.298618803e-06 | N19: -5.153512711e-05 | O19: -0.0002068720652 | P19: 3.10796062e-05 | Q19: 0.0001567187583 | R19: 1.167489869e-08
A20: 7.01396 | B20: ='DF raw data'!J25 -> 1.5775615e-06 | C20: ='DF raw data'!K25 -> -5.6746205e-07 | D20: ='DF raw data'!L25 -> -5.3730937e-06 | F20: 1.57908858e-06 | G20: -5.693943335e-07 | H20: -5.378294855e-06 | J20: -1.232078599e-05 | K20: -2.829584413e-06 | L20: 6.005976663e-06 | N20: -5.769724501e-05 | O20: -0.0002357287654 | P20: 2.966441785e-05 | Q20: 0.0001715551203 | R20: 1.377996283e-08
A21: 7.5141 | B21: ='DF raw data'!J26 -> 2.0656328e-06 | C21: ='DF raw data'!K26 -> -1.2723612e-05 | D21: ='DF raw data'!L26 -> 1.0388586e-06 | F21: 2.067632333e-06 | G21: -1.276693759e-05 | H21: 1.039864215e-06 | J21: -1.793804524e-05 | K21: 3.267111896e-06 | L21: 6.317215651e-06 | N21: -6.666877895e-05 | O21: -0.0002690724885 | P21: 3.12984312e-05 | Q21: 0.0001872087177 | R21: 1.649288118e-08
A22: 8.01424 | B22: ='DF raw data'!J27 -> -8.2601468e-07 | C22: ='DF raw data'!K27 -> -6.8836371e-06 | D22: ='DF raw data'!L27 -> 2.1286808e-06 | F22: -8.268142622e-07 | G22: -6.907076797e-06 | H22: 2.130741363e-06 | J22: -1.796163104e-05 | K22: -1.298556552e-05 | L22: 5.822310246e-06 | N22: -7.56521091e-05 | O22: -0.0003069091343 | P22: 2.480383046e-05 | Q22: 0.0001996141054 | R22: 1.966300437e-08
A23: 8.51438 | B23: ='DF raw data'!J28 -> -6.5784157e-06 | C23: ='DF raw data'!K28 -> 2.157788e-06 | D23: ='DF raw data'!L28 -> -4.4818689e-06 | F23: =(1-$G$1*($B$2-$G$2))*B23 -> -6.584783606e-06 | G23: 2.165135554e-06 | H23: -4.486207349e-06 | J23: -1.327729499e-05 | K23: -2.100598944e-06 | L23: 6.789143235e-06 | N23: -8.229261542e-05 | O23: -0.000348066963 | P23: 2.37532369e-05 | Q23: 0.0002114940493 | R23: 2.333217686e-08
A24: 9.01452 | B24: ='DF raw data'!J29 -> -7.5631729e-06 | C24: ='DF raw data'!K29 -> 1.3522979e-05 | D24: ='DF raw data'!L29 -> -9.9816998e-06 | F24: -7.570494051e-06 | G24: 1.356902654e-05 | H24: -9.991362085e-06 | J24: -1.28279054e-05 | K24: -9.151201708e-06 | L24: 3.085220005e-06 | N24: -8.870836403e-05 | O24: -0.0003924335642 | P24: 1.917635488e-05 | Q24: 0.0002210849115 | R24: 2.745178325e-08
A25: 9.51466 | B25: ='DF raw data'!J30 -> -5.0240892e-06 | C25: ='DF raw data'!K30 -> 9.6082267e-06 | D25: ='DF raw data'!L30 -> -9.8109222e-06 | F25: -5.028952518e-06 | G25: 9.640943986e-06 | H25: -9.820419173e-06 | J25: -1.480526864e-05 | K25: 4.043493707e-06 | L25: 2.107994265e-06 | N25: -9.611307109e-05 | O25: -0.0004405035555 | P25: 2.119866782e-05 | Q25: 0.0002316872132 | R25: 3.229669242e-08
A26: 10.0148 | B26: ='DF raw data'!J31 -> -1.8902035e-06 | C26: ='DF raw data'!K31 -> -1.706797e-06 | D26: ='DF raw data'!L31 -> -8.099817e-06 | F26: -1.892033217e-06 | G26: -1.71260887e-06 | H26: -8.107657623e-06 | J26: -1.580694432e-05 | K26: 2.363949143e-06 | L26: 3.540957432e-06 | N26: -0.0001040187562 | O26: -0.0004925274963 | P26: 2.238097335e-05 | Q26: 0.0002428808332 | R26: 3.795868214e-08
A27: 10.51494 | B27: ='DF raw data'!J32 -> 8.4644199e-08 | C27: ='DF raw data'!K32 -> 4.842085e-07 | D27: ='DF raw data'!L32 -> -4.2087986e-06 | F27: 8.472613458e-08 | G27: 4.858572941e-07 | H27: -4.212872717e-06 | J27: -1.389732961e-05 | K27: -4.223155704e-06 | L27: 4.201412935e-06 | N27: -0.0001109693667 | O27: -0.0005480277153 | P27: 2.026880426e-05 | Q27: 0.000253018073 | R27: 4.432297602e-08
A28: 11.01508 | B28: ='DF raw data'!J33 -> 2.8168972e-06 | C28: ='DF raw data'!K33 -> 3.5142084e-06 | D28: ='DF raw data'!L33 -> 1.3420114e-06 | F28: 2.819623956e-06 | G28: 3.526174746e-06 | H28: 1.343310467e-06 | J28: -8.690042827e-06 | K28: 5.501461132e-06 | L28: 2.061892882e-06 | N28: -0.0001153156047 | O28: -0.0006057016618 | P28: 2.302030503e-05 | Q28: 0.0002645314483 | R28: 5.123872345e-08
A29: 11.51522 | B29: ='DF raw data'!J34 -> 6.9933481e-06 | C29: ='DF raw data'!K34 -> 1.8559956e-07 | D29: ='DF raw data'!L34 -> 3.1492211e-06 | F29: 7.000117661e-06 | G29: 1.862315511e-07 | H29: 3.152269546e-06 | J29: -4.840620489e-06 | K29: 6.814972534e-06 | L29: 1.487442652e-06 | N29: -0.0001177365926 | O29: -0.0006645864413 | P29: 2.642874539e-05 | Q29: 0.000277749521 | R29: 5.852095381e-08
A30: 12.01536 | B30: ='DF raw data'!J35 -> 7.3855003e-06 | C30: ='DF raw data'!K35 -> 5.1804464e-06 | D30: ='DF raw data'!L35 -> 5.0778917e-06 | F30: 7.392649464e-06 | G30: 5.198086507e-06 | H30: 5.082807099e-06 | J30: -3.267215306e-06 | K30: -3.51264463e-06 | L30: -3.551181419e-06 | N30: -0.0001193706577 | O30: -0.000724288482 | P30: 2.46719313e-05 | Q30: 0.0002900889408 | R30: 6.595206299e-08
A31: 12.5155 | B31: ='DF raw data'!J36 -> 3.2674441e-07 | C31: ='DF raw data'!K36 -> -3.175148e-08 | D31: ='DF raw data'!L36 -> 5.3927588e-06 | F31: 3.270606986e-07 | G31: -3.1859598e-08 | H31: 5.397978991e-06 | J31: -3.487766493e-06 | K31: 9.971229134e-06 | L31: -4.554520112e-06 | N31: -0.0001211150292 | O31: -0.0007848629527 | P31: 2.965894184e-05 | Q31: 0.0003049225639 | R31: 7.372849135e-08
A32: 13.01564 | B32: ='DF raw data'!J37 -> -7.7978011e-06 | C32: ='DF raw data'!K37 -> -6.6868333e-06 | D32: ='DF raw data'!L37 -> 2.2996585e-06 | F32: -7.805349371e-06 | G32: -6.709602854e-06 | H32: 2.301884569e-06 | J32: -7.188663597e-06 | K32: 9.574138677e-06 | L32: -4.723664185e-06 | N32: -0.0001247103674 | O32: -0.0008472355958 | P32: 3.444735156e-05 | Q32: 0.0003221510623 | R32: 8.210048274e-08
A33: 13.51578 | B33: ='DF raw data'!J38 -> -8.9957512e-06 | C33: ='DF raw data'!K38 -> 1.2144563e-06 | D33: ='DF raw data'!L38 -> 3.2590335e-06 | F33: -9.004459087e-06 | G33: 1.218591685e-06 | H33: 3.262188244e-06 | J33: -1.102265661e-05 | K33: 5.314697435e-06 | L33: -3.364649131e-06 | N33: -0.0001302232389 | O33: -0.0009123654465 | P33: 3.710544434e-05 | Q33: 0.0003407089793 | R33: 9.12705026e-08
A34: 14.01592 | B34: ='DF raw data'!J39 -> -6.5449753e-06 | C34: ='DF raw data'!K39 -> 4.6644827e-06 | D34: ='DF raw data'!L39 -> 4.295679e-06 | F34: -6.551310836e-06 | G34: 4.680365882e-06 | H34: 4.299837217e-06 | J34: -1.240015975e-05 | K34: 4.528813678e-06 | L34: -7.233595849e-07 | N34: -0.0001364250548 | O34: -0.0009805970734 | P34: 3.937048521e-05 | Q34: 0.0003603997337 | R34: 1.013542406e-07
A35: 14.51606 | B35: ='DF raw data'!J40 -> -4.7208491e-06 | C35: ='DF raw data'!K40 -> 6.1608707e-06 | D35: ='DF raw data'!L40 -> 2.994949e-06 | F35: -4.725418882e-06 | G35: 6.181849282e-06 | H35: 2.997848111e-06 | J35: -9.738423478e-06 | K35: -2.676557404e-06 | L35: 2.102992528e-07 | N35: -0.0001412956299 | O35: -0.00105126467 | P35: 3.803183179e-05 | Q35: 0.0003794209741 | R35: 1.120626757e-07
A36: 15.0162 | B36: ='DF raw data'!J41 -> -2.3675937e-06 | C36: ='DF raw data'!K41 -> -1.4784665e-05 | D36: ='DF raw data'!L41 -> 4.4046931e-07 | F36: -2.369885531e-06 | G36: -1.483500874e-05 | H36: 4.408956843e-07 | J36: -7.280269185e-06 | K36: -4.718919216e-06 | L36: 2.858183346e-06 | N36: -0.0001449367837 | O36: -0.001123753353 | P36: 3.567171153e-05 | Q36: 0.0003972618239 | R36: 1.23205366e-07
A37: 15.51634 | B37: ='DF raw data'!J42 -> -5.2437531e-07 | C37: ='DF raw data'!K42 -> -5.5318662e-07 | D37: ='DF raw data'!L42 -> -3.4426819e-07 | F37: -5.248829053e-07 | G37: -5.550702938e-07 | H37: -3.446014416e-07 | J37: -9.814924159e-06 | K37: -9.300209678e-06 | L37: 3.468276745e-06 | N37: -0.0001498456199 | O37: -0.001198697141 | P37: 3.102030466e-05 | Q37: 0.0004127763191 | R37: 1.349166288e-07
A38: 16.01648 | B38: ='DF raw data'!J43 -> 1.4825084e-06 | C38: ='DF raw data'!K43 -> 1.4359834e-05 | D38: ='DF raw data'!L43 -> 2.2004908e-06 | F38: 1.483943468e-06 | G38: 1.440873114e-05 | H38: 2.202620875e-06 | J38: -1.264309868e-05 | K38: -7.988439485e-06 | L38: -8.527311655e-07 | N38: -0.0001561689393 | O38: -0.001276803474 | P38: 2.702496654e-05 | Q38: 0.0004262925858 | R38: 1.474796886e-07
A39: 16.51662 | B39: ='DF raw data'!J44 -> 4.9782461e-06 | C39: ='DF raw data'!K44 -> -3.4294744e-06 | D39: ='DF raw data'!L44 -> 5.6623003e-06 | F39: 4.983065042e-06 | G39: -3.441152215e-06 | H39: 5.667781407e-06 | J39: -1.179776519e-05 | K39: 2.959586786e-06 | L39: -3.885339772e-06 | N39: -0.0001620694736 | O39: -0.001357860901 | P39: 2.850517428e-05 | Q39: 0.0004405491637 | R39: 1.610230093e-07
A40: 17.01676 | B40: ='DF raw data'!J45 -> 4.3554096e-06 | C40: ='DF raw data'!K45 -> -3.0490764e-06 | D40: ='DF raw data'!L45 -> 7.2639932e-06 | F40: 4.359625636e-06 | G40: -3.059458909e-06 | H40: 7.271024745e-06 | J40: -6.885261087e-06 | K40: -2.02291572e-07 | L40: -2.758485031e-06 | N40: -0.000165513068 | O40: -0.001440640607 | P40: 2.840400017e-05 | Q40: 0.0004547551404 | R40: 1.75127639e-07
A41: 17.5169 | B41: ='DF raw data'!J46 -> 3.8808207e-06 | C41: ='DF raw data'!K46 -> 2.0878697e-06 | D41: ='DF raw data'!L46 -> 2.4502708e-06 | F41: 3.884577334e-06 | G41: 2.094979173e-06 | H41: 2.452642662e-06 | J41: 9.094690447e-07 | K41: 1.275717044e-05 | L41: -4.008573847e-07 | N41: -0.0001650582062 | O41: -0.001523192818 | P41: 3.478437139e-05 | Q41: 0.0004721521959 | R41: 1.893587045e-07
A42: 18.01704 | B42: ='DF raw data'!J47 -> 2.6189184e-06 | C42: ='DF raw data'!K47 -> 1.1721612e-06 | D42: ='DF raw data'!L47 -> -5.6903582e-06 | F42: 2.621453513e-06 | G42: 1.176152564e-06 | H42: -5.695866467e-06 | J42: 3.568463432e-06 | K42: 8.076137695e-06 | L42: 2.179873777e-06 | N42: -0.0001632734749 | O42: -0.001604852414 | P42: 3.88235709e-05 | Q42: 0.0004915694166 | R42: 2.034453963e-07
A43: 18.51718 | B43: ='DF raw data'!J48 -> 3.1980818e-08 | C43: ='DF raw data'!K48 -> -1.1690353e-05 | D43: ='DF raw data'!L48 -> -7.2582397e-06 | F43: 3.201177543e-08 | G43: -1.17301602e-05 | H43: -7.265265676e-06 | J43: 3.310026207e-06 | K43: 1.20457251e-05 | L43: 7.194784516e-06 | N43: -0.0001616179984 | O43: -0.001685684039 | P43: 4.484811985e-05 | Q43: 0.0005139997553 | R43: 2.175152004e-07
A44: 19.01732 | B44: ='DF raw data'!J49 -> 1.0474425e-06 | C44: ='DF raw data'!K49 -> -4.673816e-06 | D44: ='DF raw data'!L49 -> -4.4652325e-06 | F44: 1.048456424e-06 | G44: -4.689730963e-06 | H44: -4.469554845e-06 | J44: 2.148329272e-06 | K44: 9.962796818e-06 | L44: 7.159742328e-06 | N44: -0.000160543533 | O44: -0.001765978282 | P44: 4.983091305e-05 | Q44: 0.0005389221881 | R44: 2.316478293e-07
A45: 19.51746 | B45: ='DF raw data'!J50 -> 3.7336388e-06 | C45: ='DF raw data'!K50 -> -1.5772413e-06 | D45: ='DF raw data'!L50 -> 8.7526598e-07 | F45: 3.737252962e-06 | G45: -1.582612016e-06 | H45: 8.761132375e-07 | J45: -1.19598089e-06 | K45: 4.599101405e-06 | L45: 7.171533531e-06 | N45: -0.0001611416909 | O45: -0.001846571687 | P45: 5.213110763e-05 | Q45: 0.0005649950403 | R45: 2.459939936e-07
A46: 20.0176 | B46: ='DF raw data'!J51 -> 3.6817721e-06 | C46: ='DF raw data'!K51 -> -4.3782775e-06 | D46: ='DF raw data'!L51 -> -1.0441535e-06 | F46: 3.685336055e-06 | G46: -4.393186115e-06 | H46: -1.045164241e-06 | J46: -5.828599628e-06 | K46: -7.60875028e-06 | L46: 8.197591795e-06 | N46: -0.0001640568067 | O46: -0.001928623059 | P46: 4.832566726e-05 | Q46: 0.0005891646395 | R46: 2.606230916e-07
A47: 20.51774 | B47: ='DF raw data'!J52 -> 2.3347704e-06 | C47: ='DF raw data'!K52 -> -6.5699271e-07 | D47: ='DF raw data'!L52 -> -6.7530971e-07 | F47: 2.337030458e-06 | G47: -6.592298573e-07 | H47: -6.759634098e-07 | J47: -9.736351474e-06 | K47: -3.921522188e-06 | L47: 2.196730279e-06 | N47: -0.0001689263455 | O47: -0.002013109881 | P47: 4.636435715e-05 | Q47: 0.0006123533091 | R47: 2.759702695e-07
A48: 21.01788 | B48: ='DF raw data'!J53 -> -8.9397213e-07 | C48: ='DF raw data'!K53 -> 2.9994851e-07 | D48: ='DF raw data'!L53 -> 4.8843513e-06 | F48: -8.94837495e-07 | G48: 3.009698744e-07 | H48: 4.889079352e-06 | J48: -1.257895766e-05 | K48: -4.825623124e-06 | L48: -4.028301425e-06 | N48: -0.0001752175854 | O48: -0.002100743204 | P48: 4.395087001e-05 | Q48: 0.0006343348972 | R48: 2.922912787e-07
A49: 21.51802 | B49: ='DF raw data'!J54 -> -7.4056411e-06 | C49: ='DF raw data'!K54 -> 4.188948e-06 | D49: ='DF raw data'!L54 -> 9.810351e-06 | F49: -7.412809761e-06 | G49: 4.203211923e-06 | H49: 9.81984742e-06 | J49: -1.225297041e-05 | K49: -2.885011609e-06 | L49: -3.546185188e-06 | N49: -0.000181345786 | O49: -0.002191441486 | P49: 4.25079603e-05 | Q49: 0.0006555948285 | R49: 3.096427461e-07
A50: 22.01816 | B50: ='DF raw data'!J55 -> -1.304651e-05 | C50: ='DF raw data'!K55 -> 3.7461041e-06 | D50: ='DF raw data'!L55 -> 1.6853638e-06 | F50: -1.305913902e-05 | G50: 3.758860081e-06 | H50: 1.686995232e-06 | J50: -7.56422609e-06 | K50: -5.718477293e-06 | L50: 3.737807799e-07 | N50: -0.000185128958 | O50: -0.002284031883 | P50: 3.964792107e-05 | Q50: 0.0006754243397 | R50: 3.275701088e-07
A51: 22.5183 | B51: ='DF raw data'!J56 -> -1.2948182e-05 | C51: ='DF raw data'!K56 -> -6.3003893e-07 | D51: ='DF raw data'!L56 -> -7.8531002e-06 | F51: -1.296071584e-05 | G51: -6.321842961e-07 | H51: -7.860702001e-06 | J51: -2.496717585e-06 | K51: -8.729204728e-06 | L51: 7.785355736e-06 | N51: -0.0001863776664 | O51: -0.002377246809 | P51: 3.528209661e-05 | Q51: 0.0006930703275 | R51: 3.455658766e-07
A52: 23.01844 | B52: ='DF raw data'!J57 -> -6.0729258e-06 | C52: ='DF raw data'!K57 -> -5.4882576e-06 | D52: ='DF raw data'!L57 -> -9.6740869e-06 | F52: -6.078804392e-06 | G52: -5.506945845e-06 | H52: -9.683451416e-06 | J52: 2.126606364e-07 | K52: -8.466652337e-07 | L52: 8.697697229e-06 | N52: -0.0001862713063 | O52: -0.00247040854 | P52: 3.485864546e-05 | Q52: 0.0007105045305 | R52: 3.635269667e-07
A53: 23.51858 | B53: ='DF raw data'!J58 -> 1.0318865e-06 | C53: ='DF raw data'!K58 -> 7.6787626e-07 | D53: ='DF raw data'!L58 -> -6.7938918e-06 | F53: 1.032885366e-06 | G53: 7.704909805e-07 | H53: -6.800468287e-06 | J53: 1.512865638e-06 | K53: 4.97088769e-06 | L53: 1.715812e-06 | N53: -0.0001855146617 | O53: -0.002563191843 | P53: 3.734478523e-05 | Q53: 0.0007291821514 | R53: 3.814371415e-07
A54: 24.01872 | B54: ='DF raw data'!J59 -> 4.4538642e-06 | C54: ='DF raw data'!K59 -> 2.6111711e-06 | D54: ='DF raw data'!L59 -> -5.6835677e-07 | F54: 4.458175541e-06 | G54: 2.620062484e-06 | H54: -5.689069394e-07 | J54: 3.086068826e-07 | K54: 8.883065567e-07 | L54: -3.34419485e-06 | N54: -0.000185360315 | O54: -0.002655897951 | P54: 3.778906287e-05 | Q54: 0.0007480819733 | R54: 3.993353814e-07
A55: 24.51886 | B55: ='DF raw data'!J60 -> 3.0833646e-06 | C55: ='DF raw data'!K60 -> -3.5647709e-06 | D55: ='DF raw data'!L60 -> 1.5398083e-06 | F55: 3.086349297e-06 | G55: -3.576909418e-06 | H55: 1.541298834e-06 | J55: -3.52304531e-06 | K55: 1.028250347e-05 | L55: -6.42816875e-07 | N55: -0.0001871223309 | O55: -0.002749485313 | P55: 4.293175416e-05 | Q55: 0.0007695538608 | R55: 4.177694926e-07
A56: 25.019 | B56: ='DF raw data'!J61 -> 3.842172e-07 | C56: ='DF raw data'!K61 -> -4.5445188e-07 | D56: ='DF raw data'!L61 -> 3.2975015e-06 | F56: 3.845891222e-07 | G56: -4.559993489e-07 | H56: 3.300693481e-06 | J56: -9.100214088e-06 | K56: 1.15490235e-05 | L56: 4.902838758e-06 | N56: -0.000191673712 | O56: -0.002845349004 | P56: 4.870788277e-05 | Q56: 0.0007939146213 | R56: 4.37330603e-07
A57: 25.51914 | B57: ='DF raw data'!J62 -> -4.0977167e-07 | C57: ='DF raw data'!K62 -> -5.181776e-06 | D57: ='DF raw data'!L62 -> 3.019971e-06 | F57: -4.10168329e-07 | G57: -5.199420634e-06 | H57: 3.022894332e-06 | J57: -1.077925122e-05 | K57: 1.715961447e-06 | L57: 5.393483543e-06 | N57: -0.0001970648467 | O57: -0.002943909016 | P57: 4.956610373e-05 | Q57: 0.0008187046124 | R57: 4.579820601e-07
A58: 26.01928 | B58: ='DF raw data'!J63 -> -1.69189e-06 | C58: ='DF raw data'!K63 -> -5.0260669e-06 | D58: ='DF raw data'!L63 -> 6.3913205e-07 | F58: -1.69352775e-06 | G58: -5.043181324e-06 | H58: 6.397507298e-07 | J58: -8.849864584e-06 | K58: -3.608506946e-06 | L58: 7.325423352e-06 | N58: -0.000201491018 | O58: -0.003044682734 | P58: 4.776134507e-05 | Q58: 0.0008425919715 | R58: 4.794279514e-07
A59: 26.51942 | B59: ='DF raw data'!J64 -> -3.4648881e-06 | C59: ='DF raw data'!K64 -> -1.1559993e-05 | D59: ='DF raw data'!L64 -> 1.9676856e-06 | F59: -3.468242112e-06 | G59: -1.159935631e-05 | H59: 1.96959032e-06 | J59: -9.068412935e-06 | K59: 3.997035548e-06 | L59: 3.146444513e-06 | N59: -0.000206026494 | O59: -0.003147724825 | P59: 4.976042242e-05 | Q59: 0.0008674791492 | R59: 5.018957486e-07
A60: 27.01956 | B60: ='DF raw data'!J65 -> -4.6821992e-06 | C60: ='DF raw data'!K65 -> 5.5735227e-06 | D60: ='DF raw data'!L65 -> 3.3709123e-06 | F60: -4.686731569e-06 | G60: 5.592501284e-06 | H60: 3.374175343e-06 | J60: -1.061849777e-05 | K60: -3.25318393e-06 | L60: 1.720407644e-06 | N60: -0.0002113372295 | O60: -0.003253423026 | P60: 4.813337501e-05 | Q60: 0.0008915525754 | R60: 5.25392449e-07
A61: 27.5197 | B61: ='DF raw data'!J66 -> -3.6798926e-06 | C61: ='DF raw data'!K66 -> 3.7180844e-06 | D61: ='DF raw data'!L66 -> 1.6520872e-06 | F61: -3.683454736e-06 | G61: 3.73074497e-06 | H61: 1.65368642e-06 | J61: -8.277799461e-06 | K61: -6.620168853e-06 | L61: 1.862240405e-06 | N61: -0.0002154772881 | O61: -0.003361191837 | P61: 4.482236376e-05 | Q61: 0.0009139700324 | R61: 5.496189835e-07
A62: 28.01984 | B62: ='DF raw data'!J67 -> -1.5912999e-06 | C62: ='DF raw data'!K67 -> -1.163805e-05 | D62: ='DF raw data'!L67 -> 9.9007332e-07 | F62: -1.592840278e-06 | G62: -1.16776791e-05 | H62: 9.91031711e-07 | J62: -3.046325591e-06 | K62: -1.312302299e-06 | L62: -2.540843458e-06 | N62: -0.0002170008774 | O62: -0.003469722656 | P62: 4.416602889e-05 | Q62: 0.0009360592301 | R62: 5.741458586e-07
A63: 28.51998 | B63: ='DF raw data'!J68 -> -1.9289189e-06 | C63: ='DF raw data'!K68 -> -1.2151343e-05 | D63: ='DF raw data'!L68 -> 2.3821169e-06 | F63: -1.930786093e-06 | G63: -1.219271993e-05 | H63: 2.384422789e-06 | J63: -1.229723021e-06 | K63: 5.308404178e-06 | L63: -1.044332837e-05 | N63: -0.0002176159111 | O63: -0.003578561078 | P63: 4.682097416e-05 | Q63: 0.0009594762721 | R63: 5.989272396e-07
A64: 29.02012 | B64: ='DF raw data'!J69 -> -3.7559846e-06 | C64: ='DF raw data'!K69 -> -7.6900715e-06 | D64: ='DF raw data'!L69 -> 4.5836614e-06 | F64: -3.759620393e-06 | G64: -7.716257213e-06 | H64: 4.588098384e-06 | J64: -5.321280318e-06 | K64: 4.843701574e-06 | L64: -1.565269616e-05 | N64: -0.0002202772962 | O64: -0.003688730565 | P64: 4.924350306e-05 | Q64: 0.0009841049177 | R64: 6.244078771e-07
A65: 29.52026 | B65: ='DF raw data'!J70 -> -2.7963295e-06 | C65: ='DF raw data'!K70 -> -1.1184798e-05 | D65: ='DF raw data'!L70 -> 5.6453291e-06 | F65: -2.799036347e-06 | G65: -1.122288372e-05 | H65: 5.650793779e-06 | J65: -1.041946028e-05 | K65: 1.531340522e-06 | L65: -1.071020345e-05 | N65: -0.0002254884851 | O65: -0.003801506376 | P65: 5.000938771e-05 | Q65: 0.001009116613 | R65: 6.510883434e-07
A66: 30.0204 | B66: ='DF raw data'!J71 -> -6.9004886e-07 | C66: ='DF raw data'!K71 -> 5.1751094e-06 | D66: ='DF raw data'!L71 -> 2.4214507e-06 | F66: -6.907168273e-07 | G66: 5.192731334e-06 | H66: 2.423794664e-06 | J66: -1.175821094e-05 | K66: -5.432241028e-06 | L66: 9.325050319e-08 | N66: -0.0002313692367 | O66: -0.003917223386 | P66: 4.729250668e-05 | Q66: 0.001032769487 | R66: 6.789803034e-07
A67: 30.52054 | B67: ='DF raw data'!J72 -> 1.0786127e-06 | C67: ='DF raw data'!K72 -> -3.4166651e-06 | D67: ='DF raw data'!L72 -> 2.3150981e-06 | F67: 1.079656797e-06 | G67: -3.428299298e-06 | H67: 2.317339115e-06 | J67: -8.01041138e-06 | K67: -3.409959861e-06 | L67: 3.81782428e-06 | N67: -0.0002353755638 | O67: -0.00403494412 | P67: 4.558704936e-05 | Q67: 0.001055569394 | R67: 7.077282681e-07
A68: 31.02068 | B68: ='DF raw data'!J73 -> 9.7748421e-07 | C68: ='DF raw data'!K73 -> 7.3066085e-06 | D68: ='DF raw data'!L73 -> -2.0935101e-06 | F68: 9.784304147e-07 | G68: 7.331488471e-06 | H68: -2.095536618e-06 | J68: -3.784891031e-06 | K68: 5.26636652e-06 | L68: -8.796454934e-07 | N68: -0.0002372685392 | O68: -0.004153611607 | P68: 4.822096991e-05 | Q68: 0.00107968663 | R68: 7.37047286e-07
A69: 31.52082 | B69: ='DF raw data'!J74 -> 7.8972084e-07 | C69: ='DF raw data'!K74 -> 1.4901817e-05 | D69: ='DF raw data'!L74 -> -4.5739134e-06 | F69: 7.904852898e-07 | G69: 1.495255966e-05 | H69: -4.578340948e-06 | J69: -1.84761286e-06 | K69: -1.211358739e-06 | L69: -7.733156656e-06 | N69: -0.0002381926043 | O69: -0.004272741257 | P69: 4.761512095e-05 | Q69: 0.001103500857 | R69: 7.665570046e-07
A70: 32.02096 | B70: ='DF raw data'!J75 -> 3.0527256e-06 | C70: ='DF raw data'!K75 -> 3.8936751e-06 | D70: ='DF raw data'!L75 -> -2.9129843e-09 | F70: 3.055680638e-06 | G70: 3.90693358e-06 | H70: -2.915804069e-09 | J70: -4.149883703e-07 | K70: 6.344111732e-06 | L70: -4.377783496e-06 | N70: -0.0002384001566 | O70: -0.004391974711 | P70: 5.078806499e-05 | Q70: 0.001128901999 | R70: 7.962723537e-07
A71: 32.5211 | B71: ='DF raw data'!J76 -> 3.5786463e-06 | C71: ='DF raw data'!K76 -> 1.2147478e-05 | D71: ='DF raw data'!L76 -> 7.7327322e-06 | F71: 3.58211043e-06 | G71: =(1-$G$1*($B$2-$G$2))*C71*$M$2/$M$1 -> 1.218884177e-05 | H71: 7.740217485e-06 | J71: =-CELL("contents", INDEX($F$6:$F$1203,1204-CELL("row",F71))) -> -4.119829238e-06 | K71: =CELL("contents", INDEX($G$6:$G$1203,1204-CELL("row",G71))) -> 3.011012904e-07 | L71: =-CELL("contents", INDEX($H$6:$H$1203,1204-CELL("row",H71))) -> 3.756202888e-06 | N71: -0.000240460648 | O71: -0.004512238699 | P71: 5.093865779e-05 | Q71: 0.00115437846 | R71: 8.26488847e-07
A72: =A71+$B$1 -> 33.02124 | B72: ='DF raw data'!J77 -> -2.6118207e-07 | C72: ='DF raw data'!K77 -> 1.6218073e-05 | D72: ='DF raw data'!L77 -> 8.9791565e-06 | F72: -2.614348942e-07 | G72: 1.627329769e-05 | H72: 8.987848323e-06 | J72: -8.988904345e-06 | K72: -4.466952748e-06 | L72: 3.643549445e-06 | N72: =J72*$B$1+N71 -> -0.0002449563586 | O72: =N72*$B$1+O71 -> -0.004634751173 | P72: =K72*$B$1+P71 -> 4.870455604e-05 | Q72: =P72*$B$1+Q71 -> 0.001178737556 | R72: =(N72^2+P72^2)*$B$1+R71 -> 8.576854553e-07
A73: 33.52138 | B73: ='DF raw data'!J78 -> -4.1282442e-06 | C73: ='DF raw data'!K78 -> -2.1948574e-07 | D73: ='DF raw data'!L78 -> 3.7321017e-06 | F73: -4.13224034e-06 | G73: -2.20233118e-07 | H73: 3.735714374e-06 | J73: -7.092050966e-06 | K73: -5.814335897e-06 | L73: 1.195787603e-06 | N73: -0.000248503377 | O73: -0.004759037652 | P73: 4.579657409e-05 | Q73: 0.001201642255 | R73: 8.896200218e-07
A74: 34.02152 | B74: ='DF raw data'!J79 -> -4.7861945e-06 | C74: ='DF raw data'!K79 -> -2.691223e-06 | D74: ='DF raw data'!L79 -> -1.423842e-06 | F74: -4.790827536e-06 | G74: -2.700386971e-06 | H74: -1.425220279e-06 | J74: -1.387800592e-06 | K74: -6.015292157e-06 | L74: -9.775071719e-07 | N74: -0.0002491974716 | O74: -0.004883671275 | P74: 4.278808587e-05 | Q74: 0.001223042288 | R74: 9.215940721e-07
A75: 34.52166 | B75: ='DF raw data'!J80 -> -2.2072606e-06 | C75: ='DF raw data'!K80 -> -2.6678745e-06 | D75: ='DF raw data'!L80 -> -8.004962e-07 | F75: -2.209397228e-06 | G75: -2.676958966e-06 | H75: -8.012710803e-07 | J75: -8.252907489e-07 | K75: -2.364480246e-06 | L75: -5.803942783e-07 | N75: -0.0002496102325 | O75: -0.005008511337 | P75: 4.160551472e-05 | Q75: 0.00124385087 | R75: 9.536211807e-07
A76: 35.0218 | B76: ='DF raw data'!J81 -> -3.4303156e-08 | C76: ='DF raw data'!K81 -> 2.3835464e-06 | D76: ='DF raw data'!L81 -> 2.3844489e-06 | F76: -3.433636146e-08 | G76: 2.391662692e-06 | H76: 2.386757047e-06 | J76: -5.983341473e-06 | K76: -3.274071313e-06 | L76: -6.530042268e-08 | N76: -0.0002526027409 | O76: -0.005134848072 | P76: 3.996802069e-05 | Q76: 0.001263840476 | R76: 9.863331311e-07
A77: 35.52194 | B77: ='DF raw data'!J82 -> -4.977453e-07 | C77: ='DF raw data'!K82 -> 7.9430547e-06 | D77: ='DF raw data'!L82 -> 3.7034163e-06 | F77: -4.982271175e-07 | G77: 7.970101854e-06 | H77: 3.707001207e-06 | J77: -1.102940414e-05 | K77: -4.591598142e-06 | L77: 3.65521863e-07 | N77: -0.0002581189871 | O77: -0.005263943702 | P77: 3.76715788e-05 | Q77: 0.00128268154 | R77: 1.020364937e-06
A78: 36.02208 | B78: ='DF raw data'!J83 -> -1.0629781e-06 | C78: ='DF raw data'!K83 -> -7.4241534e-06 | D78: ='DF raw data'!L83 -> -1.2575246e-06 | F78: -1.064007063e-06 | G78: -7.449433627e-06 | H78: -1.258741884e-06 | J78: -1.065858653e-05 | K78: -3.881758747e-06 | L78: 7.796223546e-07 | N78: -0.0002634497726 | O78: -0.005395705471 | P78: 3.573015598e-05 | Q78: 0.00130055162 | R78: 1.055716046e-06
A79: 36.52222 | B79: ='DF raw data'!J84 -> 3.3789118e-07 | C79: ='DF raw data'!K84 -> -8.4312587e-06 | D79: ='DF raw data'!L84 -> -1.2378975e-05 | F79: 3.382182587e-07 | G79: -8.459968254e-06 | H79: -1.239095785e-05 | J79: -6.939315461e-06 | K79: -5.505741157e-06 | L79: 2.650734329e-06 | N79: -0.0002669204018 | O79: -0.005529203041 | P79: 3.29765146e-05 | Q79: 0.001317044494 | R79: 1.091893148e-06
A80: 37.02236 | B80: ='DF raw data'!J85 -> 2.0160398e-06 | C80: ='DF raw data'!K85 -> -2.6113003e-06 | D80: ='DF raw data'!L85 -> -1.0133906e-05 | F80: 2.017991327e-06 | G80: -2.620192124e-06 | H80: -1.014371562e-05 | J80: -7.091584816e-06 | K80: -6.17159428e-08 | L80: 2.992288935e-06 | N80: -0.000270467187 | O80: -0.0056644745 | P80: 3.294564798e-05 | Q80: 0.00133352193 | R80: 1.129022499e-06
A81: 37.5225 | B81: ='DF raw data'!J86 -> -1.1976779e-06 | C81: ='DF raw data'!K86 -> 1.5549639e-06 | D81: ='DF raw data'!L86 -> -2.0131145e-06 | F81: -1.198837252e-06 | G81: 1.560258758e-06 | H81: -2.015063195e-06 | J81: -1.068571277e-05 | K81: -2.414818773e-06 | L81: -2.652495533e-06 | N81: -0.0002758115394 | O81: -0.005802418883 | P81: 3.173790052e-05 | Q81: 0.001349395324 | R81: 1.16757294e-06
A82: 38.02264 | B82: ='DF raw data'!J87 -> -4.9339765e-06 | C82: ='DF raw data'!K87 -> 5.2984331e-07 | D82: ='DF raw data'!L87 -> -1.1452617e-07 | F82: -4.938752589e-06 | G82: 5.316474967e-07 | H82: -1.146370313e-07 | J82: -1.219791516e-05 | K82: -6.140339114e-06 | L82: -4.563980761e-06 | N82: -0.0002819122047 | O82: -0.005943414453 | P82: 2.866687132e-05 | Q82: 0.001363732773 | R82: 1.207732322e-06
A83: 38.52278 | B83: ='DF raw data'!J88 -> -6.6222751e-06 | C83: ='DF raw data'!K88 -> 4.6169816e-06 | D83: ='DF raw data'!L88 -> -5.1145514e-07 | F83: -6.628685462e-06 | G83: 4.632703034e-06 | H83: -5.119502286e-07 | J83: -1.19212376e-05 | K83: -8.907105549e-07 | L83: -3.424336953e-06 | N83: -0.0002878744925 | O83: -0.006087392002 | P83: 2.822139134e-05 | Q83: 0.001377847419 | R83: 1.249578121e-06
A84: 39.02292 | B84: ='DF raw data'!J89 -> -7.1941799e-06 | C84: ='DF raw data'!K89 -> 1.0894372e-06 | D84: ='DF raw data'!L89 -> -2.3439522e-06 | F84: -7.201143866e-06 | G84: 1.093146878e-06 | H84: -2.346221146e-06 | J84: -1.227094479e-05 | K84: -1.97823128e-06 | L84: 1.269666348e-06 | N84: -0.0002940116828 | O84: -0.006234439005 | P84: 2.723199875e-05 | Q84: 0.001391467231 | R84: 1.293182552e-06
A85: 39.52306 | B85: ='DF raw data'!J90 -> -3.3380682e-06 | C85: ='DF raw data'!K90 -> -1.0445742e-05 | D85: ='DF raw data'!L90 -> 1.9728135e-07 | F85: -3.34129945e-06 | G85: -1.048131114e-05 | H85: 1.974723183e-07 | J85: -1.129632627e-05 | K85: 1.341631028e-06 | L85: 5.858481326e-06 | N85: -0.0002996614274 | O85: -0.006384311671 | P85: 2.790300209e-05 | Q85: 0.001405422639 | R85: 1.338483007e-06
A86: 40.0232 | B86: ='DF raw data'!J91 -> 1.5927828e-06 | C86: ='DF raw data'!K91 -> -3.6450938e-06 | D86: ='DF raw data'!L91 -> 3.7660441e-06 | F86: 1.594324614e-06 | G86: -3.657505828e-06 | H86: 3.769689631e-06 | J86: -8.790733901e-06 | K86: 3.153848327e-06 | L86: -3.584355401e-06 | N86: -0.0003040580251 | O86: -0.006536383252 | P86: 2.948036779e-05 | Q86: 0.00142016695 | R86: 1.385156259e-06
A87: 40.52334 | B87: ='DF raw data'!J92 -> 1.9573665e-06 | C87: ='DF raw data'!K92 -> -1.711843e-07 | D87: ='DF raw data'!L92 -> 3.2076543e-06 | F87: =(1-$G$1*($B$2-$G$2))*B87 -> 1.959261231e-06 | G87: -1.717672052e-07 | H87: 3.210759309e-06 | J87: -6.809230161e-06 | K87: -2.794639424e-06 | L87: -6.169820511e-06 | N87: -0.0003074635934 | O87: -0.006690158093 | P87: 2.808265683e-05 | Q87: 0.00143421221 | R87: 1.432830853e-06
A88: 41.02348 | B88: ='DF raw data'!J93 -> -1.9194383e-06 | C88: ='DF raw data'!K93 -> 1.7604406e-06 | D88: ='DF raw data'!L93 -> -6.3680118e-06 | F88: -1.921296316e-06 | G88: 1.766435134e-06 | H88: -6.374176035e-06 | J88: -4.836611212e-06 | K88: -4.100777404e-07 | L88: 1.798885637e-06 | N88: -0.0003098825762 | O88: -0.006845142765 | P88: 2.787756055e-05 | Q88: 0.001448154893 | R88: 1.48124659e-06
A89: 41.52362 | B89: ='DF raw data'!J94 -> -6.0230636e-06 | C89: ='DF raw data'!K94 -> 1.1034831e-05 | D89: ='DF raw data'!L94 -> -9.3500994e-06 | F89: -6.028893926e-06 | G89: 1.107240606e-05 | H89: -9.359150296e-06 | J89: -3.996087372e-06 | K89: 8.854793724e-06 | L89: 3.940204429e-06 | N89: -0.0003118811793 | O89: -0.007001127018 | P89: 3.230619708e-05 | Q89: 0.001464312514 | R89: 1.530417134e-06
A90: 42.02376 | B90: ='DF raw data'!J95 -> -7.660562e-06 | C90: ='DF raw data'!K95 -> -1.3769306e-07 | D90: ='DF raw data'!L95 -> -7.9532647e-06 | F90: -7.667977424e-06 | G90: -1.381619231e-07 | H90: -7.96096346e-06 | J90: -5.038790933e-06 | K90: -1.123051261e-05 | L90: 3.871918993e-06 | N90: -0.0003144012802 | O90: -0.007158371674 | P90: 2.668936851e-05 | Q90: 0.001477660935 | R90: 1.580211316e-06
A91: 42.5239 | B91: ='DF raw data'!J96 -> -6.9585553e-06 | C91: ='DF raw data'!K96 -> 4.8531483e-06 | D91: ='DF raw data'!L96 -> -8.0214804e-06 | F91: -6.965291182e-06 | G91: 4.869673913e-06 | H91: -8.029245193e-06 | J91: -5.305243209e-06 | K91: -8.191403458e-06 | L91: 3.233512813e-06 | N91: -0.0003170546445 | O91: -0.007316943384 | P91: 2.259251998e-05 | Q91: 0.001488960358 | R91: 1.630742496e-06
A92: 43.02404 | B92: ='DF raw data'!J97 -> -4.9218329e-06 | C92: ='DF raw data'!K97 -> 1.8230174e-06 | D92: ='DF raw data'!L97 -> -1.5962167e-06 | F92: -4.926597234e-06 | G92: 1.829225016e-06 | H92: -1.597761838e-06 | J92: -8.101077459e-06 | K92: 5.187945493e-07 | L92: -1.144586488e-06 | N92: -0.0003211063174 | O92: -0.007477541498 | P92: 2.285198989e-05 | Q92: 0.001500389552 | R92: 1.682572745e-06
A93: 43.52418 | B93: ='DF raw data'!J98 -> -3.047903e-06 | C93: ='DF raw data'!K98 -> -6.7383362e-06 | D93: ='DF raw data'!L98 -> 6.308409e-06 | F93: -3.05085337e-06 | G93: -6.761281128e-06 | H93: 6.31451554e-06 | J93: -1.226593094e-05 | K93: -1.213635465e-05 | L93: -4.464320183e-06 | N93: -0.0003272410001 | O93: -0.007641207811 | P93: 1.678211347e-05 | Q93: 0.001508782959 | R93: 1.736271932e-06
A94: 44.02432 | B94: ='DF raw data'!J99 -> -2.0254417e-06 | C94: ='DF raw data'!K99 -> 5.7655243e-06 | D94: ='DF raw data'!L99 -> 4.4934141e-06 | F94: -2.027402328e-06 | G94: 5.785156675e-06 | H94: 4.497763725e-06 | J94: -1.068577783e-05 | K94: 3.897694426e-06 | L94: -8.328325323e-06 | N94: -0.000332585385 | O94: -0.007807547066 | P94: 1.873150636e-05 | Q94: 0.001518151334 | R94: 1.791769421e-06
A95: 44.52446 | B95: ='DF raw data'!J100 -> -9.2180267e-07 | C95: ='DF raw data'!K100 -> 1.7399077e-07 | D95: ='DF raw data'!L100 -> -8.8968125e-07 | F95: -9.22694975e-07 | G95: 1.745832316e-07 | H95: -8.905424615e-07 | J95: -7.778498805e-06 | K95: 9.72743219e-06 | L95: -9.844494956e-06 | N95: -0.0003364757234 | O95: -0.007975832034 | P95: 2.35965843e-05 | Q95: 0.00152995293 | R95: 1.848671704e-06
A96: 45.0246 | B96: ='DF raw data'!J101 -> -2.2400388e-06 | C96: ='DF raw data'!K101 -> -1.8319507e-06 | D96: ='DF raw data'!L101 -> -1.6886614e-06 | F96: -2.242207158e-06 | G96: -1.838188735e-06 | H96: -1.690296024e-06 | J96: -8.49748391e-06 | K96: -3.360957368e-06 | L96: -8.03240605e-06 | N96: -0.000340725655 | O96: -0.008146242563 | P96: 2.191563508e-05 | Q96: 0.001540913816 | R96: 1.906975158e-06
A97: 45.52474 | B97: ='DF raw data'!J102 -> -3.6742829e-06 | C97: ='DF raw data'!K102 -> -5.3108006e-06 | D97: ='DF raw data'!L102 -> 8.624894e-07 | F97: -3.677839606e-06 | G97: -5.32888458e-06 | H97: 8.633242897e-07 | J97: -8.925564091e-06 | K97: -2.426598549e-06 | L97: -2.482087838e-06 | N97: -0.0003451896867 | O97: -0.008318885733 | P97: 2.070199608e-05 | Q97: 0.001551267712 | R97: 1.966784146e-06
A98: 46.02488 | B98: ='DF raw data'!J103 -> -1.0677147e-06 | C98: ='DF raw data'!K103 -> -1.1876617e-05 | D98: ='DF raw data'!L103 -> -9.2588641e-07 | F98: -1.068748248e-06 | G98: -1.191705846e-05 | H98: -9.26782668e-07 | J98: -6.130130428e-06 | K98: -5.503061764e-06 | L98: 2.514700676e-07 | N98: -0.0003482556101 | O98: -0.008493062294 | P98: 1.794969477e-05 | Q98: 0.001560245072 | R98: 2.027603252e-06
A99: 46.52502 | B99: ='DF raw data'!J104 -> 2.4821522e-06 | C99: ='DF raw data'!K104 -> -7.7006143e-06 | D99: ='DF raw data'!L104 -> 6.282836e-07 | F99: 2.484554923e-06 | G99: -7.726835913e-06 | H99: 6.288917785e-07 | J99: -3.102182509e-06 | K99: 2.930668549e-06 | L99: -2.669417597e-06 | N99: -0.0003498071357 | O99: -0.008668014835 | P99: 1.941543934e-05 | Q99: 0.00156995551 | R99: 2.088991431e-06
A100: 47.02516 | B100: ='DF raw data'!J105 -> 4.3311115e-06 | C100: ='DF raw data'!K105 -> -1.1775212e-05 | D100: ='DF raw data'!L105 -> 6.1012261e-06 | F100: 4.335304016e-06 | G100: -1.181530816e-05 | H100: 6.107132087e-06 | J100: -2.36035071e-06 | K100: 6.276233181e-06 | L100: -2.58827763e-06 | N100: -0.0003509876415 | O100: -0.008843557794 | P100: 2.25544346e-05 | Q100: 0.001581235885 | R100: 2.150859263e-06
A101: 47.5253 | B101: ='DF raw data'!J106 -> 4.4865042e-06 | C101: ='DF raw data'!K106 -> -8.0328455e-06 | D101: ='DF raw data'!L106 -> 6.7742885e-06 | F101: 4.490847136e-06 | G101: -8.060198404e-06 | H101: 6.780846011e-06 | J101: -5.689946742e-07 | K101: 4.294518479e-06 | L101: -4.622605255e-06 | N101: -0.0003512722185 | O101: -0.009019243081 | P101: 2.470229507e-05 | Q101: 0.001593590491 | R101: 2.212877811e-06
A102: 48.02544 | B102: ='DF raw data'!J107 -> 1.686228e-06 | C102: ='DF raw data'!K107 -> 8.3005295e-07 | D102: ='DF raw data'!L107 -> 3.5640526e-06 | F102: 1.687860269e-06 | G102: 8.328793903e-07 | H102: 3.567502603e-06 | J102: -1.370231101e-08 | K102: -3.054370341e-06 | L102: -8.991844888e-06 | N102: -0.0003512790715 | O102: -0.009194931796 | P102: 2.317468229e-05 | Q102: 0.001605181076 | R102: 2.274862188e-06
A103: 48.52558 | B103: ='DF raw data'!J108 -> -1.5736121e-06 | C103: ='DF raw data'!K108 -> 1.1454766e-06 | D103: ='DF raw data'!L108 -> 1.9502488e-06 | F103: -1.575135357e-06 | G103: 1.1493771e-06 | H103: 1.952136641e-06 | J103: -3.736116764e-06 | K103: -1.166911103e-05 | L103: -6.49824742e-06 | N103: -0.000353147653 | O103: -0.009371555063 | P103: 1.73384931e-05 | Q103: 0.00161385275 | R103: 2.337386634e-06
A104: 49.02572 | B104: ='DF raw data'!J109 -> -4.2874422e-06 | C104: ='DF raw data'!K109 -> 5.5024075e-06 | D104: ='DF raw data'!L109 -> 6.0139894e-07 | F104: -4.291592444e-06 | G104: 5.521143927e-06 | H104: 6.019810942e-07 | J104: -8.669198869e-06 | K104: -1.164152943e-05 | L104: -2.561294135e-06 | N104: -0.0003574834661 | O104: -0.009550346844 | P104: 1.151609858e-05 | Q104: 0.001619612412 | R104: 2.401368068e-06
A105: 49.52586 | B105: ='DF raw data'!J110 -> -3.9152478e-06 | C105: ='DF raw data'!K110 -> -4.2828751e-06 | D105: ='DF raw data'!L110 -> -9.5344046e-07 | F105: -3.91903776e-06 | G105: -4.297458858e-06 | H105: -9.543633904e-07 | J105: -1.087773647e-05 | K105: -9.346799283e-06 | L105: -4.221828978e-06 | N105: -0.0003629238572 | O105: -0.009731859582 | P105: 6.841390382e-06 | Q105: 0.001623034065 | R105: 2.46726678e-06
A106: 50.026 | B106: ='DF raw data'!J111 -> -2.3259461e-06 | C106: ='DF raw data'!K111 -> -1.3288277e-05 | D106: ='DF raw data'!L111 -> 2.3539662e-06 | F106: -2.328197616e-06 | G106: -1.333352535e-05 | H106: 2.356244839e-06 | J106: -9.364463234e-06 | K106: -7.777977566e-06 | L106: -6.208456774e-06 | N106: -0.0003676073998 | O106: -0.009915714747 | P106: 2.951312682e-06 | Q106: 0.001624510134 | R106: 2.534857655e-06
A107: 50.52614 | B107: ='DF raw data'!J112 -> -1.1768541e-06 | C107: ='DF raw data'!K112 -> -3.5048606e-06 | D107: ='DF raw data'!L112 -> 4.7686126e-06 | F107: -1.177993295e-06 | G107: -3.516795115e-06 | H107: 4.773228617e-06 | J107: -7.063053624e-06 | K107: -6.211163562e-06 | L107: -1.233522895e-06 | N107: -0.0003711399155 | O107: -0.01010133666 | P107: -1.551386618e-07 | Q107: 0.001624432543 | R107: 2.60374937e-06
A108: 51.02628 | B108: ='DF raw data'!J113 -> 7.9712777e-07 | C108: ='DF raw data'!K113 -> 2.5758136e-06 | D108: ='DF raw data'!L113 -> 8.6362081e-07 | F108: 7.978993897e-07 | G108: 2.584584587e-06 | H108: 8.644567949e-07 | J108: -7.887539855e-06 | K108: -6.653237574e-06 | L108: -4.880603956e-07 | N108: -0.0003750847897 | O108: -0.01028893157 | P108: -3.482688902e-06 | Q108: 0.001622690711 | R108: 2.674119432e-06
A109: 51.52642 | B109: ='DF raw data'!J114 -> 5.0252379e-06 | C109: ='DF raw data'!K114 -> 7.4249592e-06 | D109: ='DF raw data'!L114 -> -1.8258314e-06 | F109: 5.03010233e-06 | G109: 7.450242171e-06 | H109: -1.827598805e-06 | J109: -9.628916277e-06 | K109: -7.239639775e-06 | L109: -5.66358635e-06 | N109: -0.0003799005959 | O109: -0.01047893505 | P109: -7.103522339e-06 | Q109: 0.001619137956 | R109: 2.746327106e-06
A110: 52.02656 | B110: ='DF raw data'!J115 -> 9.2247128e-06 | C110: ='DF raw data'!K115 -> 1.1285939e-05 | D110: ='DF raw data'!L115 -> -4.4203887e-07 | F110: 9.233642322e-06 | G110: 1.132436912e-05 | H110: -4.424667636e-07 | J110: -7.343875297e-06 | K110: -8.189260787e-06 | L110: -4.795012083e-06 | N110: -0.0003835735616 | O110: -0.01067077554 | P110: -1.119929923e-05 | Q110: 0.001613536738 | R110: 2.819974773e-06
A111: 52.5267 | B111: ='DF raw data'!J116 -> 8.3231271e-06 | C111: ='DF raw data'!K116 -> 4.6168507e-06 | D111: ='DF raw data'!L116 -> 1.064812e-06 | F111: 8.331183887e-06 | G111: 4.632571689e-06 | H111: 1.065842738e-06 | J111: -1.891980866e-06 | K111: -6.465119782e-07 | L111: 1.035568861e-06 | N111: -0.000384519817 | O111: -0.01086308928 | P111: -1.152264573e-05 | Q111: 0.001607773802 | R111: 2.893989621e-06
A112: 53.02684 | B112: ='DF raw data'!J117 -> 3.5023506e-06 | C112: ='DF raw data'!K117 -> -1.7811172e-06 | D112: ='DF raw data'!L117 -> 2.2589769e-07 | F112: 3.505740875e-06 | G112: -1.78718214e-06 | H112: 2.26116359e-07 | J112: 1.880606166e-06 | K112: -2.932539398e-06 | L112: 2.153294473e-06 | N112: -0.0003835792506 | O112: -0.0110549326 | P112: -1.298932598e-05 | Q112: 0.001601277321 | R112: 2.967661126e-06
A113: 53.52698 | B113: ='DF raw data'!J118 -> 2.9920513e-06 | C113: ='DF raw data'!K118 -> 7.956799e-06 | D113: ='DF raw data'!L118 -> 5.0163101e-07 | F113: 2.994947606e-06 | G113: 7.983892956e-06 | H113: 5.021165888e-07 | J113: 1.672283305e-06 | K113: -1.275475625e-05 | L113: -1.654218135e-06 | N113: -0.0003827428748 | O113: -0.01124635763 | P113: -1.936848977e-05 | Q113: 0.001591590364 | R113: 3.04111531e-06
A114: 54.02712 | B114: ='DF raw data'!J119 -> 7.6946153e-06 | C114: ='DF raw data'!K119 -> 3.0238634e-06 | D114: ='DF raw data'!L119 -> -7.3460669e-08 | F114: 7.702063688e-06 | G114: 3.034160056e-06 | H114: -7.353177893e-08 | J114: 2.639283656e-06 | K114: 8.850942354e-07 | L114: 1.211974056e-06 | N114: -0.0003814228635 | O114: -0.01143712246 | P114: -1.892581874e-05 | Q114: 0.001582124805 | R114: 3.114056522e-06
A115: 54.52726 | B115: ='DF raw data'!J120 -> 8.6222344e-06 | C115: ='DF raw data'!K120 -> 8.8426214e-06 | D115: ='DF raw data'!L120 -> -8.7736669e-07 | F115: 8.630580723e-06 | G115: 8.872731698e-06 | H115: -8.78215981e-07 | J115: 5.001896153e-06 | K115: 2.575349146e-06 | L115: 8.164614304e-06 | N115: -0.0003789212151 | O115: -0.01162663611 | P115: -1.763778362e-05 | Q115: 0.001573303444 | R115: 3.186022856e-06
A116: 55.0274 | B116: ='DF raw data'!J121 -> 7.9417905e-06 | C116: ='DF raw data'!K121 -> 6.3153793e-06 | D116: ='DF raw data'!L121 -> 3.2482542e-06 | F116: 7.949478153e-06 | G116: 6.336884004e-06 | H116: 3.25139851e-06 | J116: 4.141795681e-06 | K116: -9.759958772e-06 | L116: 7.562718031e-06 | N116: -0.0003768497375 | O116: -0.01181511374 | P116: -2.25191294e-05 | Q116: 0.001562040727 | R116: 3.257304227e-06
A117: 55.52754 | B117: ='DF raw data'!J122 -> 7.8561488e-06 | C117: ='DF raw data'!K122 -> 1.002185e-05 | D117: ='DF raw data'!L122 -> 8.2213728e-06 | F117: 7.863753552e-06 | G117: 1.005597573e-05 | H117: 8.229331089e-06 | J117: -1.664464243e-08 | K117: -1.509379797e-05 | L117: 1.147490397e-06 | N117: -0.0003768580621 | O117: -0.01200359553 | P117: -3.006814152e-05 | Q117: 0.001547002446 | R117: 3.328787283e-06
A118: 56.02768 | B118: ='DF raw data'!J123 -> 6.4327173e-06 | C118: ='DF raw data'!K123 -> 1.1502224e-05 | D118: ='DF raw data'!L123 -> 7.0030337e-06 | F118: 6.43894417e-06 | G118: 1.15413906e-05 | H118: 7.009812637e-06 | J118: -3.517499347e-06 | K118: -6.695811753e-06 | L118: -4.994402406e-06 | N118: -0.0003786173042 | O118: -0.01219295719 | P118: -3.341698481e-05 | Q118: 0.001530289276 | R118: 3.401041387e-06
A119: 56.52782 | B119: ='DF raw data'!J124 -> 6.6831631e-06 | C119: ='DF raw data'!K124 -> -3.6054653e-06 | D119: ='DF raw data'!L124 -> -2.4017888e-06 | F119: 6.689632402e-06 | G119: -3.617742387e-06 | H119: -2.404113732e-06 | J119: -4.444745753e-06 | K119: -3.174730191e-06 | L119: -6.023923719e-06 | N119: -0.0003808402994 | O119: -0.01238343066 | P119: -3.500479436e-05 | Q119: 0.001512781978 | R119: 3.474194199e-06
A120: 57.02796 | B120: ='DF raw data'!J125 -> 8.2089855e-06 | C120: ='DF raw data'!K125 -> -7.6994138e-06 | D120: ='DF raw data'!L125 -> -9.6042049e-06 | F120: 8.216931798e-06 | G120: -7.725631325e-06 | H120: -9.61350177e-06 | J120: -3.437990757e-06 | K120: -1.282798576e-05 | L120: -1.872059902e-06 | N120: -0.0003825597761 | O120: -0.0125747641 | P120: -4.142058316e-05 | Q120: 0.001492065887 | R120: 3.548248752e-06
A121: 57.5281 | B121: ='DF raw data'!J126 -> 8.9653904e-06 | C121: ='DF raw data'!K126 -> -2.174459e-06 | D121: ='DF raw data'!L126 -> -1.0100363e-05 | F121: 8.974068898e-06 | G121: -2.181863321e-06 | H121: -1.011014015e-05 | J121: -2.6751074e-06 | K121: -8.242413766e-06 | L121: -1.087294784e-06 | N121: -0.0003838977043 | O121: -0.0127667667 | P121: -4.554294398e-05 | Q121: 0.001469288039 | R121: 3.622995479e-06
A122: 58.02824 | B122: ='DF raw data'!J127 -> 8.2700635e-06 | C122: ='DF raw data'!K127 -> 1.9517765e-06 | D122: ='DF raw data'!L127 -> -8.590453e-06 | F122: 8.278068921e-06 | G122: 1.958422558e-06 | H122: -8.598768559e-06 | J122: -5.08194997e-06 | K122: -1.951320858e-06 | L122: 8.545769205e-08 | N122: -0.0003864393907 | O122: -0.0129600405 | P122: -4.65188776e-05 | Q122: 0.001446022088 | R122: 3.698766393e-06
A123: 58.52838 | B123: ='DF raw data'!J128 -> 6.6257558e-06 | C123: ='DF raw data'!K128 -> 1.0941047e-06 | D123: ='DF raw data'!L128 -> -8.693477e-06 | F123: 6.632169532e-06 | G123: 1.097830272e-06 | H123: -8.701892286e-06 | J123: -6.234160832e-06 | K123: 8.284624511e-07 | L123: -7.1636426e-07 | N123: -0.0003895573439 | O123: -0.01315487371 | P123: -4.610453039e-05 | Q123: 0.001422963368 | R123: 3.775728212e-06
A124: 59.02852 | B124: ='DF raw data'!J129 -> 2.1829794e-06 | C124: ='DF raw data'!K129 -> 4.7836338e-06 | D124: ='DF raw data'!L129 -> -9.4784837e-06 | F124: 2.185092524e-06 | G124: 4.799922707e-06 | H124: -9.487658872e-06 | J124: -5.035717561e-06 | K124: -7.011104924e-06 | L124: -1.155044902e-06 | N124: -0.0003920759077 | O124: -0.01335096655 | P124: -4.96110644e-05 | Q124: 0.00139815089 | R124: 3.853842466e-06
A125: 59.52866 | B125: ='DF raw data'!J130 -> -4.5178645e-06 | C125: ='DF raw data'!K130 -> 7.2775229e-06 | D125: ='DF raw data'!L130 -> -5.9887852e-06 | F125: -4.522237793e-06 | G125: 7.30230383e-06 | H125: -5.994582344e-06 | J125: -7.123589967e-06 | K125: -8.020033401e-06 | L125: 3.759800667e-06 | N125: -0.0003956387 | O125: -0.01354884129 | P125: -5.362220391e-05 | Q125: 0.001371332281 | R125: 3.933567443e-06
A126: 60.0288 | B126: ='DF raw data'!J131 -> -7.4967579e-06 | C126: ='DF raw data'!K131 -> 1.281795e-05 | D126: ='DF raw data'!L131 -> 2.1301432e-06 | F126: -7.504014762e-06 | G126: 1.286159682e-05 | H126: 2.132205179e-06 | J126: -9.797554161e-06 | K126: -5.920638242e-06 | L126: 3.115400792e-06 | N126: -0.0004005388487 | O126: -0.01374916679 | P126: -5.658335192e-05 | Q126: 0.001343032684 | R126: 4.015406875e-06
